Workbook

Sheet Charge atelier chaudronnerie
A1: 245293 | B1: 8 | C1: EC | D1: 2014-10-21 | E1: 50 | F1: 2015-03-23T11:08:00 | G1: =D1-F1 -> -153
A2: 246465 | B2: 4 | C2: EC | D2: 2014-09-07T23:06:00 | E2: 50 | F2: 2014-11-06T15:26:00 | G2: blocage MRO perçage
A3: 254682 | B3: 2 | C3: EC | D3: 2014-12-25T04:07:00 | E3: 50 | F3: 2014-11-18
A4: 251545 | B4: 11 | C4: EC | D4: 2014-12-17T14:08:00 | E4: 50 | F4: 2014-12-15T10:01:00
A5: 255591 | B5: 6 | C5: EC | D5: 2014-12-10T02:44:34 | E5: 50 | F5: 2015-01-21T09:24:00 | G5: =F5-D5 -> 42
A6: 205639 | B6: 54 | C6: EC | D6: 2014-06-18T23:28:00 | E6: 50.00 | F6: 2015-01-21T09:41:00
A7: 254365 | B7: 1 | C7: EC | D7: 2014-10-30T05:40:00 | E7: 50 | F7: 2015-01-21T09:41:00
A8: 248451 | B8: 1 | C8: EC | D8: 2014-10-21T05:47:00 | E8: 50 | F8: 2015-01-22T15:06:00
A9: 254143 | B9: 6 | C9: EC | D9: 2014-02-28T01:42:51 | E9: 50 | F9: 2015-01-26T08:00:00 | G9: =F9-D9 -> 332
A10: 246194 | B10: 1 | C10: EC | D10: 2014-09-01T01:42:51 | E10: 50 | F10: 2015-01-27T14:25:00 | G10: =F10-D10 -> 149
A11: 246197 | B11: 6 | C11: EC | D11: 2014-11-03T06:51:26 | E11: 50 | F11: 2015-01-28T13:22:00 | G11: =F11-D11 -> 86
A12: 258997 | B12: 2 | C12: EC | D12: 2015-01-09T02:03:26 | E12: 50 | F12: 2015-02-04T09:13:00 | G12: =F12-D12 -> 26
A13: 260077 | B13: 5 | C13: EC | D13: 2014-10-09T01:32:34 | E13: 50 | F13: 2015-02-04T10:49:00 | G13: =F13-D13 -> 118
A14: 257023 | B14: 1 | C14: EC | D14: 2014-11-13T11:39:26 | E14: 50 | F14: 2015-02-05T10:09:00 | G14: tron 18/11 peint + ass à faire
A15: 261284 | B15: 6 | C15: EC | D15: 2014-10-21T03:46:17 | E15: 50 | F15: 2015-02-06T08:32:00 | G15: =F15-D15 -> 108
A16: 237593 | B16: 10 | C16: EC | D16: 2014-10-31T20:34:17 | E16: 50 | F16: 2015-02-16T09:38:00 | G16: =F16-D16 -> 108
A17: 261034 | B17: 5 | C17: EC | D17: 2015-01-21T02:24:00 | E17: 50 | F17: 2015-02-19T13:23:00 | G17: =F17-D17 -> 29
A18: 252306 | B18: 15 | C18: EC | D18: 2015-02-13T08:24:00 | E18: 50 | F18: 2015-02-24T11:10:00 | G18: =F18-D18 -> 11
A19: 246201 | B19: 6 | C19: EC | D19: 2014-11-03T06:51:26 | E19: 50 | F19: 2015-02-25T09:09:00 | G19: =F19-D19 -> 114
A20: 260087 | B20: 20 | C20: EC | D20: 2014-11-25 | E20: 50 | F20: 2015-03-02T08:00:00 | G20: =D20-F20 -> -97
A21: 260158 | B21: 12 | C21: EC | D21: 2015-03-10 | E21: 50 | F21: 2015-03-02T08:02:00 | G21: =D21-F21 -> 8
A22: 261035 | B22: 5 | C22: EC | D22: 2015-01-08 | E22: 50 | F22: 2015-03-02T10:33:00 | G22: =D22-F22 -> -53
A23: 250873 | B23: 2 | C23: EC | D23: 2014-11-14 | E23: 50 | F23: 2015-03-02T15:40:00 | G23: =D23-F23 -> -109
A24: 251977 | B24: 4 | C24: EC | D24: 2014-11-14 | E24: 50 | F24: 2015-03-02T16:01:00 | G24: =D24-F24 -> -109
A25: 250872 | B25: 6 | C25: EC | D25: 2014-11-27 | E25: 50 | F25: 2015-03-02T16:19:00 | G25: =D25-F25 -> -96
A26: 261930 | B26: 5 | C26: EC | D26: 2015-03-10 | E26: 50 | F26: 2015-03-04T08:00:00 | G26: =D26-F26 -> 6
A27: 209757 | B27: 2 | C27: EC | D27: 2015-02-13 | E27: 50 | F27: 2015-03-04T08:00:00 | G27: =D27-F27 -> -19
A28: 260935 | B28: 10 | C28: EC | D28: 2015-03-03 | E28: 50 | F28: 2015-03-04T09:30:00 | G28: =D28-F28 -> -1
A29: 248057 | B29: 6 | C29: EC | D29: 2015-03-05T11:19:00 | E29: 50 | F29: 2015-03-04T16:37:00
A30: 263823 | B30: 5 | C30: EC | D30: 2015-01-30 | E30: 50 | F30: 2015-03-08 | G30: =D30-F30 -> -37
A31: 259565 | B31: 10 | C31: EC | D31: 2015-03-06 | E31: 50 | F31: 2015-03-09T08:00:00 | G31: =D31-F31 -> -3
A32: 261135 | B32: 10 | C32: EC | D32: 2015-03-26 | E32: 50 | F32: 2015-03-09T08:00:00 | G32: =D32-F32 -> 17
A33: 264679 | B33: 1 | C33: EC | D33: 2015-02-10 | E33: 50 | F33: 2015-03-09T08:13:00 | G33: =D33-F33 -> -27
A34: 260951 | B34: 5 | C34: EC | D34: 2015-02-20 | E34: 50 | F34: 2015-03-09T09:41:00 | G34: =D34-F34 -> -17
A35: 260951 | B35: 5 | C35: EC | D35: 2015-02-16 | E35: 50 | F35: 2015-03-09T10:00:00 | G35: =D35-F35 -> -21
A36: 265482 | B36: 10 | C36: EC | D36: 2014-10-31 | E36: 50 | F36: 2015-03-09T13:52:00 | G36: =D36-F36 -> -130
A37: 264242 | B37: 6 | C37: EC | D37: 2014-12-08 | E37: 50 | F37: 2015-03-10T09:13:00 | G37: =D37-F37 -> -92
A38: 264686 | B38: 5 | C38: EC | D38: 2014-12-18 | E38: 50 | F38: 2015-03-10T09:38:00 | G38: =D38-F38 -> -82
A39: 257060 | B39: 5 | C39: EC | D39: 2015-02-20 | E39: 50 | F39: 2015-03-10T09:47:00 | G39: =D39-F39 -> -18
A40: 257511 | B40: 6 | C40: EC | D40: 2015-03-10 | E40: 50 | F40: 2015-03-10T16:05:00 | G40: =D40-F40 -> -1
A41: 250872 | B41: 6 | C41: EC | D41: 2014-12-11 | E41: 50 | F41: 2015-03-11T09:16:00 | G41: =D41-F41 -> -90
A42: 247240 | B42: 6 | C42: EC | D42: 2015-06-09 | E42: 50 | F42: 2015-03-11T09:34:00 | G42: =D42-F42 -> 90
A43: 250873 | B43: 2 | C43: EC | D43: 2014-11-28 | E43: 50 | F43: 2015-03-11T11:08:00 | G43: =D43-F43 -> -103
A44: 251977 | B44: 4 | C44: EC | D44: 2014-11-28 | E44: 50 | F44: 2015-03-11T11:55:00 | G44: =D44-F44 -> -103
A45: 235138 | B45: 5 | C45: EC | D45: 2015-03-02T04:06:51 | E45: 50 | F45: 2015-03-12T08:00:00 | G45: =F45-D45 -> 10
A46: 263237 | B46: 5 | C46: EC | D46: 2015-03-05 | E46: 50 | F46: 2015-03-12T16:19:00 | G46: =D46-F46 -> -8
A47: 254120 | B47: 1 | C47: EC | D47: 2015-02-24 | E47: 50 | F47: 2015-03-16T08:00:00
A48: 261887 | B48: 5 | C48: EC | D48: 2014-10-15 | E48: 50 | F48: 2015-03-16T09:25:00
A49: 259184 | B49: 10 | C49: EC | D49: 2015-03-09 | E49: 50 | F49: 2015-03-16T10:50:00 | G49: =D49-F49 -> -7
A50: 259533 | B50: 5 | C50: EC | D50: 2015-03-02 | E50: 50 | F50: 2015-03-16T13:56:00 | G50: =D50-F50 -> -15
A51: 259226 | B51: 3 | C51: EC | D51: 2015-03-05 | E51: 50 | F51: 2015-03-16T16:11:00 | G51: =D51-F51 -> -12
A52: 265305 | B52: 12 | C52: EC | D52: 2014-10-27 | E52: 50 | F52: 2015-03-17T10:26:00
A53: 245403 | B53: 3 | C53: EC | D53: 2014-10-29 | E53: 50 | F53: 2015-03-18T08:00:00 | G53: =D53-F53 -> -140
A54: 245053 | B54: 12 | C54: EC | D54: 2015-01-22 | E54: 50 | F54: 2015-03-18T08:00:00
A55: 248010 | B55: 3 | C55: EC | D55: 2014-11-17 | E55: 50 | F55: 2015-03-19T08:00:00 | G55: =D55-F55 -> -122
A56: 261239 | B56: 10 | C56: EC | D56: 2015-02-13T04:06:51 | E56: 50 | F56: 2015-03-19T08:00:00 | G56: =F56-D56 -> 34
A57: 255498 | B57: 10 | C57: EC | D57: 2015-03-12 | E57: 50 | F57: 2015-03-19T08:53:00 | G57: =F57-D57 -> 7
A58: 260150 | B58: 2 | C58: EC | D58: 2015-03-13 | E58: 50 | F58: 2015-03-19T14:39:00 | G58: =D58-F58 -> -7
A59: 264896 | B59: 10 | C59: EC | D59: 2015-03-26 | E59: 50 | F59: 2015-03-20T08:50:00 | G59: =D59-F59 -> 6
A60: 260354 | B60: 10 | C60: EC | D60: 2015-03-20 | E60: 50 | F60: 2015-03-22T22:43:00 | G60: =D60-F60 -> -3
A61: 266221 | B61: 6 | C61: EC | D61: 2015-02-02 | E61: 50 | F61: 2015-03-23T08:00:00
A62: 245403 | B62: 3 | C62: EC | D62: 2014-11-04 | E62: 50 | F62: 2015-03-23T08:00:00 | G62: =D62-F62 -> -139
A63: 259152 | B63: 3 | C63: EC | D63: 2015-02-16 | E63: 50 | F63: 2015-03-23T08:03:00 | G63: =D63-F63 -> -35
A64: 259226 | B64: 3 | C64: EC | D64: 2015-03-24 | E64: 50 | F64: 2015-03-23T08:43:00 | G64: =D64-F64 -> 1
A65: 246198 | B65: 3 | C65: EC | D65: 2014-10-02 | E65: 50 | F65: 2015-03-23T10:03:00 | G65: =D65-F65 -> -172
A66: 261887 | B66: 5 | C66: EC | D66: 2014-12-23 | E66: 50 | F66: 2015-03-23T13:54:00 | G66: =D66-F66 -> -91
A67: 266221 | B67: 6 | C67: EC | D67: 2015-02-05 | E67: 50 | F67: 2015-03-23T14:28:00
A68: 259537 | B68: 9 | C68: EC | D68: 2015-03-26 | E68: 50 | F68: 2015-03-23T16:49:00 | G68: =D68-F68 -> 2
A69: 261992 | B69: 18 | C69: EC | D69: 2015-03-17 | E69: 50 | F69: 2015-03-24T09:46:00 | G69: =D69-F69 -> -7
A70: 241914 | B70: 6 | C70: EC | D70: 2015-01-23 | E70: 50 | F70: 2015-03-24T09:48:00
A71: 261149 | B71: 10 | C71: EC | D71: 2015-03-30 | E71: 50 | F71: 2015-03-24T10:15:00 | G71: =D71-F71 -> 6
A72: 259230 | B72: 3 | C72: EC | D72: 2015-03-05 | E72: 50 | F72: 2015-03-24T14:04:00 | G72: =D72-F72 -> -20
A73: 261944 | B73: 5 | C73: EC | D73: 2015-03-30 | E73: 50 | F73: 2015-03-24T14:07:00 | G73: =D73-F73 -> 5
A74: 248010 | B74: 3 | C74: EC | D74: 2014-11-21 | E74: 50 | F74: 2015-03-25T10:34:00 | G74: =D74-F74 -> -124
A75: 266590 | B75: 1 | C75: EC | D75: 2015-03-27 | E75: 50 | F75: 2015-03-25T15:45:00
A76: 252682 | B76: 3 | C76: EC | D76: 2014-12-19 | E76: 50 | F76: 2015-03-26T08:00:00 | G76: =D76-F76 -> -97
A77: 263828 | B77: 5 | C77: EC | D77: 2015-01-13 | E77: 90 | F77: 2015-03-26T10:37:00
A78: 260319 | B78: 10 | C78: EC | D78: 2015-04-08 | E78: 50 | F78: 2015-03-26T10:49:00 | G78: =D78-F78 -> 13
A79: 265491 | B79: 6 | C79: EC | D79: 2015-04-10 | E79: 50 | F79: 2015-03-26T15:20:00
A80: 261178 | B80: 6 | C80: EC | D80: 2015-04-02 | E80: 50 | F80: 2015-03-27T08:00:00
A81: 262714 | B81: 10 | C81: EC | D81: 2015-03-10 | E81: 50 | F81: 2015-03-30T01:50:00
A82: 245403 | B82: 3 | C82: EC | D82: 2014-11-07 | E82: 50 | F82: 2015-03-30T08:00:00 | G82: =D82-F82 -> -143
A83: 264760 | B83: 5 | C83: EC | D83: 2015-04-01 | E83: 50 | F83: 2015-03-30T08:00:00 | G83: =D83-F83 -> 2
A84: 259254 | B84: 18 | C84: EC | D84: 2015-03-25 | E84: 50 | F84: 2015-03-30T08:00:00
A85: 241852 | B85: 2 | C85: EC | D85: 2015-03-12 | E85: 50 | F85: 2015-03-30T08:00:00
A86: 246575 | B86: 2 | C86: EC | D86: 2015-03-10 | E86: 50 | F86: 2015-03-30T08:00:00
A87: 261992 | B87: 18 | C87: EC | D87: 2015-04-02 | E87: 50 | F87: 2015-03-30T08:00:00 | G87: =D87-F87 -> 3
A88: 259230 | B88: 3 | C88: EC | D88: 2015-03-24 | E88: 50 | F88: 2015-03-30T08:00:00 | G88: =D88-F88 -> -6
A89: 246200 | B89: 2 | C89: EC | D89: 2014-11-03T02:44:34 | E89: 50 | F89: 2015-03-30T08:00:00 | G89: =F89-D89 -> 147
A90: 261071 | B90: 5 | C90: EC | D90: 2015-03-25 | E90: 50 | F90: 2015-03-30T08:03:00
A91: 245351 | B91: 1 | C91: EC | D91: 2015-10-01 | E91: 50 | F91: 2015-03-30T08:09:00
A92: 261132 | B92: 10 | C92: EC | D92: 2015-04-07 | E92: 50 | F92: 2015-03-30T08:13:00
A93: 264698 | B93: 6 | C93: EC | D93: 2015-03-23 | E93: 50 | F93: 2015-03-30T10:38:00 | G93: =D93-F93 -> -7
A94: 260260 | B94: 5 | C94: EC | D94: 2015-07-07 | E94: 50 | F94: 2015-03-30T11:16:00 | G94: =D94-F94 -> 99
A95: 249517 | B95: 1 | C95: EC | D95: 2014-11-18 | E95: 50 | F95: 2015-03-30T11:40:00
A96: 252680 | B96: 2 | C96: EC | D96: 2014-12-05 | E96: 50 | F96: 2015-03-30T13:15:00
A97: 259086 | B97: 1 | C97: EC | D97: 2015-03-20T13:42:51 | E97: 25 | F97: 2015-03-30T13:51:00 | G97: =F97-D97 -> 10
A98: 261841 | B98: 5 | C98: EC | D98: 2015-04-09 | E98: 50 | F98: 2015-03-30T13:51:00
A99: 258730 | B99: 20 | C99: EC | D99: 2014-12-16 | E99: 50 | F99: 2015-03-30T14:46:00
A100: 249531 | B100: 1 | C100: EC | D100: 2015-01-08 | E100: 50 | F100: 2015-03-30T15:48:00
A101: 269632 | B101: 5 | C101: D | D101: 2015-02-13 | E101: 50 | F101: 2015-03-30T16:00:00
A102: 251473 | B102: 10 | C102: EC | D102: 2015-03-04 | E102: 50 | F102: 2015-03-30T16:14:00 | G102: =D102-F102 -> -27
A103: 248009 | B103: 20 | C103: EC | D103: 2014-12-18 | E103: 50 | F103: 2015-03-30T16:14:00
A104: 253232 | B104: 10 | C104: EC | D104: 2015-03-18 | E104: 50 | F104: 2015-03-30T16:43:00
A105: 269632 | B105: 5 | C105: D | D105: 2015-03-02 | E105: 50 | F105: 2015-03-31T08:01:00
A106: 259563 | B106: 10 | C106: EC | D106: 2014-11-07 | E106: 90 | F106: 2015-03-31T08:02:00
A107: 255292 | B107: 6 | C107: EC | D107: 2015-01-15 | E107: 50 | F107: 2015-03-31T09:51:00 | G107: =D107-F107 -> -75
A108: 241025 | B108: 10 | C108: EC | D108: 2014-06-05T04:29:00 | E108: 50 | F108: 2015-03-31T09:51:00
A109: 246196 | B109: 10 | C109: EC | D109: 2014-12-18 | E109: 50 | F109: 2015-03-31T09:51:00
A110: 266443 | B110: 5 | C110: EC | D110: 2015-03-25 | E110: 50 | F110: 2015-03-31T10:15:00
A111: 266588 | B111: 1 | C111: EC | D111: 2015-04-01 | E111: 50 | F111: 2015-03-31T10:41:00
A112: 264683 | B112: 6 | C112: EC | D112: 2015-01-16 | E112: 50 | F112: 2015-03-31T11:27:00
A113: 263210 | B113: 10 | C113: EC | D113: 2015-04-08 | E113: 50 | F113: 2015-03-31T11:29:00 | G113: =D113-F113 -> 8
A114: 264087 | B114: 10 | C114: EC | D114: 2015-02-10 | E114: 50 | F114: 2015-03-31T11:30:00
A115: 261818 | B115: 15 | C115: EC | D115: 2015-04-01 | E115: 50 | F115: 2015-03-31T11:40:00 | G115: =D115-F115 -> 1
A116: 265870 | B116: 6 | C116: EC | D116: 2015-02-11 | E116: 50 | F116: 2015-03-31T13:16:00
A117: 263188 | B117: 12 | C117: EC | D117: 2015-02-24 | E117: 50 | F117: 2015-03-31T13:53:00
A118: 252681 | B118: 3 | C118: EC | D118: 2014-12-18 | E118: 50 | F118: 2015-03-31T14:00:00 | G118: =D118-F118 -> -104
A119: 257523 | B119: 10 | C119: EC | D119: 2015-03-23 | E119: 50 | F119: 2015-03-31T14:11:00
A120: 259217 | B120: 10 | C120: EC | D120: 2015-03-11 | E120: 50 | F120: 2015-03-31T14:51:00
A121: 264692 | B121: 10 | C121: EC | D121: 2015-03-03 | E121: 50 | F121: 2015-03-31T15:05:00
A122: 265627 | B122: 6 | C122: EC | D122: 2015-04-03 | E122: 50 | F122: 2015-03-31T15:05:00 | G122: =D122-F122 -> 2
A123: 252682 | B123: 3 | C123: EC | D123: 2015-01-14 | E123: 50 | F123: 2015-04-01T08:00:00 | G123: =D123-F123 -> -77
A124: 260332 | B124: 18 | C124: EC | D124: 2015-04-14 | E124: 50 | F124: 2015-04-01T08:00:00 | G124: =D124-F124 -> 13
A125: 262780 | B125: 10 | C125: EC | D125: 2014-06-11 | E125: 90 | F125: 2015-04-01T08:00:00
A126: 260973 | B126: 5 | C126: EC | D126: 2015-01-30T03:36:00 | E126: 50 | F126: 2015-04-01T08:00:00 | G126: =F126-D126 -> 61
A127: 241166 | B127: 5 | C127: EC | D127: 2015-03-11 | E127: 50 | F127: 2015-04-01T08:00:00
A128: 264302 | B128: 10 | C128: EC | D128: 2015-03-02 | E128: 50 | F128: 2015-04-01T08:00:00
A129: 261771 | B129: 5 | C129: EC | D129: 2014-10-30 | E129: 50 | F129: 2015-04-01T08:01:00
A130: 260295 | B130: 10 | C130: EC | D130: 2015-04-09 | E130: 50 | F130: 2015-04-01T08:01:00 | G130: =D130-F130 -> 8
A131: 261105 | B131: 10 | C131: EC | D131: 2015-04-08 | E131: 50 | F131: 2015-04-01T08:36:00
A132: 246645 | B132: 2 | C132: EC | D132: 2015-03-11 | E132: 50 | F132: 2015-04-01T08:49:00
A133: 260283 | B133: 6 | C133: EC | D133: 2015-03-24 | E133: 50 | F133: 2015-04-01T10:00:00
A134: 261071 | B134: 5 | C134: EC | D134: 2015-03-31 | E134: 50 | F134: 2015-04-01T10:08:00
A135: 266074 | B135: 10 | C135: EC | D135: 2015-03-19 | E135: 50 | F135: 2015-04-01T10:13:00
A136: 225723 | B136: 5 | C136: EC | D136: 2014-09-01T09:15:26 | E136: 50 | F136: 2015-04-01T11:07:00 | G136: =F136-D136 -> 212
A137: 261606 | B137: 5 | C137: EC | D137: 2014-10-30 | E137: 50 | F137: 2015-04-01T11:07:00
A138: 263854 | B138: 10 | C138: EC | D138: 2015-03-23 | E138: 50 | F138: 2015-04-01T11:17:00
A139: 261949 | B139: 12 | C139: EC | D139: 2015-04-02 | E139: 50 | F139: 2015-04-01T11:35:00
A140: 259399 | B140: 10 | C140: EC | D140: 2015-03-13 | E140: 50 | F140: 2015-04-01T11:46:00
A141: 225722 | B141: 5 | C141: EA | D141: 2014-09-02T09:15:26 | E141: 50 | F141: 2015-04-01T13:38:00 | G141: =F141-D141 -> 211
A142: 248048 | B142: 2 | C142: EC | D142: 2015-04-03 | E142: 50 | F142: 2015-04-01T13:38:00
A143: 262666 | B143: 10 | C143: EC | D143: 2015-02-16 | E143: 50 | F143: 2015-04-01T14:40:00 | G143: =D143-F143 -> -45
A144: 259064 | B144: 10 | C144: EC | D144: 2015-03-26 | E144: 50 | F144: 2015-04-01T14:40:00
A145: 261220 | B145: 18 | C145: EC | D145: 2015-04-09 | E145: 50 | F145: 2015-04-01T15:32:00
A146: 266590 | B146: 1 | C146: EC | D146: 2015-04-10 | E146: 50 | F146: 2015-04-01T15:50:00
A147: 261972 | B147: 10 | C147: EC | D147: 2015-04-15 | E147: 50 | F147: 2015-04-01T16:10:00 | G147: =D147-F147 -> 13
A148: 268927 | B148: 10 | C148: EC | D148: 2015-02-09 | E148: 50 | F148: 2015-04-02T08:00:00
A149: 239023 | B149: 5 | C149: EC | D149: 2014-12-22T21:15:26 | E149: 50 | F149: 2015-04-02T08:00:00
A150: 260208 | B150: 10 | C150: EC | D150: 2015-03-12 | E150: 50 | F150: 2015-04-02T08:00:00
A151: 258543 | B151: 1 | C151: EC | D151: 2015-02-02 | E151: 50 | F151: 2015-04-02T08:00:00
A152: 268174 | B152: 4 | C152: EC | D152: 2015-03-18 | E152: 50 | F152: 2015-04-02T08:00:00
A153: 262172 | B153: 4 | C153: EC | D153: 2014-12-15 | E153: 50 | F153: 2015-04-02T08:24:00
A154: 262168 | B154: 2 | C154: EC | D154: 2014-12-17 | E154: 50 | F154: 2015-04-02T08:37:00
A155: 261148 | B155: 10 | C155: EC | D155: 2015-04-03 | E155: 50 | F155: 2015-04-02T08:59:00 | G155: =D155-F155 -> 1
A156: 266452 | B156: 10 | C156: EC | D156: 2015-04-23 | E156: 50 | F156: 2015-04-02T09:04:00
A157: 261060 | B157: 5 | C157: EC | D157: 2015-04-17 | E157: 50 | F157: 2015-04-02T09:20:00
A158: 264946 | B158: 14 | C158: EA | D158: 2015-03-02 | E158: 25 | F158: 2015-04-02T09:36:00
A159: 261946 | B159: 12 | C159: EC | D159: 2015-04-08 | E159: 50 | F159: 2015-04-02T09:50:00
A160: 269433 | B160: 10 | C160: EA | D160: 2015-05-04 | E160: 25 | F160: 2015-04-02T09:50:00
A161: 263858 | B161: 20 | C161: EC | D161: 2015-02-16 | E161: 25 | F161: 2015-04-02T11:05:00 | G161: =D161-F161 -> -45
A162: 263417 | B162: 6 | C162: EC | D162: 2015-04-09 | E162: 50 | F162: 2015-04-02T11:05:00 | G162: =D162-F162 -> 7
A163: 263834 | B163: 25 | C163: EC | D163: 2015-02-20 | E163: 50 | F163: 2015-04-02T11:51:00 | G163: =D163-F163 -> -41
A164: 264719 | B164: 12 | C164: EC | D164: 2015-04-09 | E164: 50 | F164: 2015-04-02T13:48:00
A165: 261020 | B165: 5 | C165: EC | D165: 2015-03-24 | E165: 50 | F165: 2015-04-02T14:00:00
A166: 261208 | B166: 12 | C166: EC | D166: 2015-04-10 | E166: 50 | F166: 2015-04-02T14:21:00
A167: 249547 | B167: 1 | C167: EA | D167: 2015-02-24 | E167: 50 | F167: 2015-04-02T14:30:00
A168: 246709 | B168: 2 | C168: EC | D168: 2015-04-15 | E168: 50 | F168: 2015-04-02T15:50:00
A169: 248031 | B169: 6 | C169: EC | D169: 2015-04-13 | E169: 50 | F169: 2015-04-02T15:50:00 | G169: =D169-F169 -> 10
A170: 260323 | B170: 10 | C170: EC | D170: 2015-04-14 | E170: 50 | F170: 2015-04-03T08:00:00 | G170: =D170-F170 -> 11
A171: 259012 | B171: 10 | C171: EC | D171: 2015-03-04 | E171: 50 | F171: 2015-04-03T08:00:00
A172: 260112 | B172: 12 | C172: EC | D172: 2015-02-05 | E172: 50 | F172: 2015-04-03T08:00:00
A173: 264710 | B173: 18 | C173: EC | D173: 2015-04-08 | E173: 50 | F173: 2015-04-03T08:00:00 | G173: =D173-F173 -> 5
A174: 262628 | B174: 15 | C174: EC | D174: 2015-04-09 | E174: 50 | F174: 2015-04-03T08:00:00
A175: 264897 | B175: 10 | C175: EC | D175: 2015-02-20 | E175: 50 | F175: 2015-04-03T08:57:00
A176: 259204 | B176: 4 | C176: EC | D176: 2015-02-19 | E176: 50 | F176: 2015-04-03T09:00:00
A177: 246195 | B177: 20 | C177: EC | D177: 2014-10-02 | E177: 50 | F177: 2015-04-03T09:02:00
A178: 263835 | B178: 15 | C178: EC | D178: 2015-02-20 | E178: 50 | F178: 2015-04-03T09:13:00 | G178: =D178-F178 -> -42
A179: 259525 | B179: 10 | C179: EC | D179: 2015-03-11 | E179: 50 | F179: 2015-04-03T09:55:00
A180: 261240 | B180: 10 | C180: EC | D180: 2015-04-14 | E180: 50 | F180: 2015-04-03T10:28:00
A181: 268180 | B181: 10 | C181: EC | D181: 2015-04-30 | E181: 50 | F181: 2015-04-03T10:38:00
A182: 261813 | B182: 10 | C182: EC | D182: 2015-04-14 | E182: 50 | F182: 2015-04-03T10:53:00
A183: 256342 | B183: 16 | C183: EC | D183: 2015-04-17 | E183: 50 | F183: 2015-04-03T11:23:00
A184: 241025 | B184: 10 | C184: EC | D184: 2014-06-14T10:19:00 | E184: 50 | F184: 2015-04-06T08:00:00 | G184: recuit 20/10 PC à faire
A185: 259563 | B185: 10 | C185: EC | D185: 2014-11-20 | E185: 90 | F185: 2015-04-06T08:00:00
A186: 215058 | B186: 10 | C186: EC | D186: 2015-04-08 | E186: 50 | F186: 2015-04-06T10:26:00
A187: 252192 | B187: 5 | C187: EC | D187: 2015-03-31T04:06:51 | E187: 50 | F187: 2015-04-06T15:05:00 | G187: =F187-D187 -> 6
A188: 246202 | B188: 4 | C188: EA | D188: 2015-01-08 | E188: 50 | F188: 2015-04-07T08:00:00
A189: 252680 | B189: 2 | C189: EC | D189: 2014-12-11 | E189: 50 | F189: 2015-04-07T08:00:00
A190: 252681 | B190: 3 | C190: EC | D190: 2015-01-05 | E190: 50 | F190: 2015-04-07T08:00:00
A191: 255481 | B191: 6 | C191: EC | D191: 2015-01-28 | E191: 50 | F191: 2015-04-07T08:00:00
A192: 259826 | B192: 2 | C192: EC | D192: 2014-09-05 | E192: 50 | F192: 2015-04-07T08:00:00
A193: 261055 | B193: 5 | C193: EC | D193: 2015-04-01 | E193: 50 | F193: 2015-04-07T08:00:00
A194: 264683 | B194: 6 | C194: EC | D194: 2015-01-19 | E194: 50 | F194: 2015-04-07T08:00:00
A195: 246665 | B195: 6 | C195: EC | D195: 2015-04-15 | E195: 50 | F195: 2015-04-07T08:24:00 | G195: =D195-F195 -> 8
A196: 246667 | B196: 6 | C196: EC | D196: 2015-02-12T05:49:43 | E196: 50 | F196: 2015-04-07T08:24:00 | G196: =F196-D196 -> 54
A197: 268649 | B197: 5 | C197: EC | D197: 2015-03-09 | E197: 50 | F197: 2015-04-07T08:42:00
A198: 246664 | B198: 6 | C198: EC | D198: 2015-02-12T05:49:43 | E198: 50 | F198: 2015-04-07T08:43:00 | G198: =F198-D198 -> 54
A199: 263831 | B199: 10 | C199: EC | D199: 2015-02-09 | E199: 50 | F199: 2015-04-07T09:13:00
A200: 252682 | B200: 3 | C200: EC | D200: 2015-01-20 | E200: 50 | F200: 2015-04-07T09:43:00 | G200: =D200-F200 -> -77
... 1220 more rows

Sheet Suivi Opé
C1: =TODAY() -> 2015-05-18
A2: Opérateurs | C2: mirek | G2: gregory | K2: ronan | O2: antoine | S2: joel | W2: kevin | AA2: miro | AE2: nicholas | AI2: françois | AM2: patrick | AQ2: sabine | AU2: greg | AY2: gaby | BC2: max | BG2: jean-luc | BK2: remi | BO2: daniel
A3: patrick | B3: BAILLET | C3: ofs | D3: ph | E3: date prise of | G3: ofs | H3: ph | I3: date prise of | K3: ofs | L3: ph | M3: date prise of | O3: ofs | P3: ph | Q3: date prise of | S3: ofs | T3: ph | U3: date prise of | W3: ofs | X3: ph | Y3: date prise of | AA3: ofs | AB3: ph | AC3: date prise of | AE3: ofs | AF3: ph | AG3: date prise of | AI3: ofs | AJ3: ph | AK3: date prise of | AM3: ofs | AN3: ph | AO3: date prise of | AQ3: ofs | AR3: ph | AS3: date prise of | AU3: ofs | AV3: ph | AW3: date prise of | AY3: ofs | AZ3: ph | BA3: date prise of | BC3: ofs | BD3: ph | BE3: date prise of | BG3: ofs | BH3: ph | BI3: date prise of | BK3: ofs | BL3: ph | BM3: date prise of | BO3: ofs | BP3: ph | BQ3: date prise of | BS3: ofs | BT3: ph | BU3: date prise of
A4: antoine | B4: CHIPOY | C4: =IF(ROWS('Charge atelier chaudronnerie'!$3:3)<=COUNTIF(nom,$C$2),INDEX(Expr1,SMALL(IF(nom=$C$2,ROW(INDIRECT("1:"&ROWS(Expr1)))),ROWS('Charge atelier chaudronnerie'!$3:3))),"") ->  | D4: =IF(ROWS('Charge atelier chaudronnerie'!$3:3)<=COUNTIF(nom,$C$2),INDEX(Expr2,SMALL(IF(nom=$C$2,ROW(INDIRECT("1:"&ROWS(Expr1)))),ROWS('Charge atelier chaudronnerie'!$3:3))),"") ->  | E4: =IF(ROWS('Charge atelier chaudronnerie'!$3:3)<=COUNTIF(nom,$C$2),INDEX(DatePriseOf,SMALL(IF(nom=$C$2,ROW(INDIRECT("1:"&ROWS(Expr1)))),ROWS('Charge atelier chaudronnerie'!$3:3))),"") ->  | G4: =IF(ROWS('Charge atelier chaudronnerie'!$3:3)<=COUNTIF(nom,$G$2),INDEX(Expr1,SMALL(IF(nom=$G$2,ROW(INDIRECT("1:"&ROWS(Expr1)))),ROWS('Charge atelier chaudronnerie'!$3:3))),"") ->  | H4: =IF(ROWS('Charge atelier chaudronnerie'!$3:3)<=COUNTIF(nom,$G$2),INDEX(Expr2,SMALL(IF(nom=$G$2,ROW(INDIRECT("1:"&ROWS(Expr1)))),ROWS('Charge atelier chaudronnerie'!$3:3))),"") ->  | I4: =IF(ROWS('Charge atelier chaudronnerie'!$3:3)<=COUNTIF(nom,$G$2),INDEX(DatePriseOf,SMALL(IF(nom=$G$2,ROW(INDIRECT("1:"&ROWS(Expr1)))),ROWS('Charge atelier chaudronnerie'!$3:3))),"") ->  | K4: =IF(ROWS('Charge atelier chaudronnerie'!$3:3)<=COUNTIF(nom,$K$2),INDEX(Expr1,SMALL(IF(nom=$K$2,ROW(INDIRECT("1:"&ROWS(Expr1)))),ROWS('Charge atelier chaudronnerie'!$3:3))),"") ->  | L4: =IF(ROWS('Charge atelier chaudronnerie'!$3:3)<=COUNTIF(nom,$K$2),INDEX(Expr2,SMALL(IF(nom=$K$2,ROW(INDIRECT("1:"&ROWS(Expr1)))),ROWS('Charge atelier chaudronnerie'!$3:3))),"") ->  | M4: =IF(ROWS('Charge atelier chaudronnerie'!$3:3)<=COUNTIF(nom,$K$2),INDEX(DatePriseOf,SMALL(IF(nom=$K$2,ROW(INDIRECT("1:"&ROWS(Expr1)))),ROWS('Charge atelier chaudronnerie'!$3:3))),"") ->  | O4: =IF(ROWS('Charge atelier chaudronnerie'!$3:3)<=COUNTIF(nom,$O$2),INDEX(Expr1,SMALL(IF(nom=$O$2,ROW(INDIRECT("1:"&ROWS(Expr1)))),ROWS('Charge atelier chaudronnerie'!$3:3))),"") ->  | P4: =IF(ROWS('Charge atelier chaudronnerie'!$3:3)<=COUNTIF(nom,$O$2),INDEX(Expr2,SMALL(IF(nom=$O$2,ROW(INDIRECT("1:"&ROWS(Expr1)))),ROWS('Charge atelier chaudronnerie'!$3:3))),"") ->  | Q4: =IF(ROWS('Charge atelier chaudronnerie'!$3:3)<=COUNTIF(nom,$O$2),INDEX(DatePriseOf,SMALL(IF(nom=$O$2,ROW(INDIRECT("1:"&ROWS(Expr1)))),ROWS('Charge atelier chaudronnerie'!$3:3))),"") ->  | S4: =IF(ROWS('Charge atelier chaudronnerie'!$3:3)<=COUNTIF(nom,$S$2),INDEX(Expr1,SMALL(IF(nom=$S$2,ROW(INDIRECT("1:"&ROWS(Expr1)))),ROWS('Charge atelier chaudronnerie'!$3:3))),"") ->  | T4: =IF(ROWS('Charge atelier chaudronnerie'!$3:3)<=COUNTIF(nom,$S$2),INDEX(Expr2,SMALL(IF(nom=$S$2,ROW(INDIRECT("1:"&ROWS(Expr1)))),ROWS('Charge atelier chaudronnerie'!$3:3))),"") ->  | U4: =IF(ROWS('Charge atelier chaudronnerie'!$3:3)<=COUNTIF(nom,$S$2),INDEX(DatePriseOf,SMALL(IF(nom=$S$2,ROW(INDIRECT("1:"&ROWS(Expr1)))),ROWS('Charge atelier chaudronnerie'!$3:3))),"") ->  | W4: =IF(ROWS('Charge atelier chaudronnerie'!$3:3)<=COUNTIF(nom,$W$2),INDEX(Expr1,SMALL(IF(nom=$W$2,ROW(INDIRECT("1:"&ROWS(Expr1)))),ROWS('Charge atelier chaudronnerie'!$3:3))),"") ->  | X4: =IF(ROWS('Charge atelier chaudronnerie'!$3:3)<=COUNTIF(nom,$W$2),INDEX(Expr2,SMALL(IF(nom=$W$2,ROW(INDIRECT("1:"&ROWS(Expr1)))),ROWS('Charge atelier chaudronnerie'!$3:3))),"") ->  | Y4: =IF(ROWS('Charge atelier chaudronnerie'!$3:3)<=COUNTIF(nom,$W$2),INDEX(DatePriseOf,SMALL(IF(nom=$W$2,ROW(INDIRECT("1:"&ROWS(Expr1)))),ROWS('Charge atelier chaudronnerie'!$3:3))),"") ->  | AA4: =IF(ROWS('Charge atelier chaudronnerie'!$3:3)<=COUNTIF(nom,$AA$2),INDEX(Expr1,SMALL(IF(nom=$AA$2,ROW(INDIRECT("1:"&ROWS(Expr1)))),ROWS('Charge atelier chaudronnerie'!$3:3))),"") ->  | AB4: =IF(ROWS('Charge atelier chaudronnerie'!$3:3)<=COUNTIF(nom,$AA$2),INDEX(Expr2,SMALL(IF(nom=$AA$2,ROW(INDIRECT("1:"&ROWS(Expr1)))),ROWS('Charge atelier chaudronnerie'!$3:3))),"") ->  | AC4: =IF(ROWS('Charge atelier chaudronnerie'!$3:3)<=COUNTIF(nom,$AA$2),INDEX(DatePriseOf,SMALL(IF(nom=$AA$2,ROW(INDIRECT("1:"&ROWS(Expr1)))),ROWS('Charge atelier chaudronnerie'!$3:3))),"") ->  | AE4: =IF(ROWS('Charge atelier chaudronnerie'!$3:3)<=COUNTIF(nom,$AE$2),INDEX(Expr1,SMALL(IF(nom=$AE$2,ROW(INDIRECT("1:"&ROWS(Expr1)))),ROWS('Charge atelier chaudronnerie'!$3:3))),"") ->  | AF4: =IF(ROWS('Charge atelier chaudronnerie'!$3:3)<=COUNTIF(nom,$AE$2),INDEX(Expr2,SMALL(IF(nom=$AE$2,ROW(INDIRECT("1:"&ROWS(Expr1)))),ROWS('Charge atelier chaudronnerie'!$3:3))),"") ->  | AG4: =IF(ROWS('Charge atelier chaudronnerie'!$3:3)<=COUNTIF(nom,$AE$2),INDEX(DatePriseOf,SMALL(IF(nom=$AE$2,ROW(INDIRECT("1:"&ROWS(Expr1)))),ROWS('Charge atelier chaudronnerie'!$3:3))),"") ->  | AI4: =IF(ROWS('Charge atelier chaudronnerie'!$3:3)<=COUNTIF(nom,$AI$2),INDEX(Expr1,SMALL(IF(nom=$AI$2,ROW(INDIRECT("1:"&ROWS(Expr1)))),ROWS('Charge atelier chaudronnerie'!$3:3))),"") ->  | AJ4: =IF(ROWS('Charge atelier chaudronnerie'!$3:3)<=COUNTIF(nom,$AI$2),INDEX(Expr2,SMALL(IF(nom=$AI$2,ROW(INDIRECT("1:"&ROWS(Expr1)))),ROWS('Charge atelier chaudronnerie'!$3:3))),"") ->  | AK4: =IF(ROWS('Charge atelier chaudronnerie'!$3:3)<=COUNTIF(nom,$AI$2),INDEX(DatePriseOf,SMALL(IF(nom=$AI$2,ROW(INDIRECT("1:"&ROWS(Expr1)))),ROWS('Charge atelier chaudronnerie'!$3:3))),"") ->  | AM4: =IF(ROWS('Charge atelier chaudronnerie'!$3:3)<=COUNTIF(nom,$AM$2),INDEX(Expr1,SMALL(IF(nom=$AM$2,ROW(INDIRECT("1:"&ROWS(Expr1)))),ROWS('Charge atelier chaudronnerie'!$3:3))),"") ->  | AN4: =IF(ROWS('Charge atelier chaudronnerie'!$3:3)<=COUNTIF(nom,$AM$2),INDEX(Expr2,SMALL(IF(nom=$AM$2,ROW(INDIRECT("1:"&ROWS(Expr1)))),ROWS('Charge atelier chaudronnerie'!$3:3))),"") ->  | AO4: =IF(ROWS('Charge atelier chaudronnerie'!$3:3)<=COUNTIF(nom,$AM$2),INDEX(DatePriseOf,SMALL(IF(nom=$AM$2,ROW(INDIRECT("1:"&ROWS(Expr1)))),ROWS('Charge atelier chaudronnerie'!$3:3))),"") ->  | AQ4: =IF(ROWS('Charge atelier chaudronnerie'!$3:3)<=COUNTIF(nom,$AQ$2),INDEX(Expr1,SMALL(IF(nom=$AQ$2,ROW(INDIRECT("1:"&ROWS(Expr1)))),ROWS('Charge atelier chaudronnerie'!$3:3))),"") ->  | AR4: =IF(ROWS('Charge atelier chaudronnerie'!$3:3)<=COUNTIF(nom,$AQ$2),INDEX(Expr2,SMALL(IF(nom=$AQ$2,ROW(INDIRECT("1:"&ROWS(Expr1)))),ROWS('Charge atelier chaudronnerie'!$3:3))),"") ->  | AS4: =IF(ROWS('Charge atelier chaudronnerie'!$3:3)<=COUNTIF(nom,$AQ$2),INDEX(DatePriseOf,SMALL(IF(nom=$AQ$2,ROW(INDIRECT("1:"&ROWS(Expr1)))),ROWS('Charge atelier chaudronnerie'!$3:3))),"") ->  | AU4: =IF(ROWS('Charge atelier chaudronnerie'!$3:3)<=COUNTIF(nom,$AU$2),INDEX(Expr1,SMALL(IF(nom=$AU$2,ROW(INDIRECT("1:"&ROWS(Expr1)))),ROWS('Charge atelier chaudronnerie'!$3:3))),"") ->  | AV4: =IF(ROWS('Charge atelier chaudronnerie'!$3:3)<=COUNTIF(nom,$AU$2),INDEX(Expr2,SMALL(IF(nom=$AU$2,ROW(INDIRECT("1:"&ROWS(Expr1)))),ROWS('Charge atelier chaudronnerie'!$3:3))),"") ->  | AW4: =IF(ROWS('Charge atelier chaudronnerie'!$3:3)<=COUNTIF(nom,$AU$2),INDEX(DatePriseOf,SMALL(IF(nom=$AU$2,ROW(INDIRECT("1:"&ROWS(Expr1)))),ROWS('Charge atelier chaudronnerie'!$3:3))),"") ->  | AY4: =IF(ROWS('Charge atelier chaudronnerie'!$3:3)<=COUNTIF(nom,$AY$2),INDEX(Expr1,SMALL(IF(nom=$AY$2,ROW(INDIRECT("1:"&ROWS(Expr1)))),ROWS('Charge atelier chaudronnerie'!$3:3))),"") ->  | AZ4: =IF(ROWS('Charge atelier chaudronnerie'!$3:3)<=COUNTIF(nom,$AY$2),INDEX(Expr2,SMALL(IF(nom=$AY$2,ROW(INDIRECT("1:"&ROWS(Expr1)))),ROWS('Charge atelier chaudronnerie'!$3:3))),"") ->  | BA4: =IF(ROWS('Charge atelier chaudronnerie'!$3:3)<=COUNTIF(nom,$AY$2),INDEX(DatePriseOf,SMALL(IF(nom=$AY$2,ROW(INDIRECT("1:"&ROWS(Expr1)))),ROWS('Charge atelier chaudronnerie'!$3:3))),"") ->  | BC4: =IF(ROWS('Charge atelier chaudronnerie'!$3:3)<=COUNTIF(nom,$BC$2),INDEX(Expr1,SMALL(IF(nom=$BC$2,ROW(INDIRECT("1:"&ROWS(Expr1)))),ROWS('Charge atelier chaudronnerie'!$3:3))),"") ->  | BD4: =IF(ROWS('Charge atelier chaudronnerie'!$3:3)<=COUNTIF(nom,$BC$2),INDEX(Expr2,SMALL(IF(nom=$BC$2,ROW(INDIRECT("1:"&ROWS(Expr1)))),ROWS('Charge atelier chaudronnerie'!$3:3))),"") ->  | BE4: =IF(ROWS('Charge atelier chaudronnerie'!$3:3)<=COUNTIF(nom,$BC$2),INDEX(DatePriseOf,SMALL(IF(nom=$BC$2,ROW(INDIRECT("1:"&ROWS(Expr1)))),ROWS('Charge atelier chaudronnerie'!$3:3))),"") ->  | BG4: =IF(ROWS('Charge atelier chaudronnerie'!$3:3)<=COUNTIF(nom,$BG$2),INDEX(Expr1,SMALL(IF(nom=$BG$2,ROW(INDIRECT("1:"&ROWS(Expr1)))),ROWS('Charge atelier chaudronnerie'!$3:3))),"") ->  | BH4: =IF(ROWS('Charge atelier chaudronnerie'!$3:3)<=COUNTIF(nom,$BG$2),INDEX(Expr2,SMALL(IF(nom=$BG$2,ROW(INDIRECT("1:"&ROWS(Expr1)))),ROWS('Charge atelier chaudronnerie'!$3:3))),"") ->  | BI4: =IF(ROWS('Charge atelier chaudronnerie'!$3:3)<=COUNTIF(nom,$BG$2),INDEX(DatePriseOf,SMALL(IF(nom=$BG$2,ROW(INDIRECT("1:"&ROWS(Expr1)))),ROWS('Charge atelier chaudronnerie'!$3:3))),"") ->  | BK4: =IF(ROWS('Charge atelier chaudronnerie'!$3:3)<=COUNTIF(nom,$BK$2),INDEX(Expr1,SMALL(IF(nom=$BK$2,ROW(INDIRECT("1:"&ROWS(Expr1)))),ROWS('Charge atelier chaudronnerie'!$3:3))),"") ->  | BL4: =IF(ROWS('Charge atelier chaudronnerie'!$3:3)<=COUNTIF(nom,$BK$2),INDEX(Expr2,SMALL(IF(nom=$BK$2,ROW(INDIRECT("1:"&ROWS(Expr1)))),ROWS('Charge atelier chaudronnerie'!$3:3))),"") ->  | BM4: =IF(ROWS('Charge atelier chaudronnerie'!$3:3)<=COUNTIF(nom,$BK$2),INDEX(DatePriseOf,SMALL(IF(nom=$BK$2,ROW(INDIRECT("1:"&ROWS(Expr1)))),ROWS('Charge atelier chaudronnerie'!$3:3))),"") ->  | BO4: =IF(ROWS('Charge atelier chaudronnerie'!$3:3)<=COUNTIF(nom,$BO$2),INDEX(Expr1,SMALL(IF(nom=$BO$2,ROW(INDIRECT("1:"&ROWS(Expr1)))),ROWS('Charge atelier chaudronnerie'!$3:3))),"") ->  | BP4: =IF(ROWS('Charge atelier chaudronnerie'!$3:3)<=COUNTIF(nom,$BO$2),INDEX(Expr2,SMALL(IF(nom=$BO$2,ROW(INDIRECT("1:"&ROWS(Expr1)))),ROWS('Charge atelier chaudronnerie'!$3:3))),"") ->  | BQ4: =IF(ROWS('Charge atelier chaudronnerie'!$3:3)<=COUNTIF(nom,$BO$2),INDEX(DatePriseOf,SMALL(IF(nom=$BO$2,ROW(INDIRECT("1:"&ROWS(Expr1)))),ROWS('Charge atelier chaudronnerie'!$3:3))),"") ->  | BS4: =IF(ROWS('Charge atelier chaudronnerie'!$3:3)<=COUNTIF(nom,$BS$2),INDEX(Expr1,SMALL(IF(nom=$BS$2,ROW(INDIRECT("1:"&ROWS(Expr1)))),ROWS('Charge atelier chaudronnerie'!$3:3))),"") ->  | BT4: =IF(ROWS('Charge atelier chaudronnerie'!$3:3)<=COUNTIF(nom,$BS$2),INDEX(Expr2,SMALL(IF(nom=$BS$2,ROW(INDIRECT("1:"&ROWS(Expr1)))),ROWS('Charge atelier chaudronnerie'!$3:3))),"") ->  | BU4: =IF(ROWS('Charge atelier chaudronnerie'!$3:3)<=COUNTIF(nom,$BS$2),INDEX(DatePriseOf,SMALL(IF(nom=$BS$2,ROW(INDIRECT("1:"&ROWS(Expr1)))),ROWS('Charge atelier chaudronnerie'!$3:3))),"") -> 
A5: remi | B5: DABESCAT | C5: =IF(ROWS('Charge atelier chaudronnerie'!$3:4)<=COUNTIF(nom,$C$2),INDEX(Expr1,SMALL(IF(nom=$C$2,ROW(INDIRECT("1:"&ROWS(Expr1)))),ROWS('Charge atelier chaudronnerie'!$3:4))),"") ->  | D5: =IF(ROWS('Charge atelier chaudronnerie'!$3:4)<=COUNTIF(nom,$C$2),INDEX(Expr2,SMALL(IF(nom=$C$2,ROW(INDIRECT("1:"&ROWS(Expr1)))),ROWS('Charge atelier chaudronnerie'!$3:4))),"") ->  | E5: =IF(ROWS('Charge atelier chaudronnerie'!$3:4)<=COUNTIF(nom,$C$2),INDEX(DatePriseOf,SMALL(IF(nom=$C$2,ROW(INDIRECT("1:"&ROWS(Expr1)))),ROWS('Charge atelier chaudronnerie'!$3:4))),"") ->  | G5: =IF(ROWS('Charge atelier chaudronnerie'!$3:4)<=COUNTIF(nom,$G$2),INDEX(Expr1,SMALL(IF(nom=$G$2,ROW(INDIRECT("1:"&ROWS(Expr1)))),ROWS('Charge atelier chaudronnerie'!$3:4))),"") ->  | H5: =IF(ROWS('Charge atelier chaudronnerie'!$3:4)<=COUNTIF(nom,$G$2),INDEX(Expr2,SMALL(IF(nom=$G$2,ROW(INDIRECT("1:"&ROWS(Expr1)))),ROWS('Charge atelier chaudronnerie'!$3:4))),"") ->  | I5: =IF(ROWS('Charge atelier chaudronnerie'!$3:4)<=COUNTIF(nom,$G$2),INDEX(DatePriseOf,SMALL(IF(nom=$G$2,ROW(INDIRECT("1:"&ROWS(Expr1)))),ROWS('Charge atelier chaudronnerie'!$3:4))),"") ->  | K5: =IF(ROWS('Charge atelier chaudronnerie'!$3:4)<=COUNTIF(nom,$K$2),INDEX(Expr1,SMALL(IF(nom=$K$2,ROW(INDIRECT("1:"&ROWS(Expr1)))),ROWS('Charge atelier chaudronnerie'!$3:4))),"") ->  | L5: =IF(ROWS('Charge atelier chaudronnerie'!$3:4)<=COUNTIF(nom,$K$2),INDEX(Expr2,SMALL(IF(nom=$K$2,ROW(INDIRECT("1:"&ROWS(Expr1)))),ROWS('Charge atelier chaudronnerie'!$3:4))),"") ->  | M5: =IF(ROWS('Charge atelier chaudronnerie'!$3:4)<=COUNTIF(nom,$K$2),INDEX(DatePriseOf,SMALL(IF(nom=$K$2,ROW(INDIRECT("1:"&ROWS(Expr1)))),ROWS('Charge atelier chaudronnerie'!$3:4))),"") ->  | O5: =IF(ROWS('Charge atelier chaudronnerie'!$3:4)<=COUNTIF(nom,$O$2),INDEX(Expr1,SMALL(IF(nom=$O$2,ROW(INDIRECT("1:"&ROWS(Expr1)))),ROWS('Charge atelier chaudronnerie'!$3:4))),"") ->  | P5: =IF(ROWS('Charge atelier chaudronnerie'!$3:4)<=COUNTIF(nom,$O$2),INDEX(Expr2,SMALL(IF(nom=$O$2,ROW(INDIRECT("1:"&ROWS(Expr1)))),ROWS('Charge atelier chaudronnerie'!$3:4))),"") ->  | Q5: =IF(ROWS('Charge atelier chaudronnerie'!$3:4)<=COUNTIF(nom,$O$2),INDEX(DatePriseOf,SMALL(IF(nom=$O$2,ROW(INDIRECT("1:"&ROWS(Expr1)))),ROWS('Charge atelier chaudronnerie'!$3:4))),"") ->  | S5: =IF(ROWS('Charge atelier chaudronnerie'!$3:4)<=COUNTIF(nom,$S$2),INDEX(Expr1,SMALL(IF(nom=$S$2,ROW(INDIRECT("1:"&ROWS(Expr1)))),ROWS('Charge atelier chaudronnerie'!$3:4))),"") ->  | T5: =IF(ROWS('Charge atelier chaudronnerie'!$3:4)<=COUNTIF(nom,$S$2),INDEX(Expr2,SMALL(IF(nom=$S$2,ROW(INDIRECT("1:"&ROWS(Expr1)))),ROWS('Charge atelier chaudronnerie'!$3:4))),"") ->  | U5: =IF(ROWS('Charge atelier chaudronnerie'!$3:4)<=COUNTIF(nom,$S$2),INDEX(DatePriseOf,SMALL(IF(nom=$S$2,ROW(INDIRECT("1:"&ROWS(Expr1)))),ROWS('Charge atelier chaudronnerie'!$3:4))),"") ->  | W5: =IF(ROWS('Charge atelier chaudronnerie'!$3:4)<=COUNTIF(nom,$W$2),INDEX(Expr1,SMALL(IF(nom=$W$2,ROW(INDIRECT("1:"&ROWS(Expr1)))),ROWS('Charge atelier chaudronnerie'!$3:4))),"") ->  | X5: =IF(ROWS('Charge atelier chaudronnerie'!$3:4)<=COUNTIF(nom,$W$2),INDEX(Expr2,SMALL(IF(nom=$W$2,ROW(INDIRECT("1:"&ROWS(Expr1)))),ROWS('Charge atelier chaudronnerie'!$3:4))),"") ->  | Y5: =IF(ROWS('Charge atelier chaudronnerie'!$3:4)<=COUNTIF(nom,$W$2),INDEX(DatePriseOf,SMALL(IF(nom=$W$2,ROW(INDIRECT("1:"&ROWS(Expr1)))),ROWS('Charge atelier chaudronnerie'!$3:4))),"") ->  | AA5: =IF(ROWS('Charge atelier chaudronnerie'!$3:4)<=COUNTIF(nom,$AA$2),INDEX(Expr1,SMALL(IF(nom=$AA$2,ROW(INDIRECT("1:"&ROWS(Expr1)))),ROWS('Charge atelier chaudronnerie'!$3:4))),"") ->  | AB5: =IF(ROWS('Charge atelier chaudronnerie'!$3:4)<=COUNTIF(nom,$AA$2),INDEX(Expr2,SMALL(IF(nom=$AA$2,ROW(INDIRECT("1:"&ROWS(Expr1)))),ROWS('Charge atelier chaudronnerie'!$3:4))),"") ->  | AC5: =IF(ROWS('Charge atelier chaudronnerie'!$3:4)<=COUNTIF(nom,$AA$2),INDEX(DatePriseOf,SMALL(IF(nom=$AA$2,ROW(INDIRECT("1:"&ROWS(Expr1)))),ROWS('Charge atelier chaudronnerie'!$3:4))),"") ->  | AE5: =IF(ROWS('Charge atelier chaudronnerie'!$3:4)<=COUNTIF(nom,$AE$2),INDEX(Expr1,SMALL(IF(nom=$AE$2,ROW(INDIRECT("1:"&ROWS(Expr1)))),ROWS('Charge atelier chaudronnerie'!$3:4))),"") ->  | AF5: =IF(ROWS('Charge atelier chaudronnerie'!$3:4)<=COUNTIF(nom,$AE$2),INDEX(Expr2,SMALL(IF(nom=$AE$2,ROW(INDIRECT("1:"&ROWS(Expr1)))),ROWS('Charge atelier chaudronnerie'!$3:4))),"") ->  | AG5: =IF(ROWS('Charge atelier chaudronnerie'!$3:4)<=COUNTIF(nom,$AE$2),INDEX(DatePriseOf,SMALL(IF(nom=$AE$2,ROW(INDIRECT("1:"&ROWS(Expr1)))),ROWS('Charge atelier chaudronnerie'!$3:4))),"") ->  | AI5: =IF(ROWS('Charge atelier chaudronnerie'!$3:4)<=COUNTIF(nom,$AI$2),INDEX(Expr1,SMALL(IF(nom=$AI$2,ROW(INDIRECT("1:"&ROWS(Expr1)))),ROWS('Charge atelier chaudronnerie'!$3:4))),"") ->  | AJ5: =IF(ROWS('Charge atelier chaudronnerie'!$3:4)<=COUNTIF(nom,$AI$2),INDEX(Expr2,SMALL(IF(nom=$AI$2,ROW(INDIRECT("1:"&ROWS(Expr1)))),ROWS('Charge atelier chaudronnerie'!$3:4))),"") ->  | AK5: =IF(ROWS('Charge atelier chaudronnerie'!$3:4)<=COUNTIF(nom,$AI$2),INDEX(DatePriseOf,SMALL(IF(nom=$AI$2,ROW(INDIRECT("1:"&ROWS(Expr1)))),ROWS('Charge atelier chaudronnerie'!$3:4))),"") ->  | AM5: =IF(ROWS('Charge atelier chaudronnerie'!$3:4)<=COUNTIF(nom,$AM$2),INDEX(Expr1,SMALL(IF(nom=$AM$2,ROW(INDIRECT("1:"&ROWS(Expr1)))),ROWS('Charge atelier chaudronnerie'!$3:4))),"") ->  | AN5: =IF(ROWS('Charge atelier chaudronnerie'!$3:4)<=COUNTIF(nom,$AM$2),INDEX(Expr2,SMALL(IF(nom=$AM$2,ROW(INDIRECT("1:"&ROWS(Expr1)))),ROWS('Charge atelier chaudronnerie'!$3:4))),"") ->  | AO5: =IF(ROWS('Charge atelier chaudronnerie'!$3:4)<=COUNTIF(nom,$AM$2),INDEX(DatePriseOf,SMALL(IF(nom=$AM$2,ROW(INDIRECT("1:"&ROWS(Expr1)))),ROWS('Charge atelier chaudronnerie'!$3:4))),"") ->  | AQ5: =IF(ROWS('Charge atelier chaudronnerie'!$3:4)<=COUNTIF(nom,$AQ$2),INDEX(Expr1,SMALL(IF(nom=$AQ$2,ROW(INDIRECT("1:"&ROWS(Expr1)))),ROWS('Charge atelier chaudronnerie'!$3:4))),"") ->  | AR5: =IF(ROWS('Charge atelier chaudronnerie'!$3:4)<=COUNTIF(nom,$AQ$2),INDEX(Expr2,SMALL(IF(nom=$AQ$2,ROW(INDIRECT("1:"&ROWS(Expr1)))),ROWS('Charge atelier chaudronnerie'!$3:4))),"") ->  | AS5: =IF(ROWS('Charge atelier chaudronnerie'!$3:4)<=COUNTIF(nom,$AQ$2),INDEX(DatePriseOf,SMALL(IF(nom=$AQ$2,ROW(INDIRECT("1:"&ROWS(Expr1)))),ROWS('Charge atelier chaudronnerie'!$3:4))),"") ->  | AU5: =IF(ROWS('Charge atelier chaudronnerie'!$3:4)<=COUNTIF(nom,$AU$2),INDEX(Expr1,SMALL(IF(nom=$AU$2,ROW(INDIRECT("1:"&ROWS(Expr1)))),ROWS('Charge atelier chaudronnerie'!$3:4))),"") ->  | AV5: =IF(ROWS('Charge atelier chaudronnerie'!$3:4)<=COUNTIF(nom,$AU$2),INDEX(Expr2,SMALL(IF(nom=$AU$2,ROW(INDIRECT("1:"&ROWS(Expr1)))),ROWS('Charge atelier chaudronnerie'!$3:4))),"") ->  | AW5: =IF(ROWS('Charge atelier chaudronnerie'!$3:4)<=COUNTIF(nom,$AU$2),INDEX(DatePriseOf,SMALL(IF(nom=$AU$2,ROW(INDIRECT("1:"&ROWS(Expr1)))),ROWS('Charge atelier chaudronnerie'!$3:4))),"") ->  | AY5: =IF(ROWS('Charge atelier chaudronnerie'!$3:4)<=COUNTIF(nom,$AY$2),INDEX(Expr1,SMALL(IF(nom=$AY$2,ROW(INDIRECT("1:"&ROWS(Expr1)))),ROWS('Charge atelier chaudronnerie'!$3:4))),"") ->  | AZ5: =IF(ROWS('Charge atelier chaudronnerie'!$3:4)<=COUNTIF(nom,$AY$2),INDEX(Expr2,SMALL(IF(nom=$AY$2,ROW(INDIRECT("1:"&ROWS(Expr1)))),ROWS('Charge atelier chaudronnerie'!$3:4))),"") ->  | BA5: =IF(ROWS('Charge atelier chaudronnerie'!$3:4)<=COUNTIF(nom,$AY$2),INDEX(DatePriseOf,SMALL(IF(nom=$AY$2,ROW(INDIRECT("1:"&ROWS(Expr1)))),ROWS('Charge atelier chaudronnerie'!$3:4))),"") ->  | BC5: =IF(ROWS('Charge atelier chaudronnerie'!$3:4)<=COUNTIF(nom,$BC$2),INDEX(Expr1,SMALL(IF(nom=$BC$2,ROW(INDIRECT("1:"&ROWS(Expr1)))),ROWS('Charge atelier chaudronnerie'!$3:4))),"") ->  | BD5: =IF(ROWS('Charge atelier chaudronnerie'!$3:4)<=COUNTIF(nom,$BC$2),INDEX(Expr2,SMALL(IF(nom=$BC$2,ROW(INDIRECT("1:"&ROWS(Expr1)))),ROWS('Charge atelier chaudronnerie'!$3:4))),"") ->  | BE5: =IF(ROWS('Charge atelier chaudronnerie'!$3:4)<=COUNTIF(nom,$BC$2),INDEX(DatePriseOf,SMALL(IF(nom=$BC$2,ROW(INDIRECT("1:"&ROWS(Expr1)))),ROWS('Charge atelier chaudronnerie'!$3:4))),"") ->  | BG5: =IF(ROWS('Charge atelier chaudronnerie'!$3:4)<=COUNTIF(nom,$BG$2),INDEX(Expr1,SMALL(IF(nom=$BG$2,ROW(INDIRECT("1:"&ROWS(Expr1)))),ROWS('Charge atelier chaudronnerie'!$3:4))),"") ->  | BH5: =IF(ROWS('Charge atelier chaudronnerie'!$3:4)<=COUNTIF(nom,$BG$2),INDEX(Expr2,SMALL(IF(nom=$BG$2,ROW(INDIRECT("1:"&ROWS(Expr1)))),ROWS('Charge atelier chaudronnerie'!$3:4))),"") ->  | BI5: =IF(ROWS('Charge atelier chaudronnerie'!$3:4)<=COUNTIF(nom,$BG$2),INDEX(DatePriseOf,SMALL(IF(nom=$BG$2,ROW(INDIRECT("1:"&ROWS(Expr1)))),ROWS('Charge atelier chaudronnerie'!$3:4))),"") ->  | BK5: =IF(ROWS('Charge atelier chaudronnerie'!$3:4)<=COUNTIF(nom,$BK$2),INDEX(Expr1,SMALL(IF(nom=$BK$2,ROW(INDIRECT("1:"&ROWS(Expr1)))),ROWS('Charge atelier chaudronnerie'!$3:4))),"") ->  | BL5: =IF(ROWS('Charge atelier chaudronnerie'!$3:4)<=COUNTIF(nom,$BK$2),INDEX(Expr2,SMALL(IF(nom=$BK$2,ROW(INDIRECT("1:"&ROWS(Expr1)))),ROWS('Charge atelier chaudronnerie'!$3:4))),"") ->  | BM5: =IF(ROWS('Charge atelier chaudronnerie'!$3:4)<=COUNTIF(nom,$BK$2),INDEX(DatePriseOf,SMALL(IF(nom=$BK$2,ROW(INDIRECT("1:"&ROWS(Expr1)))),ROWS('Charge atelier chaudronnerie'!$3:4))),"") ->  | BO5: =IF(ROWS('Charge atelier chaudronnerie'!$3:4)<=COUNTIF(nom,$BO$2),INDEX(Expr1,SMALL(IF(nom=$BO$2,ROW(INDIRECT("1:"&ROWS(Expr1)))),ROWS('Charge atelier chaudronnerie'!$3:4))),"") ->  | BP5: =IF(ROWS('Charge atelier chaudronnerie'!$3:4)<=COUNTIF(nom,$BO$2),INDEX(Expr2,SMALL(IF(nom=$BO$2,ROW(INDIRECT("1:"&ROWS(Expr1)))),ROWS('Charge atelier chaudronnerie'!$3:4))),"") ->  | BQ5: =IF(ROWS('Charge atelier chaudronnerie'!$3:4)<=COUNTIF(nom,$BO$2),INDEX(DatePriseOf,SMALL(IF(nom=$BO$2,ROW(INDIRECT("1:"&ROWS(Expr1)))),ROWS('Charge atelier chaudronnerie'!$3:4))),"") ->  | BS5: =IF(ROWS('Charge atelier chaudronnerie'!$3:4)<=COUNTIF(nom,$BS$2),INDEX(Expr1,SMALL(IF(nom=$BS$2,ROW(INDIRECT("1:"&ROWS(Expr1)))),ROWS('Charge atelier chaudronnerie'!$3:4))),"") ->  | BT5: =IF(ROWS('Charge atelier chaudronnerie'!$3:4)<=COUNTIF(nom,$BS$2),INDEX(Expr2,SMALL(IF(nom=$BS$2,ROW(INDIRECT("1:"&ROWS(Expr1)))),ROWS('Charge atelier chaudronnerie'!$3:4))),"") ->  | BU5: =IF(ROWS('Charge atelier chaudronnerie'!$3:4)<=COUNTIF(nom,$BS$2),INDEX(DatePriseOf,SMALL(IF(nom=$BS$2,ROW(INDIRECT("1:"&ROWS(Expr1)))),ROWS('Charge atelier chaudronnerie'!$3:4))),"") -> 
A6: gregory | B6: DELANGHE | C6: =IF(ROWS('Charge atelier chaudronnerie'!$3:5)<=COUNTIF(nom,$C$2),INDEX(Expr1,SMALL(IF(nom=$C$2,ROW(INDIRECT("1:"&ROWS(Expr1)))),ROWS('Charge atelier chaudronnerie'!$3:5))),"") ->  | D6: =IF(ROWS('Charge atelier chaudronnerie'!$3:5)<=COUNTIF(nom,$C$2),INDEX(Expr2,SMALL(IF(nom=$C$2,ROW(INDIRECT("1:"&ROWS(Expr1)))),ROWS('Charge atelier chaudronnerie'!$3:5))),"") ->  | E6: =IF(ROWS('Charge atelier chaudronnerie'!$3:5)<=COUNTIF(nom,$C$2),INDEX(DatePriseOf,SMALL(IF(nom=$C$2,ROW(INDIRECT("1:"&ROWS(Expr1)))),ROWS('Charge atelier chaudronnerie'!$3:5))),"") ->  | G6: =IF(ROWS('Charge atelier chaudronnerie'!$3:5)<=COUNTIF(nom,$G$2),INDEX(Expr1,SMALL(IF(nom=$G$2,ROW(INDIRECT("1:"&ROWS(Expr1)))),ROWS('Charge atelier chaudronnerie'!$3:5))),"") ->  | H6: =IF(ROWS('Charge atelier chaudronnerie'!$3:5)<=COUNTIF(nom,$G$2),INDEX(Expr2,SMALL(IF(nom=$G$2,ROW(INDIRECT("1:"&ROWS(Expr1)))),ROWS('Charge atelier chaudronnerie'!$3:5))),"") ->  | I6: =IF(ROWS('Charge atelier chaudronnerie'!$3:5)<=COUNTIF(nom,$G$2),INDEX(DatePriseOf,SMALL(IF(nom=$G$2,ROW(INDIRECT("1:"&ROWS(Expr1)))),ROWS('Charge atelier chaudronnerie'!$3:5))),"") ->  | K6: =IF(ROWS('Charge atelier chaudronnerie'!$3:5)<=COUNTIF(nom,$K$2),INDEX(Expr1,SMALL(IF(nom=$K$2,ROW(INDIRECT("1:"&ROWS(Expr1)))),ROWS('Charge atelier chaudronnerie'!$3:5))),"") ->  | L6: =IF(ROWS('Charge atelier chaudronnerie'!$3:5)<=COUNTIF(nom,$K$2),INDEX(Expr2,SMALL(IF(nom=$K$2,ROW(INDIRECT("1:"&ROWS(Expr1)))),ROWS('Charge atelier chaudronnerie'!$3:5))),"") ->  | M6: =IF(ROWS('Charge atelier chaudronnerie'!$3:5)<=COUNTIF(nom,$K$2),INDEX(DatePriseOf,SMALL(IF(nom=$K$2,ROW(INDIRECT("1:"&ROWS(Expr1)))),ROWS('Charge atelier chaudronnerie'!$3:5))),"") ->  | O6: =IF(ROWS('Charge atelier chaudronnerie'!$3:5)<=COUNTIF(nom,$O$2),INDEX(Expr1,SMALL(IF(nom=$O$2,ROW(INDIRECT("1:"&ROWS(Expr1)))),ROWS('Charge atelier chaudronnerie'!$3:5))),"") ->  | P6: =IF(ROWS('Charge atelier chaudronnerie'!$3:5)<=COUNTIF(nom,$O$2),INDEX(Expr2,SMALL(IF(nom=$O$2,ROW(INDIRECT("1:"&ROWS(Expr1)))),ROWS('Charge atelier chaudronnerie'!$3:5))),"") ->  | Q6: =IF(ROWS('Charge atelier chaudronnerie'!$3:5)<=COUNTIF(nom,$O$2),INDEX(DatePriseOf,SMALL(IF(nom=$O$2,ROW(INDIRECT("1:"&ROWS(Expr1)))),ROWS('Charge atelier chaudronnerie'!$3:5))),"") ->  | S6: =IF(ROWS('Charge atelier chaudronnerie'!$3:5)<=COUNTIF(nom,$S$2),INDEX(Expr1,SMALL(IF(nom=$S$2,ROW(INDIRECT("1:"&ROWS(Expr1)))),ROWS('Charge atelier chaudronnerie'!$3:5))),"") ->  | T6: =IF(ROWS('Charge atelier chaudronnerie'!$3:5)<=COUNTIF(nom,$S$2),INDEX(Expr2,SMALL(IF(nom=$S$2,ROW(INDIRECT("1:"&ROWS(Expr1)))),ROWS('Charge atelier chaudronnerie'!$3:5))),"") ->  | U6: =IF(ROWS('Charge atelier chaudronnerie'!$3:5)<=COUNTIF(nom,$S$2),INDEX(DatePriseOf,SMALL(IF(nom=$S$2,ROW(INDIRECT("1:"&ROWS(Expr1)))),ROWS('Charge atelier chaudronnerie'!$3:5))),"") ->  | W6: =IF(ROWS('Charge atelier chaudronnerie'!$3:5)<=COUNTIF(nom,$W$2),INDEX(Expr1,SMALL(IF(nom=$W$2,ROW(INDIRECT("1:"&ROWS(Expr1)))),ROWS('Charge atelier chaudronnerie'!$3:5))),"") ->  | X6: =IF(ROWS('Charge atelier chaudronnerie'!$3:5)<=COUNTIF(nom,$W$2),INDEX(Expr2,SMALL(IF(nom=$W$2,ROW(INDIRECT("1:"&ROWS(Expr1)))),ROWS('Charge atelier chaudronnerie'!$3:5))),"") ->  | Y6: =IF(ROWS('Charge atelier chaudronnerie'!$3:5)<=COUNTIF(nom,$W$2),INDEX(DatePriseOf,SMALL(IF(nom=$W$2,ROW(INDIRECT("1:"&ROWS(Expr1)))),ROWS('Charge atelier chaudronnerie'!$3:5))),"") ->  | AA6: =IF(ROWS('Charge atelier chaudronnerie'!$3:5)<=COUNTIF(nom,$AA$2),INDEX(Expr1,SMALL(IF(nom=$AA$2,ROW(INDIRECT("1:"&ROWS(Expr1)))),ROWS('Charge atelier chaudronnerie'!$3:5))),"") ->  | AB6: =IF(ROWS('Charge atelier chaudronnerie'!$3:5)<=COUNTIF(nom,$AA$2),INDEX(Expr2,SMALL(IF(nom=$AA$2,ROW(INDIRECT("1:"&ROWS(Expr1)))),ROWS('Charge atelier chaudronnerie'!$3:5))),"") ->  | AC6: =IF(ROWS('Charge atelier chaudronnerie'!$3:5)<=COUNTIF(nom,$AA$2),INDEX(DatePriseOf,SMALL(IF(nom=$AA$2,ROW(INDIRECT("1:"&ROWS(Expr1)))),ROWS('Charge atelier chaudronnerie'!$3:5))),"") ->  | AE6: =IF(ROWS('Charge atelier chaudronnerie'!$3:5)<=COUNTIF(nom,$AE$2),INDEX(Expr1,SMALL(IF(nom=$AE$2,ROW(INDIRECT("1:"&ROWS(Expr1)))),ROWS('Charge atelier chaudronnerie'!$3:5))),"") ->  | AF6: =IF(ROWS('Charge atelier chaudronnerie'!$3:5)<=COUNTIF(nom,$AE$2),INDEX(Expr2,SMALL(IF(nom=$AE$2,ROW(INDIRECT("1:"&ROWS(Expr1)))),ROWS('Charge atelier chaudronnerie'!$3:5))),"") ->  | AG6: =IF(ROWS('Charge atelier chaudronnerie'!$3:5)<=COUNTIF(nom,$AE$2),INDEX(DatePriseOf,SMALL(IF(nom=$AE$2,ROW(INDIRECT("1:"&ROWS(Expr1)))),ROWS('Charge atelier chaudronnerie'!$3:5))),"") ->  | AI6: =IF(ROWS('Charge atelier chaudronnerie'!$3:5)<=COUNTIF(nom,$AI$2),INDEX(Expr1,SMALL(IF(nom=$AI$2,ROW(INDIRECT("1:"&ROWS(Expr1)))),ROWS('Charge atelier chaudronnerie'!$3:5))),"") ->  | AJ6: =IF(ROWS('Charge atelier chaudronnerie'!$3:5)<=COUNTIF(nom,$AI$2),INDEX(Expr2,SMALL(IF(nom=$AI$2,ROW(INDIRECT("1:"&ROWS(Expr1)))),ROWS('Charge atelier chaudronnerie'!$3:5))),"") ->  | AK6: =IF(ROWS('Charge atelier chaudronnerie'!$3:5)<=COUNTIF(nom,$AI$2),INDEX(DatePriseOf,SMALL(IF(nom=$AI$2,ROW(INDIRECT("1:"&ROWS(Expr1)))),ROWS('Charge atelier chaudronnerie'!$3:5))),"") ->  | AM6: =IF(ROWS('Charge atelier chaudronnerie'!$3:5)<=COUNTIF(nom,$AM$2),INDEX(Expr1,SMALL(IF(nom=$AM$2,ROW(INDIRECT("1:"&ROWS(Expr1)))),ROWS('Charge atelier chaudronnerie'!$3:5))),"") ->  | AN6: =IF(ROWS('Charge atelier chaudronnerie'!$3:5)<=COUNTIF(nom,$AM$2),INDEX(Expr2,SMALL(IF(nom=$AM$2,ROW(INDIRECT("1:"&ROWS(Expr1)))),ROWS('Charge atelier chaudronnerie'!$3:5))),"") ->  | AO6: =IF(ROWS('Charge atelier chaudronnerie'!$3:5)<=COUNTIF(nom,$AM$2),INDEX(DatePriseOf,SMALL(IF(nom=$AM$2,ROW(INDIRECT("1:"&ROWS(Expr1)))),ROWS('Charge atelier chaudronnerie'!$3:5))),"") ->  | AQ6: =IF(ROWS('Charge atelier chaudronnerie'!$3:5)<=COUNTIF(nom,$AQ$2),INDEX(Expr1,SMALL(IF(nom=$AQ$2,ROW(INDIRECT("1:"&ROWS(Expr1)))),ROWS('Charge atelier chaudronnerie'!$3:5))),"") ->  | AR6: =IF(ROWS('Charge atelier chaudronnerie'!$3:5)<=COUNTIF(nom,$AQ$2),INDEX(Expr2,SMALL(IF(nom=$AQ$2,ROW(INDIRECT("1:"&ROWS(Expr1)))),ROWS('Charge atelier chaudronnerie'!$3:5))),"") ->  | AS6: =IF(ROWS('Charge atelier chaudronnerie'!$3:5)<=COUNTIF(nom,$AQ$2),INDEX(DatePriseOf,SMALL(IF(nom=$AQ$2,ROW(INDIRECT("1:"&ROWS(Expr1)))),ROWS('Charge atelier chaudronnerie'!$3:5))),"") ->  | AU6: =IF(ROWS('Charge atelier chaudronnerie'!$3:5)<=COUNTIF(nom,$AU$2),INDEX(Expr1,SMALL(IF(nom=$AU$2,ROW(INDIRECT("1:"&ROWS(Expr1)))),ROWS('Charge atelier chaudronnerie'!$3:5))),"") ->  | AV6: =IF(ROWS('Charge atelier chaudronnerie'!$3:5)<=COUNTIF(nom,$AU$2),INDEX(Expr2,SMALL(IF(nom=$AU$2,ROW(INDIRECT("1:"&ROWS(Expr1)))),ROWS('Charge atelier chaudronnerie'!$3:5))),"") ->  | AW6: =IF(ROWS('Charge atelier chaudronnerie'!$3:5)<=COUNTIF(nom,$AU$2),INDEX(DatePriseOf,SMALL(IF(nom=$AU$2,ROW(INDIRECT("1:"&ROWS(Expr1)))),ROWS('Charge atelier chaudronnerie'!$3:5))),"") ->  | AY6: =IF(ROWS('Charge atelier chaudronnerie'!$3:5)<=COUNTIF(nom,$AY$2),INDEX(Expr1,SMALL(IF(nom=$AY$2,ROW(INDIRECT("1:"&ROWS(Expr1)))),ROWS('Charge atelier chaudronnerie'!$3:5))),"") ->  | AZ6: =IF(ROWS('Charge atelier chaudronnerie'!$3:5)<=COUNTIF(nom,$AY$2),INDEX(Expr2,SMALL(IF(nom=$AY$2,ROW(INDIRECT("1:"&ROWS(Expr1)))),ROWS('Charge atelier chaudronnerie'!$3:5))),"") ->  | BA6: =IF(ROWS('Charge atelier chaudronnerie'!$3:5)<=COUNTIF(nom,$AY$2),INDEX(DatePriseOf,SMALL(IF(nom=$AY$2,ROW(INDIRECT("1:"&ROWS(Expr1)))),ROWS('Charge atelier chaudronnerie'!$3:5))),"") ->  | BC6: =IF(ROWS('Charge atelier chaudronnerie'!$3:5)<=COUNTIF(nom,$BC$2),INDEX(Expr1,SMALL(IF(nom=$BC$2,ROW(INDIRECT("1:"&ROWS(Expr1)))),ROWS('Charge atelier chaudronnerie'!$3:5))),"") ->  | BD6: =IF(ROWS('Charge atelier chaudronnerie'!$3:5)<=COUNTIF(nom,$BC$2),INDEX(Expr2,SMALL(IF(nom=$BC$2,ROW(INDIRECT("1:"&ROWS(Expr1)))),ROWS('Charge atelier chaudronnerie'!$3:5))),"") ->  | BE6: =IF(ROWS('Charge atelier chaudronnerie'!$3:5)<=COUNTIF(nom,$BC$2),INDEX(DatePriseOf,SMALL(IF(nom=$BC$2,ROW(INDIRECT("1:"&ROWS(Expr1)))),ROWS('Charge atelier chaudronnerie'!$3:5))),"") ->  | BG6: =IF(ROWS('Charge atelier chaudronnerie'!$3:5)<=COUNTIF(nom,$BG$2),INDEX(Expr1,SMALL(IF(nom=$BG$2,ROW(INDIRECT("1:"&ROWS(Expr1)))),ROWS('Charge atelier chaudronnerie'!$3:5))),"") ->  | BH6: =IF(ROWS('Charge atelier chaudronnerie'!$3:5)<=COUNTIF(nom,$BG$2),INDEX(Expr2,SMALL(IF(nom=$BG$2,ROW(INDIRECT("1:"&ROWS(Expr1)))),ROWS('Charge atelier chaudronnerie'!$3:5))),"") ->  | BI6: =IF(ROWS('Charge atelier chaudronnerie'!$3:5)<=COUNTIF(nom,$BG$2),INDEX(DatePriseOf,SMALL(IF(nom=$BG$2,ROW(INDIRECT("1:"&ROWS(Expr1)))),ROWS('Charge atelier chaudronnerie'!$3:5))),"") ->  | BK6: =IF(ROWS('Charge atelier chaudronnerie'!$3:5)<=COUNTIF(nom,$BK$2),INDEX(Expr1,SMALL(IF(nom=$BK$2,ROW(INDIRECT("1:"&ROWS(Expr1)))),ROWS('Charge atelier chaudronnerie'!$3:5))),"") ->  | BL6: =IF(ROWS('Charge atelier chaudronnerie'!$3:5)<=COUNTIF(nom,$BK$2),INDEX(Expr2,SMALL(IF(nom=$BK$2,ROW(INDIRECT("1:"&ROWS(Expr1)))),ROWS('Charge atelier chaudronnerie'!$3:5))),"") ->  | BM6: =IF(ROWS('Charge atelier chaudronnerie'!$3:5)<=COUNTIF(nom,$BK$2),INDEX(DatePriseOf,SMALL(IF(nom=$BK$2,ROW(INDIRECT("1:"&ROWS(Expr1)))),ROWS('Charge atelier chaudronnerie'!$3:5))),"") ->  | BO6: =IF(ROWS('Charge atelier chaudronnerie'!$3:5)<=COUNTIF(nom,$BO$2),INDEX(Expr1,SMALL(IF(nom=$BO$2,ROW(INDIRECT("1:"&ROWS(Expr1)))),ROWS('Charge atelier chaudronnerie'!$3:5))),"") ->  | BP6: =IF(ROWS('Charge atelier chaudronnerie'!$3:5)<=COUNTIF(nom,$BO$2),INDEX(Expr2,SMALL(IF(nom=$BO$2,ROW(INDIRECT("1:"&ROWS(Expr1)))),ROWS('Charge atelier chaudronnerie'!$3:5))),"") ->  | BQ6: =IF(ROWS('Charge atelier chaudronnerie'!$3:5)<=COUNTIF(nom,$BO$2),INDEX(DatePriseOf,SMALL(IF(nom=$BO$2,ROW(INDIRECT("1:"&ROWS(Expr1)))),ROWS('Charge atelier chaudronnerie'!$3:5))),"") ->  | BS6: =IF(ROWS('Charge atelier chaudronnerie'!$3:5)<=COUNTIF(nom,$BS$2),INDEX(Expr1,SMALL(IF(nom=$BS$2,ROW(INDIRECT("1:"&ROWS(Expr1)))),ROWS('Charge atelier chaudronnerie'!$3:5))),"") ->  | BT6: =IF(ROWS('Charge atelier chaudronnerie'!$3:5)<=COUNTIF(nom,$BS$2),INDEX(Expr2,SMALL(IF(nom=$BS$2,ROW(INDIRECT("1:"&ROWS(Expr1)))),ROWS('Charge atelier chaudronnerie'!$3:5))),"") ->  | BU6: =IF(ROWS('Charge atelier chaudronnerie'!$3:5)<=COUNTIF(nom,$BS$2),INDEX(DatePriseOf,SMALL(IF(nom=$BS$2,ROW(INDIRECT("1:"&ROWS(Expr1)))),ROWS('Charge atelier chaudronnerie'!$3:5))),"") -> 
A7: jean-luc | B7: DESMOULINS | C7: =IF(ROWS('Charge atelier chaudronnerie'!$3:6)<=COUNTIF(nom,$C$2),INDEX(Expr1,SMALL(IF(nom=$C$2,ROW(INDIRECT("1:"&ROWS(Expr1)))),ROWS('Charge atelier chaudronnerie'!$3:6))),"") ->  | D7: =IF(ROWS('Charge atelier chaudronnerie'!$3:6)<=COUNTIF(nom,$C$2),INDEX(Expr2,SMALL(IF(nom=$C$2,ROW(INDIRECT("1:"&ROWS(Expr1)))),ROWS('Charge atelier chaudronnerie'!$3:6))),"") ->  | E7: =IF(ROWS('Charge atelier chaudronnerie'!$3:6)<=COUNTIF(nom,$C$2),INDEX(DatePriseOf,SMALL(IF(nom=$C$2,ROW(INDIRECT("1:"&ROWS(Expr1)))),ROWS('Charge atelier chaudronnerie'!$3:6))),"") ->  | G7: =IF(ROWS('Charge atelier chaudronnerie'!$3:6)<=COUNTIF(nom,$G$2),INDEX(Expr1,SMALL(IF(nom=$G$2,ROW(INDIRECT("1:"&ROWS(Expr1)))),ROWS('Charge atelier chaudronnerie'!$3:6))),"") ->  | H7: =IF(ROWS('Charge atelier chaudronnerie'!$3:6)<=COUNTIF(nom,$G$2),INDEX(Expr2,SMALL(IF(nom=$G$2,ROW(INDIRECT("1:"&ROWS(Expr1)))),ROWS('Charge atelier chaudronnerie'!$3:6))),"") ->  | I7: =IF(ROWS('Charge atelier chaudronnerie'!$3:6)<=COUNTIF(nom,$G$2),INDEX(DatePriseOf,SMALL(IF(nom=$G$2,ROW(INDIRECT("1:"&ROWS(Expr1)))),ROWS('Charge atelier chaudronnerie'!$3:6))),"") ->  | K7: =IF(ROWS('Charge atelier chaudronnerie'!$3:6)<=COUNTIF(nom,$K$2),INDEX(Expr1,SMALL(IF(nom=$K$2,ROW(INDIRECT("1:"&ROWS(Expr1)))),ROWS('Charge atelier chaudronnerie'!$3:6))),"") ->  | L7: =IF(ROWS('Charge atelier chaudronnerie'!$3:6)<=COUNTIF(nom,$K$2),INDEX(Expr2,SMALL(IF(nom=$K$2,ROW(INDIRECT("1:"&ROWS(Expr1)))),ROWS('Charge atelier chaudronnerie'!$3:6))),"") ->  | M7: =IF(ROWS('Charge atelier chaudronnerie'!$3:6)<=COUNTIF(nom,$K$2),INDEX(DatePriseOf,SMALL(IF(nom=$K$2,ROW(INDIRECT("1:"&ROWS(Expr1)))),ROWS('Charge atelier chaudronnerie'!$3:6))),"") ->  | O7: =IF(ROWS('Charge atelier chaudronnerie'!$3:6)<=COUNTIF(nom,$O$2),INDEX(Expr1,SMALL(IF(nom=$O$2,ROW(INDIRECT("1:"&ROWS(Expr1)))),ROWS('Charge atelier chaudronnerie'!$3:6))),"") ->  | P7: =IF(ROWS('Charge atelier chaudronnerie'!$3:6)<=COUNTIF(nom,$O$2),INDEX(Expr2,SMALL(IF(nom=$O$2,ROW(INDIRECT("1:"&ROWS(Expr1)))),ROWS('Charge atelier chaudronnerie'!$3:6))),"") ->  | Q7: =IF(ROWS('Charge atelier chaudronnerie'!$3:6)<=COUNTIF(nom,$O$2),INDEX(DatePriseOf,SMALL(IF(nom=$O$2,ROW(INDIRECT("1:"&ROWS(Expr1)))),ROWS('Charge atelier chaudronnerie'!$3:6))),"") ->  | S7: =IF(ROWS('Charge atelier chaudronnerie'!$3:6)<=COUNTIF(nom,$S$2),INDEX(Expr1,SMALL(IF(nom=$S$2,ROW(INDIRECT("1:"&ROWS(Expr1)))),ROWS('Charge atelier chaudronnerie'!$3:6))),"") ->  | T7: =IF(ROWS('Charge atelier chaudronnerie'!$3:6)<=COUNTIF(nom,$S$2),INDEX(Expr2,SMALL(IF(nom=$S$2,ROW(INDIRECT("1:"&ROWS(Expr1)))),ROWS('Charge atelier chaudronnerie'!$3:6))),"") ->  | U7: =IF(ROWS('Charge atelier chaudronnerie'!$3:6)<=COUNTIF(nom,$S$2),INDEX(DatePriseOf,SMALL(IF(nom=$S$2,ROW(INDIRECT("1:"&ROWS(Expr1)))),ROWS('Charge atelier chaudronnerie'!$3:6))),"") ->  | W7: =IF(ROWS('Charge atelier chaudronnerie'!$3:6)<=COUNTIF(nom,$W$2),INDEX(Expr1,SMALL(IF(nom=$W$2,ROW(INDIRECT("1:"&ROWS(Expr1)))),ROWS('Charge atelier chaudronnerie'!$3:6))),"") ->  | X7: =IF(ROWS('Charge atelier chaudronnerie'!$3:6)<=COUNTIF(nom,$W$2),INDEX(Expr2,SMALL(IF(nom=$W$2,ROW(INDIRECT("1:"&ROWS(Expr1)))),ROWS('Charge atelier chaudronnerie'!$3:6))),"") ->  | Y7: =IF(ROWS('Charge atelier chaudronnerie'!$3:6)<=COUNTIF(nom,$W$2),INDEX(DatePriseOf,SMALL(IF(nom=$W$2,ROW(INDIRECT("1:"&ROWS(Expr1)))),ROWS('Charge atelier chaudronnerie'!$3:6))),"") ->  | AA7: =IF(ROWS('Charge atelier chaudronnerie'!$3:6)<=COUNTIF(nom,$AA$2),INDEX(Expr1,SMALL(IF(nom=$AA$2,ROW(INDIRECT("1:"&ROWS(Expr1)))),ROWS('Charge atelier chaudronnerie'!$3:6))),"") ->  | AB7: =IF(ROWS('Charge atelier chaudronnerie'!$3:6)<=COUNTIF(nom,$AA$2),INDEX(Expr2,SMALL(IF(nom=$AA$2,ROW(INDIRECT("1:"&ROWS(Expr1)))),ROWS('Charge atelier chaudronnerie'!$3:6))),"") ->  | AC7: =IF(ROWS('Charge atelier chaudronnerie'!$3:6)<=COUNTIF(nom,$AA$2),INDEX(DatePriseOf,SMALL(IF(nom=$AA$2,ROW(INDIRECT("1:"&ROWS(Expr1)))),ROWS('Charge atelier chaudronnerie'!$3:6))),"") ->  | AE7: =IF(ROWS('Charge atelier chaudronnerie'!$3:6)<=COUNTIF(nom,$AE$2),INDEX(Expr1,SMALL(IF(nom=$AE$2,ROW(INDIRECT("1:"&ROWS(Expr1)))),ROWS('Charge atelier chaudronnerie'!$3:6))),"") ->  | AF7: =IF(ROWS('Charge atelier chaudronnerie'!$3:6)<=COUNTIF(nom,$AE$2),INDEX(Expr2,SMALL(IF(nom=$AE$2,ROW(INDIRECT("1:"&ROWS(Expr1)))),ROWS('Charge atelier chaudronnerie'!$3:6))),"") ->  | AG7: =IF(ROWS('Charge atelier chaudronnerie'!$3:6)<=COUNTIF(nom,$AE$2),INDEX(DatePriseOf,SMALL(IF(nom=$AE$2,ROW(INDIRECT("1:"&ROWS(Expr1)))),ROWS('Charge atelier chaudronnerie'!$3:6))),"") ->  | AI7: =IF(ROWS('Charge atelier chaudronnerie'!$3:6)<=COUNTIF(nom,$AI$2),INDEX(Expr1,SMALL(IF(nom=$AI$2,ROW(INDIRECT("1:"&ROWS(Expr1)))),ROWS('Charge atelier chaudronnerie'!$3:6))),"") ->  | AJ7: =IF(ROWS('Charge atelier chaudronnerie'!$3:6)<=COUNTIF(nom,$AI$2),INDEX(Expr2,SMALL(IF(nom=$AI$2,ROW(INDIRECT("1:"&ROWS(Expr1)))),ROWS('Charge atelier chaudronnerie'!$3:6))),"") ->  | AK7: =IF(ROWS('Charge atelier chaudronnerie'!$3:6)<=COUNTIF(nom,$AI$2),INDEX(DatePriseOf,SMALL(IF(nom=$AI$2,ROW(INDIRECT("1:"&ROWS(Expr1)))),ROWS('Charge atelier chaudronnerie'!$3:6))),"") ->  | AM7: =IF(ROWS('Charge atelier chaudronnerie'!$3:6)<=COUNTIF(nom,$AM$2),INDEX(Expr1,SMALL(IF(nom=$AM$2,ROW(INDIRECT("1:"&ROWS(Expr1)))),ROWS('Charge atelier chaudronnerie'!$3:6))),"") ->  | AN7: =IF(ROWS('Charge atelier chaudronnerie'!$3:6)<=COUNTIF(nom,$AM$2),INDEX(Expr2,SMALL(IF(nom=$AM$2,ROW(INDIRECT("1:"&ROWS(Expr1)))),ROWS('Charge atelier chaudronnerie'!$3:6))),"") ->  | AO7: =IF(ROWS('Charge atelier chaudronnerie'!$3:6)<=COUNTIF(nom,$AM$2),INDEX(DatePriseOf,SMALL(IF(nom=$AM$2,ROW(INDIRECT("1:"&ROWS(Expr1)))),ROWS('Charge atelier chaudronnerie'!$3:6))),"") ->  | AQ7: =IF(ROWS('Charge atelier chaudronnerie'!$3:6)<=COUNTIF(nom,$AQ$2),INDEX(Expr1,SMALL(IF(nom=$AQ$2,ROW(INDIRECT("1:"&ROWS(Expr1)))),ROWS('Charge atelier chaudronnerie'!$3:6))),"") ->  | AR7: =IF(ROWS('Charge atelier chaudronnerie'!$3:6)<=COUNTIF(nom,$AQ$2),INDEX(Expr2,SMALL(IF(nom=$AQ$2,ROW(INDIRECT("1:"&ROWS(Expr1)))),ROWS('Charge atelier chaudronnerie'!$3:6))),"") ->  | AS7: =IF(ROWS('Charge atelier chaudronnerie'!$3:6)<=COUNTIF(nom,$AQ$2),INDEX(DatePriseOf,SMALL(IF(nom=$AQ$2,ROW(INDIRECT("1:"&ROWS(Expr1)))),ROWS('Charge atelier chaudronnerie'!$3:6))),"") ->  | AU7: =IF(ROWS('Charge atelier chaudronnerie'!$3:6)<=COUNTIF(nom,$AU$2),INDEX(Expr1,SMALL(IF(nom=$AU$2,ROW(INDIRECT("1:"&ROWS(Expr1)))),ROWS('Charge atelier chaudronnerie'!$3:6))),"") ->  | AV7: =IF(ROWS('Charge atelier chaudronnerie'!$3:6)<=COUNTIF(nom,$AU$2),INDEX(Expr2,SMALL(IF(nom=$AU$2,ROW(INDIRECT("1:"&ROWS(Expr1)))),ROWS('Charge atelier chaudronnerie'!$3:6))),"") ->  | AW7: =IF(ROWS('Charge atelier chaudronnerie'!$3:6)<=COUNTIF(nom,$AU$2),INDEX(DatePriseOf,SMALL(IF(nom=$AU$2,ROW(INDIRECT("1:"&ROWS(Expr1)))),ROWS('Charge atelier chaudronnerie'!$3:6))),"") ->  | AY7: =IF(ROWS('Charge atelier chaudronnerie'!$3:6)<=COUNTIF(nom,$AY$2),INDEX(Expr1,SMALL(IF(nom=$AY$2,ROW(INDIRECT("1:"&ROWS(Expr1)))),ROWS('Charge atelier chaudronnerie'!$3:6))),"") ->  | AZ7: =IF(ROWS('Charge atelier chaudronnerie'!$3:6)<=COUNTIF(nom,$AY$2),INDEX(Expr2,SMALL(IF(nom=$AY$2,ROW(INDIRECT("1:"&ROWS(Expr1)))),ROWS('Charge atelier chaudronnerie'!$3:6))),"") ->  | BA7: =IF(ROWS('Charge atelier chaudronnerie'!$3:6)<=COUNTIF(nom,$AY$2),INDEX(DatePriseOf,SMALL(IF(nom=$AY$2,ROW(INDIRECT("1:"&ROWS(Expr1)))),ROWS('Charge atelier chaudronnerie'!$3:6))),"") ->  | BC7: =IF(ROWS('Charge atelier chaudronnerie'!$3:6)<=COUNTIF(nom,$BC$2),INDEX(Expr1,SMALL(IF(nom=$BC$2,ROW(INDIRECT("1:"&ROWS(Expr1)))),ROWS('Charge atelier chaudronnerie'!$3:6))),"") ->  | BD7: =IF(ROWS('Charge atelier chaudronnerie'!$3:6)<=COUNTIF(nom,$BC$2),INDEX(Expr2,SMALL(IF(nom=$BC$2,ROW(INDIRECT("1:"&ROWS(Expr1)))),ROWS('Charge atelier chaudronnerie'!$3:6))),"") ->  | BE7: =IF(ROWS('Charge atelier chaudronnerie'!$3:6)<=COUNTIF(nom,$BC$2),INDEX(DatePriseOf,SMALL(IF(nom=$BC$2,ROW(INDIRECT("1:"&ROWS(Expr1)))),ROWS('Charge atelier chaudronnerie'!$3:6))),"") ->  | BG7: =IF(ROWS('Charge atelier chaudronnerie'!$3:6)<=COUNTIF(nom,$BG$2),INDEX(Expr1,SMALL(IF(nom=$BG$2,ROW(INDIRECT("1:"&ROWS(Expr1)))),ROWS('Charge atelier chaudronnerie'!$3:6))),"") ->  | BH7: =IF(ROWS('Charge atelier chaudronnerie'!$3:6)<=COUNTIF(nom,$BG$2),INDEX(Expr2,SMALL(IF(nom=$BG$2,ROW(INDIRECT("1:"&ROWS(Expr1)))),ROWS('Charge atelier chaudronnerie'!$3:6))),"") ->  | BI7: =IF(ROWS('Charge atelier chaudronnerie'!$3:6)<=COUNTIF(nom,$BG$2),INDEX(DatePriseOf,SMALL(IF(nom=$BG$2,ROW(INDIRECT("1:"&ROWS(Expr1)))),ROWS('Charge atelier chaudronnerie'!$3:6))),"") ->  | BK7: =IF(ROWS('Charge atelier chaudronnerie'!$3:6)<=COUNTIF(nom,$BK$2),INDEX(Expr1,SMALL(IF(nom=$BK$2,ROW(INDIRECT("1:"&ROWS(Expr1)))),ROWS('Charge atelier chaudronnerie'!$3:6))),"") ->  | BL7: =IF(ROWS('Charge atelier chaudronnerie'!$3:6)<=COUNTIF(nom,$BK$2),INDEX(Expr2,SMALL(IF(nom=$BK$2,ROW(INDIRECT("1:"&ROWS(Expr1)))),ROWS('Charge atelier chaudronnerie'!$3:6))),"") ->  | BM7: =IF(ROWS('Charge atelier chaudronnerie'!$3:6)<=COUNTIF(nom,$BK$2),INDEX(DatePriseOf,SMALL(IF(nom=$BK$2,ROW(INDIRECT("1:"&ROWS(Expr1)))),ROWS('Charge atelier chaudronnerie'!$3:6))),"") ->  | BO7: =IF(ROWS('Charge atelier chaudronnerie'!$3:5)<=COUNTIF(nom,$BO$2),INDEX(Expr1,SMALL(IF(nom=$BO$2,ROW(INDIRECT("1:"&ROWS(Expr1)))),ROWS('Charge atelier chaudronnerie'!$3:5))),"") ->  | BP7: =IF(ROWS('Charge atelier chaudronnerie'!$3:5)<=COUNTIF(nom,$BO$2),INDEX(Expr2,SMALL(IF(nom=$BO$2,ROW(INDIRECT("1:"&ROWS(Expr1)))),ROWS('Charge atelier chaudronnerie'!$3:5))),"") ->  | BQ7: =IF(ROWS('Charge atelier chaudronnerie'!$3:5)<=COUNTIF(nom,$BO$2),INDEX(DatePriseOf,SMALL(IF(nom=$BO$2,ROW(INDIRECT("1:"&ROWS(Expr1)))),ROWS('Charge atelier chaudronnerie'!$3:5))),"") ->  | BS7: =IF(ROWS('Charge atelier chaudronnerie'!$3:5)<=COUNTIF(nom,$BS$2),INDEX(Expr1,SMALL(IF(nom=$BS$2,ROW(INDIRECT("1:"&ROWS(Expr1)))),ROWS('Charge atelier chaudronnerie'!$3:5))),"") ->  | BT7: =IF(ROWS('Charge atelier chaudronnerie'!$3:5)<=COUNTIF(nom,$BS$2),INDEX(Expr2,SMALL(IF(nom=$BS$2,ROW(INDIRECT("1:"&ROWS(Expr1)))),ROWS('Charge atelier chaudronnerie'!$3:5))),"") ->  | BU7: =IF(ROWS('Charge atelier chaudronnerie'!$3:5)<=COUNTIF(nom,$BS$2),INDEX(DatePriseOf,SMALL(IF(nom=$BS$2,ROW(INDIRECT("1:"&ROWS(Expr1)))),ROWS('Charge atelier chaudronnerie'!$3:5))),"") -> 
A8: gaby | B8: DESSAY | C8: =IF(ROWS('Charge atelier chaudronnerie'!$3:7)<=COUNTIF(nom,$C$2),INDEX(Expr1,SMALL(IF(nom=$C$2,ROW(INDIRECT("1:"&ROWS(Expr1)))),ROWS('Charge atelier chaudronnerie'!$3:7))),"") ->  | D8: =IF(ROWS('Charge atelier chaudronnerie'!$3:7)<=COUNTIF(nom,$C$2),INDEX(Expr2,SMALL(IF(nom=$C$2,ROW(INDIRECT("1:"&ROWS(Expr1)))),ROWS('Charge atelier chaudronnerie'!$3:7))),"") ->  | E8: =IF(ROWS('Charge atelier chaudronnerie'!$3:7)<=COUNTIF(nom,$C$2),INDEX(DatePriseOf,SMALL(IF(nom=$C$2,ROW(INDIRECT("1:"&ROWS(Expr1)))),ROWS('Charge atelier chaudronnerie'!$3:7))),"") ->  | G8: =IF(ROWS('Charge atelier chaudronnerie'!$3:7)<=COUNTIF(nom,$G$2),INDEX(Expr1,SMALL(IF(nom=$G$2,ROW(INDIRECT("1:"&ROWS(Expr1)))),ROWS('Charge atelier chaudronnerie'!$3:7))),"") ->  | H8: =IF(ROWS('Charge atelier chaudronnerie'!$3:7)<=COUNTIF(nom,$G$2),INDEX(Expr2,SMALL(IF(nom=$G$2,ROW(INDIRECT("1:"&ROWS(Expr1)))),ROWS('Charge atelier chaudronnerie'!$3:7))),"") ->  | I8: =IF(ROWS('Charge atelier chaudronnerie'!$3:7)<=COUNTIF(nom,$G$2),INDEX(DatePriseOf,SMALL(IF(nom=$G$2,ROW(INDIRECT("1:"&ROWS(Expr1)))),ROWS('Charge atelier chaudronnerie'!$3:7))),"") ->  | K8: =IF(ROWS('Charge atelier chaudronnerie'!$3:7)<=COUNTIF(nom,$K$2),INDEX(Expr1,SMALL(IF(nom=$K$2,ROW(INDIRECT("1:"&ROWS(Expr1)))),ROWS('Charge atelier chaudronnerie'!$3:7))),"") ->  | L8: =IF(ROWS('Charge atelier chaudronnerie'!$3:7)<=COUNTIF(nom,$K$2),INDEX(Expr2,SMALL(IF(nom=$K$2,ROW(INDIRECT("1:"&ROWS(Expr1)))),ROWS('Charge atelier chaudronnerie'!$3:7))),"") ->  | M8: =IF(ROWS('Charge atelier chaudronnerie'!$3:7)<=COUNTIF(nom,$K$2),INDEX(DatePriseOf,SMALL(IF(nom=$K$2,ROW(INDIRECT("1:"&ROWS(Expr1)))),ROWS('Charge atelier chaudronnerie'!$3:7))),"") ->  | O8: =IF(ROWS('Charge atelier chaudronnerie'!$3:7)<=COUNTIF(nom,$O$2),INDEX(Expr1,SMALL(IF(nom=$O$2,ROW(INDIRECT("1:"&ROWS(Expr1)))),ROWS('Charge atelier chaudronnerie'!$3:7))),"") ->  | P8: =IF(ROWS('Charge atelier chaudronnerie'!$3:7)<=COUNTIF(nom,$O$2),INDEX(Expr2,SMALL(IF(nom=$O$2,ROW(INDIRECT("1:"&ROWS(Expr1)))),ROWS('Charge atelier chaudronnerie'!$3:7))),"") ->  | Q8: =IF(ROWS('Charge atelier chaudronnerie'!$3:7)<=COUNTIF(nom,$O$2),INDEX(DatePriseOf,SMALL(IF(nom=$O$2,ROW(INDIRECT("1:"&ROWS(Expr1)))),ROWS('Charge atelier chaudronnerie'!$3:7))),"") ->  | S8: =IF(ROWS('Charge atelier chaudronnerie'!$3:7)<=COUNTIF(nom,$S$2),INDEX(Expr1,SMALL(IF(nom=$S$2,ROW(INDIRECT("1:"&ROWS(Expr1)))),ROWS('Charge atelier chaudronnerie'!$3:7))),"") ->  | T8: =IF(ROWS('Charge atelier chaudronnerie'!$3:7)<=COUNTIF(nom,$S$2),INDEX(Expr2,SMALL(IF(nom=$S$2,ROW(INDIRECT("1:"&ROWS(Expr1)))),ROWS('Charge atelier chaudronnerie'!$3:7))),"") ->  | U8: =IF(ROWS('Charge atelier chaudronnerie'!$3:7)<=COUNTIF(nom,$S$2),INDEX(DatePriseOf,SMALL(IF(nom=$S$2,ROW(INDIRECT("1:"&ROWS(Expr1)))),ROWS('Charge atelier chaudronnerie'!$3:7))),"") ->  | W8: =IF(ROWS('Charge atelier chaudronnerie'!$3:7)<=COUNTIF(nom,$W$2),INDEX(Expr1,SMALL(IF(nom=$W$2,ROW(INDIRECT("1:"&ROWS(Expr1)))),ROWS('Charge atelier chaudronnerie'!$3:7))),"") ->  | X8: =IF(ROWS('Charge atelier chaudronnerie'!$3:7)<=COUNTIF(nom,$W$2),INDEX(Expr2,SMALL(IF(nom=$W$2,ROW(INDIRECT("1:"&ROWS(Expr1)))),ROWS('Charge atelier chaudronnerie'!$3:7))),"") ->  | Y8: =IF(ROWS('Charge atelier chaudronnerie'!$3:7)<=COUNTIF(nom,$W$2),INDEX(DatePriseOf,SMALL(IF(nom=$W$2,ROW(INDIRECT("1:"&ROWS(Expr1)))),ROWS('Charge atelier chaudronnerie'!$3:7))),"") ->  | AA8: =IF(ROWS('Charge atelier chaudronnerie'!$3:7)<=COUNTIF(nom,$AA$2),INDEX(Expr1,SMALL(IF(nom=$AA$2,ROW(INDIRECT("1:"&ROWS(Expr1)))),ROWS('Charge atelier chaudronnerie'!$3:7))),"") ->  | AB8: =IF(ROWS('Charge atelier chaudronnerie'!$3:7)<=COUNTIF(nom,$AA$2),INDEX(Expr2,SMALL(IF(nom=$AA$2,ROW(INDIRECT("1:"&ROWS(Expr1)))),ROWS('Charge atelier chaudronnerie'!$3:7))),"") ->  | AC8: =IF(ROWS('Charge atelier chaudronnerie'!$3:7)<=COUNTIF(nom,$AA$2),INDEX(DatePriseOf,SMALL(IF(nom=$AA$2,ROW(INDIRECT("1:"&ROWS(Expr1)))),ROWS('Charge atelier chaudronnerie'!$3:7))),"") ->  | AE8: =IF(ROWS('Charge atelier chaudronnerie'!$3:7)<=COUNTIF(nom,$AE$2),INDEX(Expr1,SMALL(IF(nom=$AE$2,ROW(INDIRECT("1:"&ROWS(Expr1)))),ROWS('Charge atelier chaudronnerie'!$3:7))),"") ->  | AF8: =IF(ROWS('Charge atelier chaudronnerie'!$3:7)<=COUNTIF(nom,$AE$2),INDEX(Expr2,SMALL(IF(nom=$AE$2,ROW(INDIRECT("1:"&ROWS(Expr1)))),ROWS('Charge atelier chaudronnerie'!$3:7))),"") ->  | AG8: =IF(ROWS('Charge atelier chaudronnerie'!$3:7)<=COUNTIF(nom,$AE$2),INDEX(DatePriseOf,SMALL(IF(nom=$AE$2,ROW(INDIRECT("1:"&ROWS(Expr1)))),ROWS('Charge atelier chaudronnerie'!$3:7))),"") ->  | AI8: =IF(ROWS('Charge atelier chaudronnerie'!$3:7)<=COUNTIF(nom,$AI$2),INDEX(Expr1,SMALL(IF(nom=$AI$2,ROW(INDIRECT("1:"&ROWS(Expr1)))),ROWS('Charge atelier chaudronnerie'!$3:7))),"") ->  | AJ8: =IF(ROWS('Charge atelier chaudronnerie'!$3:7)<=COUNTIF(nom,$AI$2),INDEX(Expr2,SMALL(IF(nom=$AI$2,ROW(INDIRECT("1:"&ROWS(Expr1)))),ROWS('Charge atelier chaudronnerie'!$3:7))),"") ->  | AK8: =IF(ROWS('Charge atelier chaudronnerie'!$3:7)<=COUNTIF(nom,$AI$2),INDEX(DatePriseOf,SMALL(IF(nom=$AI$2,ROW(INDIRECT("1:"&ROWS(Expr1)))),ROWS('Charge atelier chaudronnerie'!$3:7))),"") ->  | AM8: =IF(ROWS('Charge atelier chaudronnerie'!$3:7)<=COUNTIF(nom,$AM$2),INDEX(Expr1,SMALL(IF(nom=$AM$2,ROW(INDIRECT("1:"&ROWS(Expr1)))),ROWS('Charge atelier chaudronnerie'!$3:7))),"") ->  | AN8: =IF(ROWS('Charge atelier chaudronnerie'!$3:7)<=COUNTIF(nom,$AM$2),INDEX(Expr2,SMALL(IF(nom=$AM$2,ROW(INDIRECT("1:"&ROWS(Expr1)))),ROWS('Charge atelier chaudronnerie'!$3:7))),"") ->  | AO8: =IF(ROWS('Charge atelier chaudronnerie'!$3:7)<=COUNTIF(nom,$AM$2),INDEX(DatePriseOf,SMALL(IF(nom=$AM$2,ROW(INDIRECT("1:"&ROWS(Expr1)))),ROWS('Charge atelier chaudronnerie'!$3:7))),"") ->  | AQ8: =IF(ROWS('Charge atelier chaudronnerie'!$3:7)<=COUNTIF(nom,$AQ$2),INDEX(Expr1,SMALL(IF(nom=$AQ$2,ROW(INDIRECT("1:"&ROWS(Expr1)))),ROWS('Charge atelier chaudronnerie'!$3:7))),"") ->  | AR8: =IF(ROWS('Charge atelier chaudronnerie'!$3:7)<=COUNTIF(nom,$AQ$2),INDEX(Expr2,SMALL(IF(nom=$AQ$2,ROW(INDIRECT("1:"&ROWS(Expr1)))),ROWS('Charge atelier chaudronnerie'!$3:7))),"") ->  | AS8: =IF(ROWS('Charge atelier chaudronnerie'!$3:7)<=COUNTIF(nom,$AQ$2),INDEX(DatePriseOf,SMALL(IF(nom=$AQ$2,ROW(INDIRECT("1:"&ROWS(Expr1)))),ROWS('Charge atelier chaudronnerie'!$3:7))),"") ->  | AU8: =IF(ROWS('Charge atelier chaudronnerie'!$3:7)<=COUNTIF(nom,$AU$2),INDEX(Expr1,SMALL(IF(nom=$AU$2,ROW(INDIRECT("1:"&ROWS(Expr1)))),ROWS('Charge atelier chaudronnerie'!$3:7))),"") ->  | AV8: =IF(ROWS('Charge atelier chaudronnerie'!$3:7)<=COUNTIF(nom,$AU$2),INDEX(Expr2,SMALL(IF(nom=$AU$2,ROW(INDIRECT("1:"&ROWS(Expr1)))),ROWS('Charge atelier chaudronnerie'!$3:7))),"") ->  | AW8: =IF(ROWS('Charge atelier chaudronnerie'!$3:7)<=COUNTIF(nom,$AU$2),INDEX(DatePriseOf,SMALL(IF(nom=$AU$2,ROW(INDIRECT("1:"&ROWS(Expr1)))),ROWS('Charge atelier chaudronnerie'!$3:7))),"") ->  | AY8: =IF(ROWS('Charge atelier chaudronnerie'!$3:7)<=COUNTIF(nom,$AY$2),INDEX(Expr1,SMALL(IF(nom=$AY$2,ROW(INDIRECT("1:"&ROWS(Expr1)))),ROWS('Charge atelier chaudronnerie'!$3:7))),"") ->  | AZ8: =IF(ROWS('Charge atelier chaudronnerie'!$3:7)<=COUNTIF(nom,$AY$2),INDEX(Expr2,SMALL(IF(nom=$AY$2,ROW(INDIRECT("1:"&ROWS(Expr1)))),ROWS('Charge atelier chaudronnerie'!$3:7))),"") ->  | BA8: =IF(ROWS('Charge atelier chaudronnerie'!$3:7)<=COUNTIF(nom,$AY$2),INDEX(DatePriseOf,SMALL(IF(nom=$AY$2,ROW(INDIRECT("1:"&ROWS(Expr1)))),ROWS('Charge atelier chaudronnerie'!$3:7))),"") ->  | BC8: =IF(ROWS('Charge atelier chaudronnerie'!$3:7)<=COUNTIF(nom,$BC$2),INDEX(Expr1,SMALL(IF(nom=$BC$2,ROW(INDIRECT("1:"&ROWS(Expr1)))),ROWS('Charge atelier chaudronnerie'!$3:7))),"") ->  | BD8: =IF(ROWS('Charge atelier chaudronnerie'!$3:7)<=COUNTIF(nom,$BC$2),INDEX(Expr2,SMALL(IF(nom=$BC$2,ROW(INDIRECT("1:"&ROWS(Expr1)))),ROWS('Charge atelier chaudronnerie'!$3:7))),"") ->  | BE8: =IF(ROWS('Charge atelier chaudronnerie'!$3:7)<=COUNTIF(nom,$BC$2),INDEX(DatePriseOf,SMALL(IF(nom=$BC$2,ROW(INDIRECT("1:"&ROWS(Expr1)))),ROWS('Charge atelier chaudronnerie'!$3:7))),"") ->  | BG8: =IF(ROWS('Charge atelier chaudronnerie'!$3:7)<=COUNTIF(nom,$BG$2),INDEX(Expr1,SMALL(IF(nom=$BG$2,ROW(INDIRECT("1:"&ROWS(Expr1)))),ROWS('Charge atelier chaudronnerie'!$3:7))),"") ->  | BH8: =IF(ROWS('Charge atelier chaudronnerie'!$3:7)<=COUNTIF(nom,$BG$2),INDEX(Expr2,SMALL(IF(nom=$BG$2,ROW(INDIRECT("1:"&ROWS(Expr1)))),ROWS('Charge atelier chaudronnerie'!$3:7))),"") ->  | BI8: =IF(ROWS('Charge atelier chaudronnerie'!$3:7)<=COUNTIF(nom,$BG$2),INDEX(DatePriseOf,SMALL(IF(nom=$BG$2,ROW(INDIRECT("1:"&ROWS(Expr1)))),ROWS('Charge atelier chaudronnerie'!$3:7))),"") ->  | BK8: =IF(ROWS('Charge atelier chaudronnerie'!$3:7)<=COUNTIF(nom,$BK$2),INDEX(Expr1,SMALL(IF(nom=$BK$2,ROW(INDIRECT("1:"&ROWS(Expr1)))),ROWS('Charge atelier chaudronnerie'!$3:7))),"") ->  | BL8: =IF(ROWS('Charge atelier chaudronnerie'!$3:7)<=COUNTIF(nom,$BK$2),INDEX(Expr2,SMALL(IF(nom=$BK$2,ROW(INDIRECT("1:"&ROWS(Expr1)))),ROWS('Charge atelier chaudronnerie'!$3:7))),"") ->  | BM8: =IF(ROWS('Charge atelier chaudronnerie'!$3:7)<=COUNTIF(nom,$BK$2),INDEX(DatePriseOf,SMALL(IF(nom=$BK$2,ROW(INDIRECT("1:"&ROWS(Expr1)))),ROWS('Charge atelier chaudronnerie'!$3:7))),"") ->  | BO8: =IF(ROWS('Charge atelier chaudronnerie'!$3:5)<=COUNTIF(nom,$BO$2),INDEX(Expr1,SMALL(IF(nom=$BO$2,ROW(INDIRECT("1:"&ROWS(Expr1)))),ROWS('Charge atelier chaudronnerie'!$3:5))),"") ->  | BP8: =IF(ROWS('Charge atelier chaudronnerie'!$3:5)<=COUNTIF(nom,$BO$2),INDEX(Expr2,SMALL(IF(nom=$BO$2,ROW(INDIRECT("1:"&ROWS(Expr1)))),ROWS('Charge atelier chaudronnerie'!$3:5))),"") ->  | BQ8: =IF(ROWS('Charge atelier chaudronnerie'!$3:5)<=COUNTIF(nom,$BO$2),INDEX(DatePriseOf,SMALL(IF(nom=$BO$2,ROW(INDIRECT("1:"&ROWS(Expr1)))),ROWS('Charge atelier chaudronnerie'!$3:5))),"") ->  | BS8: =IF(ROWS('Charge atelier chaudronnerie'!$3:5)<=COUNTIF(nom,$BS$2),INDEX(Expr1,SMALL(IF(nom=$BS$2,ROW(INDIRECT("1:"&ROWS(Expr1)))),ROWS('Charge atelier chaudronnerie'!$3:5))),"") ->  | BT8: =IF(ROWS('Charge atelier chaudronnerie'!$3:5)<=COUNTIF(nom,$BS$2),INDEX(Expr2,SMALL(IF(nom=$BS$2,ROW(INDIRECT("1:"&ROWS(Expr1)))),ROWS('Charge atelier chaudronnerie'!$3:5))),"") ->  | BU8: =IF(ROWS('Charge atelier chaudronnerie'!$3:5)<=COUNTIF(nom,$BS$2),INDEX(DatePriseOf,SMALL(IF(nom=$BS$2,ROW(INDIRECT("1:"&ROWS(Expr1)))),ROWS('Charge atelier chaudronnerie'!$3:5))),"") -> 
A9: daniel | B9: GLORIEUX | C9: =IF(ROWS('Charge atelier chaudronnerie'!$3:8)<=COUNTIF(nom,$C$2),INDEX(Expr1,SMALL(IF(nom=$C$2,ROW(INDIRECT("1:"&ROWS(Expr1)))),ROWS('Charge atelier chaudronnerie'!$3:8))),"") ->  | D9: =IF(ROWS('Charge atelier chaudronnerie'!$3:8)<=COUNTIF(nom,$C$2),INDEX(Expr2,SMALL(IF(nom=$C$2,ROW(INDIRECT("1:"&ROWS(Expr1)))),ROWS('Charge atelier chaudronnerie'!$3:8))),"") ->  | E9: =IF(ROWS('Charge atelier chaudronnerie'!$3:8)<=COUNTIF(nom,$C$2),INDEX(DatePriseOf,SMALL(IF(nom=$C$2,ROW(INDIRECT("1:"&ROWS(Expr1)))),ROWS('Charge atelier chaudronnerie'!$3:8))),"") ->  | G9: =IF(ROWS('Charge atelier chaudronnerie'!$3:8)<=COUNTIF(nom,$G$2),INDEX(Expr1,SMALL(IF(nom=$G$2,ROW(INDIRECT("1:"&ROWS(Expr1)))),ROWS('Charge atelier chaudronnerie'!$3:8))),"") ->  | H9: =IF(ROWS('Charge atelier chaudronnerie'!$3:8)<=COUNTIF(nom,$G$2),INDEX(Expr2,SMALL(IF(nom=$G$2,ROW(INDIRECT("1:"&ROWS(Expr1)))),ROWS('Charge atelier chaudronnerie'!$3:8))),"") ->  | I9: =IF(ROWS('Charge atelier chaudronnerie'!$3:8)<=COUNTIF(nom,$G$2),INDEX(DatePriseOf,SMALL(IF(nom=$G$2,ROW(INDIRECT("1:"&ROWS(Expr1)))),ROWS('Charge atelier chaudronnerie'!$3:8))),"") ->  | K9: =IF(ROWS('Charge atelier chaudronnerie'!$3:8)<=COUNTIF(nom,$K$2),INDEX(Expr1,SMALL(IF(nom=$K$2,ROW(INDIRECT("1:"&ROWS(Expr1)))),ROWS('Charge atelier chaudronnerie'!$3:8))),"") ->  | L9: =IF(ROWS('Charge atelier chaudronnerie'!$3:8)<=COUNTIF(nom,$K$2),INDEX(Expr2,SMALL(IF(nom=$K$2,ROW(INDIRECT("1:"&ROWS(Expr1)))),ROWS('Charge atelier chaudronnerie'!$3:8))),"") ->  | M9: =IF(ROWS('Charge atelier chaudronnerie'!$3:8)<=COUNTIF(nom,$K$2),INDEX(DatePriseOf,SMALL(IF(nom=$K$2,ROW(INDIRECT("1:"&ROWS(Expr1)))),ROWS('Charge atelier chaudronnerie'!$3:8))),"") ->  | O9: =IF(ROWS('Charge atelier chaudronnerie'!$3:8)<=COUNTIF(nom,$O$2),INDEX(Expr1,SMALL(IF(nom=$O$2,ROW(INDIRECT("1:"&ROWS(Expr1)))),ROWS('Charge atelier chaudronnerie'!$3:8))),"") ->  | P9: =IF(ROWS('Charge atelier chaudronnerie'!$3:8)<=COUNTIF(nom,$O$2),INDEX(Expr2,SMALL(IF(nom=$O$2,ROW(INDIRECT("1:"&ROWS(Expr1)))),ROWS('Charge atelier chaudronnerie'!$3:8))),"") ->  | Q9: =IF(ROWS('Charge atelier chaudronnerie'!$3:8)<=COUNTIF(nom,$O$2),INDEX(DatePriseOf,SMALL(IF(nom=$O$2,ROW(INDIRECT("1:"&ROWS(Expr1)))),ROWS('Charge atelier chaudronnerie'!$3:8))),"") ->  | S9: =IF(ROWS('Charge atelier chaudronnerie'!$3:8)<=COUNTIF(nom,$S$2),INDEX(Expr1,SMALL(IF(nom=$S$2,ROW(INDIRECT("1:"&ROWS(Expr1)))),ROWS('Charge atelier chaudronnerie'!$3:8))),"") ->  | T9: =IF(ROWS('Charge atelier chaudronnerie'!$3:8)<=COUNTIF(nom,$S$2),INDEX(Expr2,SMALL(IF(nom=$S$2,ROW(INDIRECT("1:"&ROWS(Expr1)))),ROWS('Charge atelier chaudronnerie'!$3:8))),"") ->  | U9: =IF(ROWS('Charge atelier chaudronnerie'!$3:8)<=COUNTIF(nom,$S$2),INDEX(DatePriseOf,SMALL(IF(nom=$S$2,ROW(INDIRECT("1:"&ROWS(Expr1)))),ROWS('Charge atelier chaudronnerie'!$3:8))),"") ->  | W9: =IF(ROWS('Charge atelier chaudronnerie'!$3:8)<=COUNTIF(nom,$W$2),INDEX(Expr1,SMALL(IF(nom=$W$2,ROW(INDIRECT("1:"&ROWS(Expr1)))),ROWS('Charge atelier chaudronnerie'!$3:8))),"") ->  | X9: =IF(ROWS('Charge atelier chaudronnerie'!$3:8)<=COUNTIF(nom,$W$2),INDEX(Expr2,SMALL(IF(nom=$W$2,ROW(INDIRECT("1:"&ROWS(Expr1)))),ROWS('Charge atelier chaudronnerie'!$3:8))),"") ->  | Y9: =IF(ROWS('Charge atelier chaudronnerie'!$3:8)<=COUNTIF(nom,$W$2),INDEX(DatePriseOf,SMALL(IF(nom=$W$2,ROW(INDIRECT("1:"&ROWS(Expr1)))),ROWS('Charge atelier chaudronnerie'!$3:8))),"") ->  | AA9: =IF(ROWS('Charge atelier chaudronnerie'!$3:8)<=COUNTIF(nom,$AA$2),INDEX(Expr1,SMALL(IF(nom=$AA$2,ROW(INDIRECT("1:"&ROWS(Expr1)))),ROWS('Charge atelier chaudronnerie'!$3:8))),"") ->  | AB9: =IF(ROWS('Charge atelier chaudronnerie'!$3:8)<=COUNTIF(nom,$AA$2),INDEX(Expr2,SMALL(IF(nom=$AA$2,ROW(INDIRECT("1:"&ROWS(Expr1)))),ROWS('Charge atelier chaudronnerie'!$3:8))),"") ->  | AC9: =IF(ROWS('Charge atelier chaudronnerie'!$3:8)<=COUNTIF(nom,$AA$2),INDEX(DatePriseOf,SMALL(IF(nom=$AA$2,ROW(INDIRECT("1:"&ROWS(Expr1)))),ROWS('Charge atelier chaudronnerie'!$3:8))),"") ->  | AE9: =IF(ROWS('Charge atelier chaudronnerie'!$3:8)<=COUNTIF(nom,$AE$2),INDEX(Expr1,SMALL(IF(nom=$AE$2,ROW(INDIRECT("1:"&ROWS(Expr1)))),ROWS('Charge atelier chaudronnerie'!$3:8))),"") ->  | AF9: =IF(ROWS('Charge atelier chaudronnerie'!$3:8)<=COUNTIF(nom,$AE$2),INDEX(Expr2,SMALL(IF(nom=$AE$2,ROW(INDIRECT("1:"&ROWS(Expr1)))),ROWS('Charge atelier chaudronnerie'!$3:8))),"") ->  | AG9: =IF(ROWS('Charge atelier chaudronnerie'!$3:8)<=COUNTIF(nom,$AE$2),INDEX(DatePriseOf,SMALL(IF(nom=$AE$2,ROW(INDIRECT("1:"&ROWS(Expr1)))),ROWS('Charge atelier chaudronnerie'!$3:8))),"") ->  | AI9: =IF(ROWS('Charge atelier chaudronnerie'!$3:8)<=COUNTIF(nom,$AI$2),INDEX(Expr1,SMALL(IF(nom=$AI$2,ROW(INDIRECT("1:"&ROWS(Expr1)))),ROWS('Charge atelier chaudronnerie'!$3:8))),"") ->  | AJ9: =IF(ROWS('Charge atelier chaudronnerie'!$3:8)<=COUNTIF(nom,$AI$2),INDEX(Expr2,SMALL(IF(nom=$AI$2,ROW(INDIRECT("1:"&ROWS(Expr1)))),ROWS('Charge atelier chaudronnerie'!$3:8))),"") ->  | AK9: =IF(ROWS('Charge atelier chaudronnerie'!$3:8)<=COUNTIF(nom,$AI$2),INDEX(DatePriseOf,SMALL(IF(nom=$AI$2,ROW(INDIRECT("1:"&ROWS(Expr1)))),ROWS('Charge atelier chaudronnerie'!$3:8))),"") ->  | AM9: =IF(ROWS('Charge atelier chaudronnerie'!$3:8)<=COUNTIF(nom,$AM$2),INDEX(Expr1,SMALL(IF(nom=$AM$2,ROW(INDIRECT("1:"&ROWS(Expr1)))),ROWS('Charge atelier chaudronnerie'!$3:8))),"") ->  | AN9: =IF(ROWS('Charge atelier chaudronnerie'!$3:8)<=COUNTIF(nom,$AM$2),INDEX(Expr2,SMALL(IF(nom=$AM$2,ROW(INDIRECT("1:"&ROWS(Expr1)))),ROWS('Charge atelier chaudronnerie'!$3:8))),"") ->  | AO9: =IF(ROWS('Charge atelier chaudronnerie'!$3:8)<=COUNTIF(nom,$AM$2),INDEX(DatePriseOf,SMALL(IF(nom=$AM$2,ROW(INDIRECT("1:"&ROWS(Expr1)))),ROWS('Charge atelier chaudronnerie'!$3:8))),"") ->  | AQ9: =IF(ROWS('Charge atelier chaudronnerie'!$3:8)<=COUNTIF(nom,$AQ$2),INDEX(Expr1,SMALL(IF(nom=$AQ$2,ROW(INDIRECT("1:"&ROWS(Expr1)))),ROWS('Charge atelier chaudronnerie'!$3:8))),"") ->  | AR9: =IF(ROWS('Charge atelier chaudronnerie'!$3:8)<=COUNTIF(nom,$AQ$2),INDEX(Expr2,SMALL(IF(nom=$AQ$2,ROW(INDIRECT("1:"&ROWS(Expr1)))),ROWS('Charge atelier chaudronnerie'!$3:8))),"") ->  | AS9: =IF(ROWS('Charge atelier chaudronnerie'!$3:8)<=COUNTIF(nom,$AQ$2),INDEX(DatePriseOf,SMALL(IF(nom=$AQ$2,ROW(INDIRECT("1:"&ROWS(Expr1)))),ROWS('Charge atelier chaudronnerie'!$3:8))),"") ->  | AU9: =IF(ROWS('Charge atelier chaudronnerie'!$3:8)<=COUNTIF(nom,$AU$2),INDEX(Expr1,SMALL(IF(nom=$AU$2,ROW(INDIRECT("1:"&ROWS(Expr1)))),ROWS('Charge atelier chaudronnerie'!$3:8))),"") ->  | AV9: =IF(ROWS('Charge atelier chaudronnerie'!$3:8)<=COUNTIF(nom,$AU$2),INDEX(Expr2,SMALL(IF(nom=$AU$2,ROW(INDIRECT("1:"&ROWS(Expr1)))),ROWS('Charge atelier chaudronnerie'!$3:8))),"") ->  | AW9: =IF(ROWS('Charge atelier chaudronnerie'!$3:8)<=COUNTIF(nom,$AU$2),INDEX(DatePriseOf,SMALL(IF(nom=$AU$2,ROW(INDIRECT("1:"&ROWS(Expr1)))),ROWS('Charge atelier chaudronnerie'!$3:8))),"") ->  | AY9: =IF(ROWS('Charge atelier chaudronnerie'!$3:8)<=COUNTIF(nom,$AY$2),INDEX(Expr1,SMALL(IF(nom=$AY$2,ROW(INDIRECT("1:"&ROWS(Expr1)))),ROWS('Charge atelier chaudronnerie'!$3:8))),"") ->  | AZ9: =IF(ROWS('Charge atelier chaudronnerie'!$3:8)<=COUNTIF(nom,$AY$2),INDEX(Expr2,SMALL(IF(nom=$AY$2,ROW(INDIRECT("1:"&ROWS(Expr1)))),ROWS('Charge atelier chaudronnerie'!$3:8))),"") ->  | BA9: =IF(ROWS('Charge atelier chaudronnerie'!$3:8)<=COUNTIF(nom,$AY$2),INDEX(DatePriseOf,SMALL(IF(nom=$AY$2,ROW(INDIRECT("1:"&ROWS(Expr1)))),ROWS('Charge atelier chaudronnerie'!$3:8))),"") ->  | BC9: =IF(ROWS('Charge atelier chaudronnerie'!$3:8)<=COUNTIF(nom,$BC$2),INDEX(Expr1,SMALL(IF(nom=$BC$2,ROW(INDIRECT("1:"&ROWS(Expr1)))),ROWS('Charge atelier chaudronnerie'!$3:8))),"") ->  | BD9: =IF(ROWS('Charge atelier chaudronnerie'!$3:8)<=COUNTIF(nom,$BC$2),INDEX(Expr2,SMALL(IF(nom=$BC$2,ROW(INDIRECT("1:"&ROWS(Expr1)))),ROWS('Charge atelier chaudronnerie'!$3:8))),"") ->  | BE9: =IF(ROWS('Charge atelier chaudronnerie'!$3:8)<=COUNTIF(nom,$BC$2),INDEX(DatePriseOf,SMALL(IF(nom=$BC$2,ROW(INDIRECT("1:"&ROWS(Expr1)))),ROWS('Charge atelier chaudronnerie'!$3:8))),"") ->  | BG9: =IF(ROWS('Charge atelier chaudronnerie'!$3:8)<=COUNTIF(nom,$BG$2),INDEX(Expr1,SMALL(IF(nom=$BG$2,ROW(INDIRECT("1:"&ROWS(Expr1)))),ROWS('Charge atelier chaudronnerie'!$3:8))),"") ->  | BH9: =IF(ROWS('Charge atelier chaudronnerie'!$3:8)<=COUNTIF(nom,$BG$2),INDEX(Expr2,SMALL(IF(nom=$BG$2,ROW(INDIRECT("1:"&ROWS(Expr1)))),ROWS('Charge atelier chaudronnerie'!$3:8))),"") ->  | BI9: =IF(ROWS('Charge atelier chaudronnerie'!$3:8)<=COUNTIF(nom,$BG$2),INDEX(DatePriseOf,SMALL(IF(nom=$BG$2,ROW(INDIRECT("1:"&ROWS(Expr1)))),ROWS('Charge atelier chaudronnerie'!$3:8))),"") ->  | BK9: =IF(ROWS('Charge atelier chaudronnerie'!$3:8)<=COUNTIF(nom,$BK$2),INDEX(Expr1,SMALL(IF(nom=$BK$2,ROW(INDIRECT("1:"&ROWS(Expr1)))),ROWS('Charge atelier chaudronnerie'!$3:8))),"") ->  | BL9: =IF(ROWS('Charge atelier chaudronnerie'!$3:8)<=COUNTIF(nom,$BK$2),INDEX(Expr2,SMALL(IF(nom=$BK$2,ROW(INDIRECT("1:"&ROWS(Expr1)))),ROWS('Charge atelier chaudronnerie'!$3:8))),"") ->  | BM9: =IF(ROWS('Charge atelier chaudronnerie'!$3:8)<=COUNTIF(nom,$BK$2),INDEX(DatePriseOf,SMALL(IF(nom=$BK$2,ROW(INDIRECT("1:"&ROWS(Expr1)))),ROWS('Charge atelier chaudronnerie'!$3:8))),"") ->  | BO9: =IF(ROWS('Charge atelier chaudronnerie'!$3:6)<=COUNTIF(nom,$BO$2),INDEX(Expr1,SMALL(IF(nom=$BO$2,ROW(INDIRECT("1:"&ROWS(Expr1)))),ROWS('Charge atelier chaudronnerie'!$3:6))),"") ->  | BP9: =IF(ROWS('Charge atelier chaudronnerie'!$3:6)<=COUNTIF(nom,$BO$2),INDEX(Expr2,SMALL(IF(nom=$BO$2,ROW(INDIRECT("1:"&ROWS(Expr1)))),ROWS('Charge atelier chaudronnerie'!$3:6))),"") ->  | BQ9: =IF(ROWS('Charge atelier chaudronnerie'!$3:6)<=COUNTIF(nom,$BO$2),INDEX(DatePriseOf,SMALL(IF(nom=$BO$2,ROW(INDIRECT("1:"&ROWS(Expr1)))),ROWS('Charge atelier chaudronnerie'!$3:6))),"") ->  | BS9: =IF(ROWS('Charge atelier chaudronnerie'!$3:6)<=COUNTIF(nom,$BS$2),INDEX(Expr1,SMALL(IF(nom=$BS$2,ROW(INDIRECT("1:"&ROWS(Expr1)))),ROWS('Charge atelier chaudronnerie'!$3:6))),"") ->  | BT9: =IF(ROWS('Charge atelier chaudronnerie'!$3:6)<=COUNTIF(nom,$BS$2),INDEX(Expr2,SMALL(IF(nom=$BS$2,ROW(INDIRECT("1:"&ROWS(Expr1)))),ROWS('Charge atelier chaudronnerie'!$3:6))),"") ->  | BU9: =IF(ROWS('Charge atelier chaudronnerie'!$3:6)<=COUNTIF(nom,$BS$2),INDEX(DatePriseOf,SMALL(IF(nom=$BS$2,ROW(INDIRECT("1:"&ROWS(Expr1)))),ROWS('Charge atelier chaudronnerie'!$3:6))),"") -> 
A10: ronan | B10: GUEGUENOU | C10: =IF(ROWS('Charge atelier chaudronnerie'!$3:9)<=COUNTIF(nom,$C$2),INDEX(Expr1,SMALL(IF(nom=$C$2,ROW(INDIRECT("1:"&ROWS(Expr1)))),ROWS('Charge atelier chaudronnerie'!$3:9))),"") ->  | D10: =IF(ROWS('Charge atelier chaudronnerie'!$3:9)<=COUNTIF(nom,$C$2),INDEX(Expr2,SMALL(IF(nom=$C$2,ROW(INDIRECT("1:"&ROWS(Expr1)))),ROWS('Charge atelier chaudronnerie'!$3:9))),"") ->  | E10: =IF(ROWS('Charge atelier chaudronnerie'!$3:9)<=COUNTIF(nom,$C$2),INDEX(DatePriseOf,SMALL(IF(nom=$C$2,ROW(INDIRECT("1:"&ROWS(Expr1)))),ROWS('Charge atelier chaudronnerie'!$3:9))),"") ->  | G10: =IF(ROWS('Charge atelier chaudronnerie'!$3:9)<=COUNTIF(nom,$G$2),INDEX(Expr1,SMALL(IF(nom=$G$2,ROW(INDIRECT("1:"&ROWS(Expr1)))),ROWS('Charge atelier chaudronnerie'!$3:9))),"") ->  | H10: =IF(ROWS('Charge atelier chaudronnerie'!$3:9)<=COUNTIF(nom,$G$2),INDEX(Expr2,SMALL(IF(nom=$G$2,ROW(INDIRECT("1:"&ROWS(Expr1)))),ROWS('Charge atelier chaudronnerie'!$3:9))),"") ->  | I10: =IF(ROWS('Charge atelier chaudronnerie'!$3:9)<=COUNTIF(nom,$G$2),INDEX(DatePriseOf,SMALL(IF(nom=$G$2,ROW(INDIRECT("1:"&ROWS(Expr1)))),ROWS('Charge atelier chaudronnerie'!$3:9))),"") ->  | K10: =IF(ROWS('Charge atelier chaudronnerie'!$3:9)<=COUNTIF(nom,$K$2),INDEX(Expr1,SMALL(IF(nom=$K$2,ROW(INDIRECT("1:"&ROWS(Expr1)))),ROWS('Charge atelier chaudronnerie'!$3:9))),"") ->  | L10: =IF(ROWS('Charge atelier chaudronnerie'!$3:9)<=COUNTIF(nom,$K$2),INDEX(Expr2,SMALL(IF(nom=$K$2,ROW(INDIRECT("1:"&ROWS(Expr1)))),ROWS('Charge atelier chaudronnerie'!$3:9))),"") ->  | M10: =IF(ROWS('Charge atelier chaudronnerie'!$3:9)<=COUNTIF(nom,$K$2),INDEX(DatePriseOf,SMALL(IF(nom=$K$2,ROW(INDIRECT("1:"&ROWS(Expr1)))),ROWS('Charge atelier chaudronnerie'!$3:9))),"") ->  | O10: =IF(ROWS('Charge atelier chaudronnerie'!$3:9)<=COUNTIF(nom,$O$2),INDEX(Expr1,SMALL(IF(nom=$O$2,ROW(INDIRECT("1:"&ROWS(Expr1)))),ROWS('Charge atelier chaudronnerie'!$3:9))),"") ->  | P10: =IF(ROWS('Charge atelier chaudronnerie'!$3:9)<=COUNTIF(nom,$O$2),INDEX(Expr2,SMALL(IF(nom=$O$2,ROW(INDIRECT("1:"&ROWS(Expr1)))),ROWS('Charge atelier chaudronnerie'!$3:9))),"") ->  | Q10: =IF(ROWS('Charge atelier chaudronnerie'!$3:9)<=COUNTIF(nom,$O$2),INDEX(DatePriseOf,SMALL(IF(nom=$O$2,ROW(INDIRECT("1:"&ROWS(Expr1)))),ROWS('Charge atelier chaudronnerie'!$3:9))),"") ->  | S10: =IF(ROWS('Charge atelier chaudronnerie'!$3:9)<=COUNTIF(nom,$S$2),INDEX(Expr1,SMALL(IF(nom=$S$2,ROW(INDIRECT("1:"&ROWS(Expr1)))),ROWS('Charge atelier chaudronnerie'!$3:9))),"") ->  | T10: =IF(ROWS('Charge atelier chaudronnerie'!$3:9)<=COUNTIF(nom,$S$2),INDEX(Expr2,SMALL(IF(nom=$S$2,ROW(INDIRECT("1:"&ROWS(Expr1)))),ROWS('Charge atelier chaudronnerie'!$3:9))),"") ->  | U10: =IF(ROWS('Charge atelier chaudronnerie'!$3:9)<=COUNTIF(nom,$S$2),INDEX(DatePriseOf,SMALL(IF(nom=$S$2,ROW(INDIRECT("1:"&ROWS(Expr1)))),ROWS('Charge atelier chaudronnerie'!$3:9))),"") ->  | W10: =IF(ROWS('Charge atelier chaudronnerie'!$3:9)<=COUNTIF(nom,$W$2),INDEX(Expr1,SMALL(IF(nom=$W$2,ROW(INDIRECT("1:"&ROWS(Expr1)))),ROWS('Charge atelier chaudronnerie'!$3:9))),"") ->  | X10: =IF(ROWS('Charge atelier chaudronnerie'!$3:9)<=COUNTIF(nom,$W$2),INDEX(Expr2,SMALL(IF(nom=$W$2,ROW(INDIRECT("1:"&ROWS(Expr1)))),ROWS('Charge atelier chaudronnerie'!$3:9))),"") ->  | Y10: =IF(ROWS('Charge atelier chaudronnerie'!$3:9)<=COUNTIF(nom,$W$2),INDEX(DatePriseOf,SMALL(IF(nom=$W$2,ROW(INDIRECT("1:"&ROWS(Expr1)))),ROWS('Charge atelier chaudronnerie'!$3:9))),"") ->  | AA10: =IF(ROWS('Charge atelier chaudronnerie'!$3:9)<=COUNTIF(nom,$AA$2),INDEX(Expr1,SMALL(IF(nom=$AA$2,ROW(INDIRECT("1:"&ROWS(Expr1)))),ROWS('Charge atelier chaudronnerie'!$3:9))),"") ->  | AB10: =IF(ROWS('Charge atelier chaudronnerie'!$3:9)<=COUNTIF(nom,$AA$2),INDEX(Expr2,SMALL(IF(nom=$AA$2,ROW(INDIRECT("1:"&ROWS(Expr1)))),ROWS('Charge atelier chaudronnerie'!$3:9))),"") ->  | AC10: =IF(ROWS('Charge atelier chaudronnerie'!$3:9)<=COUNTIF(nom,$AA$2),INDEX(DatePriseOf,SMALL(IF(nom=$AA$2,ROW(INDIRECT("1:"&ROWS(Expr1)))),ROWS('Charge atelier chaudronnerie'!$3:9))),"") ->  | AE10: =IF(ROWS('Charge atelier chaudronnerie'!$3:9)<=COUNTIF(nom,$AE$2),INDEX(Expr1,SMALL(IF(nom=$AE$2,ROW(INDIRECT("1:"&ROWS(Expr1)))),ROWS('Charge atelier chaudronnerie'!$3:9))),"") ->  | AF10: =IF(ROWS('Charge atelier chaudronnerie'!$3:9)<=COUNTIF(nom,$AE$2),INDEX(Expr2,SMALL(IF(nom=$AE$2,ROW(INDIRECT("1:"&ROWS(Expr1)))),ROWS('Charge atelier chaudronnerie'!$3:9))),"") ->  | AG10: =IF(ROWS('Charge atelier chaudronnerie'!$3:9)<=COUNTIF(nom,$AE$2),INDEX(DatePriseOf,SMALL(IF(nom=$AE$2,ROW(INDIRECT("1:"&ROWS(Expr1)))),ROWS('Charge atelier chaudronnerie'!$3:9))),"") ->  | AI10: =IF(ROWS('Charge atelier chaudronnerie'!$3:9)<=COUNTIF(nom,$AI$2),INDEX(Expr1,SMALL(IF(nom=$AI$2,ROW(INDIRECT("1:"&ROWS(Expr1)))),ROWS('Charge atelier chaudronnerie'!$3:9))),"") ->  | AJ10: =IF(ROWS('Charge atelier chaudronnerie'!$3:9)<=COUNTIF(nom,$AI$2),INDEX(Expr2,SMALL(IF(nom=$AI$2,ROW(INDIRECT("1:"&ROWS(Expr1)))),ROWS('Charge atelier chaudronnerie'!$3:9))),"") ->  | AK10: =IF(ROWS('Charge atelier chaudronnerie'!$3:9)<=COUNTIF(nom,$AI$2),INDEX(DatePriseOf,SMALL(IF(nom=$AI$2,ROW(INDIRECT("1:"&ROWS(Expr1)))),ROWS('Charge atelier chaudronnerie'!$3:9))),"") ->  | AM10: =IF(ROWS('Charge atelier chaudronnerie'!$3:9)<=COUNTIF(nom,$AM$2),INDEX(Expr1,SMALL(IF(nom=$AM$2,ROW(INDIRECT("1:"&ROWS(Expr1)))),ROWS('Charge atelier chaudronnerie'!$3:9))),"") ->  | AN10: =IF(ROWS('Charge atelier chaudronnerie'!$3:9)<=COUNTIF(nom,$AM$2),INDEX(Expr2,SMALL(IF(nom=$AM$2,ROW(INDIRECT("1:"&ROWS(Expr1)))),ROWS('Charge atelier chaudronnerie'!$3:9))),"") ->  | AO10: =IF(ROWS('Charge atelier chaudronnerie'!$3:9)<=COUNTIF(nom,$AM$2),INDEX(DatePriseOf,SMALL(IF(nom=$AM$2,ROW(INDIRECT("1:"&ROWS(Expr1)))),ROWS('Charge atelier chaudronnerie'!$3:9))),"") ->  | AQ10: =IF(ROWS('Charge atelier chaudronnerie'!$3:9)<=COUNTIF(nom,$AQ$2),INDEX(Expr1,SMALL(IF(nom=$AQ$2,ROW(INDIRECT("1:"&ROWS(Expr1)))),ROWS('Charge atelier chaudronnerie'!$3:9))),"") ->  | AR10: =IF(ROWS('Charge atelier chaudronnerie'!$3:9)<=COUNTIF(nom,$AQ$2),INDEX(Expr2,SMALL(IF(nom=$AQ$2,ROW(INDIRECT("1:"&ROWS(Expr1)))),ROWS('Charge atelier chaudronnerie'!$3:9))),"") ->  | AS10: =IF(ROWS('Charge atelier chaudronnerie'!$3:9)<=COUNTIF(nom,$AQ$2),INDEX(DatePriseOf,SMALL(IF(nom=$AQ$2,ROW(INDIRECT("1:"&ROWS(Expr1)))),ROWS('Charge atelier chaudronnerie'!$3:9))),"") ->  | AU10: =IF(ROWS('Charge atelier chaudronnerie'!$3:9)<=COUNTIF(nom,$AU$2),INDEX(Expr1,SMALL(IF(nom=$AU$2,ROW(INDIRECT("1:"&ROWS(Expr1)))),ROWS('Charge atelier chaudronnerie'!$3:9))),"") ->  | AV10: =IF(ROWS('Charge atelier chaudronnerie'!$3:9)<=COUNTIF(nom,$AU$2),INDEX(Expr2,SMALL(IF(nom=$AU$2,ROW(INDIRECT("1:"&ROWS(Expr1)))),ROWS('Charge atelier chaudronnerie'!$3:9))),"") ->  | AW10: =IF(ROWS('Charge atelier chaudronnerie'!$3:9)<=COUNTIF(nom,$AU$2),INDEX(DatePriseOf,SMALL(IF(nom=$AU$2,ROW(INDIRECT("1:"&ROWS(Expr1)))),ROWS('Charge atelier chaudronnerie'!$3:9))),"") ->  | AY10: =IF(ROWS('Charge atelier chaudronnerie'!$3:9)<=COUNTIF(nom,$AY$2),INDEX(Expr1,SMALL(IF(nom=$AY$2,ROW(INDIRECT("1:"&ROWS(Expr1)))),ROWS('Charge atelier chaudronnerie'!$3:9))),"") ->  | AZ10: =IF(ROWS('Charge atelier chaudronnerie'!$3:9)<=COUNTIF(nom,$AY$2),INDEX(Expr2,SMALL(IF(nom=$AY$2,ROW(INDIRECT("1:"&ROWS(Expr1)))),ROWS('Charge atelier chaudronnerie'!$3:9))),"") ->  | BA10: =IF(ROWS('Charge atelier chaudronnerie'!$3:9)<=COUNTIF(nom,$AY$2),INDEX(DatePriseOf,SMALL(IF(nom=$AY$2,ROW(INDIRECT("1:"&ROWS(Expr1)))),ROWS('Charge atelier chaudronnerie'!$3:9))),"") ->  | BC10: =IF(ROWS('Charge atelier chaudronnerie'!$3:9)<=COUNTIF(nom,$BC$2),INDEX(Expr1,SMALL(IF(nom=$BC$2,ROW(INDIRECT("1:"&ROWS(Expr1)))),ROWS('Charge atelier chaudronnerie'!$3:9))),"") ->  | BD10: =IF(ROWS('Charge atelier chaudronnerie'!$3:9)<=COUNTIF(nom,$BC$2),INDEX(Expr2,SMALL(IF(nom=$BC$2,ROW(INDIRECT("1:"&ROWS(Expr1)))),ROWS('Charge atelier chaudronnerie'!$3:9))),"") ->  | BE10: =IF(ROWS('Charge atelier chaudronnerie'!$3:9)<=COUNTIF(nom,$BC$2),INDEX(DatePriseOf,SMALL(IF(nom=$BC$2,ROW(INDIRECT("1:"&ROWS(Expr1)))),ROWS('Charge atelier chaudronnerie'!$3:9))),"") ->  | BG10: =IF(ROWS('Charge atelier chaudronnerie'!$3:9)<=COUNTIF(nom,$BG$2),INDEX(Expr1,SMALL(IF(nom=$BG$2,ROW(INDIRECT("1:"&ROWS(Expr1)))),ROWS('Charge atelier chaudronnerie'!$3:9))),"") ->  | BH10: =IF(ROWS('Charge atelier chaudronnerie'!$3:9)<=COUNTIF(nom,$BG$2),INDEX(Expr2,SMALL(IF(nom=$BG$2,ROW(INDIRECT("1:"&ROWS(Expr1)))),ROWS('Charge atelier chaudronnerie'!$3:9))),"") ->  | BI10: =IF(ROWS('Charge atelier chaudronnerie'!$3:9)<=COUNTIF(nom,$BG$2),INDEX(DatePriseOf,SMALL(IF(nom=$BG$2,ROW(INDIRECT("1:"&ROWS(Expr1)))),ROWS('Charge atelier chaudronnerie'!$3:9))),"") ->  | BK10: =IF(ROWS('Charge atelier chaudronnerie'!$3:9)<=COUNTIF(nom,$BK$2),INDEX(Expr1,SMALL(IF(nom=$BK$2,ROW(INDIRECT("1:"&ROWS(Expr1)))),ROWS('Charge atelier chaudronnerie'!$3:9))),"") ->  | BL10: =IF(ROWS('Charge atelier chaudronnerie'!$3:9)<=COUNTIF(nom,$BK$2),INDEX(Expr2,SMALL(IF(nom=$BK$2,ROW(INDIRECT("1:"&ROWS(Expr1)))),ROWS('Charge atelier chaudronnerie'!$3:9))),"") ->  | BM10: =IF(ROWS('Charge atelier chaudronnerie'!$3:9)<=COUNTIF(nom,$BK$2),INDEX(DatePriseOf,SMALL(IF(nom=$BK$2,ROW(INDIRECT("1:"&ROWS(Expr1)))),ROWS('Charge atelier chaudronnerie'!$3:9))),"") ->  | BO10: =IF(ROWS('Charge atelier chaudronnerie'!$3:7)<=COUNTIF(nom,$BO$2),INDEX(Expr1,SMALL(IF(nom=$BO$2,ROW(INDIRECT("1:"&ROWS(Expr1)))),ROWS('Charge atelier chaudronnerie'!$3:7))),"") ->  | BP10: =IF(ROWS('Charge atelier chaudronnerie'!$3:7)<=COUNTIF(nom,$BO$2),INDEX(Expr2,SMALL(IF(nom=$BO$2,ROW(INDIRECT("1:"&ROWS(Expr1)))),ROWS('Charge atelier chaudronnerie'!$3:7))),"") ->  | BQ10: =IF(ROWS('Charge atelier chaudronnerie'!$3:7)<=COUNTIF(nom,$BO$2),INDEX(DatePriseOf,SMALL(IF(nom=$BO$2,ROW(INDIRECT("1:"&ROWS(Expr1)))),ROWS('Charge atelier chaudronnerie'!$3:7))),"") ->  | BS10: =IF(ROWS('Charge atelier chaudronnerie'!$3:7)<=COUNTIF(nom,$BS$2),INDEX(Expr1,SMALL(IF(nom=$BS$2,ROW(INDIRECT("1:"&ROWS(Expr1)))),ROWS('Charge atelier chaudronnerie'!$3:7))),"") ->  | BT10: =IF(ROWS('Charge atelier chaudronnerie'!$3:7)<=COUNTIF(nom,$BS$2),INDEX(Expr2,SMALL(IF(nom=$BS$2,ROW(INDIRECT("1:"&ROWS(Expr1)))),ROWS('Charge atelier chaudronnerie'!$3:7))),"") ->  | BU10: =IF(ROWS('Charge atelier chaudronnerie'!$3:7)<=COUNTIF(nom,$BS$2),INDEX(DatePriseOf,SMALL(IF(nom=$BS$2,ROW(INDIRECT("1:"&ROWS(Expr1)))),ROWS('Charge atelier chaudronnerie'!$3:7))),"") -> 
A11: greg | B11: LARRAZET | C11: =IF(ROWS('Charge atelier chaudronnerie'!$3:10)<=COUNTIF(nom,$C$2),INDEX(Expr1,SMALL(IF(nom=$C$2,ROW(INDIRECT("1:"&ROWS(Expr1)))),ROWS('Charge atelier chaudronnerie'!$3:10))),"") ->  | D11: =IF(ROWS('Charge atelier chaudronnerie'!$3:10)<=COUNTIF(nom,$C$2),INDEX(Expr2,SMALL(IF(nom=$C$2,ROW(INDIRECT("1:"&ROWS(Expr1)))),ROWS('Charge atelier chaudronnerie'!$3:10))),"") ->  | E11: =IF(ROWS('Charge atelier chaudronnerie'!$3:10)<=COUNTIF(nom,$C$2),INDEX(DatePriseOf,SMALL(IF(nom=$C$2,ROW(INDIRECT("1:"&ROWS(Expr1)))),ROWS('Charge atelier chaudronnerie'!$3:10))),"") ->  | G11: =IF(ROWS('Charge atelier chaudronnerie'!$3:10)<=COUNTIF(nom,$G$2),INDEX(Expr1,SMALL(IF(nom=$G$2,ROW(INDIRECT("1:"&ROWS(Expr1)))),ROWS('Charge atelier chaudronnerie'!$3:10))),"") ->  | H11: =IF(ROWS('Charge atelier chaudronnerie'!$3:10)<=COUNTIF(nom,$G$2),INDEX(Expr2,SMALL(IF(nom=$G$2,ROW(INDIRECT("1:"&ROWS(Expr1)))),ROWS('Charge atelier chaudronnerie'!$3:10))),"") ->  | I11: =IF(ROWS('Charge atelier chaudronnerie'!$3:10)<=COUNTIF(nom,$G$2),INDEX(DatePriseOf,SMALL(IF(nom=$G$2,ROW(INDIRECT("1:"&ROWS(Expr1)))),ROWS('Charge atelier chaudronnerie'!$3:10))),"") ->  | K11: =IF(ROWS('Charge atelier chaudronnerie'!$3:10)<=COUNTIF(nom,$K$2),INDEX(Expr1,SMALL(IF(nom=$K$2,ROW(INDIRECT("1:"&ROWS(Expr1)))),ROWS('Charge atelier chaudronnerie'!$3:10))),"") ->  | L11: =IF(ROWS('Charge atelier chaudronnerie'!$3:10)<=COUNTIF(nom,$K$2),INDEX(Expr2,SMALL(IF(nom=$K$2,ROW(INDIRECT("1:"&ROWS(Expr1)))),ROWS('Charge atelier chaudronnerie'!$3:10))),"") ->  | M11: =IF(ROWS('Charge atelier chaudronnerie'!$3:10)<=COUNTIF(nom,$K$2),INDEX(DatePriseOf,SMALL(IF(nom=$K$2,ROW(INDIRECT("1:"&ROWS(Expr1)))),ROWS('Charge atelier chaudronnerie'!$3:10))),"") ->  | O11: =IF(ROWS('Charge atelier chaudronnerie'!$3:10)<=COUNTIF(nom,$O$2),INDEX(Expr1,SMALL(IF(nom=$O$2,ROW(INDIRECT("1:"&ROWS(Expr1)))),ROWS('Charge atelier chaudronnerie'!$3:10))),"") ->  | P11: =IF(ROWS('Charge atelier chaudronnerie'!$3:10)<=COUNTIF(nom,$O$2),INDEX(Expr2,SMALL(IF(nom=$O$2,ROW(INDIRECT("1:"&ROWS(Expr1)))),ROWS('Charge atelier chaudronnerie'!$3:10))),"") ->  | Q11: =IF(ROWS('Charge atelier chaudronnerie'!$3:10)<=COUNTIF(nom,$O$2),INDEX(DatePriseOf,SMALL(IF(nom=$O$2,ROW(INDIRECT("1:"&ROWS(Expr1)))),ROWS('Charge atelier chaudronnerie'!$3:10))),"") ->  | S11: =IF(ROWS('Charge atelier chaudronnerie'!$3:10)<=COUNTIF(nom,$S$2),INDEX(Expr1,SMALL(IF(nom=$S$2,ROW(INDIRECT("1:"&ROWS(Expr1)))),ROWS('Charge atelier chaudronnerie'!$3:10))),"") ->  | T11: =IF(ROWS('Charge atelier chaudronnerie'!$3:10)<=COUNTIF(nom,$S$2),INDEX(Expr2,SMALL(IF(nom=$S$2,ROW(INDIRECT("1:"&ROWS(Expr1)))),ROWS('Charge atelier chaudronnerie'!$3:10))),"") ->  | U11: =IF(ROWS('Charge atelier chaudronnerie'!$3:10)<=COUNTIF(nom,$S$2),INDEX(DatePriseOf,SMALL(IF(nom=$S$2,ROW(INDIRECT("1:"&ROWS(Expr1)))),ROWS('Charge atelier chaudronnerie'!$3:10))),"") ->  | W11: =IF(ROWS('Charge atelier chaudronnerie'!$3:10)<=COUNTIF(nom,$W$2),INDEX(Expr1,SMALL(IF(nom=$W$2,ROW(INDIRECT("1:"&ROWS(Expr1)))),ROWS('Charge atelier chaudronnerie'!$3:10))),"") ->  | X11: =IF(ROWS('Charge atelier chaudronnerie'!$3:10)<=COUNTIF(nom,$W$2),INDEX(Expr2,SMALL(IF(nom=$W$2,ROW(INDIRECT("1:"&ROWS(Expr1)))),ROWS('Charge atelier chaudronnerie'!$3:10))),"") ->  | Y11: =IF(ROWS('Charge atelier chaudronnerie'!$3:10)<=COUNTIF(nom,$W$2),INDEX(DatePriseOf,SMALL(IF(nom=$W$2,ROW(INDIRECT("1:"&ROWS(Expr1)))),ROWS('Charge atelier chaudronnerie'!$3:10))),"") ->  | AA11: =IF(ROWS('Charge atelier chaudronnerie'!$3:10)<=COUNTIF(nom,$AA$2),INDEX(Expr1,SMALL(IF(nom=$AA$2,ROW(INDIRECT("1:"&ROWS(Expr1)))),ROWS('Charge atelier chaudronnerie'!$3:10))),"") ->  | AB11: =IF(ROWS('Charge atelier chaudronnerie'!$3:10)<=COUNTIF(nom,$AA$2),INDEX(Expr2,SMALL(IF(nom=$AA$2,ROW(INDIRECT("1:"&ROWS(Expr1)))),ROWS('Charge atelier chaudronnerie'!$3:10))),"") ->  | AC11: =IF(ROWS('Charge atelier chaudronnerie'!$3:10)<=COUNTIF(nom,$AA$2),INDEX(DatePriseOf,SMALL(IF(nom=$AA$2,ROW(INDIRECT("1:"&ROWS(Expr1)))),ROWS('Charge atelier chaudronnerie'!$3:10))),"") ->  | AE11: =IF(ROWS('Charge atelier chaudronnerie'!$3:10)<=COUNTIF(nom,$AE$2),INDEX(Expr1,SMALL(IF(nom=$AE$2,ROW(INDIRECT("1:"&ROWS(Expr1)))),ROWS('Charge atelier chaudronnerie'!$3:10))),"") ->  | AF11: =IF(ROWS('Charge atelier chaudronnerie'!$3:10)<=COUNTIF(nom,$AE$2),INDEX(Expr2,SMALL(IF(nom=$AE$2,ROW(INDIRECT("1:"&ROWS(Expr1)))),ROWS('Charge atelier chaudronnerie'!$3:10))),"") ->  | AG11: =IF(ROWS('Charge atelier chaudronnerie'!$3:10)<=COUNTIF(nom,$AE$2),INDEX(DatePriseOf,SMALL(IF(nom=$AE$2,ROW(INDIRECT("1:"&ROWS(Expr1)))),ROWS('Charge atelier chaudronnerie'!$3:10))),"") ->  | AI11: =IF(ROWS('Charge atelier chaudronnerie'!$3:10)<=COUNTIF(nom,$AI$2),INDEX(Expr1,SMALL(IF(nom=$AI$2,ROW(INDIRECT("1:"&ROWS(Expr1)))),ROWS('Charge atelier chaudronnerie'!$3:10))),"") ->  | AJ11: =IF(ROWS('Charge atelier chaudronnerie'!$3:10)<=COUNTIF(nom,$AI$2),INDEX(Expr2,SMALL(IF(nom=$AI$2,ROW(INDIRECT("1:"&ROWS(Expr1)))),ROWS('Charge atelier chaudronnerie'!$3:10))),"") ->  | AK11: =IF(ROWS('Charge atelier chaudronnerie'!$3:10)<=COUNTIF(nom,$AI$2),INDEX(DatePriseOf,SMALL(IF(nom=$AI$2,ROW(INDIRECT("1:"&ROWS(Expr1)))),ROWS('Charge atelier chaudronnerie'!$3:10))),"") ->  | AM11: =IF(ROWS('Charge atelier chaudronnerie'!$3:10)<=COUNTIF(nom,$AM$2),INDEX(Expr1,SMALL(IF(nom=$AM$2,ROW(INDIRECT("1:"&ROWS(Expr1)))),ROWS('Charge atelier chaudronnerie'!$3:10))),"") ->  | AN11: =IF(ROWS('Charge atelier chaudronnerie'!$3:10)<=COUNTIF(nom,$AM$2),INDEX(Expr2,SMALL(IF(nom=$AM$2,ROW(INDIRECT("1:"&ROWS(Expr1)))),ROWS('Charge atelier chaudronnerie'!$3:10))),"") ->  | AO11: =IF(ROWS('Charge atelier chaudronnerie'!$3:10)<=COUNTIF(nom,$AM$2),INDEX(DatePriseOf,SMALL(IF(nom=$AM$2,ROW(INDIRECT("1:"&ROWS(Expr1)))),ROWS('Charge atelier chaudronnerie'!$3:10))),"") ->  | AQ11: =IF(ROWS('Charge atelier chaudronnerie'!$3:10)<=COUNTIF(nom,$AQ$2),INDEX(Expr1,SMALL(IF(nom=$AQ$2,ROW(INDIRECT("1:"&ROWS(Expr1)))),ROWS('Charge atelier chaudronnerie'!$3:10))),"") ->  | AR11: =IF(ROWS('Charge atelier chaudronnerie'!$3:10)<=COUNTIF(nom,$AQ$2),INDEX(Expr2,SMALL(IF(nom=$AQ$2,ROW(INDIRECT("1:"&ROWS(Expr1)))),ROWS('Charge atelier chaudronnerie'!$3:10))),"") ->  | AS11: =IF(ROWS('Charge atelier chaudronnerie'!$3:10)<=COUNTIF(nom,$AQ$2),INDEX(DatePriseOf,SMALL(IF(nom=$AQ$2,ROW(INDIRECT("1:"&ROWS(Expr1)))),ROWS('Charge atelier chaudronnerie'!$3:10))),"") ->  | AU11: =IF(ROWS('Charge atelier chaudronnerie'!$3:10)<=COUNTIF(nom,$AU$2),INDEX(Expr1,SMALL(IF(nom=$AU$2,ROW(INDIRECT("1:"&ROWS(Expr1)))),ROWS('Charge atelier chaudronnerie'!$3:10))),"") ->  | AV11: =IF(ROWS('Charge atelier chaudronnerie'!$3:10)<=COUNTIF(nom,$AU$2),INDEX(Expr2,SMALL(IF(nom=$AU$2,ROW(INDIRECT("1:"&ROWS(Expr1)))),ROWS('Charge atelier chaudronnerie'!$3:10))),"") ->  | AW11: =IF(ROWS('Charge atelier chaudronnerie'!$3:10)<=COUNTIF(nom,$AU$2),INDEX(DatePriseOf,SMALL(IF(nom=$AU$2,ROW(INDIRECT("1:"&ROWS(Expr1)))),ROWS('Charge atelier chaudronnerie'!$3:10))),"") ->  | AY11: =IF(ROWS('Charge atelier chaudronnerie'!$3:10)<=COUNTIF(nom,$AY$2),INDEX(Expr1,SMALL(IF(nom=$AY$2,ROW(INDIRECT("1:"&ROWS(Expr1)))),ROWS('Charge atelier chaudronnerie'!$3:10))),"") ->  | AZ11: =IF(ROWS('Charge atelier chaudronnerie'!$3:10)<=COUNTIF(nom,$AY$2),INDEX(Expr2,SMALL(IF(nom=$AY$2,ROW(INDIRECT("1:"&ROWS(Expr1)))),ROWS('Charge atelier chaudronnerie'!$3:10))),"") ->  | BA11: =IF(ROWS('Charge atelier chaudronnerie'!$3:10)<=COUNTIF(nom,$AY$2),INDEX(DatePriseOf,SMALL(IF(nom=$AY$2,ROW(INDIRECT("1:"&ROWS(Expr1)))),ROWS('Charge atelier chaudronnerie'!$3:10))),"") ->  | BC11: =IF(ROWS('Charge atelier chaudronnerie'!$3:10)<=COUNTIF(nom,$BC$2),INDEX(Expr1,SMALL(IF(nom=$BC$2,ROW(INDIRECT("1:"&ROWS(Expr1)))),ROWS('Charge atelier chaudronnerie'!$3:10))),"") ->  | BD11: =IF(ROWS('Charge atelier chaudronnerie'!$3:10)<=COUNTIF(nom,$BC$2),INDEX(Expr2,SMALL(IF(nom=$BC$2,ROW(INDIRECT("1:"&ROWS(Expr1)))),ROWS('Charge atelier chaudronnerie'!$3:10))),"") ->  | BE11: =IF(ROWS('Charge atelier chaudronnerie'!$3:10)<=COUNTIF(nom,$BC$2),INDEX(DatePriseOf,SMALL(IF(nom=$BC$2,ROW(INDIRECT("1:"&ROWS(Expr1)))),ROWS('Charge atelier chaudronnerie'!$3:10))),"") ->  | BG11: =IF(ROWS('Charge atelier chaudronnerie'!$3:10)<=COUNTIF(nom,$BG$2),INDEX(Expr1,SMALL(IF(nom=$BG$2,ROW(INDIRECT("1:"&ROWS(Expr1)))),ROWS('Charge atelier chaudronnerie'!$3:10))),"") ->  | BH11: =IF(ROWS('Charge atelier chaudronnerie'!$3:10)<=COUNTIF(nom,$BG$2),INDEX(Expr2,SMALL(IF(nom=$BG$2,ROW(INDIRECT("1:"&ROWS(Expr1)))),ROWS('Charge atelier chaudronnerie'!$3:10))),"") ->  | BI11: =IF(ROWS('Charge atelier chaudronnerie'!$3:10)<=COUNTIF(nom,$BG$2),INDEX(DatePriseOf,SMALL(IF(nom=$BG$2,ROW(INDIRECT("1:"&ROWS(Expr1)))),ROWS('Charge atelier chaudronnerie'!$3:10))),"") ->  | BK11: =IF(ROWS('Charge atelier chaudronnerie'!$3:10)<=COUNTIF(nom,$BK$2),INDEX(Expr1,SMALL(IF(nom=$BK$2,ROW(INDIRECT("1:"&ROWS(Expr1)))),ROWS('Charge atelier chaudronnerie'!$3:10))),"") ->  | BL11: =IF(ROWS('Charge atelier chaudronnerie'!$3:10)<=COUNTIF(nom,$BK$2),INDEX(Expr2,SMALL(IF(nom=$BK$2,ROW(INDIRECT("1:"&ROWS(Expr1)))),ROWS('Charge atelier chaudronnerie'!$3:10))),"") ->  | BM11: =IF(ROWS('Charge atelier chaudronnerie'!$3:10)<=COUNTIF(nom,$BK$2),INDEX(DatePriseOf,SMALL(IF(nom=$BK$2,ROW(INDIRECT("1:"&ROWS(Expr1)))),ROWS('Charge atelier chaudronnerie'!$3:10))),"") ->  | BO11: =IF(ROWS('Charge atelier chaudronnerie'!$3:8)<=COUNTIF(nom,$BO$2),INDEX(Expr1,SMALL(IF(nom=$BO$2,ROW(INDIRECT("1:"&ROWS(Expr1)))),ROWS('Charge atelier chaudronnerie'!$3:8))),"") ->  | BP11: =IF(ROWS('Charge atelier chaudronnerie'!$3:8)<=COUNTIF(nom,$BO$2),INDEX(Expr2,SMALL(IF(nom=$BO$2,ROW(INDIRECT("1:"&ROWS(Expr1)))),ROWS('Charge atelier chaudronnerie'!$3:8))),"") ->  | BQ11: =IF(ROWS('Charge atelier chaudronnerie'!$3:8)<=COUNTIF(nom,$BO$2),INDEX(DatePriseOf,SMALL(IF(nom=$BO$2,ROW(INDIRECT("1:"&ROWS(Expr1)))),ROWS('Charge atelier chaudronnerie'!$3:8))),"") ->  | BS11: =IF(ROWS('Charge atelier chaudronnerie'!$3:8)<=COUNTIF(nom,$BS$2),INDEX(Expr1,SMALL(IF(nom=$BS$2,ROW(INDIRECT("1:"&ROWS(Expr1)))),ROWS('Charge atelier chaudronnerie'!$3:8))),"") ->  | BT11: =IF(ROWS('Charge atelier chaudronnerie'!$3:8)<=COUNTIF(nom,$BS$2),INDEX(Expr2,SMALL(IF(nom=$BS$2,ROW(INDIRECT("1:"&ROWS(Expr1)))),ROWS('Charge atelier chaudronnerie'!$3:8))),"") ->  | BU11: =IF(ROWS('Charge atelier chaudronnerie'!$3:8)<=COUNTIF(nom,$BS$2),INDEX(DatePriseOf,SMALL(IF(nom=$BS$2,ROW(INDIRECT("1:"&ROWS(Expr1)))),ROWS('Charge atelier chaudronnerie'!$3:8))),"") -> 
A12: max | B12: PEDRERO | C12: =IF(ROWS('Charge atelier chaudronnerie'!$3:11)<=COUNTIF(nom,$C$2),INDEX(Expr1,SMALL(IF(nom=$C$2,ROW(INDIRECT("1:"&ROWS(Expr1)))),ROWS('Charge atelier chaudronnerie'!$3:11))),"") ->  | D12: =IF(ROWS('Charge atelier chaudronnerie'!$3:11)<=COUNTIF(nom,$C$2),INDEX(Expr2,SMALL(IF(nom=$C$2,ROW(INDIRECT("1:"&ROWS(Expr1)))),ROWS('Charge atelier chaudronnerie'!$3:11))),"") ->  | E12: =IF(ROWS('Charge atelier chaudronnerie'!$3:11)<=COUNTIF(nom,$C$2),INDEX(DatePriseOf,SMALL(IF(nom=$C$2,ROW(INDIRECT("1:"&ROWS(Expr1)))),ROWS('Charge atelier chaudronnerie'!$3:11))),"") ->  | G12: =IF(ROWS('Charge atelier chaudronnerie'!$3:11)<=COUNTIF(nom,$G$2),INDEX(Expr1,SMALL(IF(nom=$G$2,ROW(INDIRECT("1:"&ROWS(Expr1)))),ROWS('Charge atelier chaudronnerie'!$3:11))),"") ->  | H12: =IF(ROWS('Charge atelier chaudronnerie'!$3:11)<=COUNTIF(nom,$G$2),INDEX(Expr2,SMALL(IF(nom=$G$2,ROW(INDIRECT("1:"&ROWS(Expr1)))),ROWS('Charge atelier chaudronnerie'!$3:11))),"") ->  | I12: =IF(ROWS('Charge atelier chaudronnerie'!$3:11)<=COUNTIF(nom,$G$2),INDEX(DatePriseOf,SMALL(IF(nom=$G$2,ROW(INDIRECT("1:"&ROWS(Expr1)))),ROWS('Charge atelier chaudronnerie'!$3:11))),"") ->  | K12: =IF(ROWS('Charge atelier chaudronnerie'!$3:11)<=COUNTIF(nom,$K$2),INDEX(Expr1,SMALL(IF(nom=$K$2,ROW(INDIRECT("1:"&ROWS(Expr1)))),ROWS('Charge atelier chaudronnerie'!$3:11))),"") ->  | L12: =IF(ROWS('Charge atelier chaudronnerie'!$3:11)<=COUNTIF(nom,$K$2),INDEX(Expr2,SMALL(IF(nom=$K$2,ROW(INDIRECT("1:"&ROWS(Expr1)))),ROWS('Charge atelier chaudronnerie'!$3:11))),"") ->  | M12: =IF(ROWS('Charge atelier chaudronnerie'!$3:11)<=COUNTIF(nom,$K$2),INDEX(DatePriseOf,SMALL(IF(nom=$K$2,ROW(INDIRECT("1:"&ROWS(Expr1)))),ROWS('Charge atelier chaudronnerie'!$3:11))),"") ->  | O12: =IF(ROWS('Charge atelier chaudronnerie'!$3:11)<=COUNTIF(nom,$O$2),INDEX(Expr1,SMALL(IF(nom=$O$2,ROW(INDIRECT("1:"&ROWS(Expr1)))),ROWS('Charge atelier chaudronnerie'!$3:11))),"") ->  | P12: =IF(ROWS('Charge atelier chaudronnerie'!$3:11)<=COUNTIF(nom,$O$2),INDEX(Expr2,SMALL(IF(nom=$O$2,ROW(INDIRECT("1:"&ROWS(Expr1)))),ROWS('Charge atelier chaudronnerie'!$3:11))),"") ->  | Q12: =IF(ROWS('Charge atelier chaudronnerie'!$3:11)<=COUNTIF(nom,$O$2),INDEX(DatePriseOf,SMALL(IF(nom=$O$2,ROW(INDIRECT("1:"&ROWS(Expr1)))),ROWS('Charge atelier chaudronnerie'!$3:11))),"") ->  | S12: =IF(ROWS('Charge atelier chaudronnerie'!$3:11)<=COUNTIF(nom,$S$2),INDEX(Expr1,SMALL(IF(nom=$S$2,ROW(INDIRECT("1:"&ROWS(Expr1)))),ROWS('Charge atelier chaudronnerie'!$3:11))),"") ->  | T12: =IF(ROWS('Charge atelier chaudronnerie'!$3:11)<=COUNTIF(nom,$S$2),INDEX(Expr2,SMALL(IF(nom=$S$2,ROW(INDIRECT("1:"&ROWS(Expr1)))),ROWS('Charge atelier chaudronnerie'!$3:11))),"") ->  | U12: =IF(ROWS('Charge atelier chaudronnerie'!$3:11)<=COUNTIF(nom,$S$2),INDEX(DatePriseOf,SMALL(IF(nom=$S$2,ROW(INDIRECT("1:"&ROWS(Expr1)))),ROWS('Charge atelier chaudronnerie'!$3:11))),"") ->  | W12: =IF(ROWS('Charge atelier chaudronnerie'!$3:11)<=COUNTIF(nom,$W$2),INDEX(Expr1,SMALL(IF(nom=$W$2,ROW(INDIRECT("1:"&ROWS(Expr1)))),ROWS('Charge atelier chaudronnerie'!$3:11))),"") ->  | X12: =IF(ROWS('Charge atelier chaudronnerie'!$3:11)<=COUNTIF(nom,$W$2),INDEX(Expr2,SMALL(IF(nom=$W$2,ROW(INDIRECT("1:"&ROWS(Expr1)))),ROWS('Charge atelier chaudronnerie'!$3:11))),"") ->  | Y12: =IF(ROWS('Charge atelier chaudronnerie'!$3:11)<=COUNTIF(nom,$W$2),INDEX(DatePriseOf,SMALL(IF(nom=$W$2,ROW(INDIRECT("1:"&ROWS(Expr1)))),ROWS('Charge atelier chaudronnerie'!$3:11))),"") ->  | AA12: =IF(ROWS('Charge atelier chaudronnerie'!$3:11)<=COUNTIF(nom,$AA$2),INDEX(Expr1,SMALL(IF(nom=$AA$2,ROW(INDIRECT("1:"&ROWS(Expr1)))),ROWS('Charge atelier chaudronnerie'!$3:11))),"") ->  | AB12: =IF(ROWS('Charge atelier chaudronnerie'!$3:11)<=COUNTIF(nom,$AA$2),INDEX(Expr2,SMALL(IF(nom=$AA$2,ROW(INDIRECT("1:"&ROWS(Expr1)))),ROWS('Charge atelier chaudronnerie'!$3:11))),"") ->  | AC12: =IF(ROWS('Charge atelier chaudronnerie'!$3:11)<=COUNTIF(nom,$AA$2),INDEX(DatePriseOf,SMALL(IF(nom=$AA$2,ROW(INDIRECT("1:"&ROWS(Expr1)))),ROWS('Charge atelier chaudronnerie'!$3:11))),"") ->  | AE12: =IF(ROWS('Charge atelier chaudronnerie'!$3:11)<=COUNTIF(nom,$AE$2),INDEX(Expr1,SMALL(IF(nom=$AE$2,ROW(INDIRECT("1:"&ROWS(Expr1)))),ROWS('Charge atelier chaudronnerie'!$3:11))),"") ->  | AF12: =IF(ROWS('Charge atelier chaudronnerie'!$3:11)<=COUNTIF(nom,$AE$2),INDEX(Expr2,SMALL(IF(nom=$AE$2,ROW(INDIRECT("1:"&ROWS(Expr1)))),ROWS('Charge atelier chaudronnerie'!$3:11))),"") ->  | AG12: =IF(ROWS('Charge atelier chaudronnerie'!$3:11)<=COUNTIF(nom,$AE$2),INDEX(DatePriseOf,SMALL(IF(nom=$AE$2,ROW(INDIRECT("1:"&ROWS(Expr1)))),ROWS('Charge atelier chaudronnerie'!$3:11))),"") ->  | AI12: =IF(ROWS('Charge atelier chaudronnerie'!$3:11)<=COUNTIF(nom,$AI$2),INDEX(Expr1,SMALL(IF(nom=$AI$2,ROW(INDIRECT("1:"&ROWS(Expr1)))),ROWS('Charge atelier chaudronnerie'!$3:11))),"") ->  | AJ12: =IF(ROWS('Charge atelier chaudronnerie'!$3:11)<=COUNTIF(nom,$AI$2),INDEX(Expr2,SMALL(IF(nom=$AI$2,ROW(INDIRECT("1:"&ROWS(Expr1)))),ROWS('Charge atelier chaudronnerie'!$3:11))),"") ->  | AK12: =IF(ROWS('Charge atelier chaudronnerie'!$3:11)<=COUNTIF(nom,$AI$2),INDEX(DatePriseOf,SMALL(IF(nom=$AI$2,ROW(INDIRECT("1:"&ROWS(Expr1)))),ROWS('Charge atelier chaudronnerie'!$3:11))),"") ->  | AM12: =IF(ROWS('Charge atelier chaudronnerie'!$3:11)<=COUNTIF(nom,$AM$2),INDEX(Expr1,SMALL(IF(nom=$AM$2,ROW(INDIRECT("1:"&ROWS(Expr1)))),ROWS('Charge atelier chaudronnerie'!$3:11))),"") ->  | AN12: =IF(ROWS('Charge atelier chaudronnerie'!$3:11)<=COUNTIF(nom,$AM$2),INDEX(Expr2,SMALL(IF(nom=$AM$2,ROW(INDIRECT("1:"&ROWS(Expr1)))),ROWS('Charge atelier chaudronnerie'!$3:11))),"") ->  | AO12: =IF(ROWS('Charge atelier chaudronnerie'!$3:11)<=COUNTIF(nom,$AM$2),INDEX(DatePriseOf,SMALL(IF(nom=$AM$2,ROW(INDIRECT("1:"&ROWS(Expr1)))),ROWS('Charge atelier chaudronnerie'!$3:11))),"") ->  | AQ12: =IF(ROWS('Charge atelier chaudronnerie'!$3:11)<=COUNTIF(nom,$AQ$2),INDEX(Expr1,SMALL(IF(nom=$AQ$2,ROW(INDIRECT("1:"&ROWS(Expr1)))),ROWS('Charge atelier chaudronnerie'!$3:11))),"") ->  | AR12: =IF(ROWS('Charge atelier chaudronnerie'!$3:11)<=COUNTIF(nom,$AQ$2),INDEX(Expr2,SMALL(IF(nom=$AQ$2,ROW(INDIRECT("1:"&ROWS(Expr1)))),ROWS('Charge atelier chaudronnerie'!$3:11))),"") ->  | AS12: =IF(ROWS('Charge atelier chaudronnerie'!$3:11)<=COUNTIF(nom,$AQ$2),INDEX(DatePriseOf,SMALL(IF(nom=$AQ$2,ROW(INDIRECT("1:"&ROWS(Expr1)))),ROWS('Charge atelier chaudronnerie'!$3:11))),"") ->  | AU12: =IF(ROWS('Charge atelier chaudronnerie'!$3:11)<=COUNTIF(nom,$AU$2),INDEX(Expr1,SMALL(IF(nom=$AU$2,ROW(INDIRECT("1:"&ROWS(Expr1)))),ROWS('Charge atelier chaudronnerie'!$3:11))),"") ->  | AV12: =IF(ROWS('Charge atelier chaudronnerie'!$3:11)<=COUNTIF(nom,$AU$2),INDEX(Expr2,SMALL(IF(nom=$AU$2,ROW(INDIRECT("1:"&ROWS(Expr1)))),ROWS('Charge atelier chaudronnerie'!$3:11))),"") ->  | AW12: =IF(ROWS('Charge atelier chaudronnerie'!$3:11)<=COUNTIF(nom,$AU$2),INDEX(DatePriseOf,SMALL(IF(nom=$AU$2,ROW(INDIRECT("1:"&ROWS(Expr1)))),ROWS('Charge atelier chaudronnerie'!$3:11))),"") ->  | AY12: =IF(ROWS('Charge atelier chaudronnerie'!$3:11)<=COUNTIF(nom,$AY$2),INDEX(Expr1,SMALL(IF(nom=$AY$2,ROW(INDIRECT("1:"&ROWS(Expr1)))),ROWS('Charge atelier chaudronnerie'!$3:11))),"") ->  | AZ12: =IF(ROWS('Charge atelier chaudronnerie'!$3:11)<=COUNTIF(nom,$AY$2),INDEX(Expr2,SMALL(IF(nom=$AY$2,ROW(INDIRECT("1:"&ROWS(Expr1)))),ROWS('Charge atelier chaudronnerie'!$3:11))),"") ->  | BA12: =IF(ROWS('Charge atelier chaudronnerie'!$3:11)<=COUNTIF(nom,$AY$2),INDEX(DatePriseOf,SMALL(IF(nom=$AY$2,ROW(INDIRECT("1:"&ROWS(Expr1)))),ROWS('Charge atelier chaudronnerie'!$3:11))),"") ->  | BC12: =IF(ROWS('Charge atelier chaudronnerie'!$3:11)<=COUNTIF(nom,$BC$2),INDEX(Expr1,SMALL(IF(nom=$BC$2,ROW(INDIRECT("1:"&ROWS(Expr1)))),ROWS('Charge atelier chaudronnerie'!$3:11))),"") ->  | BD12: =IF(ROWS('Charge atelier chaudronnerie'!$3:11)<=COUNTIF(nom,$BC$2),INDEX(Expr2,SMALL(IF(nom=$BC$2,ROW(INDIRECT("1:"&ROWS(Expr1)))),ROWS('Charge atelier chaudronnerie'!$3:11))),"") ->  | BE12: =IF(ROWS('Charge atelier chaudronnerie'!$3:11)<=COUNTIF(nom,$BC$2),INDEX(DatePriseOf,SMALL(IF(nom=$BC$2,ROW(INDIRECT("1:"&ROWS(Expr1)))),ROWS('Charge atelier chaudronnerie'!$3:11))),"") ->  | BG12: =IF(ROWS('Charge atelier chaudronnerie'!$3:11)<=COUNTIF(nom,$BG$2),INDEX(Expr1,SMALL(IF(nom=$BG$2,ROW(INDIRECT("1:"&ROWS(Expr1)))),ROWS('Charge atelier chaudronnerie'!$3:11))),"") ->  | BH12: =IF(ROWS('Charge atelier chaudronnerie'!$3:11)<=COUNTIF(nom,$BG$2),INDEX(Expr2,SMALL(IF(nom=$BG$2,ROW(INDIRECT("1:"&ROWS(Expr1)))),ROWS('Charge atelier chaudronnerie'!$3:11))),"") ->  | BI12: =IF(ROWS('Charge atelier chaudronnerie'!$3:11)<=COUNTIF(nom,$BG$2),INDEX(DatePriseOf,SMALL(IF(nom=$BG$2,ROW(INDIRECT("1:"&ROWS(Expr1)))),ROWS('Charge atelier chaudronnerie'!$3:11))),"") ->  | BK12: =IF(ROWS('Charge atelier chaudronnerie'!$3:11)<=COUNTIF(nom,$BK$2),INDEX(Expr1,SMALL(IF(nom=$BK$2,ROW(INDIRECT("1:"&ROWS(Expr1)))),ROWS('Charge atelier chaudronnerie'!$3:11))),"") ->  | BL12: =IF(ROWS('Charge atelier chaudronnerie'!$3:11)<=COUNTIF(nom,$BK$2),INDEX(Expr2,SMALL(IF(nom=$BK$2,ROW(INDIRECT("1:"&ROWS(Expr1)))),ROWS('Charge atelier chaudronnerie'!$3:11))),"") ->  | BM12: =IF(ROWS('Charge atelier chaudronnerie'!$3:11)<=COUNTIF(nom,$BK$2),INDEX(DatePriseOf,SMALL(IF(nom=$BK$2,ROW(INDIRECT("1:"&ROWS(Expr1)))),ROWS('Charge atelier chaudronnerie'!$3:11))),"") ->  | BO12: =IF(ROWS('Charge atelier chaudronnerie'!$3:9)<=COUNTIF(nom,$BO$2),INDEX(Expr1,SMALL(IF(nom=$BO$2,ROW(INDIRECT("1:"&ROWS(Expr1)))),ROWS('Charge atelier chaudronnerie'!$3:9))),"") ->  | BP12: =IF(ROWS('Charge atelier chaudronnerie'!$3:9)<=COUNTIF(nom,$BO$2),INDEX(Expr2,SMALL(IF(nom=$BO$2,ROW(INDIRECT("1:"&ROWS(Expr1)))),ROWS('Charge atelier chaudronnerie'!$3:9))),"") ->  | BQ12: =IF(ROWS('Charge atelier chaudronnerie'!$3:9)<=COUNTIF(nom,$BO$2),INDEX(DatePriseOf,SMALL(IF(nom=$BO$2,ROW(INDIRECT("1:"&ROWS(Expr1)))),ROWS('Charge atelier chaudronnerie'!$3:9))),"") ->  | BS12: =IF(ROWS('Charge atelier chaudronnerie'!$3:9)<=COUNTIF(nom,$BS$2),INDEX(Expr1,SMALL(IF(nom=$BS$2,ROW(INDIRECT("1:"&ROWS(Expr1)))),ROWS('Charge atelier chaudronnerie'!$3:9))),"") ->  | BT12: =IF(ROWS('Charge atelier chaudronnerie'!$3:9)<=COUNTIF(nom,$BS$2),INDEX(Expr2,SMALL(IF(nom=$BS$2,ROW(INDIRECT("1:"&ROWS(Expr1)))),ROWS('Charge atelier chaudronnerie'!$3:9))),"") ->  | BU12: =IF(ROWS('Charge atelier chaudronnerie'!$3:9)<=COUNTIF(nom,$BS$2),INDEX(DatePriseOf,SMALL(IF(nom=$BS$2,ROW(INDIRECT("1:"&ROWS(Expr1)))),ROWS('Charge atelier chaudronnerie'!$3:9))),"") -> 
A13: sabine | B13: RAMAZOTI | C13: =IF(ROWS('Charge atelier chaudronnerie'!$3:12)<=COUNTIF(nom,$C$2),INDEX(Expr1,SMALL(IF(nom=$C$2,ROW(INDIRECT("1:"&ROWS(Expr1)))),ROWS('Charge atelier chaudronnerie'!$3:12))),"") ->  | D13: =IF(ROWS('Charge atelier chaudronnerie'!$3:12)<=COUNTIF(nom,$C$2),INDEX(Expr2,SMALL(IF(nom=$C$2,ROW(INDIRECT("1:"&ROWS(Expr1)))),ROWS('Charge atelier chaudronnerie'!$3:12))),"") ->  | E13: =IF(ROWS('Charge atelier chaudronnerie'!$3:12)<=COUNTIF(nom,$C$2),INDEX(DatePriseOf,SMALL(IF(nom=$C$2,ROW(INDIRECT("1:"&ROWS(Expr1)))),ROWS('Charge atelier chaudronnerie'!$3:12))),"") ->  | G13: =IF(ROWS('Charge atelier chaudronnerie'!$3:12)<=COUNTIF(nom,$G$2),INDEX(Expr1,SMALL(IF(nom=$G$2,ROW(INDIRECT("1:"&ROWS(Expr1)))),ROWS('Charge atelier chaudronnerie'!$3:12))),"") ->  | H13: =IF(ROWS('Charge atelier chaudronnerie'!$3:12)<=COUNTIF(nom,$G$2),INDEX(Expr2,SMALL(IF(nom=$G$2,ROW(INDIRECT("1:"&ROWS(Expr1)))),ROWS('Charge atelier chaudronnerie'!$3:12))),"") ->  | I13: =IF(ROWS('Charge atelier chaudronnerie'!$3:12)<=COUNTIF(nom,$G$2),INDEX(DatePriseOf,SMALL(IF(nom=$G$2,ROW(INDIRECT("1:"&ROWS(Expr1)))),ROWS('Charge atelier chaudronnerie'!$3:12))),"") ->  | K13: =IF(ROWS('Charge atelier chaudronnerie'!$3:12)<=COUNTIF(nom,$K$2),INDEX(Expr1,SMALL(IF(nom=$K$2,ROW(INDIRECT("1:"&ROWS(Expr1)))),ROWS('Charge atelier chaudronnerie'!$3:12))),"") ->  | L13: =IF(ROWS('Charge atelier chaudronnerie'!$3:12)<=COUNTIF(nom,$K$2),INDEX(Expr2,SMALL(IF(nom=$K$2,ROW(INDIRECT("1:"&ROWS(Expr1)))),ROWS('Charge atelier chaudronnerie'!$3:12))),"") ->  | M13: =IF(ROWS('Charge atelier chaudronnerie'!$3:12)<=COUNTIF(nom,$K$2),INDEX(DatePriseOf,SMALL(IF(nom=$K$2,ROW(INDIRECT("1:"&ROWS(Expr1)))),ROWS('Charge atelier chaudronnerie'!$3:12))),"") ->  | O13: =IF(ROWS('Charge atelier chaudronnerie'!$3:12)<=COUNTIF(nom,$O$2),INDEX(Expr1,SMALL(IF(nom=$O$2,ROW(INDIRECT("1:"&ROWS(Expr1)))),ROWS('Charge atelier chaudronnerie'!$3:12))),"") ->  | P13: =IF(ROWS('Charge atelier chaudronnerie'!$3:12)<=COUNTIF(nom,$O$2),INDEX(Expr2,SMALL(IF(nom=$O$2,ROW(INDIRECT("1:"&ROWS(Expr1)))),ROWS('Charge atelier chaudronnerie'!$3:12))),"") ->  | Q13: =IF(ROWS('Charge atelier chaudronnerie'!$3:12)<=COUNTIF(nom,$O$2),INDEX(DatePriseOf,SMALL(IF(nom=$O$2,ROW(INDIRECT("1:"&ROWS(Expr1)))),ROWS('Charge atelier chaudronnerie'!$3:12))),"") ->  | S13: =IF(ROWS('Charge atelier chaudronnerie'!$3:12)<=COUNTIF(nom,$S$2),INDEX(Expr1,SMALL(IF(nom=$S$2,ROW(INDIRECT("1:"&ROWS(Expr1)))),ROWS('Charge atelier chaudronnerie'!$3:12))),"") ->  | T13: =IF(ROWS('Charge atelier chaudronnerie'!$3:12)<=COUNTIF(nom,$S$2),INDEX(Expr2,SMALL(IF(nom=$S$2,ROW(INDIRECT("1:"&ROWS(Expr1)))),ROWS('Charge atelier chaudronnerie'!$3:12))),"") ->  | U13: =IF(ROWS('Charge atelier chaudronnerie'!$3:12)<=COUNTIF(nom,$S$2),INDEX(DatePriseOf,SMALL(IF(nom=$S$2,ROW(INDIRECT("1:"&ROWS(Expr1)))),ROWS('Charge atelier chaudronnerie'!$3:12))),"") ->  | W13: =IF(ROWS('Charge atelier chaudronnerie'!$3:12)<=COUNTIF(nom,$W$2),INDEX(Expr1,SMALL(IF(nom=$W$2,ROW(INDIRECT("1:"&ROWS(Expr1)))),ROWS('Charge atelier chaudronnerie'!$3:12))),"") ->  | X13: =IF(ROWS('Charge atelier chaudronnerie'!$3:12)<=COUNTIF(nom,$W$2),INDEX(Expr2,SMALL(IF(nom=$W$2,ROW(INDIRECT("1:"&ROWS(Expr1)))),ROWS('Charge atelier chaudronnerie'!$3:12))),"") ->  | Y13: =IF(ROWS('Charge atelier chaudronnerie'!$3:12)<=COUNTIF(nom,$W$2),INDEX(DatePriseOf,SMALL(IF(nom=$W$2,ROW(INDIRECT("1:"&ROWS(Expr1)))),ROWS('Charge atelier chaudronnerie'!$3:12))),"") ->  | AA13: =IF(ROWS('Charge atelier chaudronnerie'!$3:12)<=COUNTIF(nom,$AA$2),INDEX(Expr1,SMALL(IF(nom=$AA$2,ROW(INDIRECT("1:"&ROWS(Expr1)))),ROWS('Charge atelier chaudronnerie'!$3:12))),"") ->  | AB13: =IF(ROWS('Charge atelier chaudronnerie'!$3:12)<=COUNTIF(nom,$AA$2),INDEX(Expr2,SMALL(IF(nom=$AA$2,ROW(INDIRECT("1:"&ROWS(Expr1)))),ROWS('Charge atelier chaudronnerie'!$3:12))),"") ->  | AC13: =IF(ROWS('Charge atelier chaudronnerie'!$3:12)<=COUNTIF(nom,$AA$2),INDEX(DatePriseOf,SMALL(IF(nom=$AA$2,ROW(INDIRECT("1:"&ROWS(Expr1)))),ROWS('Charge atelier chaudronnerie'!$3:12))),"") ->  | AE13: =IF(ROWS('Charge atelier chaudronnerie'!$3:12)<=COUNTIF(nom,$AE$2),INDEX(Expr1,SMALL(IF(nom=$AE$2,ROW(INDIRECT("1:"&ROWS(Expr1)))),ROWS('Charge atelier chaudronnerie'!$3:12))),"") ->  | AF13: =IF(ROWS('Charge atelier chaudronnerie'!$3:12)<=COUNTIF(nom,$AE$2),INDEX(Expr2,SMALL(IF(nom=$AE$2,ROW(INDIRECT("1:"&ROWS(Expr1)))),ROWS('Charge atelier chaudronnerie'!$3:12))),"") ->  | AG13: =IF(ROWS('Charge atelier chaudronnerie'!$3:12)<=COUNTIF(nom,$AE$2),INDEX(DatePriseOf,SMALL(IF(nom=$AE$2,ROW(INDIRECT("1:"&ROWS(Expr1)))),ROWS('Charge atelier chaudronnerie'!$3:12))),"") ->  | AI13: =IF(ROWS('Charge atelier chaudronnerie'!$3:12)<=COUNTIF(nom,$AI$2),INDEX(Expr1,SMALL(IF(nom=$AI$2,ROW(INDIRECT("1:"&ROWS(Expr1)))),ROWS('Charge atelier chaudronnerie'!$3:12))),"") ->  | AJ13: =IF(ROWS('Charge atelier chaudronnerie'!$3:12)<=COUNTIF(nom,$AI$2),INDEX(Expr2,SMALL(IF(nom=$AI$2,ROW(INDIRECT("1:"&ROWS(Expr1)))),ROWS('Charge atelier chaudronnerie'!$3:12))),"") ->  | AK13: =IF(ROWS('Charge atelier chaudronnerie'!$3:12)<=COUNTIF(nom,$AI$2),INDEX(DatePriseOf,SMALL(IF(nom=$AI$2,ROW(INDIRECT("1:"&ROWS(Expr1)))),ROWS('Charge atelier chaudronnerie'!$3:12))),"") ->  | AM13: =IF(ROWS('Charge atelier chaudronnerie'!$3:12)<=COUNTIF(nom,$AM$2),INDEX(Expr1,SMALL(IF(nom=$AM$2,ROW(INDIRECT("1:"&ROWS(Expr1)))),ROWS('Charge atelier chaudronnerie'!$3:12))),"") ->  | AN13: =IF(ROWS('Charge atelier chaudronnerie'!$3:12)<=COUNTIF(nom,$AM$2),INDEX(Expr2,SMALL(IF(nom=$AM$2,ROW(INDIRECT("1:"&ROWS(Expr1)))),ROWS('Charge atelier chaudronnerie'!$3:12))),"") ->  | AO13: =IF(ROWS('Charge atelier chaudronnerie'!$3:12)<=COUNTIF(nom,$AM$2),INDEX(DatePriseOf,SMALL(IF(nom=$AM$2,ROW(INDIRECT("1:"&ROWS(Expr1)))),ROWS('Charge atelier chaudronnerie'!$3:12))),"") ->  | AQ13: =IF(ROWS('Charge atelier chaudronnerie'!$3:12)<=COUNTIF(nom,$AQ$2),INDEX(Expr1,SMALL(IF(nom=$AQ$2,ROW(INDIRECT("1:"&ROWS(Expr1)))),ROWS('Charge atelier chaudronnerie'!$3:12))),"") ->  | AR13: =IF(ROWS('Charge atelier chaudronnerie'!$3:12)<=COUNTIF(nom,$AQ$2),INDEX(Expr2,SMALL(IF(nom=$AQ$2,ROW(INDIRECT("1:"&ROWS(Expr1)))),ROWS('Charge atelier chaudronnerie'!$3:12))),"") ->  | AS13: =IF(ROWS('Charge atelier chaudronnerie'!$3:12)<=COUNTIF(nom,$AQ$2),INDEX(DatePriseOf,SMALL(IF(nom=$AQ$2,ROW(INDIRECT("1:"&ROWS(Expr1)))),ROWS('Charge atelier chaudronnerie'!$3:12))),"") ->  | AU13: =IF(ROWS('Charge atelier chaudronnerie'!$3:12)<=COUNTIF(nom,$AU$2),INDEX(Expr1,SMALL(IF(nom=$AU$2,ROW(INDIRECT("1:"&ROWS(Expr1)))),ROWS('Charge atelier chaudronnerie'!$3:12))),"") ->  | AV13: =IF(ROWS('Charge atelier chaudronnerie'!$3:12)<=COUNTIF(nom,$AU$2),INDEX(Expr2,SMALL(IF(nom=$AU$2,ROW(INDIRECT("1:"&ROWS(Expr1)))),ROWS('Charge atelier chaudronnerie'!$3:12))),"") ->  | AW13: =IF(ROWS('Charge atelier chaudronnerie'!$3:12)<=COUNTIF(nom,$AU$2),INDEX(DatePriseOf,SMALL(IF(nom=$AU$2,ROW(INDIRECT("1:"&ROWS(Expr1)))),ROWS('Charge atelier chaudronnerie'!$3:12))),"") ->  | AY13: =IF(ROWS('Charge atelier chaudronnerie'!$3:12)<=COUNTIF(nom,$AY$2),INDEX(Expr1,SMALL(IF(nom=$AY$2,ROW(INDIRECT("1:"&ROWS(Expr1)))),ROWS('Charge atelier chaudronnerie'!$3:12))),"") ->  | AZ13: =IF(ROWS('Charge atelier chaudronnerie'!$3:12)<=COUNTIF(nom,$AY$2),INDEX(Expr2,SMALL(IF(nom=$AY$2,ROW(INDIRECT("1:"&ROWS(Expr1)))),ROWS('Charge atelier chaudronnerie'!$3:12))),"") ->  | BA13: =IF(ROWS('Charge atelier chaudronnerie'!$3:12)<=COUNTIF(nom,$AY$2),INDEX(DatePriseOf,SMALL(IF(nom=$AY$2,ROW(INDIRECT("1:"&ROWS(Expr1)))),ROWS('Charge atelier chaudronnerie'!$3:12))),"") ->  | BC13: =IF(ROWS('Charge atelier chaudronnerie'!$3:12)<=COUNTIF(nom,$BC$2),INDEX(Expr1,SMALL(IF(nom=$BC$2,ROW(INDIRECT("1:"&ROWS(Expr1)))),ROWS('Charge atelier chaudronnerie'!$3:12))),"") ->  | BD13: =IF(ROWS('Charge atelier chaudronnerie'!$3:12)<=COUNTIF(nom,$BC$2),INDEX(Expr2,SMALL(IF(nom=$BC$2,ROW(INDIRECT("1:"&ROWS(Expr1)))),ROWS('Charge atelier chaudronnerie'!$3:12))),"") ->  | BE13: =IF(ROWS('Charge atelier chaudronnerie'!$3:12)<=COUNTIF(nom,$BC$2),INDEX(DatePriseOf,SMALL(IF(nom=$BC$2,ROW(INDIRECT("1:"&ROWS(Expr1)))),ROWS('Charge atelier chaudronnerie'!$3:12))),"") ->  | BG13: =IF(ROWS('Charge atelier chaudronnerie'!$3:12)<=COUNTIF(nom,$BG$2),INDEX(Expr1,SMALL(IF(nom=$BG$2,ROW(INDIRECT("1:"&ROWS(Expr1)))),ROWS('Charge atelier chaudronnerie'!$3:12))),"") ->  | BH13: =IF(ROWS('Charge atelier chaudronnerie'!$3:12)<=COUNTIF(nom,$BG$2),INDEX(Expr2,SMALL(IF(nom=$BG$2,ROW(INDIRECT("1:"&ROWS(Expr1)))),ROWS('Charge atelier chaudronnerie'!$3:12))),"") ->  | BI13: =IF(ROWS('Charge atelier chaudronnerie'!$3:12)<=COUNTIF(nom,$BG$2),INDEX(DatePriseOf,SMALL(IF(nom=$BG$2,ROW(INDIRECT("1:"&ROWS(Expr1)))),ROWS('Charge atelier chaudronnerie'!$3:12))),"") ->  | BK13: =IF(ROWS('Charge atelier chaudronnerie'!$3:12)<=COUNTIF(nom,$BK$2),INDEX(Expr1,SMALL(IF(nom=$BK$2,ROW(INDIRECT("1:"&ROWS(Expr1)))),ROWS('Charge atelier chaudronnerie'!$3:12))),"") ->  | BL13: =IF(ROWS('Charge atelier chaudronnerie'!$3:12)<=COUNTIF(nom,$BK$2),INDEX(Expr2,SMALL(IF(nom=$BK$2,ROW(INDIRECT("1:"&ROWS(Expr1)))),ROWS('Charge atelier chaudronnerie'!$3:12))),"") ->  | BM13: =IF(ROWS('Charge atelier chaudronnerie'!$3:12)<=COUNTIF(nom,$BK$2),INDEX(DatePriseOf,SMALL(IF(nom=$BK$2,ROW(INDIRECT("1:"&ROWS(Expr1)))),ROWS('Charge atelier chaudronnerie'!$3:12))),"") ->  | BO13: =IF(ROWS('Charge atelier chaudronnerie'!$3:10)<=COUNTIF(nom,$BO$2),INDEX(Expr1,SMALL(IF(nom=$BO$2,ROW(INDIRECT("1:"&ROWS(Expr1)))),ROWS('Charge atelier chaudronnerie'!$3:10))),"") ->  | BP13: =IF(ROWS('Charge atelier chaudronnerie'!$3:10)<=COUNTIF(nom,$BO$2),INDEX(Expr2,SMALL(IF(nom=$BO$2,ROW(INDIRECT("1:"&ROWS(Expr1)))),ROWS('Charge atelier chaudronnerie'!$3:10))),"") ->  | BQ13: =IF(ROWS('Charge atelier chaudronnerie'!$3:10)<=COUNTIF(nom,$BO$2),INDEX(DatePriseOf,SMALL(IF(nom=$BO$2,ROW(INDIRECT("1:"&ROWS(Expr1)))),ROWS('Charge atelier chaudronnerie'!$3:10))),"") ->  | BS13: =IF(ROWS('Charge atelier chaudronnerie'!$3:10)<=COUNTIF(nom,$BS$2),INDEX(Expr1,SMALL(IF(nom=$BS$2,ROW(INDIRECT("1:"&ROWS(Expr1)))),ROWS('Charge atelier chaudronnerie'!$3:10))),"") ->  | BT13: =IF(ROWS('Charge atelier chaudronnerie'!$3:10)<=COUNTIF(nom,$BS$2),INDEX(Expr2,SMALL(IF(nom=$BS$2,ROW(INDIRECT("1:"&ROWS(Expr1)))),ROWS('Charge atelier chaudronnerie'!$3:10))),"") ->  | BU13: =IF(ROWS('Charge atelier chaudronnerie'!$3:10)<=COUNTIF(nom,$BS$2),INDEX(DatePriseOf,SMALL(IF(nom=$BS$2,ROW(INDIRECT("1:"&ROWS(Expr1)))),ROWS('Charge atelier chaudronnerie'!$3:10))),"") -> 
A14: joel | B14: TOTAIN | C14: =IF(ROWS('Charge atelier chaudronnerie'!$3:13)<=COUNTIF(nom,$C$2),INDEX(Expr1,SMALL(IF(nom=$C$2,ROW(INDIRECT("1:"&ROWS(Expr1)))),ROWS('Charge atelier chaudronnerie'!$3:13))),"") ->  | D14: =IF(ROWS('Charge atelier chaudronnerie'!$3:13)<=COUNTIF(nom,$C$2),INDEX(Expr2,SMALL(IF(nom=$C$2,ROW(INDIRECT("1:"&ROWS(Expr1)))),ROWS('Charge atelier chaudronnerie'!$3:13))),"") ->  | E14: =IF(ROWS('Charge atelier chaudronnerie'!$3:13)<=COUNTIF(nom,$C$2),INDEX(DatePriseOf,SMALL(IF(nom=$C$2,ROW(INDIRECT("1:"&ROWS(Expr1)))),ROWS('Charge atelier chaudronnerie'!$3:13))),"") ->  | G14: =IF(ROWS('Charge atelier chaudronnerie'!$3:13)<=COUNTIF(nom,$G$2),INDEX(Expr1,SMALL(IF(nom=$G$2,ROW(INDIRECT("1:"&ROWS(Expr1)))),ROWS('Charge atelier chaudronnerie'!$3:13))),"") ->  | H14: =IF(ROWS('Charge atelier chaudronnerie'!$3:13)<=COUNTIF(nom,$G$2),INDEX(Expr2,SMALL(IF(nom=$G$2,ROW(INDIRECT("1:"&ROWS(Expr1)))),ROWS('Charge atelier chaudronnerie'!$3:13))),"") ->  | I14: =IF(ROWS('Charge atelier chaudronnerie'!$3:13)<=COUNTIF(nom,$G$2),INDEX(DatePriseOf,SMALL(IF(nom=$G$2,ROW(INDIRECT("1:"&ROWS(Expr1)))),ROWS('Charge atelier chaudronnerie'!$3:13))),"") ->  | K14: =IF(ROWS('Charge atelier chaudronnerie'!$3:13)<=COUNTIF(nom,$K$2),INDEX(Expr1,SMALL(IF(nom=$K$2,ROW(INDIRECT("1:"&ROWS(Expr1)))),ROWS('Charge atelier chaudronnerie'!$3:13))),"") ->  | L14: =IF(ROWS('Charge atelier chaudronnerie'!$3:13)<=COUNTIF(nom,$K$2),INDEX(Expr2,SMALL(IF(nom=$K$2,ROW(INDIRECT("1:"&ROWS(Expr1)))),ROWS('Charge atelier chaudronnerie'!$3:13))),"") ->  | M14: =IF(ROWS('Charge atelier chaudronnerie'!$3:13)<=COUNTIF(nom,$K$2),INDEX(DatePriseOf,SMALL(IF(nom=$K$2,ROW(INDIRECT("1:"&ROWS(Expr1)))),ROWS('Charge atelier chaudronnerie'!$3:13))),"") ->  | O14: =IF(ROWS('Charge atelier chaudronnerie'!$3:13)<=COUNTIF(nom,$O$2),INDEX(Expr1,SMALL(IF(nom=$O$2,ROW(INDIRECT("1:"&ROWS(Expr1)))),ROWS('Charge atelier chaudronnerie'!$3:13))),"") ->  | P14: =IF(ROWS('Charge atelier chaudronnerie'!$3:13)<=COUNTIF(nom,$O$2),INDEX(Expr2,SMALL(IF(nom=$O$2,ROW(INDIRECT("1:"&ROWS(Expr1)))),ROWS('Charge atelier chaudronnerie'!$3:13))),"") ->  | Q14: =IF(ROWS('Charge atelier chaudronnerie'!$3:13)<=COUNTIF(nom,$O$2),INDEX(DatePriseOf,SMALL(IF(nom=$O$2,ROW(INDIRECT("1:"&ROWS(Expr1)))),ROWS('Charge atelier chaudronnerie'!$3:13))),"") ->  | S14: =IF(ROWS('Charge atelier chaudronnerie'!$3:13)<=COUNTIF(nom,$S$2),INDEX(Expr1,SMALL(IF(nom=$S$2,ROW(INDIRECT("1:"&ROWS(Expr1)))),ROWS('Charge atelier chaudronnerie'!$3:13))),"") ->  | T14: =IF(ROWS('Charge atelier chaudronnerie'!$3:13)<=COUNTIF(nom,$S$2),INDEX(Expr2,SMALL(IF(nom=$S$2,ROW(INDIRECT("1:"&ROWS(Expr1)))),ROWS('Charge atelier chaudronnerie'!$3:13))),"") ->  | U14: =IF(ROWS('Charge atelier chaudronnerie'!$3:13)<=COUNTIF(nom,$S$2),INDEX(DatePriseOf,SMALL(IF(nom=$S$2,ROW(INDIRECT("1:"&ROWS(Expr1)))),ROWS('Charge atelier chaudronnerie'!$3:13))),"") ->  | W14: =IF(ROWS('Charge atelier chaudronnerie'!$3:13)<=COUNTIF(nom,$W$2),INDEX(Expr1,SMALL(IF(nom=$W$2,ROW(INDIRECT("1:"&ROWS(Expr1)))),ROWS('Charge atelier chaudronnerie'!$3:13))),"") ->  | X14: =IF(ROWS('Charge atelier chaudronnerie'!$3:13)<=COUNTIF(nom,$W$2),INDEX(Expr2,SMALL(IF(nom=$W$2,ROW(INDIRECT("1:"&ROWS(Expr1)))),ROWS('Charge atelier chaudronnerie'!$3:13))),"") ->  | Y14: =IF(ROWS('Charge atelier chaudronnerie'!$3:13)<=COUNTIF(nom,$W$2),INDEX(DatePriseOf,SMALL(IF(nom=$W$2,ROW(INDIRECT("1:"&ROWS(Expr1)))),ROWS('Charge atelier chaudronnerie'!$3:13))),"") ->  | AA14: =IF(ROWS('Charge atelier chaudronnerie'!$3:13)<=COUNTIF(nom,$AA$2),INDEX(Expr1,SMALL(IF(nom=$AA$2,ROW(INDIRECT("1:"&ROWS(Expr1)))),ROWS('Charge atelier chaudronnerie'!$3:13))),"") ->  | AB14: =IF(ROWS('Charge atelier chaudronnerie'!$3:13)<=COUNTIF(nom,$AA$2),INDEX(Expr2,SMALL(IF(nom=$AA$2,ROW(INDIRECT("1:"&ROWS(Expr1)))),ROWS('Charge atelier chaudronnerie'!$3:13))),"") ->  | AC14: =IF(ROWS('Charge atelier chaudronnerie'!$3:13)<=COUNTIF(nom,$AA$2),INDEX(DatePriseOf,SMALL(IF(nom=$AA$2,ROW(INDIRECT("1:"&ROWS(Expr1)))),ROWS('Charge atelier chaudronnerie'!$3:13))),"") ->  | AE14: =IF(ROWS('Charge atelier chaudronnerie'!$3:13)<=COUNTIF(nom,$AE$2),INDEX(Expr1,SMALL(IF(nom=$AE$2,ROW(INDIRECT("1:"&ROWS(Expr1)))),ROWS('Charge atelier chaudronnerie'!$3:13))),"") ->  | AF14: =IF(ROWS('Charge atelier chaudronnerie'!$3:13)<=COUNTIF(nom,$AE$2),INDEX(Expr2,SMALL(IF(nom=$AE$2,ROW(INDIRECT("1:"&ROWS(Expr1)))),ROWS('Charge atelier chaudronnerie'!$3:13))),"") ->  | AG14: =IF(ROWS('Charge atelier chaudronnerie'!$3:13)<=COUNTIF(nom,$AE$2),INDEX(DatePriseOf,SMALL(IF(nom=$AE$2,ROW(INDIRECT("1:"&ROWS(Expr1)))),ROWS('Charge atelier chaudronnerie'!$3:13))),"") ->  | AI14: =IF(ROWS('Charge atelier chaudronnerie'!$3:13)<=COUNTIF(nom,$AI$2),INDEX(Expr1,SMALL(IF(nom=$AI$2,ROW(INDIRECT("1:"&ROWS(Expr1)))),ROWS('Charge atelier chaudronnerie'!$3:13))),"") ->  | AJ14: =IF(ROWS('Charge atelier chaudronnerie'!$3:13)<=COUNTIF(nom,$AI$2),INDEX(Expr2,SMALL(IF(nom=$AI$2,ROW(INDIRECT("1:"&ROWS(Expr1)))),ROWS('Charge atelier chaudronnerie'!$3:13))),"") ->  | AK14: =IF(ROWS('Charge atelier chaudronnerie'!$3:13)<=COUNTIF(nom,$AI$2),INDEX(DatePriseOf,SMALL(IF(nom=$AI$2,ROW(INDIRECT("1:"&ROWS(Expr1)))),ROWS('Charge atelier chaudronnerie'!$3:13))),"") ->  | AM14: =IF(ROWS('Charge atelier chaudronnerie'!$3:13)<=COUNTIF(nom,$AM$2),INDEX(Expr1,SMALL(IF(nom=$AM$2,ROW(INDIRECT("1:"&ROWS(Expr1)))),ROWS('Charge atelier chaudronnerie'!$3:13))),"") ->  | AN14: =IF(ROWS('Charge atelier chaudronnerie'!$3:13)<=COUNTIF(nom,$AM$2),INDEX(Expr2,SMALL(IF(nom=$AM$2,ROW(INDIRECT("1:"&ROWS(Expr1)))),ROWS('Charge atelier chaudronnerie'!$3:13))),"") ->  | AO14: =IF(ROWS('Charge atelier chaudronnerie'!$3:13)<=COUNTIF(nom,$AM$2),INDEX(DatePriseOf,SMALL(IF(nom=$AM$2,ROW(INDIRECT("1:"&ROWS(Expr1)))),ROWS('Charge atelier chaudronnerie'!$3:13))),"") ->  | AQ14: =IF(ROWS('Charge atelier chaudronnerie'!$3:13)<=COUNTIF(nom,$AQ$2),INDEX(Expr1,SMALL(IF(nom=$AQ$2,ROW(INDIRECT("1:"&ROWS(Expr1)))),ROWS('Charge atelier chaudronnerie'!$3:13))),"") ->  | AR14: =IF(ROWS('Charge atelier chaudronnerie'!$3:13)<=COUNTIF(nom,$AQ$2),INDEX(Expr2,SMALL(IF(nom=$AQ$2,ROW(INDIRECT("1:"&ROWS(Expr1)))),ROWS('Charge atelier chaudronnerie'!$3:13))),"") ->  | AS14: =IF(ROWS('Charge atelier chaudronnerie'!$3:13)<=COUNTIF(nom,$AQ$2),INDEX(DatePriseOf,SMALL(IF(nom=$AQ$2,ROW(INDIRECT("1:"&ROWS(Expr1)))),ROWS('Charge atelier chaudronnerie'!$3:13))),"") ->  | AU14: =IF(ROWS('Charge atelier chaudronnerie'!$3:13)<=COUNTIF(nom,$AU$2),INDEX(Expr1,SMALL(IF(nom=$AU$2,ROW(INDIRECT("1:"&ROWS(Expr1)))),ROWS('Charge atelier chaudronnerie'!$3:13))),"") ->  | AV14: =IF(ROWS('Charge atelier chaudronnerie'!$3:13)<=COUNTIF(nom,$AU$2),INDEX(Expr2,SMALL(IF(nom=$AU$2,ROW(INDIRECT("1:"&ROWS(Expr1)))),ROWS('Charge atelier chaudronnerie'!$3:13))),"") ->  | AW14: =IF(ROWS('Charge atelier chaudronnerie'!$3:13)<=COUNTIF(nom,$AU$2),INDEX(DatePriseOf,SMALL(IF(nom=$AU$2,ROW(INDIRECT("1:"&ROWS(Expr1)))),ROWS('Charge atelier chaudronnerie'!$3:13))),"") ->  | AY14: =IF(ROWS('Charge atelier chaudronnerie'!$3:13)<=COUNTIF(nom,$AY$2),INDEX(Expr1,SMALL(IF(nom=$AY$2,ROW(INDIRECT("1:"&ROWS(Expr1)))),ROWS('Charge atelier chaudronnerie'!$3:13))),"") ->  | AZ14: =IF(ROWS('Charge atelier chaudronnerie'!$3:13)<=COUNTIF(nom,$AY$2),INDEX(Expr2,SMALL(IF(nom=$AY$2,ROW(INDIRECT("1:"&ROWS(Expr1)))),ROWS('Charge atelier chaudronnerie'!$3:13))),"") ->  | BA14: =IF(ROWS('Charge atelier chaudronnerie'!$3:13)<=COUNTIF(nom,$AY$2),INDEX(DatePriseOf,SMALL(IF(nom=$AY$2,ROW(INDIRECT("1:"&ROWS(Expr1)))),ROWS('Charge atelier chaudronnerie'!$3:13))),"") ->  | BC14: =IF(ROWS('Charge atelier chaudronnerie'!$3:13)<=COUNTIF(nom,$BC$2),INDEX(Expr1,SMALL(IF(nom=$BC$2,ROW(INDIRECT("1:"&ROWS(Expr1)))),ROWS('Charge atelier chaudronnerie'!$3:13))),"") ->  | BD14: =IF(ROWS('Charge atelier chaudronnerie'!$3:13)<=COUNTIF(nom,$BC$2),INDEX(Expr2,SMALL(IF(nom=$BC$2,ROW(INDIRECT("1:"&ROWS(Expr1)))),ROWS('Charge atelier chaudronnerie'!$3:13))),"") ->  | BE14: =IF(ROWS('Charge atelier chaudronnerie'!$3:13)<=COUNTIF(nom,$BC$2),INDEX(DatePriseOf,SMALL(IF(nom=$BC$2,ROW(INDIRECT("1:"&ROWS(Expr1)))),ROWS('Charge atelier chaudronnerie'!$3:13))),"") ->  | BG14: =IF(ROWS('Charge atelier chaudronnerie'!$3:13)<=COUNTIF(nom,$BG$2),INDEX(Expr1,SMALL(IF(nom=$BG$2,ROW(INDIRECT("1:"&ROWS(Expr1)))),ROWS('Charge atelier chaudronnerie'!$3:13))),"") ->  | BH14: =IF(ROWS('Charge atelier chaudronnerie'!$3:13)<=COUNTIF(nom,$BG$2),INDEX(Expr2,SMALL(IF(nom=$BG$2,ROW(INDIRECT("1:"&ROWS(Expr1)))),ROWS('Charge atelier chaudronnerie'!$3:13))),"") ->  | BI14: =IF(ROWS('Charge atelier chaudronnerie'!$3:13)<=COUNTIF(nom,$BG$2),INDEX(DatePriseOf,SMALL(IF(nom=$BG$2,ROW(INDIRECT("1:"&ROWS(Expr1)))),ROWS('Charge atelier chaudronnerie'!$3:13))),"") ->  | BK14: =IF(ROWS('Charge atelier chaudronnerie'!$3:13)<=COUNTIF(nom,$BK$2),INDEX(Expr1,SMALL(IF(nom=$BK$2,ROW(INDIRECT("1:"&ROWS(Expr1)))),ROWS('Charge atelier chaudronnerie'!$3:13))),"") ->  | BL14: =IF(ROWS('Charge atelier chaudronnerie'!$3:13)<=COUNTIF(nom,$BK$2),INDEX(Expr2,SMALL(IF(nom=$BK$2,ROW(INDIRECT("1:"&ROWS(Expr1)))),ROWS('Charge atelier chaudronnerie'!$3:13))),"") ->  | BM14: =IF(ROWS('Charge atelier chaudronnerie'!$3:13)<=COUNTIF(nom,$BK$2),INDEX(DatePriseOf,SMALL(IF(nom=$BK$2,ROW(INDIRECT("1:"&ROWS(Expr1)))),ROWS('Charge atelier chaudronnerie'!$3:13))),"") ->  | BO14: =IF(ROWS('Charge atelier chaudronnerie'!$3:11)<=COUNTIF(nom,$BO$2),INDEX(Expr1,SMALL(IF(nom=$BO$2,ROW(INDIRECT("1:"&ROWS(Expr1)))),ROWS('Charge atelier chaudronnerie'!$3:11))),"") ->  | BP14: =IF(ROWS('Charge atelier chaudronnerie'!$3:11)<=COUNTIF(nom,$BO$2),INDEX(Expr2,SMALL(IF(nom=$BO$2,ROW(INDIRECT("1:"&ROWS(Expr1)))),ROWS('Charge atelier chaudronnerie'!$3:11))),"") ->  | BQ14: =IF(ROWS('Charge atelier chaudronnerie'!$3:11)<=COUNTIF(nom,$BO$2),INDEX(DatePriseOf,SMALL(IF(nom=$BO$2,ROW(INDIRECT("1:"&ROWS(Expr1)))),ROWS('Charge atelier chaudronnerie'!$3:11))),"") ->  | BS14: =IF(ROWS('Charge atelier chaudronnerie'!$3:11)<=COUNTIF(nom,$BS$2),INDEX(Expr1,SMALL(IF(nom=$BS$2,ROW(INDIRECT("1:"&ROWS(Expr1)))),ROWS('Charge atelier chaudronnerie'!$3:11))),"") ->  | BT14: =IF(ROWS('Charge atelier chaudronnerie'!$3:11)<=COUNTIF(nom,$BS$2),INDEX(Expr2,SMALL(IF(nom=$BS$2,ROW(INDIRECT("1:"&ROWS(Expr1)))),ROWS('Charge atelier chaudronnerie'!$3:11))),"") ->  | BU14: =IF(ROWS('Charge atelier chaudronnerie'!$3:11)<=COUNTIF(nom,$BS$2),INDEX(DatePriseOf,SMALL(IF(nom=$BS$2,ROW(INDIRECT("1:"&ROWS(Expr1)))),ROWS('Charge atelier chaudronnerie'!$3:11))),"") -> 
A15: kevin | C15: =IF(ROWS('Charge atelier chaudronnerie'!$3:14)<=COUNTIF(nom,$C$2),INDEX(Expr1,SMALL(IF(nom=$C$2,ROW(INDIRECT("1:"&ROWS(Expr1)))),ROWS('Charge atelier chaudronnerie'!$3:14))),"") ->  | D15: =IF(ROWS('Charge atelier chaudronnerie'!$3:14)<=COUNTIF(nom,$C$2),INDEX(Expr2,SMALL(IF(nom=$C$2,ROW(INDIRECT("1:"&ROWS(Expr1)))),ROWS('Charge atelier chaudronnerie'!$3:14))),"") ->  | E15: =IF(ROWS('Charge atelier chaudronnerie'!$3:14)<=COUNTIF(nom,$C$2),INDEX(DatePriseOf,SMALL(IF(nom=$C$2,ROW(INDIRECT("1:"&ROWS(Expr1)))),ROWS('Charge atelier chaudronnerie'!$3:14))),"") ->  | G15: =IF(ROWS('Charge atelier chaudronnerie'!$3:14)<=COUNTIF(nom,$G$2),INDEX(Expr1,SMALL(IF(nom=$G$2,ROW(INDIRECT("1:"&ROWS(Expr1)))),ROWS('Charge atelier chaudronnerie'!$3:14))),"") ->  | H15: =IF(ROWS('Charge atelier chaudronnerie'!$3:14)<=COUNTIF(nom,$G$2),INDEX(Expr2,SMALL(IF(nom=$G$2,ROW(INDIRECT("1:"&ROWS(Expr1)))),ROWS('Charge atelier chaudronnerie'!$3:14))),"") ->  | I15: =IF(ROWS('Charge atelier chaudronnerie'!$3:14)<=COUNTIF(nom,$G$2),INDEX(DatePriseOf,SMALL(IF(nom=$G$2,ROW(INDIRECT("1:"&ROWS(Expr1)))),ROWS('Charge atelier chaudronnerie'!$3:14))),"") ->  | K15: =IF(ROWS('Charge atelier chaudronnerie'!$3:14)<=COUNTIF(nom,$K$2),INDEX(Expr1,SMALL(IF(nom=$K$2,ROW(INDIRECT("1:"&ROWS(Expr1)))),ROWS('Charge atelier chaudronnerie'!$3:14))),"") ->  | L15: =IF(ROWS('Charge atelier chaudronnerie'!$3:14)<=COUNTIF(nom,$K$2),INDEX(Expr2,SMALL(IF(nom=$K$2,ROW(INDIRECT("1:"&ROWS(Expr1)))),ROWS('Charge atelier chaudronnerie'!$3:14))),"") ->  | M15: =IF(ROWS('Charge atelier chaudronnerie'!$3:14)<=COUNTIF(nom,$K$2),INDEX(DatePriseOf,SMALL(IF(nom=$K$2,ROW(INDIRECT("1:"&ROWS(Expr1)))),ROWS('Charge atelier chaudronnerie'!$3:14))),"") ->  | O15: =IF(ROWS('Charge atelier chaudronnerie'!$3:14)<=COUNTIF(nom,$O$2),INDEX(Expr1,SMALL(IF(nom=$O$2,ROW(INDIRECT("1:"&ROWS(Expr1)))),ROWS('Charge atelier chaudronnerie'!$3:14))),"") ->  | P15: =IF(ROWS('Charge atelier chaudronnerie'!$3:14)<=COUNTIF(nom,$O$2),INDEX(Expr2,SMALL(IF(nom=$O$2,ROW(INDIRECT("1:"&ROWS(Expr1)))),ROWS('Charge atelier chaudronnerie'!$3:14))),"") ->  | Q15: =IF(ROWS('Charge atelier chaudronnerie'!$3:14)<=COUNTIF(nom,$O$2),INDEX(DatePriseOf,SMALL(IF(nom=$O$2,ROW(INDIRECT("1:"&ROWS(Expr1)))),ROWS('Charge atelier chaudronnerie'!$3:14))),"") ->  | S15: =IF(ROWS('Charge atelier chaudronnerie'!$3:14)<=COUNTIF(nom,$S$2),INDEX(Expr1,SMALL(IF(nom=$S$2,ROW(INDIRECT("1:"&ROWS(Expr1)))),ROWS('Charge atelier chaudronnerie'!$3:14))),"") ->  | T15: =IF(ROWS('Charge atelier chaudronnerie'!$3:14)<=COUNTIF(nom,$S$2),INDEX(Expr2,SMALL(IF(nom=$S$2,ROW(INDIRECT("1:"&ROWS(Expr1)))),ROWS('Charge atelier chaudronnerie'!$3:14))),"") ->  | U15: =IF(ROWS('Charge atelier chaudronnerie'!$3:14)<=COUNTIF(nom,$S$2),INDEX(DatePriseOf,SMALL(IF(nom=$S$2,ROW(INDIRECT("1:"&ROWS(Expr1)))),ROWS('Charge atelier chaudronnerie'!$3:14))),"") ->  | W15: =IF(ROWS('Charge atelier chaudronnerie'!$3:14)<=COUNTIF(nom,$W$2),INDEX(Expr1,SMALL(IF(nom=$W$2,ROW(INDIRECT("1:"&ROWS(Expr1)))),ROWS('Charge atelier chaudronnerie'!$3:14))),"") ->  | X15: =IF(ROWS('Charge atelier chaudronnerie'!$3:14)<=COUNTIF(nom,$W$2),INDEX(Expr2,SMALL(IF(nom=$W$2,ROW(INDIRECT("1:"&ROWS(Expr1)))),ROWS('Charge atelier chaudronnerie'!$3:14))),"") ->  | Y15: =IF(ROWS('Charge atelier chaudronnerie'!$3:14)<=COUNTIF(nom,$W$2),INDEX(DatePriseOf,SMALL(IF(nom=$W$2,ROW(INDIRECT("1:"&ROWS(Expr1)))),ROWS('Charge atelier chaudronnerie'!$3:14))),"") ->  | AA15: =IF(ROWS('Charge atelier chaudronnerie'!$3:14)<=COUNTIF(nom,$AA$2),INDEX(Expr1,SMALL(IF(nom=$AA$2,ROW(INDIRECT("1:"&ROWS(Expr1)))),ROWS('Charge atelier chaudronnerie'!$3:14))),"") ->  | AB15: =IF(ROWS('Charge atelier chaudronnerie'!$3:14)<=COUNTIF(nom,$AA$2),INDEX(Expr2,SMALL(IF(nom=$AA$2,ROW(INDIRECT("1:"&ROWS(Expr1)))),ROWS('Charge atelier chaudronnerie'!$3:14))),"") ->  | AC15: =IF(ROWS('Charge atelier chaudronnerie'!$3:14)<=COUNTIF(nom,$AA$2),INDEX(DatePriseOf,SMALL(IF(nom=$AA$2,ROW(INDIRECT("1:"&ROWS(Expr1)))),ROWS('Charge atelier chaudronnerie'!$3:14))),"") ->  | AE15: =IF(ROWS('Charge atelier chaudronnerie'!$3:14)<=COUNTIF(nom,$AE$2),INDEX(Expr1,SMALL(IF(nom=$AE$2,ROW(INDIRECT("1:"&ROWS(Expr1)))),ROWS('Charge atelier chaudronnerie'!$3:14))),"") ->  | AF15: =IF(ROWS('Charge atelier chaudronnerie'!$3:14)<=COUNTIF(nom,$AE$2),INDEX(Expr2,SMALL(IF(nom=$AE$2,ROW(INDIRECT("1:"&ROWS(Expr1)))),ROWS('Charge atelier chaudronnerie'!$3:14))),"") ->  | AG15: =IF(ROWS('Charge atelier chaudronnerie'!$3:14)<=COUNTIF(nom,$AE$2),INDEX(DatePriseOf,SMALL(IF(nom=$AE$2,ROW(INDIRECT("1:"&ROWS(Expr1)))),ROWS('Charge atelier chaudronnerie'!$3:14))),"") ->  | AI15: =IF(ROWS('Charge atelier chaudronnerie'!$3:14)<=COUNTIF(nom,$AI$2),INDEX(Expr1,SMALL(IF(nom=$AI$2,ROW(INDIRECT("1:"&ROWS(Expr1)))),ROWS('Charge atelier chaudronnerie'!$3:14))),"") ->  | AJ15: =IF(ROWS('Charge atelier chaudronnerie'!$3:14)<=COUNTIF(nom,$AI$2),INDEX(Expr2,SMALL(IF(nom=$AI$2,ROW(INDIRECT("1:"&ROWS(Expr1)))),ROWS('Charge atelier chaudronnerie'!$3:14))),"") ->  | AK15: =IF(ROWS('Charge atelier chaudronnerie'!$3:14)<=COUNTIF(nom,$AI$2),INDEX(DatePriseOf,SMALL(IF(nom=$AI$2,ROW(INDIRECT("1:"&ROWS(Expr1)))),ROWS('Charge atelier chaudronnerie'!$3:14))),"") ->  | AM15: =IF(ROWS('Charge atelier chaudronnerie'!$3:14)<=COUNTIF(nom,$AM$2),INDEX(Expr1,SMALL(IF(nom=$AM$2,ROW(INDIRECT("1:"&ROWS(Expr1)))),ROWS('Charge atelier chaudronnerie'!$3:14))),"") ->  | AN15: =IF(ROWS('Charge atelier chaudronnerie'!$3:14)<=COUNTIF(nom,$AM$2),INDEX(Expr2,SMALL(IF(nom=$AM$2,ROW(INDIRECT("1:"&ROWS(Expr1)))),ROWS('Charge atelier chaudronnerie'!$3:14))),"") ->  | AO15: =IF(ROWS('Charge atelier chaudronnerie'!$3:14)<=COUNTIF(nom,$AM$2),INDEX(DatePriseOf,SMALL(IF(nom=$AM$2,ROW(INDIRECT("1:"&ROWS(Expr1)))),ROWS('Charge atelier chaudronnerie'!$3:14))),"") ->  | AQ15: =IF(ROWS('Charge atelier chaudronnerie'!$3:14)<=COUNTIF(nom,$AQ$2),INDEX(Expr1,SMALL(IF(nom=$AQ$2,ROW(INDIRECT("1:"&ROWS(Expr1)))),ROWS('Charge atelier chaudronnerie'!$3:14))),"") ->  | AR15: =IF(ROWS('Charge atelier chaudronnerie'!$3:14)<=COUNTIF(nom,$AQ$2),INDEX(Expr2,SMALL(IF(nom=$AQ$2,ROW(INDIRECT("1:"&ROWS(Expr1)))),ROWS('Charge atelier chaudronnerie'!$3:14))),"") ->  | AS15: =IF(ROWS('Charge atelier chaudronnerie'!$3:14)<=COUNTIF(nom,$AQ$2),INDEX(DatePriseOf,SMALL(IF(nom=$AQ$2,ROW(INDIRECT("1:"&ROWS(Expr1)))),ROWS('Charge atelier chaudronnerie'!$3:14))),"") ->  | AU15: =IF(ROWS('Charge atelier chaudronnerie'!$3:14)<=COUNTIF(nom,$AU$2),INDEX(Expr1,SMALL(IF(nom=$AU$2,ROW(INDIRECT("1:"&ROWS(Expr1)))),ROWS('Charge atelier chaudronnerie'!$3:14))),"") ->  | AV15: =IF(ROWS('Charge atelier chaudronnerie'!$3:14)<=COUNTIF(nom,$AU$2),INDEX(Expr2,SMALL(IF(nom=$AU$2,ROW(INDIRECT("1:"&ROWS(Expr1)))),ROWS('Charge atelier chaudronnerie'!$3:14))),"") ->  | AW15: =IF(ROWS('Charge atelier chaudronnerie'!$3:14)<=COUNTIF(nom,$AU$2),INDEX(DatePriseOf,SMALL(IF(nom=$AU$2,ROW(INDIRECT("1:"&ROWS(Expr1)))),ROWS('Charge atelier chaudronnerie'!$3:14))),"") ->  | AY15: =IF(ROWS('Charge atelier chaudronnerie'!$3:14)<=COUNTIF(nom,$AY$2),INDEX(Expr1,SMALL(IF(nom=$AY$2,ROW(INDIRECT("1:"&ROWS(Expr1)))),ROWS('Charge atelier chaudronnerie'!$3:14))),"") ->  | AZ15: =IF(ROWS('Charge atelier chaudronnerie'!$3:14)<=COUNTIF(nom,$AY$2),INDEX(Expr2,SMALL(IF(nom=$AY$2,ROW(INDIRECT("1:"&ROWS(Expr1)))),ROWS('Charge atelier chaudronnerie'!$3:14))),"") ->  | BA15: =IF(ROWS('Charge atelier chaudronnerie'!$3:14)<=COUNTIF(nom,$AY$2),INDEX(DatePriseOf,SMALL(IF(nom=$AY$2,ROW(INDIRECT("1:"&ROWS(Expr1)))),ROWS('Charge atelier chaudronnerie'!$3:14))),"") ->  | BC15: =IF(ROWS('Charge atelier chaudronnerie'!$3:14)<=COUNTIF(nom,$BC$2),INDEX(Expr1,SMALL(IF(nom=$BC$2,ROW(INDIRECT("1:"&ROWS(Expr1)))),ROWS('Charge atelier chaudronnerie'!$3:14))),"") ->  | BD15: =IF(ROWS('Charge atelier chaudronnerie'!$3:14)<=COUNTIF(nom,$BC$2),INDEX(Expr2,SMALL(IF(nom=$BC$2,ROW(INDIRECT("1:"&ROWS(Expr1)))),ROWS('Charge atelier chaudronnerie'!$3:14))),"") ->  | BE15: =IF(ROWS('Charge atelier chaudronnerie'!$3:14)<=COUNTIF(nom,$BC$2),INDEX(DatePriseOf,SMALL(IF(nom=$BC$2,ROW(INDIRECT("1:"&ROWS(Expr1)))),ROWS('Charge atelier chaudronnerie'!$3:14))),"") ->  | BG15: =IF(ROWS('Charge atelier chaudronnerie'!$3:14)<=COUNTIF(nom,$BG$2),INDEX(Expr1,SMALL(IF(nom=$BG$2,ROW(INDIRECT("1:"&ROWS(Expr1)))),ROWS('Charge atelier chaudronnerie'!$3:14))),"") ->  | BH15: =IF(ROWS('Charge atelier chaudronnerie'!$3:14)<=COUNTIF(nom,$BG$2),INDEX(Expr2,SMALL(IF(nom=$BG$2,ROW(INDIRECT("1:"&ROWS(Expr1)))),ROWS('Charge atelier chaudronnerie'!$3:14))),"") ->  | BI15: =IF(ROWS('Charge atelier chaudronnerie'!$3:14)<=COUNTIF(nom,$BG$2),INDEX(DatePriseOf,SMALL(IF(nom=$BG$2,ROW(INDIRECT("1:"&ROWS(Expr1)))),ROWS('Charge atelier chaudronnerie'!$3:14))),"") ->  | BK15: =IF(ROWS('Charge atelier chaudronnerie'!$3:14)<=COUNTIF(nom,$BK$2),INDEX(Expr1,SMALL(IF(nom=$BK$2,ROW(INDIRECT("1:"&ROWS(Expr1)))),ROWS('Charge atelier chaudronnerie'!$3:14))),"") ->  | BL15: =IF(ROWS('Charge atelier chaudronnerie'!$3:14)<=COUNTIF(nom,$BK$2),INDEX(Expr2,SMALL(IF(nom=$BK$2,ROW(INDIRECT("1:"&ROWS(Expr1)))),ROWS('Charge atelier chaudronnerie'!$3:14))),"") ->  | BM15: =IF(ROWS('Charge atelier chaudronnerie'!$3:14)<=COUNTIF(nom,$BK$2),INDEX(DatePriseOf,SMALL(IF(nom=$BK$2,ROW(INDIRECT("1:"&ROWS(Expr1)))),ROWS('Charge atelier chaudronnerie'!$3:14))),"") ->  | BO15: =IF(ROWS('Charge atelier chaudronnerie'!$3:11)<=COUNTIF(nom,$BO$2),INDEX(Expr1,SMALL(IF(nom=$BO$2,ROW(INDIRECT("1:"&ROWS(Expr1)))),ROWS('Charge atelier chaudronnerie'!$3:11))),"") ->  | BP15: =IF(ROWS('Charge atelier chaudronnerie'!$3:11)<=COUNTIF(nom,$BO$2),INDEX(Expr2,SMALL(IF(nom=$BO$2,ROW(INDIRECT("1:"&ROWS(Expr1)))),ROWS('Charge atelier chaudronnerie'!$3:11))),"") ->  | BQ15: =IF(ROWS('Charge atelier chaudronnerie'!$3:11)<=COUNTIF(nom,$BO$2),INDEX(DatePriseOf,SMALL(IF(nom=$BO$2,ROW(INDIRECT("1:"&ROWS(Expr1)))),ROWS('Charge atelier chaudronnerie'!$3:11))),"") ->  | BS15: =IF(ROWS('Charge atelier chaudronnerie'!$3:11)<=COUNTIF(nom,$BS$2),INDEX(Expr1,SMALL(IF(nom=$BS$2,ROW(INDIRECT("1:"&ROWS(Expr1)))),ROWS('Charge atelier chaudronnerie'!$3:11))),"") ->  | BT15: =IF(ROWS('Charge atelier chaudronnerie'!$3:11)<=COUNTIF(nom,$BS$2),INDEX(Expr2,SMALL(IF(nom=$BS$2,ROW(INDIRECT("1:"&ROWS(Expr1)))),ROWS('Charge atelier chaudronnerie'!$3:11))),"") ->  | BU15: =IF(ROWS('Charge atelier chaudronnerie'!$3:11)<=COUNTIF(nom,$BS$2),INDEX(DatePriseOf,SMALL(IF(nom=$BS$2,ROW(INDIRECT("1:"&ROWS(Expr1)))),ROWS('Charge atelier chaudronnerie'!$3:11))),"") -> 
A16: miro | C16: =IF(ROWS('Charge atelier chaudronnerie'!$3:15)<=COUNTIF(nom,$C$2),INDEX(Expr1,SMALL(IF(nom=$C$2,ROW(INDIRECT("1:"&ROWS(Expr1)))),ROWS('Charge atelier chaudronnerie'!$3:15))),"") ->  | D16: =IF(ROWS('Charge atelier chaudronnerie'!$3:15)<=COUNTIF(nom,$C$2),INDEX(Expr2,SMALL(IF(nom=$C$2,ROW(INDIRECT("1:"&ROWS(Expr1)))),ROWS('Charge atelier chaudronnerie'!$3:15))),"") ->  | E16: =IF(ROWS('Charge atelier chaudronnerie'!$3:15)<=COUNTIF(nom,$C$2),INDEX(DatePriseOf,SMALL(IF(nom=$C$2,ROW(INDIRECT("1:"&ROWS(Expr1)))),ROWS('Charge atelier chaudronnerie'!$3:15))),"") ->  | G16: =IF(ROWS('Charge atelier chaudronnerie'!$3:15)<=COUNTIF(nom,$G$2),INDEX(Expr1,SMALL(IF(nom=$G$2,ROW(INDIRECT("1:"&ROWS(Expr1)))),ROWS('Charge atelier chaudronnerie'!$3:15))),"") ->  | H16: =IF(ROWS('Charge atelier chaudronnerie'!$3:15)<=COUNTIF(nom,$G$2),INDEX(Expr2,SMALL(IF(nom=$G$2,ROW(INDIRECT("1:"&ROWS(Expr1)))),ROWS('Charge atelier chaudronnerie'!$3:15))),"") ->  | I16: =IF(ROWS('Charge atelier chaudronnerie'!$3:15)<=COUNTIF(nom,$G$2),INDEX(DatePriseOf,SMALL(IF(nom=$G$2,ROW(INDIRECT("1:"&ROWS(Expr1)))),ROWS('Charge atelier chaudronnerie'!$3:15))),"") ->  | K16: =IF(ROWS('Charge atelier chaudronnerie'!$3:15)<=COUNTIF(nom,$K$2),INDEX(Expr1,SMALL(IF(nom=$K$2,ROW(INDIRECT("1:"&ROWS(Expr1)))),ROWS('Charge atelier chaudronnerie'!$3:15))),"") ->  | L16: =IF(ROWS('Charge atelier chaudronnerie'!$3:15)<=COUNTIF(nom,$K$2),INDEX(Expr2,SMALL(IF(nom=$K$2,ROW(INDIRECT("1:"&ROWS(Expr1)))),ROWS('Charge atelier chaudronnerie'!$3:15))),"") ->  | M16: =IF(ROWS('Charge atelier chaudronnerie'!$3:15)<=COUNTIF(nom,$K$2),INDEX(DatePriseOf,SMALL(IF(nom=$K$2,ROW(INDIRECT("1:"&ROWS(Expr1)))),ROWS('Charge atelier chaudronnerie'!$3:15))),"") ->  | O16: =IF(ROWS('Charge atelier chaudronnerie'!$3:15)<=COUNTIF(nom,$O$2),INDEX(Expr1,SMALL(IF(nom=$O$2,ROW(INDIRECT("1:"&ROWS(Expr1)))),ROWS('Charge atelier chaudronnerie'!$3:15))),"") ->  | P16: =IF(ROWS('Charge atelier chaudronnerie'!$3:15)<=COUNTIF(nom,$O$2),INDEX(Expr2,SMALL(IF(nom=$O$2,ROW(INDIRECT("1:"&ROWS(Expr1)))),ROWS('Charge atelier chaudronnerie'!$3:15))),"") ->  | Q16: =IF(ROWS('Charge atelier chaudronnerie'!$3:15)<=COUNTIF(nom,$O$2),INDEX(DatePriseOf,SMALL(IF(nom=$O$2,ROW(INDIRECT("1:"&ROWS(Expr1)))),ROWS('Charge atelier chaudronnerie'!$3:15))),"") ->  | S16: =IF(ROWS('Charge atelier chaudronnerie'!$3:15)<=COUNTIF(nom,$S$2),INDEX(Expr1,SMALL(IF(nom=$S$2,ROW(INDIRECT("1:"&ROWS(Expr1)))),ROWS('Charge atelier chaudronnerie'!$3:15))),"") ->  | T16: =IF(ROWS('Charge atelier chaudronnerie'!$3:15)<=COUNTIF(nom,$S$2),INDEX(Expr2,SMALL(IF(nom=$S$2,ROW(INDIRECT("1:"&ROWS(Expr1)))),ROWS('Charge atelier chaudronnerie'!$3:15))),"") ->  | U16: =IF(ROWS('Charge atelier chaudronnerie'!$3:15)<=COUNTIF(nom,$S$2),INDEX(DatePriseOf,SMALL(IF(nom=$S$2,ROW(INDIRECT("1:"&ROWS(Expr1)))),ROWS('Charge atelier chaudronnerie'!$3:15))),"") ->  | W16: =IF(ROWS('Charge atelier chaudronnerie'!$3:15)<=COUNTIF(nom,$W$2),INDEX(Expr1,SMALL(IF(nom=$W$2,ROW(INDIRECT("1:"&ROWS(Expr1)))),ROWS('Charge atelier chaudronnerie'!$3:15))),"") ->  | X16: =IF(ROWS('Charge atelier chaudronnerie'!$3:15)<=COUNTIF(nom,$W$2),INDEX(Expr2,SMALL(IF(nom=$W$2,ROW(INDIRECT("1:"&ROWS(Expr1)))),ROWS('Charge atelier chaudronnerie'!$3:15))),"") ->  | Y16: =IF(ROWS('Charge atelier chaudronnerie'!$3:15)<=COUNTIF(nom,$W$2),INDEX(DatePriseOf,SMALL(IF(nom=$W$2,ROW(INDIRECT("1:"&ROWS(Expr1)))),ROWS('Charge atelier chaudronnerie'!$3:15))),"") ->  | AA16: =IF(ROWS('Charge atelier chaudronnerie'!$3:15)<=COUNTIF(nom,$AA$2),INDEX(Expr1,SMALL(IF(nom=$AA$2,ROW(INDIRECT("1:"&ROWS(Expr1)))),ROWS('Charge atelier chaudronnerie'!$3:15))),"") ->  | AB16: =IF(ROWS('Charge atelier chaudronnerie'!$3:15)<=COUNTIF(nom,$AA$2),INDEX(Expr2,SMALL(IF(nom=$AA$2,ROW(INDIRECT("1:"&ROWS(Expr1)))),ROWS('Charge atelier chaudronnerie'!$3:15))),"") ->  | AC16: =IF(ROWS('Charge atelier chaudronnerie'!$3:15)<=COUNTIF(nom,$AA$2),INDEX(DatePriseOf,SMALL(IF(nom=$AA$2,ROW(INDIRECT("1:"&ROWS(Expr1)))),ROWS('Charge atelier chaudronnerie'!$3:15))),"") ->  | AE16: =IF(ROWS('Charge atelier chaudronnerie'!$3:15)<=COUNTIF(nom,$AE$2),INDEX(Expr1,SMALL(IF(nom=$AE$2,ROW(INDIRECT("1:"&ROWS(Expr1)))),ROWS('Charge atelier chaudronnerie'!$3:15))),"") ->  | AF16: =IF(ROWS('Charge atelier chaudronnerie'!$3:15)<=COUNTIF(nom,$AE$2),INDEX(Expr2,SMALL(IF(nom=$AE$2,ROW(INDIRECT("1:"&ROWS(Expr1)))),ROWS('Charge atelier chaudronnerie'!$3:15))),"") ->  | AG16: =IF(ROWS('Charge atelier chaudronnerie'!$3:15)<=COUNTIF(nom,$AE$2),INDEX(DatePriseOf,SMALL(IF(nom=$AE$2,ROW(INDIRECT("1:"&ROWS(Expr1)))),ROWS('Charge atelier chaudronnerie'!$3:15))),"") ->  | AI16: =IF(ROWS('Charge atelier chaudronnerie'!$3:15)<=COUNTIF(nom,$AI$2),INDEX(Expr1,SMALL(IF(nom=$AI$2,ROW(INDIRECT("1:"&ROWS(Expr1)))),ROWS('Charge atelier chaudronnerie'!$3:15))),"") ->  | AJ16: =IF(ROWS('Charge atelier chaudronnerie'!$3:15)<=COUNTIF(nom,$AI$2),INDEX(Expr2,SMALL(IF(nom=$AI$2,ROW(INDIRECT("1:"&ROWS(Expr1)))),ROWS('Charge atelier chaudronnerie'!$3:15))),"") ->  | AK16: =IF(ROWS('Charge atelier chaudronnerie'!$3:15)<=COUNTIF(nom,$AI$2),INDEX(DatePriseOf,SMALL(IF(nom=$AI$2,ROW(INDIRECT("1:"&ROWS(Expr1)))),ROWS('Charge atelier chaudronnerie'!$3:15))),"") ->  | AM16: =IF(ROWS('Charge atelier chaudronnerie'!$3:15)<=COUNTIF(nom,$AM$2),INDEX(Expr1,SMALL(IF(nom=$AM$2,ROW(INDIRECT("1:"&ROWS(Expr1)))),ROWS('Charge atelier chaudronnerie'!$3:15))),"") ->  | AN16: =IF(ROWS('Charge atelier chaudronnerie'!$3:15)<=COUNTIF(nom,$AM$2),INDEX(Expr2,SMALL(IF(nom=$AM$2,ROW(INDIRECT("1:"&ROWS(Expr1)))),ROWS('Charge atelier chaudronnerie'!$3:15))),"") ->  | AO16: =IF(ROWS('Charge atelier chaudronnerie'!$3:15)<=COUNTIF(nom,$AM$2),INDEX(DatePriseOf,SMALL(IF(nom=$AM$2,ROW(INDIRECT("1:"&ROWS(Expr1)))),ROWS('Charge atelier chaudronnerie'!$3:15))),"") ->  | AQ16: =IF(ROWS('Charge atelier chaudronnerie'!$3:15)<=COUNTIF(nom,$AQ$2),INDEX(Expr1,SMALL(IF(nom=$AQ$2,ROW(INDIRECT("1:"&ROWS(Expr1)))),ROWS('Charge atelier chaudronnerie'!$3:15))),"") ->  | AR16: =IF(ROWS('Charge atelier chaudronnerie'!$3:15)<=COUNTIF(nom,$AQ$2),INDEX(Expr2,SMALL(IF(nom=$AQ$2,ROW(INDIRECT("1:"&ROWS(Expr1)))),ROWS('Charge atelier chaudronnerie'!$3:15))),"") ->  | AS16: =IF(ROWS('Charge atelier chaudronnerie'!$3:15)<=COUNTIF(nom,$AQ$2),INDEX(DatePriseOf,SMALL(IF(nom=$AQ$2,ROW(INDIRECT("1:"&ROWS(Expr1)))),ROWS('Charge atelier chaudronnerie'!$3:15))),"") ->  | AU16: =IF(ROWS('Charge atelier chaudronnerie'!$3:15)<=COUNTIF(nom,$AU$2),INDEX(Expr1,SMALL(IF(nom=$AU$2,ROW(INDIRECT("1:"&ROWS(Expr1)))),ROWS('Charge atelier chaudronnerie'!$3:15))),"") ->  | AV16: =IF(ROWS('Charge atelier chaudronnerie'!$3:15)<=COUNTIF(nom,$AU$2),INDEX(Expr2,SMALL(IF(nom=$AU$2,ROW(INDIRECT("1:"&ROWS(Expr1)))),ROWS('Charge atelier chaudronnerie'!$3:15))),"") ->  | AW16: =IF(ROWS('Charge atelier chaudronnerie'!$3:15)<=COUNTIF(nom,$AU$2),INDEX(DatePriseOf,SMALL(IF(nom=$AU$2,ROW(INDIRECT("1:"&ROWS(Expr1)))),ROWS('Charge atelier chaudronnerie'!$3:15))),"") ->  | AY16: =IF(ROWS('Charge atelier chaudronnerie'!$3:15)<=COUNTIF(nom,$AY$2),INDEX(Expr1,SMALL(IF(nom=$AY$2,ROW(INDIRECT("1:"&ROWS(Expr1)))),ROWS('Charge atelier chaudronnerie'!$3:15))),"") ->  | AZ16: =IF(ROWS('Charge atelier chaudronnerie'!$3:15)<=COUNTIF(nom,$AY$2),INDEX(Expr2,SMALL(IF(nom=$AY$2,ROW(INDIRECT("1:"&ROWS(Expr1)))),ROWS('Charge atelier chaudronnerie'!$3:15))),"") ->  | BA16: =IF(ROWS('Charge atelier chaudronnerie'!$3:15)<=COUNTIF(nom,$AY$2),INDEX(DatePriseOf,SMALL(IF(nom=$AY$2,ROW(INDIRECT("1:"&ROWS(Expr1)))),ROWS('Charge atelier chaudronnerie'!$3:15))),"") ->  | BC16: =IF(ROWS('Charge atelier chaudronnerie'!$3:15)<=COUNTIF(nom,$BC$2),INDEX(Expr1,SMALL(IF(nom=$BC$2,ROW(INDIRECT("1:"&ROWS(Expr1)))),ROWS('Charge atelier chaudronnerie'!$3:15))),"") ->  | BD16: =IF(ROWS('Charge atelier chaudronnerie'!$3:15)<=COUNTIF(nom,$BC$2),INDEX(Expr2,SMALL(IF(nom=$BC$2,ROW(INDIRECT("1:"&ROWS(Expr1)))),ROWS('Charge atelier chaudronnerie'!$3:15))),"") ->  | BE16: =IF(ROWS('Charge atelier chaudronnerie'!$3:15)<=COUNTIF(nom,$BC$2),INDEX(DatePriseOf,SMALL(IF(nom=$BC$2,ROW(INDIRECT("1:"&ROWS(Expr1)))),ROWS('Charge atelier chaudronnerie'!$3:15))),"") ->  | BG16: =IF(ROWS('Charge atelier chaudronnerie'!$3:15)<=COUNTIF(nom,$BG$2),INDEX(Expr1,SMALL(IF(nom=$BG$2,ROW(INDIRECT("1:"&ROWS(Expr1)))),ROWS('Charge atelier chaudronnerie'!$3:15))),"") ->  | BH16: =IF(ROWS('Charge atelier chaudronnerie'!$3:15)<=COUNTIF(nom,$BG$2),INDEX(Expr2,SMALL(IF(nom=$BG$2,ROW(INDIRECT("1:"&ROWS(Expr1)))),ROWS('Charge atelier chaudronnerie'!$3:15))),"") ->  | BI16: =IF(ROWS('Charge atelier chaudronnerie'!$3:15)<=COUNTIF(nom,$BG$2),INDEX(DatePriseOf,SMALL(IF(nom=$BG$2,ROW(INDIRECT("1:"&ROWS(Expr1)))),ROWS('Charge atelier chaudronnerie'!$3:15))),"") ->  | BK16: =IF(ROWS('Charge atelier chaudronnerie'!$3:15)<=COUNTIF(nom,$BK$2),INDEX(Expr1,SMALL(IF(nom=$BK$2,ROW(INDIRECT("1:"&ROWS(Expr1)))),ROWS('Charge atelier chaudronnerie'!$3:15))),"") ->  | BL16: =IF(ROWS('Charge atelier chaudronnerie'!$3:15)<=COUNTIF(nom,$BK$2),INDEX(Expr2,SMALL(IF(nom=$BK$2,ROW(INDIRECT("1:"&ROWS(Expr1)))),ROWS('Charge atelier chaudronnerie'!$3:15))),"") ->  | BM16: =IF(ROWS('Charge atelier chaudronnerie'!$3:15)<=COUNTIF(nom,$BK$2),INDEX(DatePriseOf,SMALL(IF(nom=$BK$2,ROW(INDIRECT("1:"&ROWS(Expr1)))),ROWS('Charge atelier chaudronnerie'!$3:15))),"") ->  | BO16: =IF(ROWS('Charge atelier chaudronnerie'!$3:12)<=COUNTIF(nom,$BO$2),INDEX(Expr1,SMALL(IF(nom=$BO$2,ROW(INDIRECT("1:"&ROWS(Expr1)))),ROWS('Charge atelier chaudronnerie'!$3:12))),"") ->  | BP16: =IF(ROWS('Charge atelier chaudronnerie'!$3:12)<=COUNTIF(nom,$BO$2),INDEX(Expr2,SMALL(IF(nom=$BO$2,ROW(INDIRECT("1:"&ROWS(Expr1)))),ROWS('Charge atelier chaudronnerie'!$3:12))),"") ->  | BQ16: =IF(ROWS('Charge atelier chaudronnerie'!$3:12)<=COUNTIF(nom,$BO$2),INDEX(DatePriseOf,SMALL(IF(nom=$BO$2,ROW(INDIRECT("1:"&ROWS(Expr1)))),ROWS('Charge atelier chaudronnerie'!$3:12))),"") ->  | BS16: =IF(ROWS('Charge atelier chaudronnerie'!$3:12)<=COUNTIF(nom,$BS$2),INDEX(Expr1,SMALL(IF(nom=$BS$2,ROW(INDIRECT("1:"&ROWS(Expr1)))),ROWS('Charge atelier chaudronnerie'!$3:12))),"") ->  | BT16: =IF(ROWS('Charge atelier chaudronnerie'!$3:12)<=COUNTIF(nom,$BS$2),INDEX(Expr2,SMALL(IF(nom=$BS$2,ROW(INDIRECT("1:"&ROWS(Expr1)))),ROWS('Charge atelier chaudronnerie'!$3:12))),"") ->  | BU16: =IF(ROWS('Charge atelier chaudronnerie'!$3:12)<=COUNTIF(nom,$BS$2),INDEX(DatePriseOf,SMALL(IF(nom=$BS$2,ROW(INDIRECT("1:"&ROWS(Expr1)))),ROWS('Charge atelier chaudronnerie'!$3:12))),"") -> 
A17: mirek | C17: =IF(ROWS('Charge atelier chaudronnerie'!$3:16)<=COUNTIF(nom,$C$2),INDEX(Expr1,SMALL(IF(nom=$C$2,ROW(INDIRECT("1:"&ROWS(Expr1)))),ROWS('Charge atelier chaudronnerie'!$3:16))),"") ->  | D17: =IF(ROWS('Charge atelier chaudronnerie'!$3:16)<=COUNTIF(nom,$C$2),INDEX(Expr2,SMALL(IF(nom=$C$2,ROW(INDIRECT("1:"&ROWS(Expr1)))),ROWS('Charge atelier chaudronnerie'!$3:16))),"") ->  | E17: =IF(ROWS('Charge atelier chaudronnerie'!$3:16)<=COUNTIF(nom,$C$2),INDEX(DatePriseOf,SMALL(IF(nom=$C$2,ROW(INDIRECT("1:"&ROWS(Expr1)))),ROWS('Charge atelier chaudronnerie'!$3:16))),"") ->  | G17: =IF(ROWS('Charge atelier chaudronnerie'!$3:16)<=COUNTIF(nom,$G$2),INDEX(Expr1,SMALL(IF(nom=$G$2,ROW(INDIRECT("1:"&ROWS(Expr1)))),ROWS('Charge atelier chaudronnerie'!$3:16))),"") ->  | H17: =IF(ROWS('Charge atelier chaudronnerie'!$3:16)<=COUNTIF(nom,$G$2),INDEX(Expr2,SMALL(IF(nom=$G$2,ROW(INDIRECT("1:"&ROWS(Expr1)))),ROWS('Charge atelier chaudronnerie'!$3:16))),"") ->  | I17: =IF(ROWS('Charge atelier chaudronnerie'!$3:16)<=COUNTIF(nom,$G$2),INDEX(DatePriseOf,SMALL(IF(nom=$G$2,ROW(INDIRECT("1:"&ROWS(Expr1)))),ROWS('Charge atelier chaudronnerie'!$3:16))),"") ->  | K17: =IF(ROWS('Charge atelier chaudronnerie'!$3:16)<=COUNTIF(nom,$K$2),INDEX(Expr1,SMALL(IF(nom=$K$2,ROW(INDIRECT("1:"&ROWS(Expr1)))),ROWS('Charge atelier chaudronnerie'!$3:16))),"") ->  | L17: =IF(ROWS('Charge atelier chaudronnerie'!$3:16)<=COUNTIF(nom,$K$2),INDEX(Expr2,SMALL(IF(nom=$K$2,ROW(INDIRECT("1:"&ROWS(Expr1)))),ROWS('Charge atelier chaudronnerie'!$3:16))),"") ->  | M17: =IF(ROWS('Charge atelier chaudronnerie'!$3:16)<=COUNTIF(nom,$K$2),INDEX(DatePriseOf,SMALL(IF(nom=$K$2,ROW(INDIRECT("1:"&ROWS(Expr1)))),ROWS('Charge atelier chaudronnerie'!$3:16))),"") ->  | O17: =IF(ROWS('Charge atelier chaudronnerie'!$3:16)<=COUNTIF(nom,$O$2),INDEX(Expr1,SMALL(IF(nom=$O$2,ROW(INDIRECT("1:"&ROWS(Expr1)))),ROWS('Charge atelier chaudronnerie'!$3:16))),"") ->  | P17: =IF(ROWS('Charge atelier chaudronnerie'!$3:16)<=COUNTIF(nom,$O$2),INDEX(Expr2,SMALL(IF(nom=$O$2,ROW(INDIRECT("1:"&ROWS(Expr1)))),ROWS('Charge atelier chaudronnerie'!$3:16))),"") ->  | Q17: =IF(ROWS('Charge atelier chaudronnerie'!$3:16)<=COUNTIF(nom,$O$2),INDEX(DatePriseOf,SMALL(IF(nom=$O$2,ROW(INDIRECT("1:"&ROWS(Expr1)))),ROWS('Charge atelier chaudronnerie'!$3:16))),"") ->  | S17: =IF(ROWS('Charge atelier chaudronnerie'!$3:16)<=COUNTIF(nom,$S$2),INDEX(Expr1,SMALL(IF(nom=$S$2,ROW(INDIRECT("1:"&ROWS(Expr1)))),ROWS('Charge atelier chaudronnerie'!$3:16))),"") ->  | T17: =IF(ROWS('Charge atelier chaudronnerie'!$3:16)<=COUNTIF(nom,$S$2),INDEX(Expr2,SMALL(IF(nom=$S$2,ROW(INDIRECT("1:"&ROWS(Expr1)))),ROWS('Charge atelier chaudronnerie'!$3:16))),"") ->  | U17: =IF(ROWS('Charge atelier chaudronnerie'!$3:16)<=COUNTIF(nom,$S$2),INDEX(DatePriseOf,SMALL(IF(nom=$S$2,ROW(INDIRECT("1:"&ROWS(Expr1)))),ROWS('Charge atelier chaudronnerie'!$3:16))),"") ->  | W17: =IF(ROWS('Charge atelier chaudronnerie'!$3:16)<=COUNTIF(nom,$W$2),INDEX(Expr1,SMALL(IF(nom=$W$2,ROW(INDIRECT("1:"&ROWS(Expr1)))),ROWS('Charge atelier chaudronnerie'!$3:16))),"") ->  | X17: =IF(ROWS('Charge atelier chaudronnerie'!$3:16)<=COUNTIF(nom,$W$2),INDEX(Expr2,SMALL(IF(nom=$W$2,ROW(INDIRECT("1:"&ROWS(Expr1)))),ROWS('Charge atelier chaudronnerie'!$3:16))),"") ->  | Y17: =IF(ROWS('Charge atelier chaudronnerie'!$3:16)<=COUNTIF(nom,$W$2),INDEX(DatePriseOf,SMALL(IF(nom=$W$2,ROW(INDIRECT("1:"&ROWS(Expr1)))),ROWS('Charge atelier chaudronnerie'!$3:16))),"") ->  | AA17: =IF(ROWS('Charge atelier chaudronnerie'!$3:16)<=COUNTIF(nom,$AA$2),INDEX(Expr1,SMALL(IF(nom=$AA$2,ROW(INDIRECT("1:"&ROWS(Expr1)))),ROWS('Charge atelier chaudronnerie'!$3:16))),"") ->  | AB17: =IF(ROWS('Charge atelier chaudronnerie'!$3:16)<=COUNTIF(nom,$AA$2),INDEX(Expr2,SMALL(IF(nom=$AA$2,ROW(INDIRECT("1:"&ROWS(Expr1)))),ROWS('Charge atelier chaudronnerie'!$3:16))),"") ->  | AC17: =IF(ROWS('Charge atelier chaudronnerie'!$3:16)<=COUNTIF(nom,$AA$2),INDEX(DatePriseOf,SMALL(IF(nom=$AA$2,ROW(INDIRECT("1:"&ROWS(Expr1)))),ROWS('Charge atelier chaudronnerie'!$3:16))),"") ->  | AE17: =IF(ROWS('Charge atelier chaudronnerie'!$3:16)<=COUNTIF(nom,$AE$2),INDEX(Expr1,SMALL(IF(nom=$AE$2,ROW(INDIRECT("1:"&ROWS(Expr1)))),ROWS('Charge atelier chaudronnerie'!$3:16))),"") ->  | AF17: =IF(ROWS('Charge atelier chaudronnerie'!$3:16)<=COUNTIF(nom,$AE$2),INDEX(Expr2,SMALL(IF(nom=$AE$2,ROW(INDIRECT("1:"&ROWS(Expr1)))),ROWS('Charge atelier chaudronnerie'!$3:16))),"") ->  | AG17: =IF(ROWS('Charge atelier chaudronnerie'!$3:16)<=COUNTIF(nom,$AE$2),INDEX(DatePriseOf,SMALL(IF(nom=$AE$2,ROW(INDIRECT("1:"&ROWS(Expr1)))),ROWS('Charge atelier chaudronnerie'!$3:16))),"") ->  | AI17: =IF(ROWS('Charge atelier chaudronnerie'!$3:16)<=COUNTIF(nom,$AI$2),INDEX(Expr1,SMALL(IF(nom=$AI$2,ROW(INDIRECT("1:"&ROWS(Expr1)))),ROWS('Charge atelier chaudronnerie'!$3:16))),"") ->  | AJ17: =IF(ROWS('Charge atelier chaudronnerie'!$3:16)<=COUNTIF(nom,$AI$2),INDEX(Expr2,SMALL(IF(nom=$AI$2,ROW(INDIRECT("1:"&ROWS(Expr1)))),ROWS('Charge atelier chaudronnerie'!$3:16))),"") ->  | AK17: =IF(ROWS('Charge atelier chaudronnerie'!$3:16)<=COUNTIF(nom,$AI$2),INDEX(DatePriseOf,SMALL(IF(nom=$AI$2,ROW(INDIRECT("1:"&ROWS(Expr1)))),ROWS('Charge atelier chaudronnerie'!$3:16))),"") ->  | AM17: =IF(ROWS('Charge atelier chaudronnerie'!$3:16)<=COUNTIF(nom,$AM$2),INDEX(Expr1,SMALL(IF(nom=$AM$2,ROW(INDIRECT("1:"&ROWS(Expr1)))),ROWS('Charge atelier chaudronnerie'!$3:16))),"") ->  | AN17: =IF(ROWS('Charge atelier chaudronnerie'!$3:16)<=COUNTIF(nom,$AM$2),INDEX(Expr2,SMALL(IF(nom=$AM$2,ROW(INDIRECT("1:"&ROWS(Expr1)))),ROWS('Charge atelier chaudronnerie'!$3:16))),"") ->  | AO17: =IF(ROWS('Charge atelier chaudronnerie'!$3:16)<=COUNTIF(nom,$AM$2),INDEX(DatePriseOf,SMALL(IF(nom=$AM$2,ROW(INDIRECT("1:"&ROWS(Expr1)))),ROWS('Charge atelier chaudronnerie'!$3:16))),"") ->  | AQ17: =IF(ROWS('Charge atelier chaudronnerie'!$3:16)<=COUNTIF(nom,$AQ$2),INDEX(Expr1,SMALL(IF(nom=$AQ$2,ROW(INDIRECT("1:"&ROWS(Expr1)))),ROWS('Charge atelier chaudronnerie'!$3:16))),"") ->  | AR17: =IF(ROWS('Charge atelier chaudronnerie'!$3:16)<=COUNTIF(nom,$AQ$2),INDEX(Expr2,SMALL(IF(nom=$AQ$2,ROW(INDIRECT("1:"&ROWS(Expr1)))),ROWS('Charge atelier chaudronnerie'!$3:16))),"") ->  | AS17: =IF(ROWS('Charge atelier chaudronnerie'!$3:16)<=COUNTIF(nom,$AQ$2),INDEX(DatePriseOf,SMALL(IF(nom=$AQ$2,ROW(INDIRECT("1:"&ROWS(Expr1)))),ROWS('Charge atelier chaudronnerie'!$3:16))),"") ->  | AU17: =IF(ROWS('Charge atelier chaudronnerie'!$3:16)<=COUNTIF(nom,$AU$2),INDEX(Expr1,SMALL(IF(nom=$AU$2,ROW(INDIRECT("1:"&ROWS(Expr1)))),ROWS('Charge atelier chaudronnerie'!$3:16))),"") ->  | AV17: =IF(ROWS('Charge atelier chaudronnerie'!$3:16)<=COUNTIF(nom,$AU$2),INDEX(Expr2,SMALL(IF(nom=$AU$2,ROW(INDIRECT("1:"&ROWS(Expr1)))),ROWS('Charge atelier chaudronnerie'!$3:16))),"") ->  | AW17: =IF(ROWS('Charge atelier chaudronnerie'!$3:16)<=COUNTIF(nom,$AU$2),INDEX(DatePriseOf,SMALL(IF(nom=$AU$2,ROW(INDIRECT("1:"&ROWS(Expr1)))),ROWS('Charge atelier chaudronnerie'!$3:16))),"") ->  | AY17: =IF(ROWS('Charge atelier chaudronnerie'!$3:16)<=COUNTIF(nom,$AY$2),INDEX(Expr1,SMALL(IF(nom=$AY$2,ROW(INDIRECT("1:"&ROWS(Expr1)))),ROWS('Charge atelier chaudronnerie'!$3:16))),"") ->  | AZ17: =IF(ROWS('Charge atelier chaudronnerie'!$3:16)<=COUNTIF(nom,$AY$2),INDEX(Expr2,SMALL(IF(nom=$AY$2,ROW(INDIRECT("1:"&ROWS(Expr1)))),ROWS('Charge atelier chaudronnerie'!$3:16))),"") ->  | BA17: =IF(ROWS('Charge atelier chaudronnerie'!$3:16)<=COUNTIF(nom,$AY$2),INDEX(DatePriseOf,SMALL(IF(nom=$AY$2,ROW(INDIRECT("1:"&ROWS(Expr1)))),ROWS('Charge atelier chaudronnerie'!$3:16))),"") ->  | BC17: =IF(ROWS('Charge atelier chaudronnerie'!$3:16)<=COUNTIF(nom,$BC$2),INDEX(Expr1,SMALL(IF(nom=$BC$2,ROW(INDIRECT("1:"&ROWS(Expr1)))),ROWS('Charge atelier chaudronnerie'!$3:16))),"") ->  | BD17: =IF(ROWS('Charge atelier chaudronnerie'!$3:16)<=COUNTIF(nom,$BC$2),INDEX(Expr2,SMALL(IF(nom=$BC$2,ROW(INDIRECT("1:"&ROWS(Expr1)))),ROWS('Charge atelier chaudronnerie'!$3:16))),"") ->  | BE17: =IF(ROWS('Charge atelier chaudronnerie'!$3:16)<=COUNTIF(nom,$BC$2),INDEX(DatePriseOf,SMALL(IF(nom=$BC$2,ROW(INDIRECT("1:"&ROWS(Expr1)))),ROWS('Charge atelier chaudronnerie'!$3:16))),"") ->  | BG17: =IF(ROWS('Charge atelier chaudronnerie'!$3:16)<=COUNTIF(nom,$BG$2),INDEX(Expr1,SMALL(IF(nom=$BG$2,ROW(INDIRECT("1:"&ROWS(Expr1)))),ROWS('Charge atelier chaudronnerie'!$3:16))),"") ->  | BH17: =IF(ROWS('Charge atelier chaudronnerie'!$3:16)<=COUNTIF(nom,$BG$2),INDEX(Expr2,SMALL(IF(nom=$BG$2,ROW(INDIRECT("1:"&ROWS(Expr1)))),ROWS('Charge atelier chaudronnerie'!$3:16))),"") ->  | BI17: =IF(ROWS('Charge atelier chaudronnerie'!$3:16)<=COUNTIF(nom,$BG$2),INDEX(DatePriseOf,SMALL(IF(nom=$BG$2,ROW(INDIRECT("1:"&ROWS(Expr1)))),ROWS('Charge atelier chaudronnerie'!$3:16))),"") ->  | BK17: =IF(ROWS('Charge atelier chaudronnerie'!$3:16)<=COUNTIF(nom,$BK$2),INDEX(Expr1,SMALL(IF(nom=$BK$2,ROW(INDIRECT("1:"&ROWS(Expr1)))),ROWS('Charge atelier chaudronnerie'!$3:16))),"") ->  | BL17: =IF(ROWS('Charge atelier chaudronnerie'!$3:16)<=COUNTIF(nom,$BK$2),INDEX(Expr2,SMALL(IF(nom=$BK$2,ROW(INDIRECT("1:"&ROWS(Expr1)))),ROWS('Charge atelier chaudronnerie'!$3:16))),"") ->  | BM17: =IF(ROWS('Charge atelier chaudronnerie'!$3:16)<=COUNTIF(nom,$BK$2),INDEX(DatePriseOf,SMALL(IF(nom=$BK$2,ROW(INDIRECT("1:"&ROWS(Expr1)))),ROWS('Charge atelier chaudronnerie'!$3:16))),"") ->  | BO17: =IF(ROWS('Charge atelier chaudronnerie'!$3:13)<=COUNTIF(nom,$BO$2),INDEX(Expr1,SMALL(IF(nom=$BO$2,ROW(INDIRECT("1:"&ROWS(Expr1)))),ROWS('Charge atelier chaudronnerie'!$3:13))),"") ->  | BP17: =IF(ROWS('Charge atelier chaudronnerie'!$3:13)<=COUNTIF(nom,$BO$2),INDEX(Expr2,SMALL(IF(nom=$BO$2,ROW(INDIRECT("1:"&ROWS(Expr1)))),ROWS('Charge atelier chaudronnerie'!$3:13))),"") ->  | BQ17: =IF(ROWS('Charge atelier chaudronnerie'!$3:13)<=COUNTIF(nom,$BO$2),INDEX(DatePriseOf,SMALL(IF(nom=$BO$2,ROW(INDIRECT("1:"&ROWS(Expr1)))),ROWS('Charge atelier chaudronnerie'!$3:13))),"") ->  | BS17: =IF(ROWS('Charge atelier chaudronnerie'!$3:13)<=COUNTIF(nom,$BS$2),INDEX(Expr1,SMALL(IF(nom=$BS$2,ROW(INDIRECT("1:"&ROWS(Expr1)))),ROWS('Charge atelier chaudronnerie'!$3:13))),"") ->  | BT17: =IF(ROWS('Charge atelier chaudronnerie'!$3:13)<=COUNTIF(nom,$BS$2),INDEX(Expr2,SMALL(IF(nom=$BS$2,ROW(INDIRECT("1:"&ROWS(Expr1)))),ROWS('Charge atelier chaudronnerie'!$3:13))),"") ->  | BU17: =IF(ROWS('Charge atelier chaudronnerie'!$3:13)<=COUNTIF(nom,$BS$2),INDEX(DatePriseOf,SMALL(IF(nom=$BS$2,ROW(INDIRECT("1:"&ROWS(Expr1)))),ROWS('Charge atelier chaudronnerie'!$3:13))),"") -> 
A18: nicholas | C18: =IF(ROWS('Charge atelier chaudronnerie'!$3:17)<=COUNTIF(nom,$C$2),INDEX(Expr1,SMALL(IF(nom=$C$2,ROW(INDIRECT("1:"&ROWS(Expr1)))),ROWS('Charge atelier chaudronnerie'!$3:17))),"") ->  | D18: =IF(ROWS('Charge atelier chaudronnerie'!$3:17)<=COUNTIF(nom,$C$2),INDEX(Expr2,SMALL(IF(nom=$C$2,ROW(INDIRECT("1:"&ROWS(Expr1)))),ROWS('Charge atelier chaudronnerie'!$3:17))),"") ->  | E18: =IF(ROWS('Charge atelier chaudronnerie'!$3:17)<=COUNTIF(nom,$C$2),INDEX(DatePriseOf,SMALL(IF(nom=$C$2,ROW(INDIRECT("1:"&ROWS(Expr1)))),ROWS('Charge atelier chaudronnerie'!$3:17))),"") ->  | G18: =IF(ROWS('Charge atelier chaudronnerie'!$3:17)<=COUNTIF(nom,$G$2),INDEX(Expr1,SMALL(IF(nom=$G$2,ROW(INDIRECT("1:"&ROWS(Expr1)))),ROWS('Charge atelier chaudronnerie'!$3:17))),"") ->  | H18: =IF(ROWS('Charge atelier chaudronnerie'!$3:17)<=COUNTIF(nom,$G$2),INDEX(Expr2,SMALL(IF(nom=$G$2,ROW(INDIRECT("1:"&ROWS(Expr1)))),ROWS('Charge atelier chaudronnerie'!$3:17))),"") ->  | I18: =IF(ROWS('Charge atelier chaudronnerie'!$3:17)<=COUNTIF(nom,$G$2),INDEX(DatePriseOf,SMALL(IF(nom=$G$2,ROW(INDIRECT("1:"&ROWS(Expr1)))),ROWS('Charge atelier chaudronnerie'!$3:17))),"") ->  | K18: =IF(ROWS('Charge atelier chaudronnerie'!$3:17)<=COUNTIF(nom,$K$2),INDEX(Expr1,SMALL(IF(nom=$K$2,ROW(INDIRECT("1:"&ROWS(Expr1)))),ROWS('Charge atelier chaudronnerie'!$3:17))),"") ->  | L18: =IF(ROWS('Charge atelier chaudronnerie'!$3:17)<=COUNTIF(nom,$K$2),INDEX(Expr2,SMALL(IF(nom=$K$2,ROW(INDIRECT("1:"&ROWS(Expr1)))),ROWS('Charge atelier chaudronnerie'!$3:17))),"") ->  | M18: =IF(ROWS('Charge atelier chaudronnerie'!$3:17)<=COUNTIF(nom,$K$2),INDEX(DatePriseOf,SMALL(IF(nom=$K$2,ROW(INDIRECT("1:"&ROWS(Expr1)))),ROWS('Charge atelier chaudronnerie'!$3:17))),"") ->  | O18: =IF(ROWS('Charge atelier chaudronnerie'!$3:17)<=COUNTIF(nom,$O$2),INDEX(Expr1,SMALL(IF(nom=$O$2,ROW(INDIRECT("1:"&ROWS(Expr1)))),ROWS('Charge atelier chaudronnerie'!$3:17))),"") ->  | P18: =IF(ROWS('Charge atelier chaudronnerie'!$3:17)<=COUNTIF(nom,$O$2),INDEX(Expr2,SMALL(IF(nom=$O$2,ROW(INDIRECT("1:"&ROWS(Expr1)))),ROWS('Charge atelier chaudronnerie'!$3:17))),"") ->  | Q18: =IF(ROWS('Charge atelier chaudronnerie'!$3:17)<=COUNTIF(nom,$O$2),INDEX(DatePriseOf,SMALL(IF(nom=$O$2,ROW(INDIRECT("1:"&ROWS(Expr1)))),ROWS('Charge atelier chaudronnerie'!$3:17))),"") ->  | S18: =IF(ROWS('Charge atelier chaudronnerie'!$3:17)<=COUNTIF(nom,$S$2),INDEX(Expr1,SMALL(IF(nom=$S$2,ROW(INDIRECT("1:"&ROWS(Expr1)))),ROWS('Charge atelier chaudronnerie'!$3:17))),"") ->  | T18: =IF(ROWS('Charge atelier chaudronnerie'!$3:17)<=COUNTIF(nom,$S$2),INDEX(Expr2,SMALL(IF(nom=$S$2,ROW(INDIRECT("1:"&ROWS(Expr1)))),ROWS('Charge atelier chaudronnerie'!$3:17))),"") ->  | U18: =IF(ROWS('Charge atelier chaudronnerie'!$3:17)<=COUNTIF(nom,$S$2),INDEX(DatePriseOf,SMALL(IF(nom=$S$2,ROW(INDIRECT("1:"&ROWS(Expr1)))),ROWS('Charge atelier chaudronnerie'!$3:17))),"") ->  | W18: =IF(ROWS('Charge atelier chaudronnerie'!$3:17)<=COUNTIF(nom,$W$2),INDEX(Expr1,SMALL(IF(nom=$W$2,ROW(INDIRECT("1:"&ROWS(Expr1)))),ROWS('Charge atelier chaudronnerie'!$3:17))),"") ->  | X18: =IF(ROWS('Charge atelier chaudronnerie'!$3:17)<=COUNTIF(nom,$W$2),INDEX(Expr2,SMALL(IF(nom=$W$2,ROW(INDIRECT("1:"&ROWS(Expr1)))),ROWS('Charge atelier chaudronnerie'!$3:17))),"") ->  | Y18: =IF(ROWS('Charge atelier chaudronnerie'!$3:17)<=COUNTIF(nom,$W$2),INDEX(DatePriseOf,SMALL(IF(nom=$W$2,ROW(INDIRECT("1:"&ROWS(Expr1)))),ROWS('Charge atelier chaudronnerie'!$3:17))),"") ->  | AA18: =IF(ROWS('Charge atelier chaudronnerie'!$3:17)<=COUNTIF(nom,$AA$2),INDEX(Expr1,SMALL(IF(nom=$AA$2,ROW(INDIRECT("1:"&ROWS(Expr1)))),ROWS('Charge atelier chaudronnerie'!$3:17))),"") ->  | AB18: =IF(ROWS('Charge atelier chaudronnerie'!$3:17)<=COUNTIF(nom,$AA$2),INDEX(Expr2,SMALL(IF(nom=$AA$2,ROW(INDIRECT("1:"&ROWS(Expr1)))),ROWS('Charge atelier chaudronnerie'!$3:17))),"") ->  | AC18: =IF(ROWS('Charge atelier chaudronnerie'!$3:17)<=COUNTIF(nom,$AA$2),INDEX(DatePriseOf,SMALL(IF(nom=$AA$2,ROW(INDIRECT("1:"&ROWS(Expr1)))),ROWS('Charge atelier chaudronnerie'!$3:17))),"") ->  | AE18: =IF(ROWS('Charge atelier chaudronnerie'!$3:17)<=COUNTIF(nom,$AE$2),INDEX(Expr1,SMALL(IF(nom=$AE$2,ROW(INDIRECT("1:"&ROWS(Expr1)))),ROWS('Charge atelier chaudronnerie'!$3:17))),"") ->  | AF18: =IF(ROWS('Charge atelier chaudronnerie'!$3:17)<=COUNTIF(nom,$AE$2),INDEX(Expr2,SMALL(IF(nom=$AE$2,ROW(INDIRECT("1:"&ROWS(Expr1)))),ROWS('Charge atelier chaudronnerie'!$3:17))),"") ->  | AG18: =IF(ROWS('Charge atelier chaudronnerie'!$3:17)<=COUNTIF(nom,$AE$2),INDEX(DatePriseOf,SMALL(IF(nom=$AE$2,ROW(INDIRECT("1:"&ROWS(Expr1)))),ROWS('Charge atelier chaudronnerie'!$3:17))),"") ->  | AI18: =IF(ROWS('Charge atelier chaudronnerie'!$3:17)<=COUNTIF(nom,$AI$2),INDEX(Expr1,SMALL(IF(nom=$AI$2,ROW(INDIRECT("1:"&ROWS(Expr1)))),ROWS('Charge atelier chaudronnerie'!$3:17))),"") ->  | AJ18: =IF(ROWS('Charge atelier chaudronnerie'!$3:17)<=COUNTIF(nom,$AI$2),INDEX(Expr2,SMALL(IF(nom=$AI$2,ROW(INDIRECT("1:"&ROWS(Expr1)))),ROWS('Charge atelier chaudronnerie'!$3:17))),"") ->  | AK18: =IF(ROWS('Charge atelier chaudronnerie'!$3:17)<=COUNTIF(nom,$AI$2),INDEX(DatePriseOf,SMALL(IF(nom=$AI$2,ROW(INDIRECT("1:"&ROWS(Expr1)))),ROWS('Charge atelier chaudronnerie'!$3:17))),"") ->  | AM18: =IF(ROWS('Charge atelier chaudronnerie'!$3:17)<=COUNTIF(nom,$AM$2),INDEX(Expr1,SMALL(IF(nom=$AM$2,ROW(INDIRECT("1:"&ROWS(Expr1)))),ROWS('Charge atelier chaudronnerie'!$3:17))),"") ->  | AN18: =IF(ROWS('Charge atelier chaudronnerie'!$3:17)<=COUNTIF(nom,$AM$2),INDEX(Expr2,SMALL(IF(nom=$AM$2,ROW(INDIRECT("1:"&ROWS(Expr1)))),ROWS('Charge atelier chaudronnerie'!$3:17))),"") ->  | AO18: =IF(ROWS('Charge atelier chaudronnerie'!$3:17)<=COUNTIF(nom,$AM$2),INDEX(DatePriseOf,SMALL(IF(nom=$AM$2,ROW(INDIRECT("1:"&ROWS(Expr1)))),ROWS('Charge atelier chaudronnerie'!$3:17))),"") ->  | AQ18: =IF(ROWS('Charge atelier chaudronnerie'!$3:17)<=COUNTIF(nom,$AQ$2),INDEX(Expr1,SMALL(IF(nom=$AQ$2,ROW(INDIRECT("1:"&ROWS(Expr1)))),ROWS('Charge atelier chaudronnerie'!$3:17))),"") ->  | AR18: =IF(ROWS('Charge atelier chaudronnerie'!$3:17)<=COUNTIF(nom,$AQ$2),INDEX(Expr2,SMALL(IF(nom=$AQ$2,ROW(INDIRECT("1:"&ROWS(Expr1)))),ROWS('Charge atelier chaudronnerie'!$3:17))),"") ->  | AS18: =IF(ROWS('Charge atelier chaudronnerie'!$3:17)<=COUNTIF(nom,$AQ$2),INDEX(DatePriseOf,SMALL(IF(nom=$AQ$2,ROW(INDIRECT("1:"&ROWS(Expr1)))),ROWS('Charge atelier chaudronnerie'!$3:17))),"") ->  | AU18: =IF(ROWS('Charge atelier chaudronnerie'!$3:17)<=COUNTIF(nom,$AU$2),INDEX(Expr1,SMALL(IF(nom=$AU$2,ROW(INDIRECT("1:"&ROWS(Expr1)))),ROWS('Charge atelier chaudronnerie'!$3:17))),"") ->  | AV18: =IF(ROWS('Charge atelier chaudronnerie'!$3:17)<=COUNTIF(nom,$AU$2),INDEX(Expr2,SMALL(IF(nom=$AU$2,ROW(INDIRECT("1:"&ROWS(Expr1)))),ROWS('Charge atelier chaudronnerie'!$3:17))),"") ->  | AW18: =IF(ROWS('Charge atelier chaudronnerie'!$3:17)<=COUNTIF(nom,$AU$2),INDEX(DatePriseOf,SMALL(IF(nom=$AU$2,ROW(INDIRECT("1:"&ROWS(Expr1)))),ROWS('Charge atelier chaudronnerie'!$3:17))),"") ->  | AY18: =IF(ROWS('Charge atelier chaudronnerie'!$3:17)<=COUNTIF(nom,$AY$2),INDEX(Expr1,SMALL(IF(nom=$AY$2,ROW(INDIRECT("1:"&ROWS(Expr1)))),ROWS('Charge atelier chaudronnerie'!$3:17))),"") ->  | AZ18: =IF(ROWS('Charge atelier chaudronnerie'!$3:17)<=COUNTIF(nom,$AY$2),INDEX(Expr2,SMALL(IF(nom=$AY$2,ROW(INDIRECT("1:"&ROWS(Expr1)))),ROWS('Charge atelier chaudronnerie'!$3:17))),"") ->  | BA18: =IF(ROWS('Charge atelier chaudronnerie'!$3:17)<=COUNTIF(nom,$AY$2),INDEX(DatePriseOf,SMALL(IF(nom=$AY$2,ROW(INDIRECT("1:"&ROWS(Expr1)))),ROWS('Charge atelier chaudronnerie'!$3:17))),"") ->  | BC18: =IF(ROWS('Charge atelier chaudronnerie'!$3:17)<=COUNTIF(nom,$BC$2),INDEX(Expr1,SMALL(IF(nom=$BC$2,ROW(INDIRECT("1:"&ROWS(Expr1)))),ROWS('Charge atelier chaudronnerie'!$3:17))),"") ->  | BD18: =IF(ROWS('Charge atelier chaudronnerie'!$3:17)<=COUNTIF(nom,$BC$2),INDEX(Expr2,SMALL(IF(nom=$BC$2,ROW(INDIRECT("1:"&ROWS(Expr1)))),ROWS('Charge atelier chaudronnerie'!$3:17))),"") ->  | BE18: =IF(ROWS('Charge atelier chaudronnerie'!$3:17)<=COUNTIF(nom,$BC$2),INDEX(DatePriseOf,SMALL(IF(nom=$BC$2,ROW(INDIRECT("1:"&ROWS(Expr1)))),ROWS('Charge atelier chaudronnerie'!$3:17))),"") ->  | BG18: =IF(ROWS('Charge atelier chaudronnerie'!$3:17)<=COUNTIF(nom,$BG$2),INDEX(Expr1,SMALL(IF(nom=$BG$2,ROW(INDIRECT("1:"&ROWS(Expr1)))),ROWS('Charge atelier chaudronnerie'!$3:17))),"") ->  | BH18: =IF(ROWS('Charge atelier chaudronnerie'!$3:17)<=COUNTIF(nom,$BG$2),INDEX(Expr2,SMALL(IF(nom=$BG$2,ROW(INDIRECT("1:"&ROWS(Expr1)))),ROWS('Charge atelier chaudronnerie'!$3:17))),"") ->  | BI18: =IF(ROWS('Charge atelier chaudronnerie'!$3:17)<=COUNTIF(nom,$BG$2),INDEX(DatePriseOf,SMALL(IF(nom=$BG$2,ROW(INDIRECT("1:"&ROWS(Expr1)))),ROWS('Charge atelier chaudronnerie'!$3:17))),"") ->  | BK18: =IF(ROWS('Charge atelier chaudronnerie'!$3:17)<=COUNTIF(nom,$BK$2),INDEX(Expr1,SMALL(IF(nom=$BK$2,ROW(INDIRECT("1:"&ROWS(Expr1)))),ROWS('Charge atelier chaudronnerie'!$3:17))),"") ->  | BL18: =IF(ROWS('Charge atelier chaudronnerie'!$3:17)<=COUNTIF(nom,$BK$2),INDEX(Expr2,SMALL(IF(nom=$BK$2,ROW(INDIRECT("1:"&ROWS(Expr1)))),ROWS('Charge atelier chaudronnerie'!$3:17))),"") ->  | BM18: =IF(ROWS('Charge atelier chaudronnerie'!$3:17)<=COUNTIF(nom,$BK$2),INDEX(DatePriseOf,SMALL(IF(nom=$BK$2,ROW(INDIRECT("1:"&ROWS(Expr1)))),ROWS('Charge atelier chaudronnerie'!$3:17))),"") ->  | BO18: =IF(ROWS('Charge atelier chaudronnerie'!$3:14)<=COUNTIF(nom,$BO$2),INDEX(Expr1,SMALL(IF(nom=$BO$2,ROW(INDIRECT("1:"&ROWS(Expr1)))),ROWS('Charge atelier chaudronnerie'!$3:14))),"") ->  | BP18: =IF(ROWS('Charge atelier chaudronnerie'!$3:14)<=COUNTIF(nom,$BO$2),INDEX(Expr2,SMALL(IF(nom=$BO$2,ROW(INDIRECT("1:"&ROWS(Expr1)))),ROWS('Charge atelier chaudronnerie'!$3:14))),"") ->  | BQ18: =IF(ROWS('Charge atelier chaudronnerie'!$3:14)<=COUNTIF(nom,$BO$2),INDEX(DatePriseOf,SMALL(IF(nom=$BO$2,ROW(INDIRECT("1:"&ROWS(Expr1)))),ROWS('Charge atelier chaudronnerie'!$3:14))),"") ->  | BS18: =IF(ROWS('Charge atelier chaudronnerie'!$3:14)<=COUNTIF(nom,$BS$2),INDEX(Expr1,SMALL(IF(nom=$BS$2,ROW(INDIRECT("1:"&ROWS(Expr1)))),ROWS('Charge atelier chaudronnerie'!$3:14))),"") ->  | BT18: =IF(ROWS('Charge atelier chaudronnerie'!$3:14)<=COUNTIF(nom,$BS$2),INDEX(Expr2,SMALL(IF(nom=$BS$2,ROW(INDIRECT("1:"&ROWS(Expr1)))),ROWS('Charge atelier chaudronnerie'!$3:14))),"") ->  | BU18: =IF(ROWS('Charge atelier chaudronnerie'!$3:14)<=COUNTIF(nom,$BS$2),INDEX(DatePriseOf,SMALL(IF(nom=$BS$2,ROW(INDIRECT("1:"&ROWS(Expr1)))),ROWS('Charge atelier chaudronnerie'!$3:14))),"") -> 
A19: frederic | C19: =IF(ROWS('Charge atelier chaudronnerie'!$3:18)<=COUNTIF(nom,$C$2),INDEX(Expr1,SMALL(IF(nom=$C$2,ROW(INDIRECT("1:"&ROWS(Expr1)))),ROWS('Charge atelier chaudronnerie'!$3:18))),"") ->  | D19: =IF(ROWS('Charge atelier chaudronnerie'!$3:18)<=COUNTIF(nom,$C$2),INDEX(Expr2,SMALL(IF(nom=$C$2,ROW(INDIRECT("1:"&ROWS(Expr1)))),ROWS('Charge atelier chaudronnerie'!$3:18))),"") ->  | E19: =IF(ROWS('Charge atelier chaudronnerie'!$3:18)<=COUNTIF(nom,$C$2),INDEX(DatePriseOf,SMALL(IF(nom=$C$2,ROW(INDIRECT("1:"&ROWS(Expr1)))),ROWS('Charge atelier chaudronnerie'!$3:18))),"") ->  | G19: =IF(ROWS('Charge atelier chaudronnerie'!$3:18)<=COUNTIF(nom,$G$2),INDEX(Expr1,SMALL(IF(nom=$G$2,ROW(INDIRECT("1:"&ROWS(Expr1)))),ROWS('Charge atelier chaudronnerie'!$3:18))),"") ->  | H19: =IF(ROWS('Charge atelier chaudronnerie'!$3:18)<=COUNTIF(nom,$G$2),INDEX(Expr2,SMALL(IF(nom=$G$2,ROW(INDIRECT("1:"&ROWS(Expr1)))),ROWS('Charge atelier chaudronnerie'!$3:18))),"") ->  | I19: =IF(ROWS('Charge atelier chaudronnerie'!$3:18)<=COUNTIF(nom,$G$2),INDEX(DatePriseOf,SMALL(IF(nom=$G$2,ROW(INDIRECT("1:"&ROWS(Expr1)))),ROWS('Charge atelier chaudronnerie'!$3:18))),"") ->  | K19: =IF(ROWS('Charge atelier chaudronnerie'!$3:18)<=COUNTIF(nom,$K$2),INDEX(Expr1,SMALL(IF(nom=$K$2,ROW(INDIRECT("1:"&ROWS(Expr1)))),ROWS('Charge atelier chaudronnerie'!$3:18))),"") ->  | L19: =IF(ROWS('Charge atelier chaudronnerie'!$3:18)<=COUNTIF(nom,$K$2),INDEX(Expr2,SMALL(IF(nom=$K$2,ROW(INDIRECT("1:"&ROWS(Expr1)))),ROWS('Charge atelier chaudronnerie'!$3:18))),"") ->  | M19: =IF(ROWS('Charge atelier chaudronnerie'!$3:18)<=COUNTIF(nom,$K$2),INDEX(DatePriseOf,SMALL(IF(nom=$K$2,ROW(INDIRECT("1:"&ROWS(Expr1)))),ROWS('Charge atelier chaudronnerie'!$3:18))),"") ->  | O19: =IF(ROWS('Charge atelier chaudronnerie'!$3:18)<=COUNTIF(nom,$O$2),INDEX(Expr1,SMALL(IF(nom=$O$2,ROW(INDIRECT("1:"&ROWS(Expr1)))),ROWS('Charge atelier chaudronnerie'!$3:18))),"") ->  | P19: =IF(ROWS('Charge atelier chaudronnerie'!$3:18)<=COUNTIF(nom,$O$2),INDEX(Expr2,SMALL(IF(nom=$O$2,ROW(INDIRECT("1:"&ROWS(Expr1)))),ROWS('Charge atelier chaudronnerie'!$3:18))),"") ->  | Q19: =IF(ROWS('Charge atelier chaudronnerie'!$3:18)<=COUNTIF(nom,$O$2),INDEX(DatePriseOf,SMALL(IF(nom=$O$2,ROW(INDIRECT("1:"&ROWS(Expr1)))),ROWS('Charge atelier chaudronnerie'!$3:18))),"") ->  | S19: =IF(ROWS('Charge atelier chaudronnerie'!$3:18)<=COUNTIF(nom,$S$2),INDEX(Expr1,SMALL(IF(nom=$S$2,ROW(INDIRECT("1:"&ROWS(Expr1)))),ROWS('Charge atelier chaudronnerie'!$3:18))),"") ->  | T19: =IF(ROWS('Charge atelier chaudronnerie'!$3:18)<=COUNTIF(nom,$S$2),INDEX(Expr2,SMALL(IF(nom=$S$2,ROW(INDIRECT("1:"&ROWS(Expr1)))),ROWS('Charge atelier chaudronnerie'!$3:18))),"") ->  | U19: =IF(ROWS('Charge atelier chaudronnerie'!$3:18)<=COUNTIF(nom,$S$2),INDEX(DatePriseOf,SMALL(IF(nom=$S$2,ROW(INDIRECT("1:"&ROWS(Expr1)))),ROWS('Charge atelier chaudronnerie'!$3:18))),"") ->  | W19: =IF(ROWS('Charge atelier chaudronnerie'!$3:18)<=COUNTIF(nom,$W$2),INDEX(Expr1,SMALL(IF(nom=$W$2,ROW(INDIRECT("1:"&ROWS(Expr1)))),ROWS('Charge atelier chaudronnerie'!$3:18))),"") ->  | X19: =IF(ROWS('Charge atelier chaudronnerie'!$3:18)<=COUNTIF(nom,$W$2),INDEX(Expr2,SMALL(IF(nom=$W$2,ROW(INDIRECT("1:"&ROWS(Expr1)))),ROWS('Charge atelier chaudronnerie'!$3:18))),"") ->  | Y19: =IF(ROWS('Charge atelier chaudronnerie'!$3:18)<=COUNTIF(nom,$W$2),INDEX(DatePriseOf,SMALL(IF(nom=$W$2,ROW(INDIRECT("1:"&ROWS(Expr1)))),ROWS('Charge atelier chaudronnerie'!$3:18))),"") ->  | AA19: =IF(ROWS('Charge atelier chaudronnerie'!$3:18)<=COUNTIF(nom,$AA$2),INDEX(Expr1,SMALL(IF(nom=$AA$2,ROW(INDIRECT("1:"&ROWS(Expr1)))),ROWS('Charge atelier chaudronnerie'!$3:18))),"") ->  | AB19: =IF(ROWS('Charge atelier chaudronnerie'!$3:18)<=COUNTIF(nom,$AA$2),INDEX(Expr2,SMALL(IF(nom=$AA$2,ROW(INDIRECT("1:"&ROWS(Expr1)))),ROWS('Charge atelier chaudronnerie'!$3:18))),"") ->  | AC19: =IF(ROWS('Charge atelier chaudronnerie'!$3:18)<=COUNTIF(nom,$AA$2),INDEX(DatePriseOf,SMALL(IF(nom=$AA$2,ROW(INDIRECT("1:"&ROWS(Expr1)))),ROWS('Charge atelier chaudronnerie'!$3:18))),"") ->  | AE19: =IF(ROWS('Charge atelier chaudronnerie'!$3:18)<=COUNTIF(nom,$AE$2),INDEX(Expr1,SMALL(IF(nom=$AE$2,ROW(INDIRECT("1:"&ROWS(Expr1)))),ROWS('Charge atelier chaudronnerie'!$3:18))),"") ->  | AF19: =IF(ROWS('Charge atelier chaudronnerie'!$3:18)<=COUNTIF(nom,$AE$2),INDEX(Expr2,SMALL(IF(nom=$AE$2,ROW(INDIRECT("1:"&ROWS(Expr1)))),ROWS('Charge atelier chaudronnerie'!$3:18))),"") ->  | AG19: =IF(ROWS('Charge atelier chaudronnerie'!$3:18)<=COUNTIF(nom,$AE$2),INDEX(DatePriseOf,SMALL(IF(nom=$AE$2,ROW(INDIRECT("1:"&ROWS(Expr1)))),ROWS('Charge atelier chaudronnerie'!$3:18))),"") ->  | AI19: =IF(ROWS('Charge atelier chaudronnerie'!$3:18)<=COUNTIF(nom,$AI$2),INDEX(Expr1,SMALL(IF(nom=$AI$2,ROW(INDIRECT("1:"&ROWS(Expr1)))),ROWS('Charge atelier chaudronnerie'!$3:18))),"") ->  | AJ19: =IF(ROWS('Charge atelier chaudronnerie'!$3:18)<=COUNTIF(nom,$AI$2),INDEX(Expr2,SMALL(IF(nom=$AI$2,ROW(INDIRECT("1:"&ROWS(Expr1)))),ROWS('Charge atelier chaudronnerie'!$3:18))),"") ->  | AK19: =IF(ROWS('Charge atelier chaudronnerie'!$3:18)<=COUNTIF(nom,$AI$2),INDEX(DatePriseOf,SMALL(IF(nom=$AI$2,ROW(INDIRECT("1:"&ROWS(Expr1)))),ROWS('Charge atelier chaudronnerie'!$3:18))),"") ->  | AM19: =IF(ROWS('Charge atelier chaudronnerie'!$3:18)<=COUNTIF(nom,$AM$2),INDEX(Expr1,SMALL(IF(nom=$AM$2,ROW(INDIRECT("1:"&ROWS(Expr1)))),ROWS('Charge atelier chaudronnerie'!$3:18))),"") ->  | AN19: =IF(ROWS('Charge atelier chaudronnerie'!$3:18)<=COUNTIF(nom,$AM$2),INDEX(Expr2,SMALL(IF(nom=$AM$2,ROW(INDIRECT("1:"&ROWS(Expr1)))),ROWS('Charge atelier chaudronnerie'!$3:18))),"") ->  | AO19: =IF(ROWS('Charge atelier chaudronnerie'!$3:18)<=COUNTIF(nom,$AM$2),INDEX(DatePriseOf,SMALL(IF(nom=$AM$2,ROW(INDIRECT("1:"&ROWS(Expr1)))),ROWS('Charge atelier chaudronnerie'!$3:18))),"") ->  | AQ19: =IF(ROWS('Charge atelier chaudronnerie'!$3:18)<=COUNTIF(nom,$AQ$2),INDEX(Expr1,SMALL(IF(nom=$AQ$2,ROW(INDIRECT("1:"&ROWS(Expr1)))),ROWS('Charge atelier chaudronnerie'!$3:18))),"") ->  | AR19: =IF(ROWS('Charge atelier chaudronnerie'!$3:18)<=COUNTIF(nom,$AQ$2),INDEX(Expr2,SMALL(IF(nom=$AQ$2,ROW(INDIRECT("1:"&ROWS(Expr1)))),ROWS('Charge atelier chaudronnerie'!$3:18))),"") ->  | AS19: =IF(ROWS('Charge atelier chaudronnerie'!$3:18)<=COUNTIF(nom,$AQ$2),INDEX(DatePriseOf,SMALL(IF(nom=$AQ$2,ROW(INDIRECT("1:"&ROWS(Expr1)))),ROWS('Charge atelier chaudronnerie'!$3:18))),"") ->  | AU19: =IF(ROWS('Charge atelier chaudronnerie'!$3:18)<=COUNTIF(nom,$AU$2),INDEX(Expr1,SMALL(IF(nom=$AU$2,ROW(INDIRECT("1:"&ROWS(Expr1)))),ROWS('Charge atelier chaudronnerie'!$3:18))),"") ->  | AV19: =IF(ROWS('Charge atelier chaudronnerie'!$3:18)<=COUNTIF(nom,$AU$2),INDEX(Expr2,SMALL(IF(nom=$AU$2,ROW(INDIRECT("1:"&ROWS(Expr1)))),ROWS('Charge atelier chaudronnerie'!$3:18))),"") ->  | AW19: =IF(ROWS('Charge atelier chaudronnerie'!$3:18)<=COUNTIF(nom,$AU$2),INDEX(DatePriseOf,SMALL(IF(nom=$AU$2,ROW(INDIRECT("1:"&ROWS(Expr1)))),ROWS('Charge atelier chaudronnerie'!$3:18))),"") ->  | AY19: =IF(ROWS('Charge atelier chaudronnerie'!$3:18)<=COUNTIF(nom,$AY$2),INDEX(Expr1,SMALL(IF(nom=$AY$2,ROW(INDIRECT("1:"&ROWS(Expr1)))),ROWS('Charge atelier chaudronnerie'!$3:18))),"") ->  | AZ19: =IF(ROWS('Charge atelier chaudronnerie'!$3:18)<=COUNTIF(nom,$AY$2),INDEX(Expr2,SMALL(IF(nom=$AY$2,ROW(INDIRECT("1:"&ROWS(Expr1)))),ROWS('Charge atelier chaudronnerie'!$3:18))),"") ->  | BA19: =IF(ROWS('Charge atelier chaudronnerie'!$3:18)<=COUNTIF(nom,$AY$2),INDEX(DatePriseOf,SMALL(IF(nom=$AY$2,ROW(INDIRECT("1:"&ROWS(Expr1)))),ROWS('Charge atelier chaudronnerie'!$3:18))),"") ->  | BC19: =IF(ROWS('Charge atelier chaudronnerie'!$3:18)<=COUNTIF(nom,$BC$2),INDEX(Expr1,SMALL(IF(nom=$BC$2,ROW(INDIRECT("1:"&ROWS(Expr1)))),ROWS('Charge atelier chaudronnerie'!$3:18))),"") ->  | BD19: =IF(ROWS('Charge atelier chaudronnerie'!$3:18)<=COUNTIF(nom,$BC$2),INDEX(Expr2,SMALL(IF(nom=$BC$2,ROW(INDIRECT("1:"&ROWS(Expr1)))),ROWS('Charge atelier chaudronnerie'!$3:18))),"") ->  | BE19: =IF(ROWS('Charge atelier chaudronnerie'!$3:18)<=COUNTIF(nom,$BC$2),INDEX(DatePriseOf,SMALL(IF(nom=$BC$2,ROW(INDIRECT("1:"&ROWS(Expr1)))),ROWS('Charge atelier chaudronnerie'!$3:18))),"") ->  | BG19: =IF(ROWS('Charge atelier chaudronnerie'!$3:18)<=COUNTIF(nom,$BG$2),INDEX(Expr1,SMALL(IF(nom=$BG$2,ROW(INDIRECT("1:"&ROWS(Expr1)))),ROWS('Charge atelier chaudronnerie'!$3:18))),"") ->  | BH19: =IF(ROWS('Charge atelier chaudronnerie'!$3:18)<=COUNTIF(nom,$BG$2),INDEX(Expr2,SMALL(IF(nom=$BG$2,ROW(INDIRECT("1:"&ROWS(Expr1)))),ROWS('Charge atelier chaudronnerie'!$3:18))),"") ->  | BI19: =IF(ROWS('Charge atelier chaudronnerie'!$3:18)<=COUNTIF(nom,$BG$2),INDEX(DatePriseOf,SMALL(IF(nom=$BG$2,ROW(INDIRECT("1:"&ROWS(Expr1)))),ROWS('Charge atelier chaudronnerie'!$3:18))),"") ->  | BK19: =IF(ROWS('Charge atelier chaudronnerie'!$3:18)<=COUNTIF(nom,$BK$2),INDEX(Expr1,SMALL(IF(nom=$BK$2,ROW(INDIRECT("1:"&ROWS(Expr1)))),ROWS('Charge atelier chaudronnerie'!$3:18))),"") ->  | BL19: =IF(ROWS('Charge atelier chaudronnerie'!$3:18)<=COUNTIF(nom,$BK$2),INDEX(Expr2,SMALL(IF(nom=$BK$2,ROW(INDIRECT("1:"&ROWS(Expr1)))),ROWS('Charge atelier chaudronnerie'!$3:18))),"") ->  | BM19: =IF(ROWS('Charge atelier chaudronnerie'!$3:18)<=COUNTIF(nom,$BK$2),INDEX(DatePriseOf,SMALL(IF(nom=$BK$2,ROW(INDIRECT("1:"&ROWS(Expr1)))),ROWS('Charge atelier chaudronnerie'!$3:18))),"") ->  | BO19: =IF(ROWS('Charge atelier chaudronnerie'!$3:15)<=COUNTIF(nom,$BO$2),INDEX(Expr1,SMALL(IF(nom=$BO$2,ROW(INDIRECT("1:"&ROWS(Expr1)))),ROWS('Charge atelier chaudronnerie'!$3:15))),"") ->  | BP19: =IF(ROWS('Charge atelier chaudronnerie'!$3:15)<=COUNTIF(nom,$BO$2),INDEX(Expr2,SMALL(IF(nom=$BO$2,ROW(INDIRECT("1:"&ROWS(Expr1)))),ROWS('Charge atelier chaudronnerie'!$3:15))),"") ->  | BQ19: =IF(ROWS('Charge atelier chaudronnerie'!$3:15)<=COUNTIF(nom,$BO$2),INDEX(DatePriseOf,SMALL(IF(nom=$BO$2,ROW(INDIRECT("1:"&ROWS(Expr1)))),ROWS('Charge atelier chaudronnerie'!$3:15))),"") ->  | BS19: =IF(ROWS('Charge atelier chaudronnerie'!$3:15)<=COUNTIF(nom,$BS$2),INDEX(Expr1,SMALL(IF(nom=$BS$2,ROW(INDIRECT("1:"&ROWS(Expr1)))),ROWS('Charge atelier chaudronnerie'!$3:15))),"") ->  | BT19: =IF(ROWS('Charge atelier chaudronnerie'!$3:15)<=COUNTIF(nom,$BS$2),INDEX(Expr2,SMALL(IF(nom=$BS$2,ROW(INDIRECT("1:"&ROWS(Expr1)))),ROWS('Charge atelier chaudronnerie'!$3:15))),"") ->  | BU19: =IF(ROWS('Charge atelier chaudronnerie'!$3:15)<=COUNTIF(nom,$BS$2),INDEX(DatePriseOf,SMALL(IF(nom=$BS$2,ROW(INDIRECT("1:"&ROWS(Expr1)))),ROWS('Charge atelier chaudronnerie'!$3:15))),"") -> 
A20: stefano | C20: =IF(ROWS('Charge atelier chaudronnerie'!$3:19)<=COUNTIF(nom,$C$2),INDEX(Expr1,SMALL(IF(nom=$C$2,ROW(INDIRECT("1:"&ROWS(Expr1)))),ROWS('Charge atelier chaudronnerie'!$3:19))),"") ->  | D20: =IF(ROWS('Charge atelier chaudronnerie'!$3:19)<=COUNTIF(nom,$C$2),INDEX(Expr2,SMALL(IF(nom=$C$2,ROW(INDIRECT("1:"&ROWS(Expr1)))),ROWS('Charge atelier chaudronnerie'!$3:19))),"") ->  | E20: =IF(ROWS('Charge atelier chaudronnerie'!$3:19)<=COUNTIF(nom,$C$2),INDEX(DatePriseOf,SMALL(IF(nom=$C$2,ROW(INDIRECT("1:"&ROWS(Expr1)))),ROWS('Charge atelier chaudronnerie'!$3:19))),"") ->  | G20: =IF(ROWS('Charge atelier chaudronnerie'!$3:19)<=COUNTIF(nom,$G$2),INDEX(Expr1,SMALL(IF(nom=$G$2,ROW(INDIRECT("1:"&ROWS(Expr1)))),ROWS('Charge atelier chaudronnerie'!$3:19))),"") ->  | H20: =IF(ROWS('Charge atelier chaudronnerie'!$3:19)<=COUNTIF(nom,$G$2),INDEX(Expr2,SMALL(IF(nom=$G$2,ROW(INDIRECT("1:"&ROWS(Expr1)))),ROWS('Charge atelier chaudronnerie'!$3:19))),"") ->  | I20: =IF(ROWS('Charge atelier chaudronnerie'!$3:19)<=COUNTIF(nom,$G$2),INDEX(DatePriseOf,SMALL(IF(nom=$G$2,ROW(INDIRECT("1:"&ROWS(Expr1)))),ROWS('Charge atelier chaudronnerie'!$3:19))),"") ->  | K20: =IF(ROWS('Charge atelier chaudronnerie'!$3:19)<=COUNTIF(nom,$K$2),INDEX(Expr1,SMALL(IF(nom=$K$2,ROW(INDIRECT("1:"&ROWS(Expr1)))),ROWS('Charge atelier chaudronnerie'!$3:19))),"") ->  | L20: =IF(ROWS('Charge atelier chaudronnerie'!$3:19)<=COUNTIF(nom,$K$2),INDEX(Expr2,SMALL(IF(nom=$K$2,ROW(INDIRECT("1:"&ROWS(Expr1)))),ROWS('Charge atelier chaudronnerie'!$3:19))),"") ->  | M20: =IF(ROWS('Charge atelier chaudronnerie'!$3:19)<=COUNTIF(nom,$K$2),INDEX(DatePriseOf,SMALL(IF(nom=$K$2,ROW(INDIRECT("1:"&ROWS(Expr1)))),ROWS('Charge atelier chaudronnerie'!$3:19))),"") ->  | O20: =IF(ROWS('Charge atelier chaudronnerie'!$3:19)<=COUNTIF(nom,$O$2),INDEX(Expr1,SMALL(IF(nom=$O$2,ROW(INDIRECT("1:"&ROWS(Expr1)))),ROWS('Charge atelier chaudronnerie'!$3:19))),"") ->  | P20: =IF(ROWS('Charge atelier chaudronnerie'!$3:19)<=COUNTIF(nom,$O$2),INDEX(Expr2,SMALL(IF(nom=$O$2,ROW(INDIRECT("1:"&ROWS(Expr1)))),ROWS('Charge atelier chaudronnerie'!$3:19))),"") ->  | Q20: =IF(ROWS('Charge atelier chaudronnerie'!$3:19)<=COUNTIF(nom,$O$2),INDEX(DatePriseOf,SMALL(IF(nom=$O$2,ROW(INDIRECT("1:"&ROWS(Expr1)))),ROWS('Charge atelier chaudronnerie'!$3:19))),"") ->  | S20: =IF(ROWS('Charge atelier chaudronnerie'!$3:19)<=COUNTIF(nom,$S$2),INDEX(Expr1,SMALL(IF(nom=$S$2,ROW(INDIRECT("1:"&ROWS(Expr1)))),ROWS('Charge atelier chaudronnerie'!$3:19))),"") ->  | T20: =IF(ROWS('Charge atelier chaudronnerie'!$3:19)<=COUNTIF(nom,$S$2),INDEX(Expr2,SMALL(IF(nom=$S$2,ROW(INDIRECT("1:"&ROWS(Expr1)))),ROWS('Charge atelier chaudronnerie'!$3:19))),"") ->  | U20: =IF(ROWS('Charge atelier chaudronnerie'!$3:19)<=COUNTIF(nom,$S$2),INDEX(DatePriseOf,SMALL(IF(nom=$S$2,ROW(INDIRECT("1:"&ROWS(Expr1)))),ROWS('Charge atelier chaudronnerie'!$3:19))),"") ->  | W20: =IF(ROWS('Charge atelier chaudronnerie'!$3:19)<=COUNTIF(nom,$W$2),INDEX(Expr1,SMALL(IF(nom=$W$2,ROW(INDIRECT("1:"&ROWS(Expr1)))),ROWS('Charge atelier chaudronnerie'!$3:19))),"") ->  | X20: =IF(ROWS('Charge atelier chaudronnerie'!$3:19)<=COUNTIF(nom,$W$2),INDEX(Expr2,SMALL(IF(nom=$W$2,ROW(INDIRECT("1:"&ROWS(Expr1)))),ROWS('Charge atelier chaudronnerie'!$3:19))),"") ->  | Y20: =IF(ROWS('Charge atelier chaudronnerie'!$3:19)<=COUNTIF(nom,$W$2),INDEX(DatePriseOf,SMALL(IF(nom=$W$2,ROW(INDIRECT("1:"&ROWS(Expr1)))),ROWS('Charge atelier chaudronnerie'!$3:19))),"") ->  | AA20: =IF(ROWS('Charge atelier chaudronnerie'!$3:19)<=COUNTIF(nom,$AA$2),INDEX(Expr1,SMALL(IF(nom=$AA$2,ROW(INDIRECT("1:"&ROWS(Expr1)))),ROWS('Charge atelier chaudronnerie'!$3:19))),"") ->  | AB20: =IF(ROWS('Charge atelier chaudronnerie'!$3:19)<=COUNTIF(nom,$AA$2),INDEX(Expr2,SMALL(IF(nom=$AA$2,ROW(INDIRECT("1:"&ROWS(Expr1)))),ROWS('Charge atelier chaudronnerie'!$3:19))),"") ->  | AC20: =IF(ROWS('Charge atelier chaudronnerie'!$3:19)<=COUNTIF(nom,$AA$2),INDEX(DatePriseOf,SMALL(IF(nom=$AA$2,ROW(INDIRECT("1:"&ROWS(Expr1)))),ROWS('Charge atelier chaudronnerie'!$3:19))),"") ->  | AE20: =IF(ROWS('Charge atelier chaudronnerie'!$3:19)<=COUNTIF(nom,$AE$2),INDEX(Expr1,SMALL(IF(nom=$AE$2,ROW(INDIRECT("1:"&ROWS(Expr1)))),ROWS('Charge atelier chaudronnerie'!$3:19))),"") ->  | AF20: =IF(ROWS('Charge atelier chaudronnerie'!$3:19)<=COUNTIF(nom,$AE$2),INDEX(Expr2,SMALL(IF(nom=$AE$2,ROW(INDIRECT("1:"&ROWS(Expr1)))),ROWS('Charge atelier chaudronnerie'!$3:19))),"") ->  | AG20: =IF(ROWS('Charge atelier chaudronnerie'!$3:19)<=COUNTIF(nom,$AE$2),INDEX(DatePriseOf,SMALL(IF(nom=$AE$2,ROW(INDIRECT("1:"&ROWS(Expr1)))),ROWS('Charge atelier chaudronnerie'!$3:19))),"") ->  | AI20: =IF(ROWS('Charge atelier chaudronnerie'!$3:19)<=COUNTIF(nom,$AI$2),INDEX(Expr1,SMALL(IF(nom=$AI$2,ROW(INDIRECT("1:"&ROWS(Expr1)))),ROWS('Charge atelier chaudronnerie'!$3:19))),"") ->  | AJ20: =IF(ROWS('Charge atelier chaudronnerie'!$3:19)<=COUNTIF(nom,$AI$2),INDEX(Expr2,SMALL(IF(nom=$AI$2,ROW(INDIRECT("1:"&ROWS(Expr1)))),ROWS('Charge atelier chaudronnerie'!$3:19))),"") ->  | AK20: =IF(ROWS('Charge atelier chaudronnerie'!$3:19)<=COUNTIF(nom,$AI$2),INDEX(DatePriseOf,SMALL(IF(nom=$AI$2,ROW(INDIRECT("1:"&ROWS(Expr1)))),ROWS('Charge atelier chaudronnerie'!$3:19))),"") ->  | AM20: =IF(ROWS('Charge atelier chaudronnerie'!$3:19)<=COUNTIF(nom,$AM$2),INDEX(Expr1,SMALL(IF(nom=$AM$2,ROW(INDIRECT("1:"&ROWS(Expr1)))),ROWS('Charge atelier chaudronnerie'!$3:19))),"") ->  | AN20: =IF(ROWS('Charge atelier chaudronnerie'!$3:19)<=COUNTIF(nom,$AM$2),INDEX(Expr2,SMALL(IF(nom=$AM$2,ROW(INDIRECT("1:"&ROWS(Expr1)))),ROWS('Charge atelier chaudronnerie'!$3:19))),"") ->  | AO20: =IF(ROWS('Charge atelier chaudronnerie'!$3:19)<=COUNTIF(nom,$AM$2),INDEX(DatePriseOf,SMALL(IF(nom=$AM$2,ROW(INDIRECT("1:"&ROWS(Expr1)))),ROWS('Charge atelier chaudronnerie'!$3:19))),"") ->  | AQ20: =IF(ROWS('Charge atelier chaudronnerie'!$3:19)<=COUNTIF(nom,$AQ$2),INDEX(Expr1,SMALL(IF(nom=$AQ$2,ROW(INDIRECT("1:"&ROWS(Expr1)))),ROWS('Charge atelier chaudronnerie'!$3:19))),"") ->  | AR20: =IF(ROWS('Charge atelier chaudronnerie'!$3:19)<=COUNTIF(nom,$AQ$2),INDEX(Expr2,SMALL(IF(nom=$AQ$2,ROW(INDIRECT("1:"&ROWS(Expr1)))),ROWS('Charge atelier chaudronnerie'!$3:19))),"") ->  | AS20: =IF(ROWS('Charge atelier chaudronnerie'!$3:19)<=COUNTIF(nom,$AQ$2),INDEX(DatePriseOf,SMALL(IF(nom=$AQ$2,ROW(INDIRECT("1:"&ROWS(Expr1)))),ROWS('Charge atelier chaudronnerie'!$3:19))),"") ->  | AU20: =IF(ROWS('Charge atelier chaudronnerie'!$3:19)<=COUNTIF(nom,$AU$2),INDEX(Expr1,SMALL(IF(nom=$AU$2,ROW(INDIRECT("1:"&ROWS(Expr1)))),ROWS('Charge atelier chaudronnerie'!$3:19))),"") ->  | AV20: =IF(ROWS('Charge atelier chaudronnerie'!$3:19)<=COUNTIF(nom,$AU$2),INDEX(Expr2,SMALL(IF(nom=$AU$2,ROW(INDIRECT("1:"&ROWS(Expr1)))),ROWS('Charge atelier chaudronnerie'!$3:19))),"") ->  | AW20: =IF(ROWS('Charge atelier chaudronnerie'!$3:19)<=COUNTIF(nom,$AU$2),INDEX(DatePriseOf,SMALL(IF(nom=$AU$2,ROW(INDIRECT("1:"&ROWS(Expr1)))),ROWS('Charge atelier chaudronnerie'!$3:19))),"") ->  | AY20: =IF(ROWS('Charge atelier chaudronnerie'!$3:19)<=COUNTIF(nom,$AY$2),INDEX(Expr1,SMALL(IF(nom=$AY$2,ROW(INDIRECT("1:"&ROWS(Expr1)))),ROWS('Charge atelier chaudronnerie'!$3:19))),"") ->  | AZ20: =IF(ROWS('Charge atelier chaudronnerie'!$3:19)<=COUNTIF(nom,$AY$2),INDEX(Expr2,SMALL(IF(nom=$AY$2,ROW(INDIRECT("1:"&ROWS(Expr1)))),ROWS('Charge atelier chaudronnerie'!$3:19))),"") ->  | BA20: =IF(ROWS('Charge atelier chaudronnerie'!$3:19)<=COUNTIF(nom,$AY$2),INDEX(DatePriseOf,SMALL(IF(nom=$AY$2,ROW(INDIRECT("1:"&ROWS(Expr1)))),ROWS('Charge atelier chaudronnerie'!$3:19))),"") ->  | BC20: =IF(ROWS('Charge atelier chaudronnerie'!$3:19)<=COUNTIF(nom,$BC$2),INDEX(Expr1,SMALL(IF(nom=$BC$2,ROW(INDIRECT("1:"&ROWS(Expr1)))),ROWS('Charge atelier chaudronnerie'!$3:19))),"") ->  | BD20: =IF(ROWS('Charge atelier chaudronnerie'!$3:19)<=COUNTIF(nom,$BC$2),INDEX(Expr2,SMALL(IF(nom=$BC$2,ROW(INDIRECT("1:"&ROWS(Expr1)))),ROWS('Charge atelier chaudronnerie'!$3:19))),"") ->  | BE20: =IF(ROWS('Charge atelier chaudronnerie'!$3:19)<=COUNTIF(nom,$BC$2),INDEX(DatePriseOf,SMALL(IF(nom=$BC$2,ROW(INDIRECT("1:"&ROWS(Expr1)))),ROWS('Charge atelier chaudronnerie'!$3:19))),"") ->  | BG20: =IF(ROWS('Charge atelier chaudronnerie'!$3:19)<=COUNTIF(nom,$BG$2),INDEX(Expr1,SMALL(IF(nom=$BG$2,ROW(INDIRECT("1:"&ROWS(Expr1)))),ROWS('Charge atelier chaudronnerie'!$3:19))),"") ->  | BH20: =IF(ROWS('Charge atelier chaudronnerie'!$3:19)<=COUNTIF(nom,$BG$2),INDEX(Expr2,SMALL(IF(nom=$BG$2,ROW(INDIRECT("1:"&ROWS(Expr1)))),ROWS('Charge atelier chaudronnerie'!$3:19))),"") ->  | BI20: =IF(ROWS('Charge atelier chaudronnerie'!$3:19)<=COUNTIF(nom,$BG$2),INDEX(DatePriseOf,SMALL(IF(nom=$BG$2,ROW(INDIRECT("1:"&ROWS(Expr1)))),ROWS('Charge atelier chaudronnerie'!$3:19))),"") ->  | BK20: =IF(ROWS('Charge atelier chaudronnerie'!$3:19)<=COUNTIF(nom,$BK$2),INDEX(Expr1,SMALL(IF(nom=$BK$2,ROW(INDIRECT("1:"&ROWS(Expr1)))),ROWS('Charge atelier chaudronnerie'!$3:19))),"") ->  | BL20: =IF(ROWS('Charge atelier chaudronnerie'!$3:19)<=COUNTIF(nom,$BK$2),INDEX(Expr2,SMALL(IF(nom=$BK$2,ROW(INDIRECT("1:"&ROWS(Expr1)))),ROWS('Charge atelier chaudronnerie'!$3:19))),"") ->  | BM20: =IF(ROWS('Charge atelier chaudronnerie'!$3:19)<=COUNTIF(nom,$BK$2),INDEX(DatePriseOf,SMALL(IF(nom=$BK$2,ROW(INDIRECT("1:"&ROWS(Expr1)))),ROWS('Charge atelier chaudronnerie'!$3:19))),"") ->  | BO20: =IF(ROWS('Charge atelier chaudronnerie'!$3:16)<=COUNTIF(nom,$BO$2),INDEX(Expr1,SMALL(IF(nom=$BO$2,ROW(INDIRECT("1:"&ROWS(Expr1)))),ROWS('Charge atelier chaudronnerie'!$3:16))),"") ->  | BP20: =IF(ROWS('Charge atelier chaudronnerie'!$3:16)<=COUNTIF(nom,$BO$2),INDEX(Expr2,SMALL(IF(nom=$BO$2,ROW(INDIRECT("1:"&ROWS(Expr1)))),ROWS('Charge atelier chaudronnerie'!$3:16))),"") ->  | BQ20: =IF(ROWS('Charge atelier chaudronnerie'!$3:16)<=COUNTIF(nom,$BO$2),INDEX(DatePriseOf,SMALL(IF(nom=$BO$2,ROW(INDIRECT("1:"&ROWS(Expr1)))),ROWS('Charge atelier chaudronnerie'!$3:16))),"") ->  | BS20: =IF(ROWS('Charge atelier chaudronnerie'!$3:16)<=COUNTIF(nom,$BS$2),INDEX(Expr1,SMALL(IF(nom=$BS$2,ROW(INDIRECT("1:"&ROWS(Expr1)))),ROWS('Charge atelier chaudronnerie'!$3:16))),"") ->  | BT20: =IF(ROWS('Charge atelier chaudronnerie'!$3:16)<=COUNTIF(nom,$BS$2),INDEX(Expr2,SMALL(IF(nom=$BS$2,ROW(INDIRECT("1:"&ROWS(Expr1)))),ROWS('Charge atelier chaudronnerie'!$3:16))),"") ->  | BU20: =IF(ROWS('Charge atelier chaudronnerie'!$3:16)<=COUNTIF(nom,$BS$2),INDEX(DatePriseOf,SMALL(IF(nom=$BS$2,ROW(INDIRECT("1:"&ROWS(Expr1)))),ROWS('Charge atelier chaudronnerie'!$3:16))),"") -> 
A21: françois | C21: =IF(ROWS('Charge atelier chaudronnerie'!$3:20)<=COUNTIF(nom,$C$2),INDEX(Expr1,SMALL(IF(nom=$C$2,ROW(INDIRECT("1:"&ROWS(Expr1)))),ROWS('Charge atelier chaudronnerie'!$3:20))),"") ->  | D21: =IF(ROWS('Charge atelier chaudronnerie'!$3:20)<=COUNTIF(nom,$C$2),INDEX(Expr2,SMALL(IF(nom=$C$2,ROW(INDIRECT("1:"&ROWS(Expr1)))),ROWS('Charge atelier chaudronnerie'!$3:20))),"") ->  | E21: =IF(ROWS('Charge atelier chaudronnerie'!$3:20)<=COUNTIF(nom,$C$2),INDEX(DatePriseOf,SMALL(IF(nom=$C$2,ROW(INDIRECT("1:"&ROWS(Expr1)))),ROWS('Charge atelier chaudronnerie'!$3:20))),"") ->  | G21: =IF(ROWS('Charge atelier chaudronnerie'!$3:20)<=COUNTIF(nom,$G$2),INDEX(Expr1,SMALL(IF(nom=$G$2,ROW(INDIRECT("1:"&ROWS(Expr1)))),ROWS('Charge atelier chaudronnerie'!$3:20))),"") ->  | H21: =IF(ROWS('Charge atelier chaudronnerie'!$3:20)<=COUNTIF(nom,$G$2),INDEX(Expr2,SMALL(IF(nom=$G$2,ROW(INDIRECT("1:"&ROWS(Expr1)))),ROWS('Charge atelier chaudronnerie'!$3:20))),"") ->  | I21: =IF(ROWS('Charge atelier chaudronnerie'!$3:20)<=COUNTIF(nom,$G$2),INDEX(DatePriseOf,SMALL(IF(nom=$G$2,ROW(INDIRECT("1:"&ROWS(Expr1)))),ROWS('Charge atelier chaudronnerie'!$3:20))),"") ->  | K21: =IF(ROWS('Charge atelier chaudronnerie'!$3:20)<=COUNTIF(nom,$K$2),INDEX(Expr1,SMALL(IF(nom=$K$2,ROW(INDIRECT("1:"&ROWS(Expr1)))),ROWS('Charge atelier chaudronnerie'!$3:20))),"") ->  | L21: =IF(ROWS('Charge atelier chaudronnerie'!$3:20)<=COUNTIF(nom,$K$2),INDEX(Expr2,SMALL(IF(nom=$K$2,ROW(INDIRECT("1:"&ROWS(Expr1)))),ROWS('Charge atelier chaudronnerie'!$3:20))),"") ->  | M21: =IF(ROWS('Charge atelier chaudronnerie'!$3:20)<=COUNTIF(nom,$K$2),INDEX(DatePriseOf,SMALL(IF(nom=$K$2,ROW(INDIRECT("1:"&ROWS(Expr1)))),ROWS('Charge atelier chaudronnerie'!$3:20))),"") ->  | O21: =IF(ROWS('Charge atelier chaudronnerie'!$3:20)<=COUNTIF(nom,$O$2),INDEX(Expr1,SMALL(IF(nom=$O$2,ROW(INDIRECT("1:"&ROWS(Expr1)))),ROWS('Charge atelier chaudronnerie'!$3:20))),"") ->  | P21: =IF(ROWS('Charge atelier chaudronnerie'!$3:20)<=COUNTIF(nom,$O$2),INDEX(Expr2,SMALL(IF(nom=$O$2,ROW(INDIRECT("1:"&ROWS(Expr1)))),ROWS('Charge atelier chaudronnerie'!$3:20))),"") ->  | Q21: =IF(ROWS('Charge atelier chaudronnerie'!$3:20)<=COUNTIF(nom,$O$2),INDEX(DatePriseOf,SMALL(IF(nom=$O$2,ROW(INDIRECT("1:"&ROWS(Expr1)))),ROWS('Charge atelier chaudronnerie'!$3:20))),"") ->  | S21: =IF(ROWS('Charge atelier chaudronnerie'!$3:20)<=COUNTIF(nom,$S$2),INDEX(Expr1,SMALL(IF(nom=$S$2,ROW(INDIRECT("1:"&ROWS(Expr1)))),ROWS('Charge atelier chaudronnerie'!$3:20))),"") ->  | T21: =IF(ROWS('Charge atelier chaudronnerie'!$3:20)<=COUNTIF(nom,$S$2),INDEX(Expr2,SMALL(IF(nom=$S$2,ROW(INDIRECT("1:"&ROWS(Expr1)))),ROWS('Charge atelier chaudronnerie'!$3:20))),"") ->  | U21: =IF(ROWS('Charge atelier chaudronnerie'!$3:20)<=COUNTIF(nom,$S$2),INDEX(DatePriseOf,SMALL(IF(nom=$S$2,ROW(INDIRECT("1:"&ROWS(Expr1)))),ROWS('Charge atelier chaudronnerie'!$3:20))),"") ->  | W21: =IF(ROWS('Charge atelier chaudronnerie'!$3:20)<=COUNTIF(nom,$W$2),INDEX(Expr1,SMALL(IF(nom=$W$2,ROW(INDIRECT("1:"&ROWS(Expr1)))),ROWS('Charge atelier chaudronnerie'!$3:20))),"") ->  | X21: =IF(ROWS('Charge atelier chaudronnerie'!$3:20)<=COUNTIF(nom,$W$2),INDEX(Expr2,SMALL(IF(nom=$W$2,ROW(INDIRECT("1:"&ROWS(Expr1)))),ROWS('Charge atelier chaudronnerie'!$3:20))),"") ->  | Y21: =IF(ROWS('Charge atelier chaudronnerie'!$3:20)<=COUNTIF(nom,$W$2),INDEX(DatePriseOf,SMALL(IF(nom=$W$2,ROW(INDIRECT("1:"&ROWS(Expr1)))),ROWS('Charge atelier chaudronnerie'!$3:20))),"") ->  | AA21: =IF(ROWS('Charge atelier chaudronnerie'!$3:20)<=COUNTIF(nom,$AA$2),INDEX(Expr1,SMALL(IF(nom=$AA$2,ROW(INDIRECT("1:"&ROWS(Expr1)))),ROWS('Charge atelier chaudronnerie'!$3:20))),"") ->  | AB21: =IF(ROWS('Charge atelier chaudronnerie'!$3:20)<=COUNTIF(nom,$AA$2),INDEX(Expr2,SMALL(IF(nom=$AA$2,ROW(INDIRECT("1:"&ROWS(Expr1)))),ROWS('Charge atelier chaudronnerie'!$3:20))),"") ->  | AC21: =IF(ROWS('Charge atelier chaudronnerie'!$3:20)<=COUNTIF(nom,$AA$2),INDEX(DatePriseOf,SMALL(IF(nom=$AA$2,ROW(INDIRECT("1:"&ROWS(Expr1)))),ROWS('Charge atelier chaudronnerie'!$3:20))),"") ->  | AE21: =IF(ROWS('Charge atelier chaudronnerie'!$3:20)<=COUNTIF(nom,$AE$2),INDEX(Expr1,SMALL(IF(nom=$AE$2,ROW(INDIRECT("1:"&ROWS(Expr1)))),ROWS('Charge atelier chaudronnerie'!$3:20))),"") ->  | AF21: =IF(ROWS('Charge atelier chaudronnerie'!$3:20)<=COUNTIF(nom,$AE$2),INDEX(Expr2,SMALL(IF(nom=$AE$2,ROW(INDIRECT("1:"&ROWS(Expr1)))),ROWS('Charge atelier chaudronnerie'!$3:20))),"") ->  | AG21: =IF(ROWS('Charge atelier chaudronnerie'!$3:20)<=COUNTIF(nom,$AE$2),INDEX(DatePriseOf,SMALL(IF(nom=$AE$2,ROW(INDIRECT("1:"&ROWS(Expr1)))),ROWS('Charge atelier chaudronnerie'!$3:20))),"") ->  | AI21: =IF(ROWS('Charge atelier chaudronnerie'!$3:20)<=COUNTIF(nom,$AI$2),INDEX(Expr1,SMALL(IF(nom=$AI$2,ROW(INDIRECT("1:"&ROWS(Expr1)))),ROWS('Charge atelier chaudronnerie'!$3:20))),"") ->  | AJ21: =IF(ROWS('Charge atelier chaudronnerie'!$3:20)<=COUNTIF(nom,$AI$2),INDEX(Expr2,SMALL(IF(nom=$AI$2,ROW(INDIRECT("1:"&ROWS(Expr1)))),ROWS('Charge atelier chaudronnerie'!$3:20))),"") ->  | AK21: =IF(ROWS('Charge atelier chaudronnerie'!$3:20)<=COUNTIF(nom,$AI$2),INDEX(DatePriseOf,SMALL(IF(nom=$AI$2,ROW(INDIRECT("1:"&ROWS(Expr1)))),ROWS('Charge atelier chaudronnerie'!$3:20))),"") ->  | AM21: =IF(ROWS('Charge atelier chaudronnerie'!$3:20)<=COUNTIF(nom,$AM$2),INDEX(Expr1,SMALL(IF(nom=$AM$2,ROW(INDIRECT("1:"&ROWS(Expr1)))),ROWS('Charge atelier chaudronnerie'!$3:20))),"") ->  | AN21: =IF(ROWS('Charge atelier chaudronnerie'!$3:20)<=COUNTIF(nom,$AM$2),INDEX(Expr2,SMALL(IF(nom=$AM$2,ROW(INDIRECT("1:"&ROWS(Expr1)))),ROWS('Charge atelier chaudronnerie'!$3:20))),"") ->  | AO21: =IF(ROWS('Charge atelier chaudronnerie'!$3:20)<=COUNTIF(nom,$AM$2),INDEX(DatePriseOf,SMALL(IF(nom=$AM$2,ROW(INDIRECT("1:"&ROWS(Expr1)))),ROWS('Charge atelier chaudronnerie'!$3:20))),"") ->  | AQ21: =IF(ROWS('Charge atelier chaudronnerie'!$3:20)<=COUNTIF(nom,$AQ$2),INDEX(Expr1,SMALL(IF(nom=$AQ$2,ROW(INDIRECT("1:"&ROWS(Expr1)))),ROWS('Charge atelier chaudronnerie'!$3:20))),"") ->  | AR21: =IF(ROWS('Charge atelier chaudronnerie'!$3:20)<=COUNTIF(nom,$AQ$2),INDEX(Expr2,SMALL(IF(nom=$AQ$2,ROW(INDIRECT("1:"&ROWS(Expr1)))),ROWS('Charge atelier chaudronnerie'!$3:20))),"") ->  | AS21: =IF(ROWS('Charge atelier chaudronnerie'!$3:20)<=COUNTIF(nom,$AQ$2),INDEX(DatePriseOf,SMALL(IF(nom=$AQ$2,ROW(INDIRECT("1:"&ROWS(Expr1)))),ROWS('Charge atelier chaudronnerie'!$3:20))),"") ->  | AU21: =IF(ROWS('Charge atelier chaudronnerie'!$3:20)<=COUNTIF(nom,$AU$2),INDEX(Expr1,SMALL(IF(nom=$AU$2,ROW(INDIRECT("1:"&ROWS(Expr1)))),ROWS('Charge atelier chaudronnerie'!$3:20))),"") ->  | AV21: =IF(ROWS('Charge atelier chaudronnerie'!$3:20)<=COUNTIF(nom,$AU$2),INDEX(Expr2,SMALL(IF(nom=$AU$2,ROW(INDIRECT("1:"&ROWS(Expr1)))),ROWS('Charge atelier chaudronnerie'!$3:20))),"") ->  | AW21: =IF(ROWS('Charge atelier chaudronnerie'!$3:20)<=COUNTIF(nom,$AU$2),INDEX(DatePriseOf,SMALL(IF(nom=$AU$2,ROW(INDIRECT("1:"&ROWS(Expr1)))),ROWS('Charge atelier chaudronnerie'!$3:20))),"") ->  | AY21: =IF(ROWS('Charge atelier chaudronnerie'!$3:20)<=COUNTIF(nom,$AY$2),INDEX(Expr1,SMALL(IF(nom=$AY$2,ROW(INDIRECT("1:"&ROWS(Expr1)))),ROWS('Charge atelier chaudronnerie'!$3:20))),"") ->  | AZ21: =IF(ROWS('Charge atelier chaudronnerie'!$3:20)<=COUNTIF(nom,$AY$2),INDEX(Expr2,SMALL(IF(nom=$AY$2,ROW(INDIRECT("1:"&ROWS(Expr1)))),ROWS('Charge atelier chaudronnerie'!$3:20))),"") ->  | BA21: =IF(ROWS('Charge atelier chaudronnerie'!$3:20)<=COUNTIF(nom,$AY$2),INDEX(DatePriseOf,SMALL(IF(nom=$AY$2,ROW(INDIRECT("1:"&ROWS(Expr1)))),ROWS('Charge atelier chaudronnerie'!$3:20))),"") ->  | BC21: =IF(ROWS('Charge atelier chaudronnerie'!$3:20)<=COUNTIF(nom,$BC$2),INDEX(Expr1,SMALL(IF(nom=$BC$2,ROW(INDIRECT("1:"&ROWS(Expr1)))),ROWS('Charge atelier chaudronnerie'!$3:20))),"") ->  | BD21: =IF(ROWS('Charge atelier chaudronnerie'!$3:20)<=COUNTIF(nom,$BC$2),INDEX(Expr2,SMALL(IF(nom=$BC$2,ROW(INDIRECT("1:"&ROWS(Expr1)))),ROWS('Charge atelier chaudronnerie'!$3:20))),"") ->  | BE21: =IF(ROWS('Charge atelier chaudronnerie'!$3:20)<=COUNTIF(nom,$BC$2),INDEX(DatePriseOf,SMALL(IF(nom=$BC$2,ROW(INDIRECT("1:"&ROWS(Expr1)))),ROWS('Charge atelier chaudronnerie'!$3:20))),"") ->  | BG21: =IF(ROWS('Charge atelier chaudronnerie'!$3:20)<=COUNTIF(nom,$BG$2),INDEX(Expr1,SMALL(IF(nom=$BG$2,ROW(INDIRECT("1:"&ROWS(Expr1)))),ROWS('Charge atelier chaudronnerie'!$3:20))),"") ->  | BH21: =IF(ROWS('Charge atelier chaudronnerie'!$3:20)<=COUNTIF(nom,$BG$2),INDEX(Expr2,SMALL(IF(nom=$BG$2,ROW(INDIRECT("1:"&ROWS(Expr1)))),ROWS('Charge atelier chaudronnerie'!$3:20))),"") ->  | BI21: =IF(ROWS('Charge atelier chaudronnerie'!$3:20)<=COUNTIF(nom,$BG$2),INDEX(DatePriseOf,SMALL(IF(nom=$BG$2,ROW(INDIRECT("1:"&ROWS(Expr1)))),ROWS('Charge atelier chaudronnerie'!$3:20))),"") ->  | BK21: =IF(ROWS('Charge atelier chaudronnerie'!$3:20)<=COUNTIF(nom,$BK$2),INDEX(Expr1,SMALL(IF(nom=$BK$2,ROW(INDIRECT("1:"&ROWS(Expr1)))),ROWS('Charge atelier chaudronnerie'!$3:20))),"") ->  | BL21: =IF(ROWS('Charge atelier chaudronnerie'!$3:20)<=COUNTIF(nom,$BK$2),INDEX(Expr2,SMALL(IF(nom=$BK$2,ROW(INDIRECT("1:"&ROWS(Expr1)))),ROWS('Charge atelier chaudronnerie'!$3:20))),"") ->  | BM21: =IF(ROWS('Charge atelier chaudronnerie'!$3:20)<=COUNTIF(nom,$BK$2),INDEX(DatePriseOf,SMALL(IF(nom=$BK$2,ROW(INDIRECT("1:"&ROWS(Expr1)))),ROWS('Charge atelier chaudronnerie'!$3:20))),"") ->  | BO21: =IF(ROWS('Charge atelier chaudronnerie'!$3:17)<=COUNTIF(nom,$BO$2),INDEX(Expr1,SMALL(IF(nom=$BO$2,ROW(INDIRECT("1:"&ROWS(Expr1)))),ROWS('Charge atelier chaudronnerie'!$3:17))),"") ->  | BP21: =IF(ROWS('Charge atelier chaudronnerie'!$3:17)<=COUNTIF(nom,$BO$2),INDEX(Expr2,SMALL(IF(nom=$BO$2,ROW(INDIRECT("1:"&ROWS(Expr1)))),ROWS('Charge atelier chaudronnerie'!$3:17))),"") ->  | BQ21: =IF(ROWS('Charge atelier chaudronnerie'!$3:17)<=COUNTIF(nom,$BO$2),INDEX(DatePriseOf,SMALL(IF(nom=$BO$2,ROW(INDIRECT("1:"&ROWS(Expr1)))),ROWS('Charge atelier chaudronnerie'!$3:17))),"") ->  | BS21: =IF(ROWS('Charge atelier chaudronnerie'!$3:17)<=COUNTIF(nom,$BS$2),INDEX(Expr1,SMALL(IF(nom=$BS$2,ROW(INDIRECT("1:"&ROWS(Expr1)))),ROWS('Charge atelier chaudronnerie'!$3:17))),"") ->  | BT21: =IF(ROWS('Charge atelier chaudronnerie'!$3:17)<=COUNTIF(nom,$BS$2),INDEX(Expr2,SMALL(IF(nom=$BS$2,ROW(INDIRECT("1:"&ROWS(Expr1)))),ROWS('Charge atelier chaudronnerie'!$3:17))),"") ->  | BU21: =IF(ROWS('Charge atelier chaudronnerie'!$3:17)<=COUNTIF(nom,$BS$2),INDEX(DatePriseOf,SMALL(IF(nom=$BS$2,ROW(INDIRECT("1:"&ROWS(Expr1)))),ROWS('Charge atelier chaudronnerie'!$3:17))),"") -> 
C22: =IF(ROWS('Charge atelier chaudronnerie'!$3:21)<=COUNTIF(nom,$C$2),INDEX(Expr1,SMALL(IF(nom=$C$2,ROW(INDIRECT("1:"&ROWS(Expr1)))),ROWS('Charge atelier chaudronnerie'!$3:21))),"") ->  | D22: =IF(ROWS('Charge atelier chaudronnerie'!$3:21)<=COUNTIF(nom,$C$2),INDEX(Expr2,SMALL(IF(nom=$C$2,ROW(INDIRECT("1:"&ROWS(Expr1)))),ROWS('Charge atelier chaudronnerie'!$3:21))),"") ->  | E22: =IF(ROWS('Charge atelier chaudronnerie'!$3:21)<=COUNTIF(nom,$C$2),INDEX(DatePriseOf,SMALL(IF(nom=$C$2,ROW(INDIRECT("1:"&ROWS(Expr1)))),ROWS('Charge atelier chaudronnerie'!$3:21))),"") ->  | G22: =IF(ROWS('Charge atelier chaudronnerie'!$3:21)<=COUNTIF(nom,$G$2),INDEX(Expr1,SMALL(IF(nom=$G$2,ROW(INDIRECT("1:"&ROWS(Expr1)))),ROWS('Charge atelier chaudronnerie'!$3:21))),"") ->  | H22: =IF(ROWS('Charge atelier chaudronnerie'!$3:21)<=COUNTIF(nom,$G$2),INDEX(Expr2,SMALL(IF(nom=$G$2,ROW(INDIRECT("1:"&ROWS(Expr1)))),ROWS('Charge atelier chaudronnerie'!$3:21))),"") ->  | I22: =IF(ROWS('Charge atelier chaudronnerie'!$3:21)<=COUNTIF(nom,$G$2),INDEX(DatePriseOf,SMALL(IF(nom=$G$2,ROW(INDIRECT("1:"&ROWS(Expr1)))),ROWS('Charge atelier chaudronnerie'!$3:21))),"") ->  | K22: =IF(ROWS('Charge atelier chaudronnerie'!$3:21)<=COUNTIF(nom,$K$2),INDEX(Expr1,SMALL(IF(nom=$K$2,ROW(INDIRECT("1:"&ROWS(Expr1)))),ROWS('Charge atelier chaudronnerie'!$3:21))),"") ->  | L22: =IF(ROWS('Charge atelier chaudronnerie'!$3:21)<=COUNTIF(nom,$K$2),INDEX(Expr2,SMALL(IF(nom=$K$2,ROW(INDIRECT("1:"&ROWS(Expr1)))),ROWS('Charge atelier chaudronnerie'!$3:21))),"") ->  | M22: =IF(ROWS('Charge atelier chaudronnerie'!$3:21)<=COUNTIF(nom,$K$2),INDEX(DatePriseOf,SMALL(IF(nom=$K$2,ROW(INDIRECT("1:"&ROWS(Expr1)))),ROWS('Charge atelier chaudronnerie'!$3:21))),"") ->  | O22: =IF(ROWS('Charge atelier chaudronnerie'!$3:21)<=COUNTIF(nom,$O$2),INDEX(Expr1,SMALL(IF(nom=$O$2,ROW(INDIRECT("1:"&ROWS(Expr1)))),ROWS('Charge atelier chaudronnerie'!$3:21))),"") ->  | P22: =IF(ROWS('Charge atelier chaudronnerie'!$3:21)<=COUNTIF(nom,$O$2),INDEX(Expr2,SMALL(IF(nom=$O$2,ROW(INDIRECT("1:"&ROWS(Expr1)))),ROWS('Charge atelier chaudronnerie'!$3:21))),"") ->  | Q22: =IF(ROWS('Charge atelier chaudronnerie'!$3:21)<=COUNTIF(nom,$O$2),INDEX(DatePriseOf,SMALL(IF(nom=$O$2,ROW(INDIRECT("1:"&ROWS(Expr1)))),ROWS('Charge atelier chaudronnerie'!$3:21))),"") ->  | S22: =IF(ROWS('Charge atelier chaudronnerie'!$3:21)<=COUNTIF(nom,$S$2),INDEX(Expr1,SMALL(IF(nom=$S$2,ROW(INDIRECT("1:"&ROWS(Expr1)))),ROWS('Charge atelier chaudronnerie'!$3:21))),"") ->  | T22: =IF(ROWS('Charge atelier chaudronnerie'!$3:21)<=COUNTIF(nom,$S$2),INDEX(Expr2,SMALL(IF(nom=$S$2,ROW(INDIRECT("1:"&ROWS(Expr1)))),ROWS('Charge atelier chaudronnerie'!$3:21))),"") ->  | U22: =IF(ROWS('Charge atelier chaudronnerie'!$3:21)<=COUNTIF(nom,$S$2),INDEX(DatePriseOf,SMALL(IF(nom=$S$2,ROW(INDIRECT("1:"&ROWS(Expr1)))),ROWS('Charge atelier chaudronnerie'!$3:21))),"") ->  | W22: =IF(ROWS('Charge atelier chaudronnerie'!$3:21)<=COUNTIF(nom,$W$2),INDEX(Expr1,SMALL(IF(nom=$W$2,ROW(INDIRECT("1:"&ROWS(Expr1)))),ROWS('Charge atelier chaudronnerie'!$3:21))),"") ->  | X22: =IF(ROWS('Charge atelier chaudronnerie'!$3:21)<=COUNTIF(nom,$W$2),INDEX(Expr2,SMALL(IF(nom=$W$2,ROW(INDIRECT("1:"&ROWS(Expr1)))),ROWS('Charge atelier chaudronnerie'!$3:21))),"") ->  | Y22: =IF(ROWS('Charge atelier chaudronnerie'!$3:21)<=COUNTIF(nom,$W$2),INDEX(DatePriseOf,SMALL(IF(nom=$W$2,ROW(INDIRECT("1:"&ROWS(Expr1)))),ROWS('Charge atelier chaudronnerie'!$3:21))),"") ->  | AA22: =IF(ROWS('Charge atelier chaudronnerie'!$3:21)<=COUNTIF(nom,$AA$2),INDEX(Expr1,SMALL(IF(nom=$AA$2,ROW(INDIRECT("1:"&ROWS(Expr1)))),ROWS('Charge atelier chaudronnerie'!$3:21))),"") ->  | AB22: =IF(ROWS('Charge atelier chaudronnerie'!$3:21)<=COUNTIF(nom,$AA$2),INDEX(Expr2,SMALL(IF(nom=$AA$2,ROW(INDIRECT("1:"&ROWS(Expr1)))),ROWS('Charge atelier chaudronnerie'!$3:21))),"") ->  | AC22: =IF(ROWS('Charge atelier chaudronnerie'!$3:21)<=COUNTIF(nom,$AA$2),INDEX(DatePriseOf,SMALL(IF(nom=$AA$2,ROW(INDIRECT("1:"&ROWS(Expr1)))),ROWS('Charge atelier chaudronnerie'!$3:21))),"") ->  | AE22: =IF(ROWS('Charge atelier chaudronnerie'!$3:21)<=COUNTIF(nom,$AE$2),INDEX(Expr1,SMALL(IF(nom=$AE$2,ROW(INDIRECT("1:"&ROWS(Expr1)))),ROWS('Charge atelier chaudronnerie'!$3:21))),"") ->  | AF22: =IF(ROWS('Charge atelier chaudronnerie'!$3:21)<=COUNTIF(nom,$AE$2),INDEX(Expr2,SMALL(IF(nom=$AE$2,ROW(INDIRECT("1:"&ROWS(Expr1)))),ROWS('Charge atelier chaudronnerie'!$3:21))),"") ->  | AG22: =IF(ROWS('Charge atelier chaudronnerie'!$3:21)<=COUNTIF(nom,$AE$2),INDEX(DatePriseOf,SMALL(IF(nom=$AE$2,ROW(INDIRECT("1:"&ROWS(Expr1)))),ROWS('Charge atelier chaudronnerie'!$3:21))),"") ->  | AI22: =IF(ROWS('Charge atelier chaudronnerie'!$3:21)<=COUNTIF(nom,$AI$2),INDEX(Expr1,SMALL(IF(nom=$AI$2,ROW(INDIRECT("1:"&ROWS(Expr1)))),ROWS('Charge atelier chaudronnerie'!$3:21))),"") ->  | AJ22: =IF(ROWS('Charge atelier chaudronnerie'!$3:21)<=COUNTIF(nom,$AI$2),INDEX(Expr2,SMALL(IF(nom=$AI$2,ROW(INDIRECT("1:"&ROWS(Expr1)))),ROWS('Charge atelier chaudronnerie'!$3:21))),"") ->  | AK22: =IF(ROWS('Charge atelier chaudronnerie'!$3:21)<=COUNTIF(nom,$AI$2),INDEX(DatePriseOf,SMALL(IF(nom=$AI$2,ROW(INDIRECT("1:"&ROWS(Expr1)))),ROWS('Charge atelier chaudronnerie'!$3:21))),"") ->  | AM22: =IF(ROWS('Charge atelier chaudronnerie'!$3:21)<=COUNTIF(nom,$AM$2),INDEX(Expr1,SMALL(IF(nom=$AM$2,ROW(INDIRECT("1:"&ROWS(Expr1)))),ROWS('Charge atelier chaudronnerie'!$3:21))),"") ->  | AN22: =IF(ROWS('Charge atelier chaudronnerie'!$3:21)<=COUNTIF(nom,$AM$2),INDEX(Expr2,SMALL(IF(nom=$AM$2,ROW(INDIRECT("1:"&ROWS(Expr1)))),ROWS('Charge atelier chaudronnerie'!$3:21))),"") ->  | AO22: =IF(ROWS('Charge atelier chaudronnerie'!$3:21)<=COUNTIF(nom,$AM$2),INDEX(DatePriseOf,SMALL(IF(nom=$AM$2,ROW(INDIRECT("1:"&ROWS(Expr1)))),ROWS('Charge atelier chaudronnerie'!$3:21))),"") ->  | AQ22: =IF(ROWS('Charge atelier chaudronnerie'!$3:21)<=COUNTIF(nom,$AQ$2),INDEX(Expr1,SMALL(IF(nom=$AQ$2,ROW(INDIRECT("1:"&ROWS(Expr1)))),ROWS('Charge atelier chaudronnerie'!$3:21))),"") ->  | AR22: =IF(ROWS('Charge atelier chaudronnerie'!$3:21)<=COUNTIF(nom,$AQ$2),INDEX(Expr2,SMALL(IF(nom=$AQ$2,ROW(INDIRECT("1:"&ROWS(Expr1)))),ROWS('Charge atelier chaudronnerie'!$3:21))),"") ->  | AS22: =IF(ROWS('Charge atelier chaudronnerie'!$3:21)<=COUNTIF(nom,$AQ$2),INDEX(DatePriseOf,SMALL(IF(nom=$AQ$2,ROW(INDIRECT("1:"&ROWS(Expr1)))),ROWS('Charge atelier chaudronnerie'!$3:21))),"") ->  | AU22: =IF(ROWS('Charge atelier chaudronnerie'!$3:21)<=COUNTIF(nom,$AU$2),INDEX(Expr1,SMALL(IF(nom=$AU$2,ROW(INDIRECT("1:"&ROWS(Expr1)))),ROWS('Charge atelier chaudronnerie'!$3:21))),"") ->  | AV22: =IF(ROWS('Charge atelier chaudronnerie'!$3:21)<=COUNTIF(nom,$AU$2),INDEX(Expr2,SMALL(IF(nom=$AU$2,ROW(INDIRECT("1:"&ROWS(Expr1)))),ROWS('Charge atelier chaudronnerie'!$3:21))),"") ->  | AW22: =IF(ROWS('Charge atelier chaudronnerie'!$3:21)<=COUNTIF(nom,$AU$2),INDEX(DatePriseOf,SMALL(IF(nom=$AU$2,ROW(INDIRECT("1:"&ROWS(Expr1)))),ROWS('Charge atelier chaudronnerie'!$3:21))),"") ->  | AY22: =IF(ROWS('Charge atelier chaudronnerie'!$3:21)<=COUNTIF(nom,$AY$2),INDEX(Expr1,SMALL(IF(nom=$AY$2,ROW(INDIRECT("1:"&ROWS(Expr1)))),ROWS('Charge atelier chaudronnerie'!$3:21))),"") ->  | AZ22: =IF(ROWS('Charge atelier chaudronnerie'!$3:21)<=COUNTIF(nom,$AY$2),INDEX(Expr2,SMALL(IF(nom=$AY$2,ROW(INDIRECT("1:"&ROWS(Expr1)))),ROWS('Charge atelier chaudronnerie'!$3:21))),"") ->  | BA22: =IF(ROWS('Charge atelier chaudronnerie'!$3:21)<=COUNTIF(nom,$AY$2),INDEX(DatePriseOf,SMALL(IF(nom=$AY$2,ROW(INDIRECT("1:"&ROWS(Expr1)))),ROWS('Charge atelier chaudronnerie'!$3:21))),"") ->  | BC22: =IF(ROWS('Charge atelier chaudronnerie'!$3:21)<=COUNTIF(nom,$BC$2),INDEX(Expr1,SMALL(IF(nom=$BC$2,ROW(INDIRECT("1:"&ROWS(Expr1)))),ROWS('Charge atelier chaudronnerie'!$3:21))),"") ->  | BD22: =IF(ROWS('Charge atelier chaudronnerie'!$3:21)<=COUNTIF(nom,$BC$2),INDEX(Expr2,SMALL(IF(nom=$BC$2,ROW(INDIRECT("1:"&ROWS(Expr1)))),ROWS('Charge atelier chaudronnerie'!$3:21))),"") ->  | BE22: =IF(ROWS('Charge atelier chaudronnerie'!$3:21)<=COUNTIF(nom,$BC$2),INDEX(DatePriseOf,SMALL(IF(nom=$BC$2,ROW(INDIRECT("1:"&ROWS(Expr1)))),ROWS('Charge atelier chaudronnerie'!$3:21))),"") ->  | BG22: =IF(ROWS('Charge atelier chaudronnerie'!$3:21)<=COUNTIF(nom,$BG$2),INDEX(Expr1,SMALL(IF(nom=$BG$2,ROW(INDIRECT("1:"&ROWS(Expr1)))),ROWS('Charge atelier chaudronnerie'!$3:21))),"") ->  | BH22: =IF(ROWS('Charge atelier chaudronnerie'!$3:21)<=COUNTIF(nom,$BG$2),INDEX(Expr2,SMALL(IF(nom=$BG$2,ROW(INDIRECT("1:"&ROWS(Expr1)))),ROWS('Charge atelier chaudronnerie'!$3:21))),"") ->  | BI22: =IF(ROWS('Charge atelier chaudronnerie'!$3:21)<=COUNTIF(nom,$BG$2),INDEX(DatePriseOf,SMALL(IF(nom=$BG$2,ROW(INDIRECT("1:"&ROWS(Expr1)))),ROWS('Charge atelier chaudronnerie'!$3:21))),"") ->  | BK22: =IF(ROWS('Charge atelier chaudronnerie'!$3:21)<=COUNTIF(nom,$BK$2),INDEX(Expr1,SMALL(IF(nom=$BK$2,ROW(INDIRECT("1:"&ROWS(Expr1)))),ROWS('Charge atelier chaudronnerie'!$3:21))),"") ->  | BL22: =IF(ROWS('Charge atelier chaudronnerie'!$3:21)<=COUNTIF(nom,$BK$2),INDEX(Expr2,SMALL(IF(nom=$BK$2,ROW(INDIRECT("1:"&ROWS(Expr1)))),ROWS('Charge atelier chaudronnerie'!$3:21))),"") ->  | BM22: =IF(ROWS('Charge atelier chaudronnerie'!$3:21)<=COUNTIF(nom,$BK$2),INDEX(DatePriseOf,SMALL(IF(nom=$BK$2,ROW(INDIRECT("1:"&ROWS(Expr1)))),ROWS('Charge atelier chaudronnerie'!$3:21))),"") ->  | BO22: =IF(ROWS('Charge atelier chaudronnerie'!$3:18)<=COUNTIF(nom,$BO$2),INDEX(Expr1,SMALL(IF(nom=$BO$2,ROW(INDIRECT("1:"&ROWS(Expr1)))),ROWS('Charge atelier chaudronnerie'!$3:18))),"") ->  | BP22: =IF(ROWS('Charge atelier chaudronnerie'!$3:18)<=COUNTIF(nom,$BO$2),INDEX(Expr2,SMALL(IF(nom=$BO$2,ROW(INDIRECT("1:"&ROWS(Expr1)))),ROWS('Charge atelier chaudronnerie'!$3:18))),"") ->  | BQ22: =IF(ROWS('Charge atelier chaudronnerie'!$3:18)<=COUNTIF(nom,$BO$2),INDEX(DatePriseOf,SMALL(IF(nom=$BO$2,ROW(INDIRECT("1:"&ROWS(Expr1)))),ROWS('Charge atelier chaudronnerie'!$3:18))),"") ->  | BS22: =IF(ROWS('Charge atelier chaudronnerie'!$3:18)<=COUNTIF(nom,$BS$2),INDEX(Expr1,SMALL(IF(nom=$BS$2,ROW(INDIRECT("1:"&ROWS(Expr1)))),ROWS('Charge atelier chaudronnerie'!$3:18))),"") ->  | BT22: =IF(ROWS('Charge atelier chaudronnerie'!$3:18)<=COUNTIF(nom,$BS$2),INDEX(Expr2,SMALL(IF(nom=$BS$2,ROW(INDIRECT("1:"&ROWS(Expr1)))),ROWS('Charge atelier chaudronnerie'!$3:18))),"") ->  | BU22: =IF(ROWS('Charge atelier chaudronnerie'!$3:18)<=COUNTIF(nom,$BS$2),INDEX(DatePriseOf,SMALL(IF(nom=$BS$2,ROW(INDIRECT("1:"&ROWS(Expr1)))),ROWS('Charge atelier chaudronnerie'!$3:18))),"") -> 
C23: =IF(ROWS('Charge atelier chaudronnerie'!$3:22)<=COUNTIF(nom,$C$2),INDEX(Expr1,SMALL(IF(nom=$C$2,ROW(INDIRECT("1:"&ROWS(Expr1)))),ROWS('Charge atelier chaudronnerie'!$3:22))),"") ->  | D23: =IF(ROWS('Charge atelier chaudronnerie'!$3:22)<=COUNTIF(nom,$C$2),INDEX(Expr2,SMALL(IF(nom=$C$2,ROW(INDIRECT("1:"&ROWS(Expr1)))),ROWS('Charge atelier chaudronnerie'!$3:22))),"") ->  | E23: =IF(ROWS('Charge atelier chaudronnerie'!$3:22)<=COUNTIF(nom,$C$2),INDEX(DatePriseOf,SMALL(IF(nom=$C$2,ROW(INDIRECT("1:"&ROWS(Expr1)))),ROWS('Charge atelier chaudronnerie'!$3:22))),"") ->  | G23: =IF(ROWS('Charge atelier chaudronnerie'!$3:22)<=COUNTIF(nom,$G$2),INDEX(Expr1,SMALL(IF(nom=$G$2,ROW(INDIRECT("1:"&ROWS(Expr1)))),ROWS('Charge atelier chaudronnerie'!$3:22))),"") ->  | H23: =IF(ROWS('Charge atelier chaudronnerie'!$3:22)<=COUNTIF(nom,$G$2),INDEX(Expr2,SMALL(IF(nom=$G$2,ROW(INDIRECT("1:"&ROWS(Expr1)))),ROWS('Charge atelier chaudronnerie'!$3:22))),"") ->  | I23: =IF(ROWS('Charge atelier chaudronnerie'!$3:22)<=COUNTIF(nom,$G$2),INDEX(DatePriseOf,SMALL(IF(nom=$G$2,ROW(INDIRECT("1:"&ROWS(Expr1)))),ROWS('Charge atelier chaudronnerie'!$3:22))),"") ->  | K23: =IF(ROWS('Charge atelier chaudronnerie'!$3:22)<=COUNTIF(nom,$K$2),INDEX(Expr1,SMALL(IF(nom=$K$2,ROW(INDIRECT("1:"&ROWS(Expr1)))),ROWS('Charge atelier chaudronnerie'!$3:22))),"") ->  | L23: =IF(ROWS('Charge atelier chaudronnerie'!$3:22)<=COUNTIF(nom,$K$2),INDEX(Expr2,SMALL(IF(nom=$K$2,ROW(INDIRECT("1:"&ROWS(Expr1)))),ROWS('Charge atelier chaudronnerie'!$3:22))),"") ->  | M23: =IF(ROWS('Charge atelier chaudronnerie'!$3:22)<=COUNTIF(nom,$K$2),INDEX(DatePriseOf,SMALL(IF(nom=$K$2,ROW(INDIRECT("1:"&ROWS(Expr1)))),ROWS('Charge atelier chaudronnerie'!$3:22))),"") ->  | O23: =IF(ROWS('Charge atelier chaudronnerie'!$3:22)<=COUNTIF(nom,$O$2),INDEX(Expr1,SMALL(IF(nom=$O$2,ROW(INDIRECT("1:"&ROWS(Expr1)))),ROWS('Charge atelier chaudronnerie'!$3:22))),"") ->  | P23: =IF(ROWS('Charge atelier chaudronnerie'!$3:22)<=COUNTIF(nom,$O$2),INDEX(Expr2,SMALL(IF(nom=$O$2,ROW(INDIRECT("1:"&ROWS(Expr1)))),ROWS('Charge atelier chaudronnerie'!$3:22))),"") ->  | Q23: =IF(ROWS('Charge atelier chaudronnerie'!$3:22)<=COUNTIF(nom,$O$2),INDEX(DatePriseOf,SMALL(IF(nom=$O$2,ROW(INDIRECT("1:"&ROWS(Expr1)))),ROWS('Charge atelier chaudronnerie'!$3:22))),"") ->  | S23: =IF(ROWS('Charge atelier chaudronnerie'!$3:22)<=COUNTIF(nom,$S$2),INDEX(Expr1,SMALL(IF(nom=$S$2,ROW(INDIRECT("1:"&ROWS(Expr1)))),ROWS('Charge atelier chaudronnerie'!$3:22))),"") ->  | T23: =IF(ROWS('Charge atelier chaudronnerie'!$3:22)<=COUNTIF(nom,$S$2),INDEX(Expr2,SMALL(IF(nom=$S$2,ROW(INDIRECT("1:"&ROWS(Expr1)))),ROWS('Charge atelier chaudronnerie'!$3:22))),"") ->  | U23: =IF(ROWS('Charge atelier chaudronnerie'!$3:22)<=COUNTIF(nom,$S$2),INDEX(DatePriseOf,SMALL(IF(nom=$S$2,ROW(INDIRECT("1:"&ROWS(Expr1)))),ROWS('Charge atelier chaudronnerie'!$3:22))),"") ->  | W23: =IF(ROWS('Charge atelier chaudronnerie'!$3:22)<=COUNTIF(nom,$W$2),INDEX(Expr1,SMALL(IF(nom=$W$2,ROW(INDIRECT("1:"&ROWS(Expr1)))),ROWS('Charge atelier chaudronnerie'!$3:22))),"") ->  | X23: =IF(ROWS('Charge atelier chaudronnerie'!$3:22)<=COUNTIF(nom,$W$2),INDEX(Expr2,SMALL(IF(nom=$W$2,ROW(INDIRECT("1:"&ROWS(Expr1)))),ROWS('Charge atelier chaudronnerie'!$3:22))),"") ->  | Y23: =IF(ROWS('Charge atelier chaudronnerie'!$3:22)<=COUNTIF(nom,$W$2),INDEX(DatePriseOf,SMALL(IF(nom=$W$2,ROW(INDIRECT("1:"&ROWS(Expr1)))),ROWS('Charge atelier chaudronnerie'!$3:22))),"") ->  | AA23: =IF(ROWS('Charge atelier chaudronnerie'!$3:22)<=COUNTIF(nom,$AA$2),INDEX(Expr1,SMALL(IF(nom=$AA$2,ROW(INDIRECT("1:"&ROWS(Expr1)))),ROWS('Charge atelier chaudronnerie'!$3:22))),"") ->  | AB23: =IF(ROWS('Charge atelier chaudronnerie'!$3:22)<=COUNTIF(nom,$AA$2),INDEX(Expr2,SMALL(IF(nom=$AA$2,ROW(INDIRECT("1:"&ROWS(Expr1)))),ROWS('Charge atelier chaudronnerie'!$3:22))),"") ->  | AC23: =IF(ROWS('Charge atelier chaudronnerie'!$3:22)<=COUNTIF(nom,$AA$2),INDEX(DatePriseOf,SMALL(IF(nom=$AA$2,ROW(INDIRECT("1:"&ROWS(Expr1)))),ROWS('Charge atelier chaudronnerie'!$3:22))),"") ->  | AE23: =IF(ROWS('Charge atelier chaudronnerie'!$3:22)<=COUNTIF(nom,$AE$2),INDEX(Expr1,SMALL(IF(nom=$AE$2,ROW(INDIRECT("1:"&ROWS(Expr1)))),ROWS('Charge atelier chaudronnerie'!$3:22))),"") ->  | AF23: =IF(ROWS('Charge atelier chaudronnerie'!$3:22)<=COUNTIF(nom,$AE$2),INDEX(Expr2,SMALL(IF(nom=$AE$2,ROW(INDIRECT("1:"&ROWS(Expr1)))),ROWS('Charge atelier chaudronnerie'!$3:22))),"") ->  | AG23: =IF(ROWS('Charge atelier chaudronnerie'!$3:22)<=COUNTIF(nom,$AE$2),INDEX(DatePriseOf,SMALL(IF(nom=$AE$2,ROW(INDIRECT("1:"&ROWS(Expr1)))),ROWS('Charge atelier chaudronnerie'!$3:22))),"") ->  | AI23: =IF(ROWS('Charge atelier chaudronnerie'!$3:22)<=COUNTIF(nom,$AI$2),INDEX(Expr1,SMALL(IF(nom=$AI$2,ROW(INDIRECT("1:"&ROWS(Expr1)))),ROWS('Charge atelier chaudronnerie'!$3:22))),"") ->  | AJ23: =IF(ROWS('Charge atelier chaudronnerie'!$3:22)<=COUNTIF(nom,$AI$2),INDEX(Expr2,SMALL(IF(nom=$AI$2,ROW(INDIRECT("1:"&ROWS(Expr1)))),ROWS('Charge atelier chaudronnerie'!$3:22))),"") ->  | AK23: =IF(ROWS('Charge atelier chaudronnerie'!$3:22)<=COUNTIF(nom,$AI$2),INDEX(DatePriseOf,SMALL(IF(nom=$AI$2,ROW(INDIRECT("1:"&ROWS(Expr1)))),ROWS('Charge atelier chaudronnerie'!$3:22))),"") ->  | AM23: =IF(ROWS('Charge atelier chaudronnerie'!$3:22)<=COUNTIF(nom,$AM$2),INDEX(Expr1,SMALL(IF(nom=$AM$2,ROW(INDIRECT("1:"&ROWS(Expr1)))),ROWS('Charge atelier chaudronnerie'!$3:22))),"") ->  | AN23: =IF(ROWS('Charge atelier chaudronnerie'!$3:22)<=COUNTIF(nom,$AM$2),INDEX(Expr2,SMALL(IF(nom=$AM$2,ROW(INDIRECT("1:"&ROWS(Expr1)))),ROWS('Charge atelier chaudronnerie'!$3:22))),"") ->  | AO23: =IF(ROWS('Charge atelier chaudronnerie'!$3:22)<=COUNTIF(nom,$AM$2),INDEX(DatePriseOf,SMALL(IF(nom=$AM$2,ROW(INDIRECT("1:"&ROWS(Expr1)))),ROWS('Charge atelier chaudronnerie'!$3:22))),"") ->  | AQ23: =IF(ROWS('Charge atelier chaudronnerie'!$3:22)<=COUNTIF(nom,$AQ$2),INDEX(Expr1,SMALL(IF(nom=$AQ$2,ROW(INDIRECT("1:"&ROWS(Expr1)))),ROWS('Charge atelier chaudronnerie'!$3:22))),"") ->  | AR23: =IF(ROWS('Charge atelier chaudronnerie'!$3:22)<=COUNTIF(nom,$AQ$2),INDEX(Expr2,SMALL(IF(nom=$AQ$2,ROW(INDIRECT("1:"&ROWS(Expr1)))),ROWS('Charge atelier chaudronnerie'!$3:22))),"") ->  | AS23: =IF(ROWS('Charge atelier chaudronnerie'!$3:22)<=COUNTIF(nom,$AQ$2),INDEX(DatePriseOf,SMALL(IF(nom=$AQ$2,ROW(INDIRECT("1:"&ROWS(Expr1)))),ROWS('Charge atelier chaudronnerie'!$3:22))),"") ->  | AU23: =IF(ROWS('Charge atelier chaudronnerie'!$3:22)<=COUNTIF(nom,$AU$2),INDEX(Expr1,SMALL(IF(nom=$AU$2,ROW(INDIRECT("1:"&ROWS(Expr1)))),ROWS('Charge atelier chaudronnerie'!$3:22))),"") ->  | AV23: =IF(ROWS('Charge atelier chaudronnerie'!$3:22)<=COUNTIF(nom,$AU$2),INDEX(Expr2,SMALL(IF(nom=$AU$2,ROW(INDIRECT("1:"&ROWS(Expr1)))),ROWS('Charge atelier chaudronnerie'!$3:22))),"") ->  | AW23: =IF(ROWS('Charge atelier chaudronnerie'!$3:22)<=COUNTIF(nom,$AU$2),INDEX(DatePriseOf,SMALL(IF(nom=$AU$2,ROW(INDIRECT("1:"&ROWS(Expr1)))),ROWS('Charge atelier chaudronnerie'!$3:22))),"") ->  | AY23: =IF(ROWS('Charge atelier chaudronnerie'!$3:22)<=COUNTIF(nom,$AY$2),INDEX(Expr1,SMALL(IF(nom=$AY$2,ROW(INDIRECT("1:"&ROWS(Expr1)))),ROWS('Charge atelier chaudronnerie'!$3:22))),"") ->  | AZ23: =IF(ROWS('Charge atelier chaudronnerie'!$3:22)<=COUNTIF(nom,$AY$2),INDEX(Expr2,SMALL(IF(nom=$AY$2,ROW(INDIRECT("1:"&ROWS(Expr1)))),ROWS('Charge atelier chaudronnerie'!$3:22))),"") ->  | BA23: =IF(ROWS('Charge atelier chaudronnerie'!$3:22)<=COUNTIF(nom,$AY$2),INDEX(DatePriseOf,SMALL(IF(nom=$AY$2,ROW(INDIRECT("1:"&ROWS(Expr1)))),ROWS('Charge atelier chaudronnerie'!$3:22))),"") ->  | BC23: =IF(ROWS('Charge atelier chaudronnerie'!$3:22)<=COUNTIF(nom,$BC$2),INDEX(Expr1,SMALL(IF(nom=$BC$2,ROW(INDIRECT("1:"&ROWS(Expr1)))),ROWS('Charge atelier chaudronnerie'!$3:22))),"") ->  | BD23: =IF(ROWS('Charge atelier chaudronnerie'!$3:22)<=COUNTIF(nom,$BC$2),INDEX(Expr2,SMALL(IF(nom=$BC$2,ROW(INDIRECT("1:"&ROWS(Expr1)))),ROWS('Charge atelier chaudronnerie'!$3:22))),"") ->  | BE23: =IF(ROWS('Charge atelier chaudronnerie'!$3:22)<=COUNTIF(nom,$BC$2),INDEX(DatePriseOf,SMALL(IF(nom=$BC$2,ROW(INDIRECT("1:"&ROWS(Expr1)))),ROWS('Charge atelier chaudronnerie'!$3:22))),"") ->  | BG23: =IF(ROWS('Charge atelier chaudronnerie'!$3:22)<=COUNTIF(nom,$BG$2),INDEX(Expr1,SMALL(IF(nom=$BG$2,ROW(INDIRECT("1:"&ROWS(Expr1)))),ROWS('Charge atelier chaudronnerie'!$3:22))),"") ->  | BH23: =IF(ROWS('Charge atelier chaudronnerie'!$3:22)<=COUNTIF(nom,$BG$2),INDEX(Expr2,SMALL(IF(nom=$BG$2,ROW(INDIRECT("1:"&ROWS(Expr1)))),ROWS('Charge atelier chaudronnerie'!$3:22))),"") ->  | BI23: =IF(ROWS('Charge atelier chaudronnerie'!$3:22)<=COUNTIF(nom,$BG$2),INDEX(DatePriseOf,SMALL(IF(nom=$BG$2,ROW(INDIRECT("1:"&ROWS(Expr1)))),ROWS('Charge atelier chaudronnerie'!$3:22))),"") ->  | BK23: =IF(ROWS('Charge atelier chaudronnerie'!$3:22)<=COUNTIF(nom,$BK$2),INDEX(Expr1,SMALL(IF(nom=$BK$2,ROW(INDIRECT("1:"&ROWS(Expr1)))),ROWS('Charge atelier chaudronnerie'!$3:22))),"") ->  | BL23: =IF(ROWS('Charge atelier chaudronnerie'!$3:22)<=COUNTIF(nom,$BK$2),INDEX(Expr2,SMALL(IF(nom=$BK$2,ROW(INDIRECT("1:"&ROWS(Expr1)))),ROWS('Charge atelier chaudronnerie'!$3:22))),"") ->  | BM23: =IF(ROWS('Charge atelier chaudronnerie'!$3:22)<=COUNTIF(nom,$BK$2),INDEX(DatePriseOf,SMALL(IF(nom=$BK$2,ROW(INDIRECT("1:"&ROWS(Expr1)))),ROWS('Charge atelier chaudronnerie'!$3:22))),"") ->  | BO23: =IF(ROWS('Charge atelier chaudronnerie'!$3:19)<=COUNTIF(nom,$BO$2),INDEX(Expr1,SMALL(IF(nom=$BO$2,ROW(INDIRECT("1:"&ROWS(Expr1)))),ROWS('Charge atelier chaudronnerie'!$3:19))),"") ->  | BP23: =IF(ROWS('Charge atelier chaudronnerie'!$3:19)<=COUNTIF(nom,$BO$2),INDEX(Expr2,SMALL(IF(nom=$BO$2,ROW(INDIRECT("1:"&ROWS(Expr1)))),ROWS('Charge atelier chaudronnerie'!$3:19))),"") ->  | BQ23: =IF(ROWS('Charge atelier chaudronnerie'!$3:19)<=COUNTIF(nom,$BO$2),INDEX(DatePriseOf,SMALL(IF(nom=$BO$2,ROW(INDIRECT("1:"&ROWS(Expr1)))),ROWS('Charge atelier chaudronnerie'!$3:19))),"") ->  | BS23: =IF(ROWS('Charge atelier chaudronnerie'!$3:19)<=COUNTIF(nom,$BS$2),INDEX(Expr1,SMALL(IF(nom=$BS$2,ROW(INDIRECT("1:"&ROWS(Expr1)))),ROWS('Charge atelier chaudronnerie'!$3:19))),"") ->  | BT23: =IF(ROWS('Charge atelier chaudronnerie'!$3:19)<=COUNTIF(nom,$BS$2),INDEX(Expr2,SMALL(IF(nom=$BS$2,ROW(INDIRECT("1:"&ROWS(Expr1)))),ROWS('Charge atelier chaudronnerie'!$3:19))),"") ->  | BU23: =IF(ROWS('Charge atelier chaudronnerie'!$3:19)<=COUNTIF(nom,$BS$2),INDEX(DatePriseOf,SMALL(IF(nom=$BS$2,ROW(INDIRECT("1:"&ROWS(Expr1)))),ROWS('Charge atelier chaudronnerie'!$3:19))),"") -> 
C24: =IF(ROWS('Charge atelier chaudronnerie'!$3:23)<=COUNTIF(nom,$C$2),INDEX(Expr1,SMALL(IF(nom=$C$2,ROW(INDIRECT("1:"&ROWS(Expr1)))),ROWS('Charge atelier chaudronnerie'!$3:23))),"") ->  | D24: =IF(ROWS('Charge atelier chaudronnerie'!$3:23)<=COUNTIF(nom,$C$2),INDEX(Expr2,SMALL(IF(nom=$C$2,ROW(INDIRECT("1:"&ROWS(Expr1)))),ROWS('Charge atelier chaudronnerie'!$3:23))),"") ->  | E24: =IF(ROWS('Charge atelier chaudronnerie'!$3:23)<=COUNTIF(nom,$C$2),INDEX(DatePriseOf,SMALL(IF(nom=$C$2,ROW(INDIRECT("1:"&ROWS(Expr1)))),ROWS('Charge atelier chaudronnerie'!$3:23))),"") ->  | G24: =IF(ROWS('Charge atelier chaudronnerie'!$3:23)<=COUNTIF(nom,$G$2),INDEX(Expr1,SMALL(IF(nom=$G$2,ROW(INDIRECT("1:"&ROWS(Expr1)))),ROWS('Charge atelier chaudronnerie'!$3:23))),"") ->  | H24: =IF(ROWS('Charge atelier chaudronnerie'!$3:23)<=COUNTIF(nom,$G$2),INDEX(Expr2,SMALL(IF(nom=$G$2,ROW(INDIRECT("1:"&ROWS(Expr1)))),ROWS('Charge atelier chaudronnerie'!$3:23))),"") ->  | I24: =IF(ROWS('Charge atelier chaudronnerie'!$3:23)<=COUNTIF(nom,$G$2),INDEX(DatePriseOf,SMALL(IF(nom=$G$2,ROW(INDIRECT("1:"&ROWS(Expr1)))),ROWS('Charge atelier chaudronnerie'!$3:23))),"") ->  | K24: =IF(ROWS('Charge atelier chaudronnerie'!$3:23)<=COUNTIF(nom,$K$2),INDEX(Expr1,SMALL(IF(nom=$K$2,ROW(INDIRECT("1:"&ROWS(Expr1)))),ROWS('Charge atelier chaudronnerie'!$3:23))),"") ->  | L24: =IF(ROWS('Charge atelier chaudronnerie'!$3:23)<=COUNTIF(nom,$K$2),INDEX(Expr2,SMALL(IF(nom=$K$2,ROW(INDIRECT("1:"&ROWS(Expr1)))),ROWS('Charge atelier chaudronnerie'!$3:23))),"") ->  | M24: =IF(ROWS('Charge atelier chaudronnerie'!$3:23)<=COUNTIF(nom,$K$2),INDEX(DatePriseOf,SMALL(IF(nom=$K$2,ROW(INDIRECT("1:"&ROWS(Expr1)))),ROWS('Charge atelier chaudronnerie'!$3:23))),"") ->  | O24: =IF(ROWS('Charge atelier chaudronnerie'!$3:23)<=COUNTIF(nom,$O$2),INDEX(Expr1,SMALL(IF(nom=$O$2,ROW(INDIRECT("1:"&ROWS(Expr1)))),ROWS('Charge atelier chaudronnerie'!$3:23))),"") ->  | P24: =IF(ROWS('Charge atelier chaudronnerie'!$3:23)<=COUNTIF(nom,$O$2),INDEX(Expr2,SMALL(IF(nom=$O$2,ROW(INDIRECT("1:"&ROWS(Expr1)))),ROWS('Charge atelier chaudronnerie'!$3:23))),"") ->  | Q24: =IF(ROWS('Charge atelier chaudronnerie'!$3:23)<=COUNTIF(nom,$O$2),INDEX(DatePriseOf,SMALL(IF(nom=$O$2,ROW(INDIRECT("1:"&ROWS(Expr1)))),ROWS('Charge atelier chaudronnerie'!$3:23))),"") ->  | S24: =IF(ROWS('Charge atelier chaudronnerie'!$3:23)<=COUNTIF(nom,$S$2),INDEX(Expr1,SMALL(IF(nom=$S$2,ROW(INDIRECT("1:"&ROWS(Expr1)))),ROWS('Charge atelier chaudronnerie'!$3:23))),"") ->  | T24: =IF(ROWS('Charge atelier chaudronnerie'!$3:23)<=COUNTIF(nom,$S$2),INDEX(Expr2,SMALL(IF(nom=$S$2,ROW(INDIRECT("1:"&ROWS(Expr1)))),ROWS('Charge atelier chaudronnerie'!$3:23))),"") ->  | U24: =IF(ROWS('Charge atelier chaudronnerie'!$3:23)<=COUNTIF(nom,$S$2),INDEX(DatePriseOf,SMALL(IF(nom=$S$2,ROW(INDIRECT("1:"&ROWS(Expr1)))),ROWS('Charge atelier chaudronnerie'!$3:23))),"") ->  | W24: =IF(ROWS('Charge atelier chaudronnerie'!$3:23)<=COUNTIF(nom,$W$2),INDEX(Expr1,SMALL(IF(nom=$W$2,ROW(INDIRECT("1:"&ROWS(Expr1)))),ROWS('Charge atelier chaudronnerie'!$3:23))),"") ->  | X24: =IF(ROWS('Charge atelier chaudronnerie'!$3:23)<=COUNTIF(nom,$W$2),INDEX(Expr2,SMALL(IF(nom=$W$2,ROW(INDIRECT("1:"&ROWS(Expr1)))),ROWS('Charge atelier chaudronnerie'!$3:23))),"") ->  | Y24: =IF(ROWS('Charge atelier chaudronnerie'!$3:23)<=COUNTIF(nom,$W$2),INDEX(DatePriseOf,SMALL(IF(nom=$W$2,ROW(INDIRECT("1:"&ROWS(Expr1)))),ROWS('Charge atelier chaudronnerie'!$3:23))),"") ->  | AA24: =IF(ROWS('Charge atelier chaudronnerie'!$3:23)<=COUNTIF(nom,$AA$2),INDEX(Expr1,SMALL(IF(nom=$AA$2,ROW(INDIRECT("1:"&ROWS(Expr1)))),ROWS('Charge atelier chaudronnerie'!$3:23))),"") ->  | AB24: =IF(ROWS('Charge atelier chaudronnerie'!$3:23)<=COUNTIF(nom,$AA$2),INDEX(Expr2,SMALL(IF(nom=$AA$2,ROW(INDIRECT("1:"&ROWS(Expr1)))),ROWS('Charge atelier chaudronnerie'!$3:23))),"") ->  | AC24: =IF(ROWS('Charge atelier chaudronnerie'!$3:23)<=COUNTIF(nom,$AA$2),INDEX(DatePriseOf,SMALL(IF(nom=$AA$2,ROW(INDIRECT("1:"&ROWS(Expr1)))),ROWS('Charge atelier chaudronnerie'!$3:23))),"") ->  | AE24: =IF(ROWS('Charge atelier chaudronnerie'!$3:23)<=COUNTIF(nom,$AE$2),INDEX(Expr1,SMALL(IF(nom=$AE$2,ROW(INDIRECT("1:"&ROWS(Expr1)))),ROWS('Charge atelier chaudronnerie'!$3:23))),"") ->  | AF24: =IF(ROWS('Charge atelier chaudronnerie'!$3:23)<=COUNTIF(nom,$AE$2),INDEX(Expr2,SMALL(IF(nom=$AE$2,ROW(INDIRECT("1:"&ROWS(Expr1)))),ROWS('Charge atelier chaudronnerie'!$3:23))),"") ->  | AG24: =IF(ROWS('Charge atelier chaudronnerie'!$3:23)<=COUNTIF(nom,$AE$2),INDEX(DatePriseOf,SMALL(IF(nom=$AE$2,ROW(INDIRECT("1:"&ROWS(Expr1)))),ROWS('Charge atelier chaudronnerie'!$3:23))),"") ->  | AI24: =IF(ROWS('Charge atelier chaudronnerie'!$3:23)<=COUNTIF(nom,$AI$2),INDEX(Expr1,SMALL(IF(nom=$AI$2,ROW(INDIRECT("1:"&ROWS(Expr1)))),ROWS('Charge atelier chaudronnerie'!$3:23))),"") ->  | AJ24: =IF(ROWS('Charge atelier chaudronnerie'!$3:23)<=COUNTIF(nom,$AI$2),INDEX(Expr2,SMALL(IF(nom=$AI$2,ROW(INDIRECT("1:"&ROWS(Expr1)))),ROWS('Charge atelier chaudronnerie'!$3:23))),"") ->  | AK24: =IF(ROWS('Charge atelier chaudronnerie'!$3:23)<=COUNTIF(nom,$AI$2),INDEX(DatePriseOf,SMALL(IF(nom=$AI$2,ROW(INDIRECT("1:"&ROWS(Expr1)))),ROWS('Charge atelier chaudronnerie'!$3:23))),"") ->  | AM24: =IF(ROWS('Charge atelier chaudronnerie'!$3:23)<=COUNTIF(nom,$AM$2),INDEX(Expr1,SMALL(IF(nom=$AM$2,ROW(INDIRECT("1:"&ROWS(Expr1)))),ROWS('Charge atelier chaudronnerie'!$3:23))),"") ->  | AN24: =IF(ROWS('Charge atelier chaudronnerie'!$3:23)<=COUNTIF(nom,$AM$2),INDEX(Expr2,SMALL(IF(nom=$AM$2,ROW(INDIRECT("1:"&ROWS(Expr1)))),ROWS('Charge atelier chaudronnerie'!$3:23))),"") ->  | AO24: =IF(ROWS('Charge atelier chaudronnerie'!$3:23)<=COUNTIF(nom,$AM$2),INDEX(DatePriseOf,SMALL(IF(nom=$AM$2,ROW(INDIRECT("1:"&ROWS(Expr1)))),ROWS('Charge atelier chaudronnerie'!$3:23))),"") ->  | AQ24: =IF(ROWS('Charge atelier chaudronnerie'!$3:23)<=COUNTIF(nom,$AQ$2),INDEX(Expr1,SMALL(IF(nom=$AQ$2,ROW(INDIRECT("1:"&ROWS(Expr1)))),ROWS('Charge atelier chaudronnerie'!$3:23))),"") ->  | AR24: =IF(ROWS('Charge atelier chaudronnerie'!$3:23)<=COUNTIF(nom,$AQ$2),INDEX(Expr2,SMALL(IF(nom=$AQ$2,ROW(INDIRECT("1:"&ROWS(Expr1)))),ROWS('Charge atelier chaudronnerie'!$3:23))),"") ->  | AS24: =IF(ROWS('Charge atelier chaudronnerie'!$3:23)<=COUNTIF(nom,$AQ$2),INDEX(DatePriseOf,SMALL(IF(nom=$AQ$2,ROW(INDIRECT("1:"&ROWS(Expr1)))),ROWS('Charge atelier chaudronnerie'!$3:23))),"") ->  | AU24: =IF(ROWS('Charge atelier chaudronnerie'!$3:23)<=COUNTIF(nom,$AU$2),INDEX(Expr1,SMALL(IF(nom=$AU$2,ROW(INDIRECT("1:"&ROWS(Expr1)))),ROWS('Charge atelier chaudronnerie'!$3:23))),"") ->  | AV24: =IF(ROWS('Charge atelier chaudronnerie'!$3:23)<=COUNTIF(nom,$AU$2),INDEX(Expr2,SMALL(IF(nom=$AU$2,ROW(INDIRECT("1:"&ROWS(Expr1)))),ROWS('Charge atelier chaudronnerie'!$3:23))),"") ->  | AW24: =IF(ROWS('Charge atelier chaudronnerie'!$3:23)<=COUNTIF(nom,$AU$2),INDEX(DatePriseOf,SMALL(IF(nom=$AU$2,ROW(INDIRECT("1:"&ROWS(Expr1)))),ROWS('Charge atelier chaudronnerie'!$3:23))),"") ->  | AY24: =IF(ROWS('Charge atelier chaudronnerie'!$3:23)<=COUNTIF(nom,$AY$2),INDEX(Expr1,SMALL(IF(nom=$AY$2,ROW(INDIRECT("1:"&ROWS(Expr1)))),ROWS('Charge atelier chaudronnerie'!$3:23))),"") ->  | AZ24: =IF(ROWS('Charge atelier chaudronnerie'!$3:23)<=COUNTIF(nom,$AY$2),INDEX(Expr2,SMALL(IF(nom=$AY$2,ROW(INDIRECT("1:"&ROWS(Expr1)))),ROWS('Charge atelier chaudronnerie'!$3:23))),"") ->  | BA24: =IF(ROWS('Charge atelier chaudronnerie'!$3:23)<=COUNTIF(nom,$AY$2),INDEX(DatePriseOf,SMALL(IF(nom=$AY$2,ROW(INDIRECT("1:"&ROWS(Expr1)))),ROWS('Charge atelier chaudronnerie'!$3:23))),"") ->  | BC24: =IF(ROWS('Charge atelier chaudronnerie'!$3:23)<=COUNTIF(nom,$BC$2),INDEX(Expr1,SMALL(IF(nom=$BC$2,ROW(INDIRECT("1:"&ROWS(Expr1)))),ROWS('Charge atelier chaudronnerie'!$3:23))),"") ->  | BD24: =IF(ROWS('Charge atelier chaudronnerie'!$3:23)<=COUNTIF(nom,$BC$2),INDEX(Expr2,SMALL(IF(nom=$BC$2,ROW(INDIRECT("1:"&ROWS(Expr1)))),ROWS('Charge atelier chaudronnerie'!$3:23))),"") ->  | BE24: =IF(ROWS('Charge atelier chaudronnerie'!$3:23)<=COUNTIF(nom,$BC$2),INDEX(DatePriseOf,SMALL(IF(nom=$BC$2,ROW(INDIRECT("1:"&ROWS(Expr1)))),ROWS('Charge atelier chaudronnerie'!$3:23))),"") ->  | BG24: =IF(ROWS('Charge atelier chaudronnerie'!$3:23)<=COUNTIF(nom,$BG$2),INDEX(Expr1,SMALL(IF(nom=$BG$2,ROW(INDIRECT("1:"&ROWS(Expr1)))),ROWS('Charge atelier chaudronnerie'!$3:23))),"") ->  | BH24: =IF(ROWS('Charge atelier chaudronnerie'!$3:23)<=COUNTIF(nom,$BG$2),INDEX(Expr2,SMALL(IF(nom=$BG$2,ROW(INDIRECT("1:"&ROWS(Expr1)))),ROWS('Charge atelier chaudronnerie'!$3:23))),"") ->  | BI24: =IF(ROWS('Charge atelier chaudronnerie'!$3:23)<=COUNTIF(nom,$BG$2),INDEX(DatePriseOf,SMALL(IF(nom=$BG$2,ROW(INDIRECT("1:"&ROWS(Expr1)))),ROWS('Charge atelier chaudronnerie'!$3:23))),"") ->  | BK24: =IF(ROWS('Charge atelier chaudronnerie'!$3:23)<=COUNTIF(nom,$BK$2),INDEX(Expr1,SMALL(IF(nom=$BK$2,ROW(INDIRECT("1:"&ROWS(Expr1)))),ROWS('Charge atelier chaudronnerie'!$3:23))),"") ->  | BL24: =IF(ROWS('Charge atelier chaudronnerie'!$3:23)<=COUNTIF(nom,$BK$2),INDEX(Expr2,SMALL(IF(nom=$BK$2,ROW(INDIRECT("1:"&ROWS(Expr1)))),ROWS('Charge atelier chaudronnerie'!$3:23))),"") ->  | BM24: =IF(ROWS('Charge atelier chaudronnerie'!$3:23)<=COUNTIF(nom,$BK$2),INDEX(DatePriseOf,SMALL(IF(nom=$BK$2,ROW(INDIRECT("1:"&ROWS(Expr1)))),ROWS('Charge atelier chaudronnerie'!$3:23))),"") ->  | BO24: =IF(ROWS('Charge atelier chaudronnerie'!$3:20)<=COUNTIF(nom,$BO$2),INDEX(Expr1,SMALL(IF(nom=$BO$2,ROW(INDIRECT("1:"&ROWS(Expr1)))),ROWS('Charge atelier chaudronnerie'!$3:20))),"") ->  | BP24: =IF(ROWS('Charge atelier chaudronnerie'!$3:20)<=COUNTIF(nom,$BO$2),INDEX(Expr2,SMALL(IF(nom=$BO$2,ROW(INDIRECT("1:"&ROWS(Expr1)))),ROWS('Charge atelier chaudronnerie'!$3:20))),"") ->  | BQ24: =IF(ROWS('Charge atelier chaudronnerie'!$3:20)<=COUNTIF(nom,$BO$2),INDEX(DatePriseOf,SMALL(IF(nom=$BO$2,ROW(INDIRECT("1:"&ROWS(Expr1)))),ROWS('Charge atelier chaudronnerie'!$3:20))),"") ->  | BS24: =IF(ROWS('Charge atelier chaudronnerie'!$3:20)<=COUNTIF(nom,$BS$2),INDEX(Expr1,SMALL(IF(nom=$BS$2,ROW(INDIRECT("1:"&ROWS(Expr1)))),ROWS('Charge atelier chaudronnerie'!$3:20))),"") ->  | BT24: =IF(ROWS('Charge atelier chaudronnerie'!$3:20)<=COUNTIF(nom,$BS$2),INDEX(Expr2,SMALL(IF(nom=$BS$2,ROW(INDIRECT("1:"&ROWS(Expr1)))),ROWS('Charge atelier chaudronnerie'!$3:20))),"") ->  | BU24: =IF(ROWS('Charge atelier chaudronnerie'!$3:20)<=COUNTIF(nom,$BS$2),INDEX(DatePriseOf,SMALL(IF(nom=$BS$2,ROW(INDIRECT("1:"&ROWS(Expr1)))),ROWS('Charge atelier chaudronnerie'!$3:20))),"") -> 
A25: PE1 | C25: =IF(ROWS('Charge atelier chaudronnerie'!$3:24)<=COUNTIF(nom,$C$2),INDEX(Expr1,SMALL(IF(nom=$C$2,ROW(INDIRECT("1:"&ROWS(Expr1)))),ROWS('Charge atelier chaudronnerie'!$3:24))),"") ->  | D25: =IF(ROWS('Charge atelier chaudronnerie'!$3:24)<=COUNTIF(nom,$C$2),INDEX(Expr2,SMALL(IF(nom=$C$2,ROW(INDIRECT("1:"&ROWS(Expr1)))),ROWS('Charge atelier chaudronnerie'!$3:24))),"") ->  | E25: =IF(ROWS('Charge atelier chaudronnerie'!$3:24)<=COUNTIF(nom,$C$2),INDEX(DatePriseOf,SMALL(IF(nom=$C$2,ROW(INDIRECT("1:"&ROWS(Expr1)))),ROWS('Charge atelier chaudronnerie'!$3:24))),"") ->  | G25: =IF(ROWS('Charge atelier chaudronnerie'!$3:24)<=COUNTIF(nom,$G$2),INDEX(Expr1,SMALL(IF(nom=$G$2,ROW(INDIRECT("1:"&ROWS(Expr1)))),ROWS('Charge atelier chaudronnerie'!$3:24))),"") ->  | H25: =IF(ROWS('Charge atelier chaudronnerie'!$3:24)<=COUNTIF(nom,$G$2),INDEX(Expr2,SMALL(IF(nom=$G$2,ROW(INDIRECT("1:"&ROWS(Expr1)))),ROWS('Charge atelier chaudronnerie'!$3:24))),"") ->  | I25: =IF(ROWS('Charge atelier chaudronnerie'!$3:24)<=COUNTIF(nom,$G$2),INDEX(DatePriseOf,SMALL(IF(nom=$G$2,ROW(INDIRECT("1:"&ROWS(Expr1)))),ROWS('Charge atelier chaudronnerie'!$3:24))),"") ->  | K25: =IF(ROWS('Charge atelier chaudronnerie'!$3:24)<=COUNTIF(nom,$K$2),INDEX(Expr1,SMALL(IF(nom=$K$2,ROW(INDIRECT("1:"&ROWS(Expr1)))),ROWS('Charge atelier chaudronnerie'!$3:24))),"") ->  | L25: =IF(ROWS('Charge atelier chaudronnerie'!$3:24)<=COUNTIF(nom,$K$2),INDEX(Expr2,SMALL(IF(nom=$K$2,ROW(INDIRECT("1:"&ROWS(Expr1)))),ROWS('Charge atelier chaudronnerie'!$3:24))),"") ->  | M25: =IF(ROWS('Charge atelier chaudronnerie'!$3:24)<=COUNTIF(nom,$K$2),INDEX(DatePriseOf,SMALL(IF(nom=$K$2,ROW(INDIRECT("1:"&ROWS(Expr1)))),ROWS('Charge atelier chaudronnerie'!$3:24))),"") ->  | O25: =IF(ROWS('Charge atelier chaudronnerie'!$3:24)<=COUNTIF(nom,$O$2),INDEX(Expr1,SMALL(IF(nom=$O$2,ROW(INDIRECT("1:"&ROWS(Expr1)))),ROWS('Charge atelier chaudronnerie'!$3:24))),"") ->  | P25: =IF(ROWS('Charge atelier chaudronnerie'!$3:24)<=COUNTIF(nom,$O$2),INDEX(Expr2,SMALL(IF(nom=$O$2,ROW(INDIRECT("1:"&ROWS(Expr1)))),ROWS('Charge atelier chaudronnerie'!$3:24))),"") ->  | Q25: =IF(ROWS('Charge atelier chaudronnerie'!$3:24)<=COUNTIF(nom,$O$2),INDEX(DatePriseOf,SMALL(IF(nom=$O$2,ROW(INDIRECT("1:"&ROWS(Expr1)))),ROWS('Charge atelier chaudronnerie'!$3:24))),"") ->  | S25: =IF(ROWS('Charge atelier chaudronnerie'!$3:24)<=COUNTIF(nom,$S$2),INDEX(Expr1,SMALL(IF(nom=$S$2,ROW(INDIRECT("1:"&ROWS(Expr1)))),ROWS('Charge atelier chaudronnerie'!$3:24))),"") ->  | T25: =IF(ROWS('Charge atelier chaudronnerie'!$3:24)<=COUNTIF(nom,$S$2),INDEX(Expr2,SMALL(IF(nom=$S$2,ROW(INDIRECT("1:"&ROWS(Expr1)))),ROWS('Charge atelier chaudronnerie'!$3:24))),"") ->  | U25: =IF(ROWS('Charge atelier chaudronnerie'!$3:24)<=COUNTIF(nom,$S$2),INDEX(DatePriseOf,SMALL(IF(nom=$S$2,ROW(INDIRECT("1:"&ROWS(Expr1)))),ROWS('Charge atelier chaudronnerie'!$3:24))),"") ->  | W25: =IF(ROWS('Charge atelier chaudronnerie'!$3:24)<=COUNTIF(nom,$W$2),INDEX(Expr1,SMALL(IF(nom=$W$2,ROW(INDIRECT("1:"&ROWS(Expr1)))),ROWS('Charge atelier chaudronnerie'!$3:24))),"") ->  | X25: =IF(ROWS('Charge atelier chaudronnerie'!$3:24)<=COUNTIF(nom,$W$2),INDEX(Expr2,SMALL(IF(nom=$W$2,ROW(INDIRECT("1:"&ROWS(Expr1)))),ROWS('Charge atelier chaudronnerie'!$3:24))),"") ->  | Y25: =IF(ROWS('Charge atelier chaudronnerie'!$3:24)<=COUNTIF(nom,$W$2),INDEX(DatePriseOf,SMALL(IF(nom=$W$2,ROW(INDIRECT("1:"&ROWS(Expr1)))),ROWS('Charge atelier chaudronnerie'!$3:24))),"") ->  | AA25: =IF(ROWS('Charge atelier chaudronnerie'!$3:24)<=COUNTIF(nom,$AA$2),INDEX(Expr1,SMALL(IF(nom=$AA$2,ROW(INDIRECT("1:"&ROWS(Expr1)))),ROWS('Charge atelier chaudronnerie'!$3:24))),"") ->  | AB25: =IF(ROWS('Charge atelier chaudronnerie'!$3:24)<=COUNTIF(nom,$AA$2),INDEX(Expr2,SMALL(IF(nom=$AA$2,ROW(INDIRECT("1:"&ROWS(Expr1)))),ROWS('Charge atelier chaudronnerie'!$3:24))),"") ->  | AC25: =IF(ROWS('Charge atelier chaudronnerie'!$3:24)<=COUNTIF(nom,$AA$2),INDEX(DatePriseOf,SMALL(IF(nom=$AA$2,ROW(INDIRECT("1:"&ROWS(Expr1)))),ROWS('Charge atelier chaudronnerie'!$3:24))),"") ->  | AE25: =IF(ROWS('Charge atelier chaudronnerie'!$3:24)<=COUNTIF(nom,$AE$2),INDEX(Expr1,SMALL(IF(nom=$AE$2,ROW(INDIRECT("1:"&ROWS(Expr1)))),ROWS('Charge atelier chaudronnerie'!$3:24))),"") ->  | AF25: =IF(ROWS('Charge atelier chaudronnerie'!$3:24)<=COUNTIF(nom,$AE$2),INDEX(Expr2,SMALL(IF(nom=$AE$2,ROW(INDIRECT("1:"&ROWS(Expr1)))),ROWS('Charge atelier chaudronnerie'!$3:24))),"") ->  | AG25: =IF(ROWS('Charge atelier chaudronnerie'!$3:24)<=COUNTIF(nom,$AE$2),INDEX(DatePriseOf,SMALL(IF(nom=$AE$2,ROW(INDIRECT("1:"&ROWS(Expr1)))),ROWS('Charge atelier chaudronnerie'!$3:24))),"") ->  | AI25: =IF(ROWS('Charge atelier chaudronnerie'!$3:24)<=COUNTIF(nom,$AI$2),INDEX(Expr1,SMALL(IF(nom=$AI$2,ROW(INDIRECT("1:"&ROWS(Expr1)))),ROWS('Charge atelier chaudronnerie'!$3:24))),"") ->  | AJ25: =IF(ROWS('Charge atelier chaudronnerie'!$3:24)<=COUNTIF(nom,$AI$2),INDEX(Expr2,SMALL(IF(nom=$AI$2,ROW(INDIRECT("1:"&ROWS(Expr1)))),ROWS('Charge atelier chaudronnerie'!$3:24))),"") ->  | AK25: =IF(ROWS('Charge atelier chaudronnerie'!$3:24)<=COUNTIF(nom,$AI$2),INDEX(DatePriseOf,SMALL(IF(nom=$AI$2,ROW(INDIRECT("1:"&ROWS(Expr1)))),ROWS('Charge atelier chaudronnerie'!$3:24))),"") ->  | AM25: =IF(ROWS('Charge atelier chaudronnerie'!$3:24)<=COUNTIF(nom,$AM$2),INDEX(Expr1,SMALL(IF(nom=$AM$2,ROW(INDIRECT("1:"&ROWS(Expr1)))),ROWS('Charge atelier chaudronnerie'!$3:24))),"") ->  | AN25: =IF(ROWS('Charge atelier chaudronnerie'!$3:24)<=COUNTIF(nom,$AM$2),INDEX(Expr2,SMALL(IF(nom=$AM$2,ROW(INDIRECT("1:"&ROWS(Expr1)))),ROWS('Charge atelier chaudronnerie'!$3:24))),"") ->  | AO25: =IF(ROWS('Charge atelier chaudronnerie'!$3:24)<=COUNTIF(nom,$AM$2),INDEX(DatePriseOf,SMALL(IF(nom=$AM$2,ROW(INDIRECT("1:"&ROWS(Expr1)))),ROWS('Charge atelier chaudronnerie'!$3:24))),"") ->  | AQ25: =IF(ROWS('Charge atelier chaudronnerie'!$3:24)<=COUNTIF(nom,$AQ$2),INDEX(Expr1,SMALL(IF(nom=$AQ$2,ROW(INDIRECT("1:"&ROWS(Expr1)))),ROWS('Charge atelier chaudronnerie'!$3:24))),"") ->  | AR25: =IF(ROWS('Charge atelier chaudronnerie'!$3:24)<=COUNTIF(nom,$AQ$2),INDEX(Expr2,SMALL(IF(nom=$AQ$2,ROW(INDIRECT("1:"&ROWS(Expr1)))),ROWS('Charge atelier chaudronnerie'!$3:24))),"") ->  | AS25: =IF(ROWS('Charge atelier chaudronnerie'!$3:24)<=COUNTIF(nom,$AQ$2),INDEX(DatePriseOf,SMALL(IF(nom=$AQ$2,ROW(INDIRECT("1:"&ROWS(Expr1)))),ROWS('Charge atelier chaudronnerie'!$3:24))),"") ->  | AU25: =IF(ROWS('Charge atelier chaudronnerie'!$3:24)<=COUNTIF(nom,$AU$2),INDEX(Expr1,SMALL(IF(nom=$AU$2,ROW(INDIRECT("1:"&ROWS(Expr1)))),ROWS('Charge atelier chaudronnerie'!$3:24))),"") ->  | AV25: =IF(ROWS('Charge atelier chaudronnerie'!$3:24)<=COUNTIF(nom,$AU$2),INDEX(Expr2,SMALL(IF(nom=$AU$2,ROW(INDIRECT("1:"&ROWS(Expr1)))),ROWS('Charge atelier chaudronnerie'!$3:24))),"") ->  | AW25: =IF(ROWS('Charge atelier chaudronnerie'!$3:24)<=COUNTIF(nom,$AU$2),INDEX(DatePriseOf,SMALL(IF(nom=$AU$2,ROW(INDIRECT("1:"&ROWS(Expr1)))),ROWS('Charge atelier chaudronnerie'!$3:24))),"") ->  | AY25: =IF(ROWS('Charge atelier chaudronnerie'!$3:24)<=COUNTIF(nom,$AY$2),INDEX(Expr1,SMALL(IF(nom=$AY$2,ROW(INDIRECT("1:"&ROWS(Expr1)))),ROWS('Charge atelier chaudronnerie'!$3:24))),"") ->  | AZ25: =IF(ROWS('Charge atelier chaudronnerie'!$3:24)<=COUNTIF(nom,$AY$2),INDEX(Expr2,SMALL(IF(nom=$AY$2,ROW(INDIRECT("1:"&ROWS(Expr1)))),ROWS('Charge atelier chaudronnerie'!$3:24))),"") ->  | BA25: =IF(ROWS('Charge atelier chaudronnerie'!$3:24)<=COUNTIF(nom,$AY$2),INDEX(DatePriseOf,SMALL(IF(nom=$AY$2,ROW(INDIRECT("1:"&ROWS(Expr1)))),ROWS('Charge atelier chaudronnerie'!$3:24))),"") ->  | BC25: =IF(ROWS('Charge atelier chaudronnerie'!$3:24)<=COUNTIF(nom,$BC$2),INDEX(Expr1,SMALL(IF(nom=$BC$2,ROW(INDIRECT("1:"&ROWS(Expr1)))),ROWS('Charge atelier chaudronnerie'!$3:24))),"") ->  | BD25: =IF(ROWS('Charge atelier chaudronnerie'!$3:24)<=COUNTIF(nom,$BC$2),INDEX(Expr2,SMALL(IF(nom=$BC$2,ROW(INDIRECT("1:"&ROWS(Expr1)))),ROWS('Charge atelier chaudronnerie'!$3:24))),"") ->  | BE25: =IF(ROWS('Charge atelier chaudronnerie'!$3:24)<=COUNTIF(nom,$BC$2),INDEX(DatePriseOf,SMALL(IF(nom=$BC$2,ROW(INDIRECT("1:"&ROWS(Expr1)))),ROWS('Charge atelier chaudronnerie'!$3:24))),"") ->  | BG25: =IF(ROWS('Charge atelier chaudronnerie'!$3:24)<=COUNTIF(nom,$BG$2),INDEX(Expr1,SMALL(IF(nom=$BG$2,ROW(INDIRECT("1:"&ROWS(Expr1)))),ROWS('Charge atelier chaudronnerie'!$3:24))),"") ->  | BH25: =IF(ROWS('Charge atelier chaudronnerie'!$3:24)<=COUNTIF(nom,$BG$2),INDEX(Expr2,SMALL(IF(nom=$BG$2,ROW(INDIRECT("1:"&ROWS(Expr1)))),ROWS('Charge atelier chaudronnerie'!$3:24))),"") ->  | BI25: =IF(ROWS('Charge atelier chaudronnerie'!$3:24)<=COUNTIF(nom,$BG$2),INDEX(DatePriseOf,SMALL(IF(nom=$BG$2,ROW(INDIRECT("1:"&ROWS(Expr1)))),ROWS('Charge atelier chaudronnerie'!$3:24))),"") ->  | BK25: =IF(ROWS('Charge atelier chaudronnerie'!$3:24)<=COUNTIF(nom,$BK$2),INDEX(Expr1,SMALL(IF(nom=$BK$2,ROW(INDIRECT("1:"&ROWS(Expr1)))),ROWS('Charge atelier chaudronnerie'!$3:24))),"") ->  | BL25: =IF(ROWS('Charge atelier chaudronnerie'!$3:24)<=COUNTIF(nom,$BK$2),INDEX(Expr2,SMALL(IF(nom=$BK$2,ROW(INDIRECT("1:"&ROWS(Expr1)))),ROWS('Charge atelier chaudronnerie'!$3:24))),"") ->  | BM25: =IF(ROWS('Charge atelier chaudronnerie'!$3:24)<=COUNTIF(nom,$BK$2),INDEX(DatePriseOf,SMALL(IF(nom=$BK$2,ROW(INDIRECT("1:"&ROWS(Expr1)))),ROWS('Charge atelier chaudronnerie'!$3:24))),"") ->  | BO25: =IF(ROWS('Charge atelier chaudronnerie'!$3:21)<=COUNTIF(nom,$BO$2),INDEX(Expr1,SMALL(IF(nom=$BO$2,ROW(INDIRECT("1:"&ROWS(Expr1)))),ROWS('Charge atelier chaudronnerie'!$3:21))),"") ->  | BP25: =IF(ROWS('Charge atelier chaudronnerie'!$3:21)<=COUNTIF(nom,$BO$2),INDEX(Expr2,SMALL(IF(nom=$BO$2,ROW(INDIRECT("1:"&ROWS(Expr1)))),ROWS('Charge atelier chaudronnerie'!$3:21))),"") ->  | BQ25: =IF(ROWS('Charge atelier chaudronnerie'!$3:21)<=COUNTIF(nom,$BO$2),INDEX(DatePriseOf,SMALL(IF(nom=$BO$2,ROW(INDIRECT("1:"&ROWS(Expr1)))),ROWS('Charge atelier chaudronnerie'!$3:21))),"") ->  | BS25: =IF(ROWS('Charge atelier chaudronnerie'!$3:21)<=COUNTIF(nom,$BS$2),INDEX(Expr1,SMALL(IF(nom=$BS$2,ROW(INDIRECT("1:"&ROWS(Expr1)))),ROWS('Charge atelier chaudronnerie'!$3:21))),"") ->  | BT25: =IF(ROWS('Charge atelier chaudronnerie'!$3:21)<=COUNTIF(nom,$BS$2),INDEX(Expr2,SMALL(IF(nom=$BS$2,ROW(INDIRECT("1:"&ROWS(Expr1)))),ROWS('Charge atelier chaudronnerie'!$3:21))),"") ->  | BU25: =IF(ROWS('Charge atelier chaudronnerie'!$3:21)<=COUNTIF(nom,$BS$2),INDEX(DatePriseOf,SMALL(IF(nom=$BS$2,ROW(INDIRECT("1:"&ROWS(Expr1)))),ROWS('Charge atelier chaudronnerie'!$3:21))),"") -> 
A26: PE2 | C26: =IF(ROWS('Charge atelier chaudronnerie'!$3:25)<=COUNTIF(nom,$C$2),INDEX(Expr1,SMALL(IF(nom=$C$2,ROW(INDIRECT("1:"&ROWS(Expr1)))),ROWS('Charge atelier chaudronnerie'!$3:25))),"") ->  | D26: =IF(ROWS('Charge atelier chaudronnerie'!$3:25)<=COUNTIF(nom,$C$2),INDEX(Expr2,SMALL(IF(nom=$C$2,ROW(INDIRECT("1:"&ROWS(Expr1)))),ROWS('Charge atelier chaudronnerie'!$3:25))),"") ->  | E26: =IF(ROWS('Charge atelier chaudronnerie'!$3:25)<=COUNTIF(nom,$C$2),INDEX(DatePriseOf,SMALL(IF(nom=$C$2,ROW(INDIRECT("1:"&ROWS(Expr1)))),ROWS('Charge atelier chaudronnerie'!$3:25))),"") ->  | G26: =IF(ROWS('Charge atelier chaudronnerie'!$3:25)<=COUNTIF(nom,$G$2),INDEX(Expr1,SMALL(IF(nom=$G$2,ROW(INDIRECT("1:"&ROWS(Expr1)))),ROWS('Charge atelier chaudronnerie'!$3:25))),"") ->  | H26: =IF(ROWS('Charge atelier chaudronnerie'!$3:25)<=COUNTIF(nom,$G$2),INDEX(Expr2,SMALL(IF(nom=$G$2,ROW(INDIRECT("1:"&ROWS(Expr1)))),ROWS('Charge atelier chaudronnerie'!$3:25))),"") ->  | I26: =IF(ROWS('Charge atelier chaudronnerie'!$3:25)<=COUNTIF(nom,$G$2),INDEX(DatePriseOf,SMALL(IF(nom=$G$2,ROW(INDIRECT("1:"&ROWS(Expr1)))),ROWS('Charge atelier chaudronnerie'!$3:25))),"") ->  | K26: =IF(ROWS('Charge atelier chaudronnerie'!$3:25)<=COUNTIF(nom,$K$2),INDEX(Expr1,SMALL(IF(nom=$K$2,ROW(INDIRECT("1:"&ROWS(Expr1)))),ROWS('Charge atelier chaudronnerie'!$3:25))),"") ->  | L26: =IF(ROWS('Charge atelier chaudronnerie'!$3:25)<=COUNTIF(nom,$K$2),INDEX(Expr2,SMALL(IF(nom=$K$2,ROW(INDIRECT("1:"&ROWS(Expr1)))),ROWS('Charge atelier chaudronnerie'!$3:25))),"") ->  | M26: =IF(ROWS('Charge atelier chaudronnerie'!$3:25)<=COUNTIF(nom,$K$2),INDEX(DatePriseOf,SMALL(IF(nom=$K$2,ROW(INDIRECT("1:"&ROWS(Expr1)))),ROWS('Charge atelier chaudronnerie'!$3:25))),"") ->  | O26: =IF(ROWS('Charge atelier chaudronnerie'!$3:25)<=COUNTIF(nom,$O$2),INDEX(Expr1,SMALL(IF(nom=$O$2,ROW(INDIRECT("1:"&ROWS(Expr1)))),ROWS('Charge atelier chaudronnerie'!$3:25))),"") ->  | P26: =IF(ROWS('Charge atelier chaudronnerie'!$3:25)<=COUNTIF(nom,$O$2),INDEX(Expr2,SMALL(IF(nom=$O$2,ROW(INDIRECT("1:"&ROWS(Expr1)))),ROWS('Charge atelier chaudronnerie'!$3:25))),"") ->  | Q26: =IF(ROWS('Charge atelier chaudronnerie'!$3:25)<=COUNTIF(nom,$O$2),INDEX(DatePriseOf,SMALL(IF(nom=$O$2,ROW(INDIRECT("1:"&ROWS(Expr1)))),ROWS('Charge atelier chaudronnerie'!$3:25))),"") ->  | S26: =IF(ROWS('Charge atelier chaudronnerie'!$3:25)<=COUNTIF(nom,$S$2),INDEX(Expr1,SMALL(IF(nom=$S$2,ROW(INDIRECT("1:"&ROWS(Expr1)))),ROWS('Charge atelier chaudronnerie'!$3:25))),"") ->  | T26: =IF(ROWS('Charge atelier chaudronnerie'!$3:25)<=COUNTIF(nom,$S$2),INDEX(Expr2,SMALL(IF(nom=$S$2,ROW(INDIRECT("1:"&ROWS(Expr1)))),ROWS('Charge atelier chaudronnerie'!$3:25))),"") ->  | U26: =IF(ROWS('Charge atelier chaudronnerie'!$3:25)<=COUNTIF(nom,$S$2),INDEX(DatePriseOf,SMALL(IF(nom=$S$2,ROW(INDIRECT("1:"&ROWS(Expr1)))),ROWS('Charge atelier chaudronnerie'!$3:25))),"") ->  | W26: =IF(ROWS('Charge atelier chaudronnerie'!$3:25)<=COUNTIF(nom,$W$2),INDEX(Expr1,SMALL(IF(nom=$W$2,ROW(INDIRECT("1:"&ROWS(Expr1)))),ROWS('Charge atelier chaudronnerie'!$3:25))),"") ->  | X26: =IF(ROWS('Charge atelier chaudronnerie'!$3:25)<=COUNTIF(nom,$W$2),INDEX(Expr2,SMALL(IF(nom=$W$2,ROW(INDIRECT("1:"&ROWS(Expr1)))),ROWS('Charge atelier chaudronnerie'!$3:25))),"") ->  | Y26: =IF(ROWS('Charge atelier chaudronnerie'!$3:25)<=COUNTIF(nom,$W$2),INDEX(DatePriseOf,SMALL(IF(nom=$W$2,ROW(INDIRECT("1:"&ROWS(Expr1)))),ROWS('Charge atelier chaudronnerie'!$3:25))),"") ->  | AA26: =IF(ROWS('Charge atelier chaudronnerie'!$3:25)<=COUNTIF(nom,$AA$2),INDEX(Expr1,SMALL(IF(nom=$AA$2,ROW(INDIRECT("1:"&ROWS(Expr1)))),ROWS('Charge atelier chaudronnerie'!$3:25))),"") ->  | AB26: =IF(ROWS('Charge atelier chaudronnerie'!$3:25)<=COUNTIF(nom,$AA$2),INDEX(Expr2,SMALL(IF(nom=$AA$2,ROW(INDIRECT("1:"&ROWS(Expr1)))),ROWS('Charge atelier chaudronnerie'!$3:25))),"") ->  | AC26: =IF(ROWS('Charge atelier chaudronnerie'!$3:25)<=COUNTIF(nom,$AA$2),INDEX(DatePriseOf,SMALL(IF(nom=$AA$2,ROW(INDIRECT("1:"&ROWS(Expr1)))),ROWS('Charge atelier chaudronnerie'!$3:25))),"") ->  | AE26: =IF(ROWS('Charge atelier chaudronnerie'!$3:25)<=COUNTIF(nom,$AE$2),INDEX(Expr1,SMALL(IF(nom=$AE$2,ROW(INDIRECT("1:"&ROWS(Expr1)))),ROWS('Charge atelier chaudronnerie'!$3:25))),"") ->  | AF26: =IF(ROWS('Charge atelier chaudronnerie'!$3:25)<=COUNTIF(nom,$AE$2),INDEX(Expr2,SMALL(IF(nom=$AE$2,ROW(INDIRECT("1:"&ROWS(Expr1)))),ROWS('Charge atelier chaudronnerie'!$3:25))),"") ->  | AG26: =IF(ROWS('Charge atelier chaudronnerie'!$3:25)<=COUNTIF(nom,$AE$2),INDEX(DatePriseOf,SMALL(IF(nom=$AE$2,ROW(INDIRECT("1:"&ROWS(Expr1)))),ROWS('Charge atelier chaudronnerie'!$3:25))),"") ->  | AI26: =IF(ROWS('Charge atelier chaudronnerie'!$3:25)<=COUNTIF(nom,$AI$2),INDEX(Expr1,SMALL(IF(nom=$AI$2,ROW(INDIRECT("1:"&ROWS(Expr1)))),ROWS('Charge atelier chaudronnerie'!$3:25))),"") ->  | AJ26: =IF(ROWS('Charge atelier chaudronnerie'!$3:25)<=COUNTIF(nom,$AI$2),INDEX(Expr2,SMALL(IF(nom=$AI$2,ROW(INDIRECT("1:"&ROWS(Expr1)))),ROWS('Charge atelier chaudronnerie'!$3:25))),"") ->  | AK26: =IF(ROWS('Charge atelier chaudronnerie'!$3:25)<=COUNTIF(nom,$AI$2),INDEX(DatePriseOf,SMALL(IF(nom=$AI$2,ROW(INDIRECT("1:"&ROWS(Expr1)))),ROWS('Charge atelier chaudronnerie'!$3:25))),"") ->  | AM26: =IF(ROWS('Charge atelier chaudronnerie'!$3:25)<=COUNTIF(nom,$AM$2),INDEX(Expr1,SMALL(IF(nom=$AM$2,ROW(INDIRECT("1:"&ROWS(Expr1)))),ROWS('Charge atelier chaudronnerie'!$3:25))),"") ->  | AN26: =IF(ROWS('Charge atelier chaudronnerie'!$3:25)<=COUNTIF(nom,$AM$2),INDEX(Expr2,SMALL(IF(nom=$AM$2,ROW(INDIRECT("1:"&ROWS(Expr1)))),ROWS('Charge atelier chaudronnerie'!$3:25))),"") ->  | AO26: =IF(ROWS('Charge atelier chaudronnerie'!$3:25)<=COUNTIF(nom,$AM$2),INDEX(DatePriseOf,SMALL(IF(nom=$AM$2,ROW(INDIRECT("1:"&ROWS(Expr1)))),ROWS('Charge atelier chaudronnerie'!$3:25))),"") ->  | AQ26: =IF(ROWS('Charge atelier chaudronnerie'!$3:25)<=COUNTIF(nom,$AQ$2),INDEX(Expr1,SMALL(IF(nom=$AQ$2,ROW(INDIRECT("1:"&ROWS(Expr1)))),ROWS('Charge atelier chaudronnerie'!$3:25))),"") ->  | AR26: =IF(ROWS('Charge atelier chaudronnerie'!$3:25)<=COUNTIF(nom,$AQ$2),INDEX(Expr2,SMALL(IF(nom=$AQ$2,ROW(INDIRECT("1:"&ROWS(Expr1)))),ROWS('Charge atelier chaudronnerie'!$3:25))),"") ->  | AS26: =IF(ROWS('Charge atelier chaudronnerie'!$3:25)<=COUNTIF(nom,$AQ$2),INDEX(DatePriseOf,SMALL(IF(nom=$AQ$2,ROW(INDIRECT("1:"&ROWS(Expr1)))),ROWS('Charge atelier chaudronnerie'!$3:25))),"") ->  | AU26: =IF(ROWS('Charge atelier chaudronnerie'!$3:25)<=COUNTIF(nom,$AU$2),INDEX(Expr1,SMALL(IF(nom=$AU$2,ROW(INDIRECT("1:"&ROWS(Expr1)))),ROWS('Charge atelier chaudronnerie'!$3:25))),"") ->  | AV26: =IF(ROWS('Charge atelier chaudronnerie'!$3:25)<=COUNTIF(nom,$AU$2),INDEX(Expr2,SMALL(IF(nom=$AU$2,ROW(INDIRECT("1:"&ROWS(Expr1)))),ROWS('Charge atelier chaudronnerie'!$3:25))),"") ->  | AW26: =IF(ROWS('Charge atelier chaudronnerie'!$3:25)<=COUNTIF(nom,$AU$2),INDEX(DatePriseOf,SMALL(IF(nom=$AU$2,ROW(INDIRECT("1:"&ROWS(Expr1)))),ROWS('Charge atelier chaudronnerie'!$3:25))),"") ->  | AY26: =IF(ROWS('Charge atelier chaudronnerie'!$3:25)<=COUNTIF(nom,$AY$2),INDEX(Expr1,SMALL(IF(nom=$AY$2,ROW(INDIRECT("1:"&ROWS(Expr1)))),ROWS('Charge atelier chaudronnerie'!$3:25))),"") ->  | AZ26: =IF(ROWS('Charge atelier chaudronnerie'!$3:25)<=COUNTIF(nom,$AY$2),INDEX(Expr2,SMALL(IF(nom=$AY$2,ROW(INDIRECT("1:"&ROWS(Expr1)))),ROWS('Charge atelier chaudronnerie'!$3:25))),"") ->  | BA26: =IF(ROWS('Charge atelier chaudronnerie'!$3:25)<=COUNTIF(nom,$AY$2),INDEX(DatePriseOf,SMALL(IF(nom=$AY$2,ROW(INDIRECT("1:"&ROWS(Expr1)))),ROWS('Charge atelier chaudronnerie'!$3:25))),"") ->  | BC26: =IF(ROWS('Charge atelier chaudronnerie'!$3:25)<=COUNTIF(nom,$BC$2),INDEX(Expr1,SMALL(IF(nom=$BC$2,ROW(INDIRECT("1:"&ROWS(Expr1)))),ROWS('Charge atelier chaudronnerie'!$3:25))),"") ->  | BD26: =IF(ROWS('Charge atelier chaudronnerie'!$3:25)<=COUNTIF(nom,$BC$2),INDEX(Expr2,SMALL(IF(nom=$BC$2,ROW(INDIRECT("1:"&ROWS(Expr1)))),ROWS('Charge atelier chaudronnerie'!$3:25))),"") ->  | BE26: =IF(ROWS('Charge atelier chaudronnerie'!$3:25)<=COUNTIF(nom,$BC$2),INDEX(DatePriseOf,SMALL(IF(nom=$BC$2,ROW(INDIRECT("1:"&ROWS(Expr1)))),ROWS('Charge atelier chaudronnerie'!$3:25))),"") ->  | BG26: =IF(ROWS('Charge atelier chaudronnerie'!$3:25)<=COUNTIF(nom,$BG$2),INDEX(Expr1,SMALL(IF(nom=$BG$2,ROW(INDIRECT("1:"&ROWS(Expr1)))),ROWS('Charge atelier chaudronnerie'!$3:25))),"") ->  | BH26: =IF(ROWS('Charge atelier chaudronnerie'!$3:25)<=COUNTIF(nom,$BG$2),INDEX(Expr2,SMALL(IF(nom=$BG$2,ROW(INDIRECT("1:"&ROWS(Expr1)))),ROWS('Charge atelier chaudronnerie'!$3:25))),"") ->  | BI26: =IF(ROWS('Charge atelier chaudronnerie'!$3:25)<=COUNTIF(nom,$BG$2),INDEX(DatePriseOf,SMALL(IF(nom=$BG$2,ROW(INDIRECT("1:"&ROWS(Expr1)))),ROWS('Charge atelier chaudronnerie'!$3:25))),"") ->  | BK26: =IF(ROWS('Charge atelier chaudronnerie'!$3:25)<=COUNTIF(nom,$BK$2),INDEX(Expr1,SMALL(IF(nom=$BK$2,ROW(INDIRECT("1:"&ROWS(Expr1)))),ROWS('Charge atelier chaudronnerie'!$3:25))),"") ->  | BL26: =IF(ROWS('Charge atelier chaudronnerie'!$3:25)<=COUNTIF(nom,$BK$2),INDEX(Expr2,SMALL(IF(nom=$BK$2,ROW(INDIRECT("1:"&ROWS(Expr1)))),ROWS('Charge atelier chaudronnerie'!$3:25))),"") ->  | BM26: =IF(ROWS('Charge atelier chaudronnerie'!$3:25)<=COUNTIF(nom,$BK$2),INDEX(DatePriseOf,SMALL(IF(nom=$BK$2,ROW(INDIRECT("1:"&ROWS(Expr1)))),ROWS('Charge atelier chaudronnerie'!$3:25))),"") ->  | BO26: =IF(ROWS('Charge atelier chaudronnerie'!$3:22)<=COUNTIF(nom,$BO$2),INDEX(Expr1,SMALL(IF(nom=$BO$2,ROW(INDIRECT("1:"&ROWS(Expr1)))),ROWS('Charge atelier chaudronnerie'!$3:22))),"") ->  | BP26: =IF(ROWS('Charge atelier chaudronnerie'!$3:22)<=COUNTIF(nom,$BO$2),INDEX(Expr2,SMALL(IF(nom=$BO$2,ROW(INDIRECT("1:"&ROWS(Expr1)))),ROWS('Charge atelier chaudronnerie'!$3:22))),"") ->  | BQ26: =IF(ROWS('Charge atelier chaudronnerie'!$3:22)<=COUNTIF(nom,$BO$2),INDEX(DatePriseOf,SMALL(IF(nom=$BO$2,ROW(INDIRECT("1:"&ROWS(Expr1)))),ROWS('Charge atelier chaudronnerie'!$3:22))),"") ->  | BS26: =IF(ROWS('Charge atelier chaudronnerie'!$3:22)<=COUNTIF(nom,$BS$2),INDEX(Expr1,SMALL(IF(nom=$BS$2,ROW(INDIRECT("1:"&ROWS(Expr1)))),ROWS('Charge atelier chaudronnerie'!$3:22))),"") ->  | BT26: =IF(ROWS('Charge atelier chaudronnerie'!$3:22)<=COUNTIF(nom,$BS$2),INDEX(Expr2,SMALL(IF(nom=$BS$2,ROW(INDIRECT("1:"&ROWS(Expr1)))),ROWS('Charge atelier chaudronnerie'!$3:22))),"") ->  | BU26: =IF(ROWS('Charge atelier chaudronnerie'!$3:22)<=COUNTIF(nom,$BS$2),INDEX(DatePriseOf,SMALL(IF(nom=$BS$2,ROW(INDIRECT("1:"&ROWS(Expr1)))),ROWS('Charge atelier chaudronnerie'!$3:22))),"") -> 
A27: PE3 | C27: =IF(ROWS('Charge atelier chaudronnerie'!$3:26)<=COUNTIF(nom,$C$2),INDEX(Expr1,SMALL(IF(nom=$C$2,ROW(INDIRECT("1:"&ROWS(Expr1)))),ROWS('Charge atelier chaudronnerie'!$3:26))),"") ->  | D27: =IF(ROWS('Charge atelier chaudronnerie'!$3:26)<=COUNTIF(nom,$C$2),INDEX(Expr2,SMALL(IF(nom=$C$2,ROW(INDIRECT("1:"&ROWS(Expr1)))),ROWS('Charge atelier chaudronnerie'!$3:26))),"") ->  | E27: =IF(ROWS('Charge atelier chaudronnerie'!$3:26)<=COUNTIF(nom,$C$2),INDEX(DatePriseOf,SMALL(IF(nom=$C$2,ROW(INDIRECT("1:"&ROWS(Expr1)))),ROWS('Charge atelier chaudronnerie'!$3:26))),"") ->  | G27: =IF(ROWS('Charge atelier chaudronnerie'!$3:26)<=COUNTIF(nom,$G$2),INDEX(Expr1,SMALL(IF(nom=$G$2,ROW(INDIRECT("1:"&ROWS(Expr1)))),ROWS('Charge atelier chaudronnerie'!$3:26))),"") ->  | H27: =IF(ROWS('Charge atelier chaudronnerie'!$3:26)<=COUNTIF(nom,$G$2),INDEX(Expr2,SMALL(IF(nom=$G$2,ROW(INDIRECT("1:"&ROWS(Expr1)))),ROWS('Charge atelier chaudronnerie'!$3:26))),"") ->  | I27: =IF(ROWS('Charge atelier chaudronnerie'!$3:26)<=COUNTIF(nom,$G$2),INDEX(DatePriseOf,SMALL(IF(nom=$G$2,ROW(INDIRECT("1:"&ROWS(Expr1)))),ROWS('Charge atelier chaudronnerie'!$3:26))),"") ->  | K27: =IF(ROWS('Charge atelier chaudronnerie'!$3:26)<=COUNTIF(nom,$K$2),INDEX(Expr1,SMALL(IF(nom=$K$2,ROW(INDIRECT("1:"&ROWS(Expr1)))),ROWS('Charge atelier chaudronnerie'!$3:26))),"") ->  | L27: =IF(ROWS('Charge atelier chaudronnerie'!$3:26)<=COUNTIF(nom,$K$2),INDEX(Expr2,SMALL(IF(nom=$K$2,ROW(INDIRECT("1:"&ROWS(Expr1)))),ROWS('Charge atelier chaudronnerie'!$3:26))),"") ->  | M27: =IF(ROWS('Charge atelier chaudronnerie'!$3:26)<=COUNTIF(nom,$K$2),INDEX(DatePriseOf,SMALL(IF(nom=$K$2,ROW(INDIRECT("1:"&ROWS(Expr1)))),ROWS('Charge atelier chaudronnerie'!$3:26))),"") ->  | O27: =IF(ROWS('Charge atelier chaudronnerie'!$3:26)<=COUNTIF(nom,$O$2),INDEX(Expr1,SMALL(IF(nom=$O$2,ROW(INDIRECT("1:"&ROWS(Expr1)))),ROWS('Charge atelier chaudronnerie'!$3:26))),"") ->  | P27: =IF(ROWS('Charge atelier chaudronnerie'!$3:26)<=COUNTIF(nom,$O$2),INDEX(Expr2,SMALL(IF(nom=$O$2,ROW(INDIRECT("1:"&ROWS(Expr1)))),ROWS('Charge atelier chaudronnerie'!$3:26))),"") ->  | Q27: =IF(ROWS('Charge atelier chaudronnerie'!$3:26)<=COUNTIF(nom,$O$2),INDEX(DatePriseOf,SMALL(IF(nom=$O$2,ROW(INDIRECT("1:"&ROWS(Expr1)))),ROWS('Charge atelier chaudronnerie'!$3:26))),"") ->  | S27: =IF(ROWS('Charge atelier chaudronnerie'!$3:26)<=COUNTIF(nom,$S$2),INDEX(Expr1,SMALL(IF(nom=$S$2,ROW(INDIRECT("1:"&ROWS(Expr1)))),ROWS('Charge atelier chaudronnerie'!$3:26))),"") ->  | T27: =IF(ROWS('Charge atelier chaudronnerie'!$3:26)<=COUNTIF(nom,$S$2),INDEX(Expr2,SMALL(IF(nom=$S$2,ROW(INDIRECT("1:"&ROWS(Expr1)))),ROWS('Charge atelier chaudronnerie'!$3:26))),"") ->  | U27: =IF(ROWS('Charge atelier chaudronnerie'!$3:26)<=COUNTIF(nom,$S$2),INDEX(DatePriseOf,SMALL(IF(nom=$S$2,ROW(INDIRECT("1:"&ROWS(Expr1)))),ROWS('Charge atelier chaudronnerie'!$3:26))),"") ->  | W27: =IF(ROWS('Charge atelier chaudronnerie'!$3:26)<=COUNTIF(nom,$W$2),INDEX(Expr1,SMALL(IF(nom=$W$2,ROW(INDIRECT("1:"&ROWS(Expr1)))),ROWS('Charge atelier chaudronnerie'!$3:26))),"") ->  | X27: =IF(ROWS('Charge atelier chaudronnerie'!$3:26)<=COUNTIF(nom,$W$2),INDEX(Expr2,SMALL(IF(nom=$W$2,ROW(INDIRECT("1:"&ROWS(Expr1)))),ROWS('Charge atelier chaudronnerie'!$3:26))),"") ->  | Y27: =IF(ROWS('Charge atelier chaudronnerie'!$3:26)<=COUNTIF(nom,$W$2),INDEX(DatePriseOf,SMALL(IF(nom=$W$2,ROW(INDIRECT("1:"&ROWS(Expr1)))),ROWS('Charge atelier chaudronnerie'!$3:26))),"") ->  | AA27: =IF(ROWS('Charge atelier chaudronnerie'!$3:26)<=COUNTIF(nom,$AA$2),INDEX(Expr1,SMALL(IF(nom=$AA$2,ROW(INDIRECT("1:"&ROWS(Expr1)))),ROWS('Charge atelier chaudronnerie'!$3:26))),"") ->  | AB27: =IF(ROWS('Charge atelier chaudronnerie'!$3:26)<=COUNTIF(nom,$AA$2),INDEX(Expr2,SMALL(IF(nom=$AA$2,ROW(INDIRECT("1:"&ROWS(Expr1)))),ROWS('Charge atelier chaudronnerie'!$3:26))),"") ->  | AC27: =IF(ROWS('Charge atelier chaudronnerie'!$3:26)<=COUNTIF(nom,$AA$2),INDEX(DatePriseOf,SMALL(IF(nom=$AA$2,ROW(INDIRECT("1:"&ROWS(Expr1)))),ROWS('Charge atelier chaudronnerie'!$3:26))),"") ->  | AE27: =IF(ROWS('Charge atelier chaudronnerie'!$3:26)<=COUNTIF(nom,$AE$2),INDEX(Expr1,SMALL(IF(nom=$AE$2,ROW(INDIRECT("1:"&ROWS(Expr1)))),ROWS('Charge atelier chaudronnerie'!$3:26))),"") ->  | AF27: =IF(ROWS('Charge atelier chaudronnerie'!$3:26)<=COUNTIF(nom,$AE$2),INDEX(Expr2,SMALL(IF(nom=$AE$2,ROW(INDIRECT("1:"&ROWS(Expr1)))),ROWS('Charge atelier chaudronnerie'!$3:26))),"") ->  | AG27: =IF(ROWS('Charge atelier chaudronnerie'!$3:26)<=COUNTIF(nom,$AE$2),INDEX(DatePriseOf,SMALL(IF(nom=$AE$2,ROW(INDIRECT("1:"&ROWS(Expr1)))),ROWS('Charge atelier chaudronnerie'!$3:26))),"") ->  | AI27: =IF(ROWS('Charge atelier chaudronnerie'!$3:26)<=COUNTIF(nom,$AI$2),INDEX(Expr1,SMALL(IF(nom=$AI$2,ROW(INDIRECT("1:"&ROWS(Expr1)))),ROWS('Charge atelier chaudronnerie'!$3:26))),"") ->  | AJ27: =IF(ROWS('Charge atelier chaudronnerie'!$3:26)<=COUNTIF(nom,$AI$2),INDEX(Expr2,SMALL(IF(nom=$AI$2,ROW(INDIRECT("1:"&ROWS(Expr1)))),ROWS('Charge atelier chaudronnerie'!$3:26))),"") ->  | AK27: =IF(ROWS('Charge atelier chaudronnerie'!$3:26)<=COUNTIF(nom,$AI$2),INDEX(DatePriseOf,SMALL(IF(nom=$AI$2,ROW(INDIRECT("1:"&ROWS(Expr1)))),ROWS('Charge atelier chaudronnerie'!$3:26))),"") ->  | AM27: =IF(ROWS('Charge atelier chaudronnerie'!$3:26)<=COUNTIF(nom,$AM$2),INDEX(Expr1,SMALL(IF(nom=$AM$2,ROW(INDIRECT("1:"&ROWS(Expr1)))),ROWS('Charge atelier chaudronnerie'!$3:26))),"") ->  | AN27: =IF(ROWS('Charge atelier chaudronnerie'!$3:26)<=COUNTIF(nom,$AM$2),INDEX(Expr2,SMALL(IF(nom=$AM$2,ROW(INDIRECT("1:"&ROWS(Expr1)))),ROWS('Charge atelier chaudronnerie'!$3:26))),"") ->  | AO27: =IF(ROWS('Charge atelier chaudronnerie'!$3:26)<=COUNTIF(nom,$AM$2),INDEX(DatePriseOf,SMALL(IF(nom=$AM$2,ROW(INDIRECT("1:"&ROWS(Expr1)))),ROWS('Charge atelier chaudronnerie'!$3:26))),"") ->  | AQ27: =IF(ROWS('Charge atelier chaudronnerie'!$3:26)<=COUNTIF(nom,$AQ$2),INDEX(Expr1,SMALL(IF(nom=$AQ$2,ROW(INDIRECT("1:"&ROWS(Expr1)))),ROWS('Charge atelier chaudronnerie'!$3:26))),"") ->  | AR27: =IF(ROWS('Charge atelier chaudronnerie'!$3:26)<=COUNTIF(nom,$AQ$2),INDEX(Expr2,SMALL(IF(nom=$AQ$2,ROW(INDIRECT("1:"&ROWS(Expr1)))),ROWS('Charge atelier chaudronnerie'!$3:26))),"") ->  | AS27: =IF(ROWS('Charge atelier chaudronnerie'!$3:26)<=COUNTIF(nom,$AQ$2),INDEX(DatePriseOf,SMALL(IF(nom=$AQ$2,ROW(INDIRECT("1:"&ROWS(Expr1)))),ROWS('Charge atelier chaudronnerie'!$3:26))),"") ->  | AU27: =IF(ROWS('Charge atelier chaudronnerie'!$3:26)<=COUNTIF(nom,$AU$2),INDEX(Expr1,SMALL(IF(nom=$AU$2,ROW(INDIRECT("1:"&ROWS(Expr1)))),ROWS('Charge atelier chaudronnerie'!$3:26))),"") ->  | AV27: =IF(ROWS('Charge atelier chaudronnerie'!$3:26)<=COUNTIF(nom,$AU$2),INDEX(Expr2,SMALL(IF(nom=$AU$2,ROW(INDIRECT("1:"&ROWS(Expr1)))),ROWS('Charge atelier chaudronnerie'!$3:26))),"") ->  | AW27: =IF(ROWS('Charge atelier chaudronnerie'!$3:26)<=COUNTIF(nom,$AU$2),INDEX(DatePriseOf,SMALL(IF(nom=$AU$2,ROW(INDIRECT("1:"&ROWS(Expr1)))),ROWS('Charge atelier chaudronnerie'!$3:26))),"") ->  | AY27: =IF(ROWS('Charge atelier chaudronnerie'!$3:26)<=COUNTIF(nom,$AY$2),INDEX(Expr1,SMALL(IF(nom=$AY$2,ROW(INDIRECT("1:"&ROWS(Expr1)))),ROWS('Charge atelier chaudronnerie'!$3:26))),"") ->  | AZ27: =IF(ROWS('Charge atelier chaudronnerie'!$3:26)<=COUNTIF(nom,$AY$2),INDEX(Expr2,SMALL(IF(nom=$AY$2,ROW(INDIRECT("1:"&ROWS(Expr1)))),ROWS('Charge atelier chaudronnerie'!$3:26))),"") ->  | BA27: =IF(ROWS('Charge atelier chaudronnerie'!$3:26)<=COUNTIF(nom,$AY$2),INDEX(DatePriseOf,SMALL(IF(nom=$AY$2,ROW(INDIRECT("1:"&ROWS(Expr1)))),ROWS('Charge atelier chaudronnerie'!$3:26))),"") ->  | BC27: =IF(ROWS('Charge atelier chaudronnerie'!$3:26)<=COUNTIF(nom,$BC$2),INDEX(Expr1,SMALL(IF(nom=$BC$2,ROW(INDIRECT("1:"&ROWS(Expr1)))),ROWS('Charge atelier chaudronnerie'!$3:26))),"") ->  | BD27: =IF(ROWS('Charge atelier chaudronnerie'!$3:26)<=COUNTIF(nom,$BC$2),INDEX(Expr2,SMALL(IF(nom=$BC$2,ROW(INDIRECT("1:"&ROWS(Expr1)))),ROWS('Charge atelier chaudronnerie'!$3:26))),"") ->  | BE27: =IF(ROWS('Charge atelier chaudronnerie'!$3:26)<=COUNTIF(nom,$BC$2),INDEX(DatePriseOf,SMALL(IF(nom=$BC$2,ROW(INDIRECT("1:"&ROWS(Expr1)))),ROWS('Charge atelier chaudronnerie'!$3:26))),"") ->  | BG27: =IF(ROWS('Charge atelier chaudronnerie'!$3:26)<=COUNTIF(nom,$BG$2),INDEX(Expr1,SMALL(IF(nom=$BG$2,ROW(INDIRECT("1:"&ROWS(Expr1)))),ROWS('Charge atelier chaudronnerie'!$3:26))),"") ->  | BH27: =IF(ROWS('Charge atelier chaudronnerie'!$3:26)<=COUNTIF(nom,$BG$2),INDEX(Expr2,SMALL(IF(nom=$BG$2,ROW(INDIRECT("1:"&ROWS(Expr1)))),ROWS('Charge atelier chaudronnerie'!$3:26))),"") ->  | BI27: =IF(ROWS('Charge atelier chaudronnerie'!$3:26)<=COUNTIF(nom,$BG$2),INDEX(DatePriseOf,SMALL(IF(nom=$BG$2,ROW(INDIRECT("1:"&ROWS(Expr1)))),ROWS('Charge atelier chaudronnerie'!$3:26))),"") ->  | BK27: =IF(ROWS('Charge atelier chaudronnerie'!$3:26)<=COUNTIF(nom,$BK$2),INDEX(Expr1,SMALL(IF(nom=$BK$2,ROW(INDIRECT("1:"&ROWS(Expr1)))),ROWS('Charge atelier chaudronnerie'!$3:26))),"") ->  | BL27: =IF(ROWS('Charge atelier chaudronnerie'!$3:26)<=COUNTIF(nom,$BK$2),INDEX(Expr2,SMALL(IF(nom=$BK$2,ROW(INDIRECT("1:"&ROWS(Expr1)))),ROWS('Charge atelier chaudronnerie'!$3:26))),"") ->  | BM27: =IF(ROWS('Charge atelier chaudronnerie'!$3:26)<=COUNTIF(nom,$BK$2),INDEX(DatePriseOf,SMALL(IF(nom=$BK$2,ROW(INDIRECT("1:"&ROWS(Expr1)))),ROWS('Charge atelier chaudronnerie'!$3:26))),"") ->  | BO27: =IF(ROWS('Charge atelier chaudronnerie'!$3:23)<=COUNTIF(nom,$BO$2),INDEX(Expr1,SMALL(IF(nom=$BO$2,ROW(INDIRECT("1:"&ROWS(Expr1)))),ROWS('Charge atelier chaudronnerie'!$3:23))),"") ->  | BP27: =IF(ROWS('Charge atelier chaudronnerie'!$3:23)<=COUNTIF(nom,$BO$2),INDEX(Expr2,SMALL(IF(nom=$BO$2,ROW(INDIRECT("1:"&ROWS(Expr1)))),ROWS('Charge atelier chaudronnerie'!$3:23))),"") ->  | BQ27: =IF(ROWS('Charge atelier chaudronnerie'!$3:23)<=COUNTIF(nom,$BO$2),INDEX(DatePriseOf,SMALL(IF(nom=$BO$2,ROW(INDIRECT("1:"&ROWS(Expr1)))),ROWS('Charge atelier chaudronnerie'!$3:23))),"") ->  | BS27: =IF(ROWS('Charge atelier chaudronnerie'!$3:23)<=COUNTIF(nom,$BS$2),INDEX(Expr1,SMALL(IF(nom=$BS$2,ROW(INDIRECT("1:"&ROWS(Expr1)))),ROWS('Charge atelier chaudronnerie'!$3:23))),"") ->  | BT27: =IF(ROWS('Charge atelier chaudronnerie'!$3:23)<=COUNTIF(nom,$BS$2),INDEX(Expr2,SMALL(IF(nom=$BS$2,ROW(INDIRECT("1:"&ROWS(Expr1)))),ROWS('Charge atelier chaudronnerie'!$3:23))),"") ->  | BU27: =IF(ROWS('Charge atelier chaudronnerie'!$3:23)<=COUNTIF(nom,$BS$2),INDEX(DatePriseOf,SMALL(IF(nom=$BS$2,ROW(INDIRECT("1:"&ROWS(Expr1)))),ROWS('Charge atelier chaudronnerie'!$3:23))),"") -> 
A28: CH1 | C28: =IF(ROWS('Charge atelier chaudronnerie'!$3:27)<=COUNTIF(nom,$C$2),INDEX(Expr1,SMALL(IF(nom=$C$2,ROW(INDIRECT("1:"&ROWS(Expr1)))),ROWS('Charge atelier chaudronnerie'!$3:27))),"") ->  | D28: =IF(ROWS('Charge atelier chaudronnerie'!$3:27)<=COUNTIF(nom,$C$2),INDEX(Expr2,SMALL(IF(nom=$C$2,ROW(INDIRECT("1:"&ROWS(Expr1)))),ROWS('Charge atelier chaudronnerie'!$3:27))),"") ->  | E28: =IF(ROWS('Charge atelier chaudronnerie'!$3:27)<=COUNTIF(nom,$C$2),INDEX(DatePriseOf,SMALL(IF(nom=$C$2,ROW(INDIRECT("1:"&ROWS(Expr1)))),ROWS('Charge atelier chaudronnerie'!$3:27))),"") ->  | G28: =IF(ROWS('Charge atelier chaudronnerie'!$3:27)<=COUNTIF(nom,$G$2),INDEX(Expr1,SMALL(IF(nom=$G$2,ROW(INDIRECT("1:"&ROWS(Expr1)))),ROWS('Charge atelier chaudronnerie'!$3:27))),"") ->  | H28: =IF(ROWS('Charge atelier chaudronnerie'!$3:27)<=COUNTIF(nom,$G$2),INDEX(Expr2,SMALL(IF(nom=$G$2,ROW(INDIRECT("1:"&ROWS(Expr1)))),ROWS('Charge atelier chaudronnerie'!$3:27))),"") ->  | I28: =IF(ROWS('Charge atelier chaudronnerie'!$3:27)<=COUNTIF(nom,$G$2),INDEX(DatePriseOf,SMALL(IF(nom=$G$2,ROW(INDIRECT("1:"&ROWS(Expr1)))),ROWS('Charge atelier chaudronnerie'!$3:27))),"") ->  | K28: =IF(ROWS('Charge atelier chaudronnerie'!$3:27)<=COUNTIF(nom,$K$2),INDEX(Expr1,SMALL(IF(nom=$K$2,ROW(INDIRECT("1:"&ROWS(Expr1)))),ROWS('Charge atelier chaudronnerie'!$3:27))),"") ->  | L28: =IF(ROWS('Charge atelier chaudronnerie'!$3:27)<=COUNTIF(nom,$K$2),INDEX(Expr2,SMALL(IF(nom=$K$2,ROW(INDIRECT("1:"&ROWS(Expr1)))),ROWS('Charge atelier chaudronnerie'!$3:27))),"") ->  | M28: =IF(ROWS('Charge atelier chaudronnerie'!$3:27)<=COUNTIF(nom,$K$2),INDEX(DatePriseOf,SMALL(IF(nom=$K$2,ROW(INDIRECT("1:"&ROWS(Expr1)))),ROWS('Charge atelier chaudronnerie'!$3:27))),"") ->  | O28: =IF(ROWS('Charge atelier chaudronnerie'!$3:27)<=COUNTIF(nom,$O$2),INDEX(Expr1,SMALL(IF(nom=$O$2,ROW(INDIRECT("1:"&ROWS(Expr1)))),ROWS('Charge atelier chaudronnerie'!$3:27))),"") ->  | P28: =IF(ROWS('Charge atelier chaudronnerie'!$3:27)<=COUNTIF(nom,$O$2),INDEX(Expr2,SMALL(IF(nom=$O$2,ROW(INDIRECT("1:"&ROWS(Expr1)))),ROWS('Charge atelier chaudronnerie'!$3:27))),"") ->  | Q28: =IF(ROWS('Charge atelier chaudronnerie'!$3:27)<=COUNTIF(nom,$O$2),INDEX(DatePriseOf,SMALL(IF(nom=$O$2,ROW(INDIRECT("1:"&ROWS(Expr1)))),ROWS('Charge atelier chaudronnerie'!$3:27))),"") ->  | S28: =IF(ROWS('Charge atelier chaudronnerie'!$3:27)<=COUNTIF(nom,$S$2),INDEX(Expr1,SMALL(IF(nom=$S$2,ROW(INDIRECT("1:"&ROWS(Expr1)))),ROWS('Charge atelier chaudronnerie'!$3:27))),"") ->  | T28: =IF(ROWS('Charge atelier chaudronnerie'!$3:27)<=COUNTIF(nom,$S$2),INDEX(Expr2,SMALL(IF(nom=$S$2,ROW(INDIRECT("1:"&ROWS(Expr1)))),ROWS('Charge atelier chaudronnerie'!$3:27))),"") ->  | U28: =IF(ROWS('Charge atelier chaudronnerie'!$3:27)<=COUNTIF(nom,$S$2),INDEX(DatePriseOf,SMALL(IF(nom=$S$2,ROW(INDIRECT("1:"&ROWS(Expr1)))),ROWS('Charge atelier chaudronnerie'!$3:27))),"") ->  | W28: =IF(ROWS('Charge atelier chaudronnerie'!$3:27)<=COUNTIF(nom,$W$2),INDEX(Expr1,SMALL(IF(nom=$W$2,ROW(INDIRECT("1:"&ROWS(Expr1)))),ROWS('Charge atelier chaudronnerie'!$3:27))),"") ->  | X28: =IF(ROWS('Charge atelier chaudronnerie'!$3:27)<=COUNTIF(nom,$W$2),INDEX(Expr2,SMALL(IF(nom=$W$2,ROW(INDIRECT("1:"&ROWS(Expr1)))),ROWS('Charge atelier chaudronnerie'!$3:27))),"") ->  | Y28: =IF(ROWS('Charge atelier chaudronnerie'!$3:27)<=COUNTIF(nom,$W$2),INDEX(DatePriseOf,SMALL(IF(nom=$W$2,ROW(INDIRECT("1:"&ROWS(Expr1)))),ROWS('Charge atelier chaudronnerie'!$3:27))),"") ->  | AA28: =IF(ROWS('Charge atelier chaudronnerie'!$3:27)<=COUNTIF(nom,$AA$2),INDEX(Expr1,SMALL(IF(nom=$AA$2,ROW(INDIRECT("1:"&ROWS(Expr1)))),ROWS('Charge atelier chaudronnerie'!$3:27))),"") ->  | AB28: =IF(ROWS('Charge atelier chaudronnerie'!$3:27)<=COUNTIF(nom,$AA$2),INDEX(Expr2,SMALL(IF(nom=$AA$2,ROW(INDIRECT("1:"&ROWS(Expr1)))),ROWS('Charge atelier chaudronnerie'!$3:27))),"") ->  | AC28: =IF(ROWS('Charge atelier chaudronnerie'!$3:27)<=COUNTIF(nom,$AA$2),INDEX(DatePriseOf,SMALL(IF(nom=$AA$2,ROW(INDIRECT("1:"&ROWS(Expr1)))),ROWS('Charge atelier chaudronnerie'!$3:27))),"") ->  | AE28: =IF(ROWS('Charge atelier chaudronnerie'!$3:27)<=COUNTIF(nom,$AE$2),INDEX(Expr1,SMALL(IF(nom=$AE$2,ROW(INDIRECT("1:"&ROWS(Expr1)))),ROWS('Charge atelier chaudronnerie'!$3:27))),"") ->  | AF28: =IF(ROWS('Charge atelier chaudronnerie'!$3:27)<=COUNTIF(nom,$AE$2),INDEX(Expr2,SMALL(IF(nom=$AE$2,ROW(INDIRECT("1:"&ROWS(Expr1)))),ROWS('Charge atelier chaudronnerie'!$3:27))),"") ->  | AG28: =IF(ROWS('Charge atelier chaudronnerie'!$3:27)<=COUNTIF(nom,$AE$2),INDEX(DatePriseOf,SMALL(IF(nom=$AE$2,ROW(INDIRECT("1:"&ROWS(Expr1)))),ROWS('Charge atelier chaudronnerie'!$3:27))),"") ->  | AI28: =IF(ROWS('Charge atelier chaudronnerie'!$3:27)<=COUNTIF(nom,$AI$2),INDEX(Expr1,SMALL(IF(nom=$AI$2,ROW(INDIRECT("1:"&ROWS(Expr1)))),ROWS('Charge atelier chaudronnerie'!$3:27))),"") ->  | AJ28: =IF(ROWS('Charge atelier chaudronnerie'!$3:27)<=COUNTIF(nom,$AI$2),INDEX(Expr2,SMALL(IF(nom=$AI$2,ROW(INDIRECT("1:"&ROWS(Expr1)))),ROWS('Charge atelier chaudronnerie'!$3:27))),"") ->  | AK28: =IF(ROWS('Charge atelier chaudronnerie'!$3:27)<=COUNTIF(nom,$AI$2),INDEX(DatePriseOf,SMALL(IF(nom=$AI$2,ROW(INDIRECT("1:"&ROWS(Expr1)))),ROWS('Charge atelier chaudronnerie'!$3:27))),"") ->  | AM28: =IF(ROWS('Charge atelier chaudronnerie'!$3:27)<=COUNTIF(nom,$AM$2),INDEX(Expr1,SMALL(IF(nom=$AM$2,ROW(INDIRECT("1:"&ROWS(Expr1)))),ROWS('Charge atelier chaudronnerie'!$3:27))),"") ->  | AN28: =IF(ROWS('Charge atelier chaudronnerie'!$3:27)<=COUNTIF(nom,$AM$2),INDEX(Expr2,SMALL(IF(nom=$AM$2,ROW(INDIRECT("1:"&ROWS(Expr1)))),ROWS('Charge atelier chaudronnerie'!$3:27))),"") ->  | AO28: =IF(ROWS('Charge atelier chaudronnerie'!$3:27)<=COUNTIF(nom,$AM$2),INDEX(DatePriseOf,SMALL(IF(nom=$AM$2,ROW(INDIRECT("1:"&ROWS(Expr1)))),ROWS('Charge atelier chaudronnerie'!$3:27))),"") ->  | AQ28: =IF(ROWS('Charge atelier chaudronnerie'!$3:27)<=COUNTIF(nom,$AQ$2),INDEX(Expr1,SMALL(IF(nom=$AQ$2,ROW(INDIRECT("1:"&ROWS(Expr1)))),ROWS('Charge atelier chaudronnerie'!$3:27))),"") ->  | AR28: =IF(ROWS('Charge atelier chaudronnerie'!$3:27)<=COUNTIF(nom,$AQ$2),INDEX(Expr2,SMALL(IF(nom=$AQ$2,ROW(INDIRECT("1:"&ROWS(Expr1)))),ROWS('Charge atelier chaudronnerie'!$3:27))),"") ->  | AS28: =IF(ROWS('Charge atelier chaudronnerie'!$3:27)<=COUNTIF(nom,$AQ$2),INDEX(DatePriseOf,SMALL(IF(nom=$AQ$2,ROW(INDIRECT("1:"&ROWS(Expr1)))),ROWS('Charge atelier chaudronnerie'!$3:27))),"") ->  | AU28: =IF(ROWS('Charge atelier chaudronnerie'!$3:27)<=COUNTIF(nom,$AU$2),INDEX(Expr1,SMALL(IF(nom=$AU$2,ROW(INDIRECT("1:"&ROWS(Expr1)))),ROWS('Charge atelier chaudronnerie'!$3:27))),"") ->  | AV28: =IF(ROWS('Charge atelier chaudronnerie'!$3:27)<=COUNTIF(nom,$AU$2),INDEX(Expr2,SMALL(IF(nom=$AU$2,ROW(INDIRECT("1:"&ROWS(Expr1)))),ROWS('Charge atelier chaudronnerie'!$3:27))),"") ->  | AW28: =IF(ROWS('Charge atelier chaudronnerie'!$3:27)<=COUNTIF(nom,$AU$2),INDEX(DatePriseOf,SMALL(IF(nom=$AU$2,ROW(INDIRECT("1:"&ROWS(Expr1)))),ROWS('Charge atelier chaudronnerie'!$3:27))),"") ->  | AY28: =IF(ROWS('Charge atelier chaudronnerie'!$3:27)<=COUNTIF(nom,$AY$2),INDEX(Expr1,SMALL(IF(nom=$AY$2,ROW(INDIRECT("1:"&ROWS(Expr1)))),ROWS('Charge atelier chaudronnerie'!$3:27))),"") ->  | AZ28: =IF(ROWS('Charge atelier chaudronnerie'!$3:27)<=COUNTIF(nom,$AY$2),INDEX(Expr2,SMALL(IF(nom=$AY$2,ROW(INDIRECT("1:"&ROWS(Expr1)))),ROWS('Charge atelier chaudronnerie'!$3:27))),"") ->  | BA28: =IF(ROWS('Charge atelier chaudronnerie'!$3:27)<=COUNTIF(nom,$AY$2),INDEX(DatePriseOf,SMALL(IF(nom=$AY$2,ROW(INDIRECT("1:"&ROWS(Expr1)))),ROWS('Charge atelier chaudronnerie'!$3:27))),"") ->  | BC28: =IF(ROWS('Charge atelier chaudronnerie'!$3:27)<=COUNTIF(nom,$BC$2),INDEX(Expr1,SMALL(IF(nom=$BC$2,ROW(INDIRECT("1:"&ROWS(Expr1)))),ROWS('Charge atelier chaudronnerie'!$3:27))),"") ->  | BD28: =IF(ROWS('Charge atelier chaudronnerie'!$3:27)<=COUNTIF(nom,$BC$2),INDEX(Expr2,SMALL(IF(nom=$BC$2,ROW(INDIRECT("1:"&ROWS(Expr1)))),ROWS('Charge atelier chaudronnerie'!$3:27))),"") ->  | BE28: =IF(ROWS('Charge atelier chaudronnerie'!$3:27)<=COUNTIF(nom,$BC$2),INDEX(DatePriseOf,SMALL(IF(nom=$BC$2,ROW(INDIRECT("1:"&ROWS(Expr1)))),ROWS('Charge atelier chaudronnerie'!$3:27))),"") ->  | BG28: =IF(ROWS('Charge atelier chaudronnerie'!$3:27)<=COUNTIF(nom,$BG$2),INDEX(Expr1,SMALL(IF(nom=$BG$2,ROW(INDIRECT("1:"&ROWS(Expr1)))),ROWS('Charge atelier chaudronnerie'!$3:27))),"") ->  | BH28: =IF(ROWS('Charge atelier chaudronnerie'!$3:27)<=COUNTIF(nom,$BG$2),INDEX(Expr2,SMALL(IF(nom=$BG$2,ROW(INDIRECT("1:"&ROWS(Expr1)))),ROWS('Charge atelier chaudronnerie'!$3:27))),"") ->  | BI28: =IF(ROWS('Charge atelier chaudronnerie'!$3:27)<=COUNTIF(nom,$BG$2),INDEX(DatePriseOf,SMALL(IF(nom=$BG$2,ROW(INDIRECT("1:"&ROWS(Expr1)))),ROWS('Charge atelier chaudronnerie'!$3:27))),"") ->  | BK28: =IF(ROWS('Charge atelier chaudronnerie'!$3:27)<=COUNTIF(nom,$BK$2),INDEX(Expr1,SMALL(IF(nom=$BK$2,ROW(INDIRECT("1:"&ROWS(Expr1)))),ROWS('Charge atelier chaudronnerie'!$3:27))),"") ->  | BL28: =IF(ROWS('Charge atelier chaudronnerie'!$3:27)<=COUNTIF(nom,$BK$2),INDEX(Expr2,SMALL(IF(nom=$BK$2,ROW(INDIRECT("1:"&ROWS(Expr1)))),ROWS('Charge atelier chaudronnerie'!$3:27))),"") ->  | BM28: =IF(ROWS('Charge atelier chaudronnerie'!$3:27)<=COUNTIF(nom,$BK$2),INDEX(DatePriseOf,SMALL(IF(nom=$BK$2,ROW(INDIRECT("1:"&ROWS(Expr1)))),ROWS('Charge atelier chaudronnerie'!$3:27))),"") ->  | BO28: =IF(ROWS('Charge atelier chaudronnerie'!$3:24)<=COUNTIF(nom,$BO$2),INDEX(Expr1,SMALL(IF(nom=$BO$2,ROW(INDIRECT("1:"&ROWS(Expr1)))),ROWS('Charge atelier chaudronnerie'!$3:24))),"") ->  | BP28: =IF(ROWS('Charge atelier chaudronnerie'!$3:24)<=COUNTIF(nom,$BO$2),INDEX(Expr2,SMALL(IF(nom=$BO$2,ROW(INDIRECT("1:"&ROWS(Expr1)))),ROWS('Charge atelier chaudronnerie'!$3:24))),"") ->  | BQ28: =IF(ROWS('Charge atelier chaudronnerie'!$3:24)<=COUNTIF(nom,$BO$2),INDEX(DatePriseOf,SMALL(IF(nom=$BO$2,ROW(INDIRECT("1:"&ROWS(Expr1)))),ROWS('Charge atelier chaudronnerie'!$3:24))),"") ->  | BS28: =IF(ROWS('Charge atelier chaudronnerie'!$3:24)<=COUNTIF(nom,$BS$2),INDEX(Expr1,SMALL(IF(nom=$BS$2,ROW(INDIRECT("1:"&ROWS(Expr1)))),ROWS('Charge atelier chaudronnerie'!$3:24))),"") ->  | BT28: =IF(ROWS('Charge atelier chaudronnerie'!$3:24)<=COUNTIF(nom,$BS$2),INDEX(Expr2,SMALL(IF(nom=$BS$2,ROW(INDIRECT("1:"&ROWS(Expr1)))),ROWS('Charge atelier chaudronnerie'!$3:24))),"") ->  | BU28: =IF(ROWS('Charge atelier chaudronnerie'!$3:24)<=COUNTIF(nom,$BS$2),INDEX(DatePriseOf,SMALL(IF(nom=$BS$2,ROW(INDIRECT("1:"&ROWS(Expr1)))),ROWS('Charge atelier chaudronnerie'!$3:24))),"") -> 
A29: CH2 | C29: =IF(ROWS('Charge atelier chaudronnerie'!$3:28)<=COUNTIF(nom,$C$2),INDEX(Expr1,SMALL(IF(nom=$C$2,ROW(INDIRECT("1:"&ROWS(Expr1)))),ROWS('Charge atelier chaudronnerie'!$3:28))),"") ->  | D29: =IF(ROWS('Charge atelier chaudronnerie'!$3:28)<=COUNTIF(nom,$C$2),INDEX(Expr2,SMALL(IF(nom=$C$2,ROW(INDIRECT("1:"&ROWS(Expr1)))),ROWS('Charge atelier chaudronnerie'!$3:28))),"") ->  | E29: =IF(ROWS('Charge atelier chaudronnerie'!$3:28)<=COUNTIF(nom,$C$2),INDEX(DatePriseOf,SMALL(IF(nom=$C$2,ROW(INDIRECT("1:"&ROWS(Expr1)))),ROWS('Charge atelier chaudronnerie'!$3:28))),"") ->  | G29: =IF(ROWS('Charge atelier chaudronnerie'!$3:28)<=COUNTIF(nom,$G$2),INDEX(Expr1,SMALL(IF(nom=$G$2,ROW(INDIRECT("1:"&ROWS(Expr1)))),ROWS('Charge atelier chaudronnerie'!$3:28))),"") ->  | H29: =IF(ROWS('Charge atelier chaudronnerie'!$3:28)<=COUNTIF(nom,$G$2),INDEX(Expr2,SMALL(IF(nom=$G$2,ROW(INDIRECT("1:"&ROWS(Expr1)))),ROWS('Charge atelier chaudronnerie'!$3:28))),"") ->  | I29: =IF(ROWS('Charge atelier chaudronnerie'!$3:28)<=COUNTIF(nom,$G$2),INDEX(DatePriseOf,SMALL(IF(nom=$G$2,ROW(INDIRECT("1:"&ROWS(Expr1)))),ROWS('Charge atelier chaudronnerie'!$3:28))),"") ->  | K29: =IF(ROWS('Charge atelier chaudronnerie'!$3:28)<=COUNTIF(nom,$K$2),INDEX(Expr1,SMALL(IF(nom=$K$2,ROW(INDIRECT("1:"&ROWS(Expr1)))),ROWS('Charge atelier chaudronnerie'!$3:28))),"") ->  | L29: =IF(ROWS('Charge atelier chaudronnerie'!$3:28)<=COUNTIF(nom,$K$2),INDEX(Expr2,SMALL(IF(nom=$K$2,ROW(INDIRECT("1:"&ROWS(Expr1)))),ROWS('Charge atelier chaudronnerie'!$3:28))),"") ->  | M29: =IF(ROWS('Charge atelier chaudronnerie'!$3:28)<=COUNTIF(nom,$K$2),INDEX(DatePriseOf,SMALL(IF(nom=$K$2,ROW(INDIRECT("1:"&ROWS(Expr1)))),ROWS('Charge atelier chaudronnerie'!$3:28))),"") ->  | O29: =IF(ROWS('Charge atelier chaudronnerie'!$3:28)<=COUNTIF(nom,$O$2),INDEX(Expr1,SMALL(IF(nom=$O$2,ROW(INDIRECT("1:"&ROWS(Expr1)))),ROWS('Charge atelier chaudronnerie'!$3:28))),"") ->  | P29: =IF(ROWS('Charge atelier chaudronnerie'!$3:28)<=COUNTIF(nom,$O$2),INDEX(Expr2,SMALL(IF(nom=$O$2,ROW(INDIRECT("1:"&ROWS(Expr1)))),ROWS('Charge atelier chaudronnerie'!$3:28))),"") ->  | Q29: =IF(ROWS('Charge atelier chaudronnerie'!$3:28)<=COUNTIF(nom,$O$2),INDEX(DatePriseOf,SMALL(IF(nom=$O$2,ROW(INDIRECT("1:"&ROWS(Expr1)))),ROWS('Charge atelier chaudronnerie'!$3:28))),"") ->  | S29: =IF(ROWS('Charge atelier chaudronnerie'!$3:28)<=COUNTIF(nom,$S$2),INDEX(Expr1,SMALL(IF(nom=$S$2,ROW(INDIRECT("1:"&ROWS(Expr1)))),ROWS('Charge atelier chaudronnerie'!$3:28))),"") ->  | T29: =IF(ROWS('Charge atelier chaudronnerie'!$3:28)<=COUNTIF(nom,$S$2),INDEX(Expr2,SMALL(IF(nom=$S$2,ROW(INDIRECT("1:"&ROWS(Expr1)))),ROWS('Charge atelier chaudronnerie'!$3:28))),"") ->  | U29: =IF(ROWS('Charge atelier chaudronnerie'!$3:28)<=COUNTIF(nom,$S$2),INDEX(DatePriseOf,SMALL(IF(nom=$S$2,ROW(INDIRECT("1:"&ROWS(Expr1)))),ROWS('Charge atelier chaudronnerie'!$3:28))),"") ->  | W29: =IF(ROWS('Charge atelier chaudronnerie'!$3:28)<=COUNTIF(nom,$W$2),INDEX(Expr1,SMALL(IF(nom=$W$2,ROW(INDIRECT("1:"&ROWS(Expr1)))),ROWS('Charge atelier chaudronnerie'!$3:28))),"") ->  | X29: =IF(ROWS('Charge atelier chaudronnerie'!$3:28)<=COUNTIF(nom,$W$2),INDEX(Expr2,SMALL(IF(nom=$W$2,ROW(INDIRECT("1:"&ROWS(Expr1)))),ROWS('Charge atelier chaudronnerie'!$3:28))),"") ->  | Y29: =IF(ROWS('Charge atelier chaudronnerie'!$3:28)<=COUNTIF(nom,$W$2),INDEX(DatePriseOf,SMALL(IF(nom=$W$2,ROW(INDIRECT("1:"&ROWS(Expr1)))),ROWS('Charge atelier chaudronnerie'!$3:28))),"") ->  | AA29: =IF(ROWS('Charge atelier chaudronnerie'!$3:28)<=COUNTIF(nom,$AA$2),INDEX(Expr1,SMALL(IF(nom=$AA$2,ROW(INDIRECT("1:"&ROWS(Expr1)))),ROWS('Charge atelier chaudronnerie'!$3:28))),"") ->  | AB29: =IF(ROWS('Charge atelier chaudronnerie'!$3:28)<=COUNTIF(nom,$AA$2),INDEX(Expr2,SMALL(IF(nom=$AA$2,ROW(INDIRECT("1:"&ROWS(Expr1)))),ROWS('Charge atelier chaudronnerie'!$3:28))),"") ->  | AC29: =IF(ROWS('Charge atelier chaudronnerie'!$3:28)<=COUNTIF(nom,$AA$2),INDEX(DatePriseOf,SMALL(IF(nom=$AA$2,ROW(INDIRECT("1:"&ROWS(Expr1)))),ROWS('Charge atelier chaudronnerie'!$3:28))),"") ->  | AE29: =IF(ROWS('Charge atelier chaudronnerie'!$3:28)<=COUNTIF(nom,$AE$2),INDEX(Expr1,SMALL(IF(nom=$AE$2,ROW(INDIRECT("1:"&ROWS(Expr1)))),ROWS('Charge atelier chaudronnerie'!$3:28))),"") ->  | AF29: =IF(ROWS('Charge atelier chaudronnerie'!$3:28)<=COUNTIF(nom,$AE$2),INDEX(Expr2,SMALL(IF(nom=$AE$2,ROW(INDIRECT("1:"&ROWS(Expr1)))),ROWS('Charge atelier chaudronnerie'!$3:28))),"") ->  | AG29: =IF(ROWS('Charge atelier chaudronnerie'!$3:28)<=COUNTIF(nom,$AE$2),INDEX(DatePriseOf,SMALL(IF(nom=$AE$2,ROW(INDIRECT("1:"&ROWS(Expr1)))),ROWS('Charge atelier chaudronnerie'!$3:28))),"") ->  | AI29: =IF(ROWS('Charge atelier chaudronnerie'!$3:28)<=COUNTIF(nom,$AI$2),INDEX(Expr1,SMALL(IF(nom=$AI$2,ROW(INDIRECT("1:"&ROWS(Expr1)))),ROWS('Charge atelier chaudronnerie'!$3:28))),"") ->  | AJ29: =IF(ROWS('Charge atelier chaudronnerie'!$3:28)<=COUNTIF(nom,$AI$2),INDEX(Expr2,SMALL(IF(nom=$AI$2,ROW(INDIRECT("1:"&ROWS(Expr1)))),ROWS('Charge atelier chaudronnerie'!$3:28))),"") ->  | AK29: =IF(ROWS('Charge atelier chaudronnerie'!$3:28)<=COUNTIF(nom,$AI$2),INDEX(DatePriseOf,SMALL(IF(nom=$AI$2,ROW(INDIRECT("1:"&ROWS(Expr1)))),ROWS('Charge atelier chaudronnerie'!$3:28))),"") ->  | AM29: =IF(ROWS('Charge atelier chaudronnerie'!$3:28)<=COUNTIF(nom,$AM$2),INDEX(Expr1,SMALL(IF(nom=$AM$2,ROW(INDIRECT("1:"&ROWS(Expr1)))),ROWS('Charge atelier chaudronnerie'!$3:28))),"") ->  | AN29: =IF(ROWS('Charge atelier chaudronnerie'!$3:28)<=COUNTIF(nom,$AM$2),INDEX(Expr2,SMALL(IF(nom=$AM$2,ROW(INDIRECT("1:"&ROWS(Expr1)))),ROWS('Charge atelier chaudronnerie'!$3:28))),"") ->  | AO29: =IF(ROWS('Charge atelier chaudronnerie'!$3:28)<=COUNTIF(nom,$AM$2),INDEX(DatePriseOf,SMALL(IF(nom=$AM$2,ROW(INDIRECT("1:"&ROWS(Expr1)))),ROWS('Charge atelier chaudronnerie'!$3:28))),"") ->  | AQ29: =IF(ROWS('Charge atelier chaudronnerie'!$3:28)<=COUNTIF(nom,$AQ$2),INDEX(Expr1,SMALL(IF(nom=$AQ$2,ROW(INDIRECT("1:"&ROWS(Expr1)))),ROWS('Charge atelier chaudronnerie'!$3:28))),"") ->  | AR29: =IF(ROWS('Charge atelier chaudronnerie'!$3:28)<=COUNTIF(nom,$AQ$2),INDEX(Expr2,SMALL(IF(nom=$AQ$2,ROW(INDIRECT("1:"&ROWS(Expr1)))),ROWS('Charge atelier chaudronnerie'!$3:28))),"") ->  | AS29: =IF(ROWS('Charge atelier chaudronnerie'!$3:28)<=COUNTIF(nom,$AQ$2),INDEX(DatePriseOf,SMALL(IF(nom=$AQ$2,ROW(INDIRECT("1:"&ROWS(Expr1)))),ROWS('Charge atelier chaudronnerie'!$3:28))),"") ->  | AU29: =IF(ROWS('Charge atelier chaudronnerie'!$3:28)<=COUNTIF(nom,$AU$2),INDEX(Expr1,SMALL(IF(nom=$AU$2,ROW(INDIRECT("1:"&ROWS(Expr1)))),ROWS('Charge atelier chaudronnerie'!$3:28))),"") ->  | AV29: =IF(ROWS('Charge atelier chaudronnerie'!$3:28)<=COUNTIF(nom,$AU$2),INDEX(Expr2,SMALL(IF(nom=$AU$2,ROW(INDIRECT("1:"&ROWS(Expr1)))),ROWS('Charge atelier chaudronnerie'!$3:28))),"") ->  | AW29: =IF(ROWS('Charge atelier chaudronnerie'!$3:28)<=COUNTIF(nom,$AU$2),INDEX(DatePriseOf,SMALL(IF(nom=$AU$2,ROW(INDIRECT("1:"&ROWS(Expr1)))),ROWS('Charge atelier chaudronnerie'!$3:28))),"") ->  | AY29: =IF(ROWS('Charge atelier chaudronnerie'!$3:28)<=COUNTIF(nom,$AY$2),INDEX(Expr1,SMALL(IF(nom=$AY$2,ROW(INDIRECT("1:"&ROWS(Expr1)))),ROWS('Charge atelier chaudronnerie'!$3:28))),"") ->  | AZ29: =IF(ROWS('Charge atelier chaudronnerie'!$3:28)<=COUNTIF(nom,$AY$2),INDEX(Expr2,SMALL(IF(nom=$AY$2,ROW(INDIRECT("1:"&ROWS(Expr1)))),ROWS('Charge atelier chaudronnerie'!$3:28))),"") ->  | BA29: =IF(ROWS('Charge atelier chaudronnerie'!$3:28)<=COUNTIF(nom,$AY$2),INDEX(DatePriseOf,SMALL(IF(nom=$AY$2,ROW(INDIRECT("1:"&ROWS(Expr1)))),ROWS('Charge atelier chaudronnerie'!$3:28))),"") ->  | BC29: =IF(ROWS('Charge atelier chaudronnerie'!$3:28)<=COUNTIF(nom,$BC$2),INDEX(Expr1,SMALL(IF(nom=$BC$2,ROW(INDIRECT("1:"&ROWS(Expr1)))),ROWS('Charge atelier chaudronnerie'!$3:28))),"") ->  | BD29: =IF(ROWS('Charge atelier chaudronnerie'!$3:28)<=COUNTIF(nom,$BC$2),INDEX(Expr2,SMALL(IF(nom=$BC$2,ROW(INDIRECT("1:"&ROWS(Expr1)))),ROWS('Charge atelier chaudronnerie'!$3:28))),"") ->  | BE29: =IF(ROWS('Charge atelier chaudronnerie'!$3:28)<=COUNTIF(nom,$BC$2),INDEX(DatePriseOf,SMALL(IF(nom=$BC$2,ROW(INDIRECT("1:"&ROWS(Expr1)))),ROWS('Charge atelier chaudronnerie'!$3:28))),"") ->  | BG29: =IF(ROWS('Charge atelier chaudronnerie'!$3:28)<=COUNTIF(nom,$BG$2),INDEX(Expr1,SMALL(IF(nom=$BG$2,ROW(INDIRECT("1:"&ROWS(Expr1)))),ROWS('Charge atelier chaudronnerie'!$3:28))),"") ->  | BH29: =IF(ROWS('Charge atelier chaudronnerie'!$3:28)<=COUNTIF(nom,$BG$2),INDEX(Expr2,SMALL(IF(nom=$BG$2,ROW(INDIRECT("1:"&ROWS(Expr1)))),ROWS('Charge atelier chaudronnerie'!$3:28))),"") ->  | BI29: =IF(ROWS('Charge atelier chaudronnerie'!$3:28)<=COUNTIF(nom,$BG$2),INDEX(DatePriseOf,SMALL(IF(nom=$BG$2,ROW(INDIRECT("1:"&ROWS(Expr1)))),ROWS('Charge atelier chaudronnerie'!$3:28))),"") ->  | BK29: =IF(ROWS('Charge atelier chaudronnerie'!$3:28)<=COUNTIF(nom,$BK$2),INDEX(Expr1,SMALL(IF(nom=$BK$2,ROW(INDIRECT("1:"&ROWS(Expr1)))),ROWS('Charge atelier chaudronnerie'!$3:28))),"") ->  | BL29: =IF(ROWS('Charge atelier chaudronnerie'!$3:28)<=COUNTIF(nom,$BK$2),INDEX(Expr2,SMALL(IF(nom=$BK$2,ROW(INDIRECT("1:"&ROWS(Expr1)))),ROWS('Charge atelier chaudronnerie'!$3:28))),"") ->  | BM29: =IF(ROWS('Charge atelier chaudronnerie'!$3:28)<=COUNTIF(nom,$BK$2),INDEX(DatePriseOf,SMALL(IF(nom=$BK$2,ROW(INDIRECT("1:"&ROWS(Expr1)))),ROWS('Charge atelier chaudronnerie'!$3:28))),"") ->  | BO29: =IF(ROWS('Charge atelier chaudronnerie'!$3:25)<=COUNTIF(nom,$BO$2),INDEX(Expr1,SMALL(IF(nom=$BO$2,ROW(INDIRECT("1:"&ROWS(Expr1)))),ROWS('Charge atelier chaudronnerie'!$3:25))),"") ->  | BP29: =IF(ROWS('Charge atelier chaudronnerie'!$3:25)<=COUNTIF(nom,$BO$2),INDEX(Expr2,SMALL(IF(nom=$BO$2,ROW(INDIRECT("1:"&ROWS(Expr1)))),ROWS('Charge atelier chaudronnerie'!$3:25))),"") ->  | BQ29: =IF(ROWS('Charge atelier chaudronnerie'!$3:25)<=COUNTIF(nom,$BO$2),INDEX(DatePriseOf,SMALL(IF(nom=$BO$2,ROW(INDIRECT("1:"&ROWS(Expr1)))),ROWS('Charge atelier chaudronnerie'!$3:25))),"") ->  | BS29: =IF(ROWS('Charge atelier chaudronnerie'!$3:25)<=COUNTIF(nom,$BS$2),INDEX(Expr1,SMALL(IF(nom=$BS$2,ROW(INDIRECT("1:"&ROWS(Expr1)))),ROWS('Charge atelier chaudronnerie'!$3:25))),"") ->  | BT29: =IF(ROWS('Charge atelier chaudronnerie'!$3:25)<=COUNTIF(nom,$BS$2),INDEX(Expr2,SMALL(IF(nom=$BS$2,ROW(INDIRECT("1:"&ROWS(Expr1)))),ROWS('Charge atelier chaudronnerie'!$3:25))),"") ->  | BU29: =IF(ROWS('Charge atelier chaudronnerie'!$3:25)<=COUNTIF(nom,$BS$2),INDEX(DatePriseOf,SMALL(IF(nom=$BS$2,ROW(INDIRECT("1:"&ROWS(Expr1)))),ROWS('Charge atelier chaudronnerie'!$3:25))),"") -> 
